Workbook

Sheet INDICE
F1: FRANÇA
F2: Trocas comerciais com Portugal (PT) 2018-2022 Setores agrícola e agroalimentar, do mar e das florestas
C3: Fonte
D4: Estatísticas do Comércio Internacional | F4: França - Síntese
D5: dados: 2022 definitivos | F5: 1. Evolução da balança comercial
F6: 2. Ranking dos parceiros comerciais de Portugal por país
C7: Data | D7: 2023-11-03T15:23:15.730 | F7: 2A Parceiros comerciais de Portugal - UE vs. Países Terceiros
F8: 3. Principais produtos transacionados (NC a 2 e 4 dígitos)
F9: 3A Principais produtos transacionados (sem mar nem florestas)
F10: 4A Evolução da balança comercial por produto
F11: 5.2. Trocas comerciais por produto (NC 2 dígitos)

Sheet Sintese
A1: França - Síntese (2018-2022)
A3: • As trocas comerciais de bens transacionáveis (excluindo serviços) entre Portugal e França representam um total de 8,1 mil milhões de € (M€) em exportações e 6,2 mil M€ em importações, na média do período 2018-2022, correspondendo a um saldo positivo da balança comercial de cerca de 1,9 M€. No que se refere ao total da economia (incluindo serviços), as exportações totalizam 12,4 mil M€ e as importações 7 mil milhões, correspondendo a um saldo positivo de cerca de 5,4 mil M€.
A4: • No que respeita aos produtos dos setores agrícola e agroalimentar, mar e florestas, Portugal exportou para França 1,4 mil M€ em média anual, no mesmo período (este país ocupa assim a 2ª posição em relação ao total dos países), enquanto as importações totalizaram 986,1 M€ (2ª posição), com um saldo positivo de 372,7 M€. Estes setores representam perto de 16,8% do total de exportações de bens transacionáveis e 15,9% das correspondentes importações.
A5: • Se nos referirmos apenas ao setor agrícola e agroalimentar, as exportações representam, em média, 675,8 M€ (2ª posição) e as importações 803,1 milhões (2ª posição), ou seja, Portugal tem um saldo negativo de -127,3 M€. Estes valores representam, respetivamente, cerca de 49,7% das exportações do setor agroflorestal e mar e 81,4% das importações.
A6: • As principais exportações agrícolas e agroalimentares (NC 4 dígitos) neste período são Charutos, cigarrilhas e cigarros (17%), Vinhos de uvas frescas (17%) e Outras frutas frescas (5%). As importações agrícolas e agroalimentares mais relevantes referem-se a Trigo e mistura trigo/centeio (19%), Café (7%) e Preparações p/ alimentação animal (5%). Se considerarmos também os produtos do mar e da floresta, merecem particular destaque, em termos de exportações, Papel e cartão p/ escrita, etc. (11%), Charutos, cigarrilhas e cigarros (8%) e Vinhos de uvas frescas (8%). Nas importações destes setores, destacam-se Trigo e mistura trigo/centeio (15%), Café (6%) e Preparações p/ alimentação animal (4%).
A9: Saldo da Balança Comercial | B9: 2018 | C9: 2019 | D9: 2020 | E9: 2021 | F9: 2022 | G9: média 2018-2022 | J9: Posição entre os parceiros comerciais de Portugal (milhares de euros)
A10: Total Economia (bens e serviços) | B10: 5040 | C10: 5223.3 | D10: 4521.7 | E10: 5662 | F10: 6694.7 | G10: 5428.34 | J10: AA + M + F | K10: Posição | L10: média 2018-2022 | M10: % do total | N10: TVMA* 2018-2022 | O10: TVT* 2018-2022
A11: Total de Bens Transacionáveis* | B11: 1539.51514 | C11: -104.841717 | D11: 2214.168886 | E11: 2767.923713 | F11: 1908-03-18T14:13:06.902 | G11: 1883.471693 | J11: Exportações | K11: 2ª | L11: 1358886.663 | M11: 0.1048541322 | N11: 0.09930802993 | O11: 0.4604194261
A12: Agrícola e Agroalimentar (AA) | B12: -207.969924 | C12: -129.662176 | D12: -6.736855 | E12: -62.729279 | F12: -229.301483 | G12: -127.2799434 | J12: Importações | K12: 2ª | L12: 986144.9388 | M12: 0.06594761841 | N12: 0.08005784475 | O12: 0.3607804543
A13: Mar (M) | B13: 70.856544 | C13: 78.387874 | D13: 88.48167 | E13: 94.832743 | F13: 88.629789 | G13: 84.237724 | J13: AA
A14: Florestas (F) | B14: 368.037263 | C14: 1901-02-02T13:03:11.750 | D14: 348.143559 | E14: 393.222439 | F14: 1901-07-22T23:20:30.221 | G14: 415.7839438 | J14: Exportações | K14: 2ª | L14: 675806.7388 | M14: 0.09560195886 | N14: 0.1141744863 | O14: 0.5410361869
A15: AA + M + F | B15: 230.923883 | C15: 1900-12-13T06:28:12.058 | D15: 429.888374 | E15: 425.325903 | F15: 1901-03-04T07:13:15.859 | G15: 372.7417244 | J15: Importações | K15: 2ª | L15: 803086.6822 | M15: 0.07872558298 | N15: 0.07210521465 | O15: 0.4164036654
K16: *TVMA - Taxa de variação média anual; TVT - Taxa de variação total
A17: milhões de euros *exclui serviços
A19: Evolução das trocas comerciais Portugal-França em milhares de euros (2018-2022)
E28: Exportações | G28: Importações | I28: Saldo
A29: Principais produtos agrícolas e agroalimentares, do mar e da floresta transacionados (NC 4 dígitos)
A48: Principais produtos agrícolas e agroalimentares transacionados (NC 4 dígitos)
A82: Fonte: GPP a partir de dados INE/Comércio Internacional (2022 definitivos) | N82: 2023-11-03T15:23:15.730

Sheet 1
A1: Evolução da balança comercial Portugal-França 2018-2022 em milhões de euros
A3: Total da Economia (TE)(1) | B3: 2018 | C3: 2019 | D3: 2020 | E3: 2021 | F3: 2022 | G3: média quinquénio | H3: var. 18/19 | I3: var. 19/20 | J3: var. 20/21 | K3: var. 21/22 | L3: TVMA* 2018-2022 | M3: TVT* 2018-2022
A4: Exportações | B4: 11948.7 | C4: 12526.4 | D4: 10524.8 | E4: 12249.5 | F4: 14846.7 | G4: 12419.22 | H4: 0.04834835589 | I4: -0.1597905224 | J4: 0.1638700973 | K4: 0.2120249806 | L4: 0.05578945231 | M4: 0.242536845
A5: Importações | B5: 6908.7 | C5: 7303.1 | D5: 6003.1 | E5: 6587.5 | F5: 8152 | G5: 6990.88 | H5: 0.05708744047 | I5: -0.1780065999 | J5: 0.09734970265 | K5: 0.2374952562 | L5: 0.0422381335 | M5: 0.1799614978
A6: Saldo (exp-imp) | B6: 5040 | C6: 5223.3 | D6: 4521.7 | E6: 5662 | F6: 6694.7 | G6: 5428.34
A7: Cobertura (exp/imp) | B7: 1.729514959 | C7: 1.715216826 | D7: 1.753227499 | E7: 1.859506641 | F7: 1.821234053 | G7: 1.776488797 | L7: Exportações
A8: Exp TE França / Exp TE Mundo | B8: 0.1340386094 | C8: 0.1343011024 | D8: 0.1416798956 | E8: 0.1370117973 | F8: 0.1239789556 | G8: 0.1332943411 | L8: Importações
A9: Imp TE França / Imp TE Mundo | B9: 0.07833492516 | C9: 0.079121993 | D9: 0.07639011695 | E9: 0.06895689968 | F9: 0.06485389322 | G9: 0.07277473666
A10: (1) Todas as transações entre PT e França (inclui bens e serviços) | E10: Fonte: GEE/ME e GPP a partir de INE/Contas Nacionais (2016 e 2020 provisórios; 2021 preliminares) | H10: *TVMA - Taxa de variação média anual; TVT - Taxa de variação total
A22: Total de Bens Transacionáveis (BT)(1) | B22: 2018 | C22: 2019 | D22: 2020 | E22: 2021 | F22: 2022 | G22: média quinquénio | H22: var. 18/19 | I22: var. 19/20 | J22: var. 20/21 | K22: var. 21/22 | L22: TVMA* 2018-2022 | M22: TVT* 2018-2022
A23: Exportações | B23: 7333.965117 | C23: 7746.237541 | D23: 7300.31144 | E23: 8343.455998 | F23: 9678.958398 | G23: 8080.585699 | H23: 0.05621412393 | I23: -0.05756679919 | J23: 0.1428904187 | K23: 0.1600658528 | L23: 0.071821454 | M23: 0.3197442643
A24: Importações | B24: 5794.449977 | C24: 7851.079258 | D24: 5086.142554 | E24: 5575.532285 | F24: 6678.365957 | G24: 6197.114006 | H24: 0.3549308889 | I24: -0.3521728177 | J24: 0.09622021518 | K24: 0.1977988138 | L24: 0.03613059762 | M24: 0.1525452776
A25: Saldo (exp-imp) | B25: 1539.51514 | C25: -104.841717 | D25: 2214.168886 | E25: 2767.923713 | F25: 3000.592441 | G25: 1883.471693
A26: Cobertura (exp/imp) | B26: 1.265687882 | C26: 0.9866462032 | D26: 1.435333627 | E26: 1.49644116 | F26: 1.449300392 | G26: 1.30392723
A27: Exp BT França / Exp TE França | B27: 0.6137877022 | C27: 0.6183929574 | D27: 0.6936294694 | E27: 0.6811262499 | F27: 0.6519265829 | G27: 0.650651627 | L27: Exportações
A28: Imp BT França / Imp TE França | B28: 0.8387178452 | C28: 1.075033788 | D28: 0.8472526784 | E28: 0.8463806125 | F28: 0.8192303676 | G28: 0.8864569276 | L28: Importações
A29: Exp BT França / Exp BT Mundo | B29: 0.1267755606 | C29: 0.1293134253 | D29: 0.1358010702 | E29: 0.1311482145 | F29: 0.1235535819 | G29: 0.1288905881
A30: Imp BT França / Imp BT Mundo | B30: 0.07680948924 | C30: 0.09816655612 | D30: 0.0746364394 | E30: 0.06705736186 | F30: 0.06099755282 | G30: 0.07444992075
A31: Exp BT França / Exp TE Mundo | B31: 0.08227125008 | C31: 0.08305085587 | D31: 0.09827335085 | E31: 0.09332233165 | F31: 0.0808251769 | G31: 0.08672817991
A32: Imp BT França / Imp TE Mundo | B32: 0.06570089963 | C32: 0.08505881586 | D32: 0.06472173119 | E32: 0.05836378299 | F32: 0.05313027878 | G32: 0.06451166947
A33: (1) Todos os produtos transacionados entre PT e França (exclui serviços) | D33: TE - Total da Economia (bens e serviços) Fonte: INE/Contas Nacionais | H33: *TVMA - Taxa de variação média anual; TVT - Taxa de variação total
A46: Agro(1) + Mar + Florestas (AMF) | B46: 2018 | C46: 2019 | D46: 2020 | E46: 2021 | F46: 2022 | G46: média quinquénio | H46: var. 18/19 | I46: var. 19/20 | J46: var. 20/21 | K46: var. 21/22 | L46: TVMA* 2018-2022 | M46: TVT* 2018-2022
A47: Exportações | B47: 1154.810909 | C47: 1239.711501 | D47: 1289.6302 | E47: 1423.772421 | F47: 1686.508285 | G47: 1358.886663 | H47: 0.07351904224 | I47: 0.04026638372 | J47: 0.1040160358 | K47: 0.1845350143 | L47: 0.09930802993 | M47: 0.4604194261
A48: Importações | B48: 923.887026 | C48: 891.441917 | D48: 859.741826 | E48: 998.446518 | F48: 1257.207407 | G48: 986.1449388 | H48: -0.03511804808 | I48: -0.03556046714 | J48: 0.1613329581 | K48: 0.2591634948 | L48: 0.08005784475 | M48: 0.3607804543
A49: Saldo (exp-imp) | B49: 230.923883 | C49: 348.269584 | D49: 429.888374 | E49: 425.325903 | F49: 429.300878 | G49: 372.7417244
A50: Cobertura (exp/imp) | B50: 1.249948183 | C50: 1.390681184 | D50: 1.50002031 | E50: 1.425987667 | F50: 1.341471801 | G50: 1.377978642
A51: Exp AMF França / Exp BT França | B51: 0.1574606493 | C51: 0.1600404705 | D51: 0.1766541346 | E51: 0.1706454042 | F51: 0.1742448119 | G51: 0.1681668525 | L51: Exportações
A52: Imp AMF França / Imp BT França | B52: 0.1594434381 | C52: 0.1135438693 | D52: 0.1690361245 | E52: 0.1790764481 | F52: 0.188250751 | G52: 0.1591297074 | L52: Importações
A53: Exp AMF França / Exp TE França | B53: 0.09664741009 | C53: 0.09896789988 | D53: 0.1225325137 | E53: 0.1162310642 | F53: 0.1135948248 | G53: 0.1094180362
A54: Imp AMF França / Imp TE França | B54: 0.1337280568 | C54: 0.1220634959 | D54: 0.1432163092 | E54: 0.1515668339 | F54: 0.154220732 | G54: 0.1410616316
A55: Exp AMF França / Exp AMF Mundo | B55: 0.09911936263 | C55: 0.1048131385 | D55: 0.1117972359 | E55: 0.106278881 | F55: 0.1029088807 | G55: 0.1048541322
A56: Imp AMF França / Imp AMF Mundo | B56: 0.06778037969 | C56: 0.06444143425 | D56: 0.06590389169 | E56: 0.06680980262 | F56: 0.06509532565 | G56: 0.06594761841
A57: Exp AMF França / Exp BT Mundo | B57: 0.01996216208 | C57: 0.02069538144 | D57: 0.02398982053 | E57: 0.02237984006 | F57: 0.02152857063 | G57: 0.02167512452
A58: Imp AMF França / Imp BT Mundo | B58: 0.01224676904 | C58: 0.01114621062 | D58: 0.01261625446 | E58: 0.01200839418 | F58: 0.01148283513 | G58: 0.01184719411
A59: (1) Produtos agrícolas e agroalimentares | B59: BT - Total de Bens Transacionáveis (exclui serviços); TE - Total da Economia (bens e serviços) | H59: *TVMA - Taxa de variação média anual; TVT - Taxa de variação total
A71: Agroalimentar (AA)(1) | B71: 2018 | C71: 2019 | D71: 2020 | E71: 2021 | F71: 2022 | G71: média quinquénio | H71: var. 18/19 | I71: var. 19/20 | J71: var. 20/21 | K71: var. 21/22 | L71: TVMA* 2018-2022 | M71: TVT* 2018-2022
A72: Exportações | B72: 523.682574 | C72: 592.609494 | D72: 699.50772 | E72: 756.220109 | F72: 807.013797 | G72: 675.8067388 | H72: 0.1316196555 | I72: 0.1803856116 | J72: 0.08107471494 | K72: 0.0671678621 | L72: 0.1141744863 | M72: 0.5410361869
A73: Importações | B73: 731.652498 | C73: 722.27167 | D73: 706.244575 | E73: 818.949388 | F73: 1036.31528 | G73: 803.0866822 | H73: -0.01282142551 | I73: -0.02218984305 | J73: 0.1595832619 | K73: 0.2654204218 | L73: 0.09092968778 | M73: 0.4164036654
A74: Saldo (exp-imp) | B74: -207.969924 | C74: -129.662176 | D74: -6.736855 | E74: -62.729279 | F74: -229.301483 | G74: -127.2799434
A75: Cobertura (exp/imp) | B75: 0.7157531416 | C75: 0.8204800473 | D75: 0.990461017 | E75: 0.9234027402 | F75: 0.7787338589 | G75: 0.841511575
A76: Exp AA França / Exp AMF França | B76: 0.4534790674 | C76: 0.4780220991 | D76: 0.5424095372 | E76: 0.5311383321 | F76: 0.4785116113 | G76: 0.4973238439 | L76: Exportações
A77: Imp AA França / Imp AMF França | B77: 0.7919285339 | C77: 0.8102285255 | D77: 0.8214612267 | E77: 0.8202235906 | F77: 0.8242993751 | G77: 0.814369826 | L77: Importações
A78: Exp AA França / Exp BT França | B78: 0.07140510838 | C78: 0.07650288167 | D78: 0.09581888742 | E78: 0.09063631536 | F78: 0.08337816569 | G78: 0.0836333855
A79: Imp AA França / Imp BT França | B79: 0.1262678081 | C79: 0.09199648179 | D79: 0.1388566222 | E79: 0.1468827273 | F79: 0.1551749764 | G79: 0.1295904322
A80: Exp AA França / Exp TE França | B80: 0.04382757739 | C80: 0.04730884324 | D80: 0.06646280404 | E80: 0.06173477358 | F80: 0.05435644264 | G80: 0.05441619834
A81: Imp AA França / Imp TE França | B81: 0.105903064 | C81: 0.09889932631 | D81: 0.1176466451 | E81: 0.1243186927 | F81: 0.127124053 | G81: 0.1148763363
A82: Exp AA França / Exp AA Mundo | B82: 0.08575292905 | C82: 0.0941896967 | D82: 0.1057124211 | E82: 0.1014814977 | F82: 0.09090659165 | G82: 0.09560195886
A83: Imp AA França / Imp AA Mundo | B83: 0.0804378217 | C83: 0.07752130509 | D83: 0.07774212892 | E83: 0.07973535845 | F83: 0.07828809832 | G83: 0.07872558298
A84: Exp AA França / Exp AMF Mundo | B84: 0.04494855613 | C84: 0.05010299646 | D84: 0.06063988697 | E84: 0.05644878758 | F84: 0.04924309434 | G84: 0.0521464601
A85: Imp AA França / Imp AMF Mundo | B85: 0.05367721672 | C85: 0.05221228826 | D85: 0.05413749171 | E85: 0.05479897619 | F85: 0.05365803626 | G85: 0.05370575053
A86: (1) Produtos agrícolas e agroalimentares | H86: *TVMA - Taxa de variação média anual; TVT - Taxa de variação total
A87: AMF - Agroalimentar, Mar e Florestas; BT - Total de Bens Transacionáveis (exclui serviços); TE - Total da Economia (bens e serviços)
A98: Mar (M) | B98: 2018 | C98: 2019 | D98: 2020 | E98: 2021 | F98: 2022 | G98: média quinquénio | H98: var. 18/19 | I98: var. 19/20 | J98: var. 20/21 | K98: var. 21/22 | L98: TVMA* 2018-2022 | M98: TVT* 2018-2022
A99: Exportações | B99: 103.919331 | C99: 112.07173 | D99: 119.483797 | E99: 133.148736 | F99: 140.841657 | G99: 121.8930502 | H99: 0.07844930218 | I99: 0.06613681256 | J99: 0.1143664609 | K99: 0.05777689846 | L99: 0.0789683263 | M99: 0.355297957
A100: Importações | B100: 33.062787 | C100: 33.683856 | D100: 31.002127 | E100: 38.315993 | F100: 52.211868 | G100: 37.6553262 | H100: 0.01878453259 | I100: -0.07961466763 | J100: 0.2359149745 | K100: 0.3626651409 | L100: 0.1210047247 | M100: 0.5791732258
A101: Saldo (exp-imp) | B101: 70.856544 | C101: 78.387874 | D101: 88.48167 | E101: 94.832743 | F101: 88.629789 | G101: 84.237724
A102: Cobertura (exp/imp) | B102: 3.143090478 | C102: 3.327164503 | D102: 3.854051595 | E102: 3.475017234 | F102: 2.69750274 | G102: 3.237073278
A103: Exp M França / Exp AMF França | B103: 0.08998817918 | C103: 0.09040146027 | D103: 0.09264965802 | E103: 0.09351827163 | F103: 0.08351080054 | G103: 0.08970067446 | L103: Exportações
A104: Imp M França / Imp AMF França | B104: 0.03578661251 | C104: 0.03778581123 | D104: 0.03605981012 | E104: 0.03837560882 | F104: 0.04153003531 | G104: 0.03818437303 | L104: Importações
A105: Exp M França / Exp BT França | B105: 0.01416959712 | C105: 0.01446789224 | D105: 0.01636694516 | E105: 0.01595846326 | F105: 0.01455132373 | G105: 0.01508468009
A106: Imp M França / Imp BT França | B106: 0.005705940535 | C106: 0.004290347211 | D106: 0.006095410553 | E106: 0.006872167722 | F106: 0.007818060336 | G106: 0.006076268108
A107: Exp M França / Exp TE França | B107: 0.008697124457 | C107: 0.008946842668 | D107: 0.01135259549 | E107: 0.01086972823 | F107: 0.009486394754 | G107: 0.009814871643
A108: Imp M França / Imp TE França | B108: 0.00478567415 | C108: 0.004612268215 | D108: 0.005164352918 | E108: 0.005816469526 | F108: 0.006404792444 | G108: 0.005386349959
A109: Exp M França / Exp M Mundo | B109: 0.09526829468 | C109: 0.1048980722 | D109: 0.1328085165 | E109: 0.1215497239 | F109: 0.1101080946 | G109: 0.1121699045
A110: Imp M França / Imp M Mundo | B110: 0.01499966614 | C110: 0.01545597353 | D110: 0.01610611463 | E110: 0.01831500626 | F110: 0.02007815079 | G110: 0.01711460929
A111: Exp M França / Exp AMF Mundo | B111: 0.008919570965 | C111: 0.009475260772 | D111: 0.01035797567 | E111: 0.009939017258 | F111: 0.008594003012 | G111: 0.009405486382
A112: Imp M França / Imp AMF Mundo | B112: 0.002425630184 | C112: 0.00243497187 | D112: 0.002376481821 | E112: 0.002563866851 | F112: 0.002703411173 | G112: 0.002518168461
A113: AMF - Agroalimentar, Mar e Florestas; BT - Total de Bens Transacionáveis (exclui serviços); TE - Total da Economia (bens e serviços) | H113: *TVMA - Taxa de variação média anual; TVT - Taxa de variação total
A125: Florestas (F) | B125: 2018 | C125: 2019 | D125: 2020 | E125: 2021 | F125: 2022 | G125: média quinquénio | H125: var. 18/19 | I125: var. 19/20 | J125: var. 20/21 | K125: var. 21/22 | L125: TVMA* 2018-2022 | M125: TVT* 2018-2022
A126: Exportações | B126: 527.209004 | C126: 535.030277 | D126: 470.638683 | E126: 534.403576 | F126: 738.652831 | G126: 561.1868742 | H126: 0.0148352417 | I126: -0.1203513086 | J126: 0.1354858734 | K126: 0.3822003897 | L126: 0.08796365399 | M126: 0.4010626249
A127: Importações | B127: 159.171741 | C127: 135.486391 | D127: 122.495124 | E127: 141.181137 | F127: 168.680259 | G127: 145.4029304 | H127: -0.1488037377 | I127: -0.09588613959 | J127: 0.1525449535 | K127: 0.1947790093 | L127: 0.01461101566 | M127: 0.05973747564
A128: Saldo (exp-imp) | B128: 368.037263 | C128: 399.543886 | D128: 348.143559 | E128: 393.222439 | F128: 569.972572 | G128: 415.7839438
A129: Cobertura (exp/imp) | B129: 3.312202283 | C129: 3.948959545 | D129: 3.842101364 | E129: 3.785233547 | F129: 4.379011719 | G129: 3.859529328
A130: Exp F França / Exp AMF França | B130: 0.4565327535 | C130: 0.4315764406 | D130: 0.3649408047 | E130: 0.3753433963 | F130: 0.4379775881 | G130: 0.4129754816 | L130: Exportações
A131: Imp F França / Imp AMF França | B131: 0.1722848536 | C131: 0.1519856632 | D131: 0.1424789632 | E131: 0.1414008006 | F131: 0.1341705896 | G131: 0.147445801 | L131: Importações
A132: Exp F França / Exp BT França | B132: 0.07188594377 | C132: 0.06906969663 | D132: 0.06446830205 | E132: 0.06405062556 | F132: 0.07631532244 | G132: 0.0694487869
A133: Imp F França / Imp BT França | B133: 0.02746968938 | C133: 0.01725704028 | D133: 0.02408409176 | E133: 0.02532155313 | F133: 0.02525771425 | G133: 0.02346300718
A134: Exp F França / Exp TE França | B134: 0.04412270824 | C134: 0.04271221396 | D134: 0.04471711415 | E134: 0.04362656239 | F134: 0.04975198738 | G134: 0.04518696619
A135: Imp F França / Imp TE França | B135: 0.02303931869 | C135: 0.01855190138 | D135: 0.02040531126 | E135: 0.02143167165 | F135: 0.02069188653 | G135: 0.02079894525
A136: Exp F França / Exp F Mundo | B136: 0.1183934341 | C136: 0.1197530751 | D136: 0.1171125292 | E136: 0.1102012853 | F136: 0.1185287114 | G136: 0.1168132759
A137: Imp F França / Imp F Mundo | B137: 0.06829982452 | C137: 0.05797572961 | D137: 0.06016253862 | E137: 0.05468506242 | F137: 0.04853136784 | G137: 0.05697198984
A138: Exp F França / Exp AMF Mundo | B138: 0.04525123554 | C138: 0.04523488123 | D138: 0.04079937323 | E138: 0.03989107613 | F138: 0.04507178338 | G138: 0.04330218576
A139: Imp F França / Imp AMF Mundo | B139: 0.01167753279 | C139: 0.009794174126 | D139: 0.00938991816 | E139: 0.009446959579 | F139: 0.00873387822 | G139: 0.00972369942
A140: AMF - Agroalimentar, Mar e Florestas; BT - Total de Bens Transacionáveis (exclui serviços); TE - Total da Economia (bens e serviços) | H140: *TVMA - Taxa de variação média anual; TVT - Taxa de variação total
A150: Fonte: GPP a partir de dados INE/Comércio Internacional (2020 provisórios; 2021 preliminares) | K150: 2023-11-03T15:23:15.730

Sheet 2
A1: Ranking dos parceiros comerciais de Portugal por país (média 2018-2022 em milhares de euros) produtos agrícolas e agroalimentares, do mar e da floresta
A2: Exportações | F2: Importações | K2: Trocas comerciais (total e saldo)
A3: P | B3: País | C3: média quinquénio | D3: % do Total | F3: P | G3: País | H3: média quinquénio | I3: % do Total | K3: P | L3: País | M3: Total (exp+imp) | N3: % do Total | O3: Saldo (exp-imp)
A4: 1 | B4: Espanha | C4: 4148750.739 | D4: 0.3201250482 | F4: 1 | G4: Espanha | H4: 6893783.417 | I4: 0.4610160031 | K4: 1 | L4: Espanha | M4: 11042534.16 | N4: 0.395602026 | O4: -2745032.678
A5: 2 | B5: França | C5: 1358886.663 | D5: 0.1048541322 | F5: 2 | G5: França | H5: 986144.9388 | I5: 0.06594761841 | K5: 2 | L5: França | M5: 2345031.602 | N5: 0.08401144518 | O5: 372741.7244
A6: 3 | B6: Itália | C6: 876413.3826 | D6: 0.06762562854 | F6: 3 | G6: Alemanha | H6: 882996.1958 | I6: 0.05904963245 | K6: 3 | L6: Alemanha | M6: 1518197.709 | N6: 0.05438987836 | O6: -247794.6828
A7: 4 | B7: Alemanha | C7: 635201.513 | D7: 0.04901328804 | F7: 4 | G7: Países Baixos | H7: 837622.6294 | I7: 0.05601531312 | K7: 4 | L7: Países Baixos | M7: 1425039.699 | N7: 0.05105246534 | O7: -250205.5596
A8: 5 | B8: Países Baixos | C8: 587417.0698 | D8: 0.0453261547 | F8: 5 | G8: Brasil | H8: 705232.1134 | I8: 0.04716180804 | K8: 5 | L8: Itália | M8: 1326247.626 | N8: 0.04751321033 | O8: 426579.139
A9: 6 | B9: Estados Unidos | C9: 554009.1122 | D9: 0.04274833677 | F9: 6 | G9: Itália | H9: 449834.2436 | I9: 0.030082289 | K9: 6 | L9: Brasil | M9: 1157937.372 | N9: 0.04148344611 | O9: -252526.8544 | P9: Nota: Nesta listagem, o Reino Unido passa a ser constituído por três componentes: Reino Unido [até 2020] ; Reino Unido (sem Irlanda do Norte) pós-2020 e Reino Unido (Irlanda do Norte) pós-2020. Estas componentes são calculadas igualmente como média do quinquénio, embora a primeira corresponda apenas a 2018-2020 e as duas últimas a 2021-2022.
A10: 7 | B10: Brasil | C10: 452705.259 | D10: 0.03493154976 | F10: 7 | G10: Suécia | H10: 342054.8722 | I10: 0.02287463364 | K10: 7 | L10: Estados Unidos | M10: 835402.1152 | N10: 0.02992852589 | O10: 272616.1092
A11: 8 | B11: Reino Unido | C11: 382822.421 | D11: 0.02953926464 | F11: 8 | G11: Bélgica | H11: 286674.3358 | I11: 0.01917110656 | K11: 8 | L11: Reino Unido | M11: 527725.3878 | N11: 0.01890591685 | O11: 237919.4542
A12: 9 | B12: Angola | C12: 331091.7324 | D12: 0.02554763192 | F12: 9 | G12: Estados Unidos | H12: 281393.003 | I12: 0.01881792184 | K12: 9 | L12: Bélgica | M12: 526747.6872 | N12: 0.01887089044 | O12: -46600.9844
A13: 10 | B13: Reino Unido (sem Irlanda do Norte) pós 2020 | C13: 297693.4518 | D13: 0.02297056069 | F13: 10 | G13: Polónia | H13: 206886.255 | I13: 0.01383534536 | K13: 10 | L13: Polónia | M13: 458140.6776 | N13: 0.0164130242 | O13: 44368.1676
A14: 11 | B14: Polónia | C14: 251254.4226 | D14: 0.0193872419 | F14: 11 | G14: Ucrânia | H14: 195333.6414 | I14: 0.01306277398 | K14: 11 | L14: Suécia | M14: 435988.145 | N14: 0.01561940322 | O14: -248121.5994
A15: 12 | B15: Bélgica | C15: 240073.3514 | D15: 0.01852449039 | F15: 12 | G15: China, República Popular da | H15: 173665.6746 | I15: 0.01161374681 | K15: 12 | L15: China, República Popular da | M15: 367334.7522 | N15: 0.01315987528 | O15: 20003.403
A16: 13 | B16: Israel | C16: 214331.8496 | D16: 0.01653822994 | F16: 13 | G16: África do Sul | H16: 145344.1816 | I16: 0.009719770643 | K16: 13 | L16: Reino Unido (sem Irlanda do Norte) pós 2020 | M16: 358748.5572 | N16: 0.01285227232 | O16: 236638.3464
A17: 14 | B17: China, República Popular da | C17: 193669.0776 | D17: 0.01494385339 | F17: 14 | G17: Reino Unido | H17: 144902.9668 | I17: 0.009690264772 | K17: 14 | L17: Angola | M17: 346515.8172 | N17: 0.01241403082 | O17: 315667.6476
A18: 15 | B18: Turquia | C18: 167223.9134 | D18: 0.01290329709 | F18: 15 | G18: Dinamarca | H18: 144508.7452 | I18: 0.009663901532 | K18: 15 | L18: Dinamarca | M18: 229058.3694 | N18: 0.00820608329 | O18: -59959.121
A19: 16 | B19: Suíça | C19: 143369.888 | D19: 0.01106267771 | F19: 16 | G19: Roménia | H19: 138998.2312 | I19: 0.009295390515 | K19: 16 | L19: Turquia | M19: 223211.8948 | N19: 0.007996631622 | O19: 111235.932
A20: 17 | B20: Marrocos | C20: 109026.8306 | D20: 0.0084127058 | F20: 17 | G20: Irlanda | H20: 115719.6518 | I20: 0.007738654977 | K20: 17 | L20: Israel | M20: 222680.6996 | N20: 0.007977601399 | O20: 205982.9996
A21: 18 | B21: Cabo Verde | C21: 100863.1066 | D21: 0.007782778214 | F21: 18 | G21: Canadá | H21: 108524.1664 | I21: 0.007257462906 | K21: 18 | L21: Ucrânia | M21: 209671.7124 | N21: 0.007511550615 | O21: -180995.5704
A22: 19 | B22: Canadá | C22: 96453.797 | D22: 0.007442547977 | F22: 19 | G22: Rússia, Federação da | H22: 105950.8246 | I22: 0.007085372825 | K22: 19 | L22: Canadá | M22: 204977.9634 | N22: 0.00734339568 | O22: -12070.3694
A23: 20 | B23: Suécia | C23: 93933.2728 | D23: 0.007248059809 | F23: 20 | G23: Uruguai | H23: 102112.0792 | I23: 0.006828659935 | K23: 20 | L23: Rússia, Federação da | M23: 185978.7022 | N23: 0.006662741573 | O23: -25922.947
A24: 21 | B24: Dinamarca | C24: 84549.6242 | D24: 0.006524000652 | F24: 21 | G24: Argentina | H24: 97727.8454 | I24: 0.006535467965 | K24: 21 | L24: África do Sul | M24: 182499.4124 | N24: 0.006538094995 | O24: -108188.9508
A25: 22 | B25: Egito | C25: 83372.4854 | D25: 0.006433170511 | F25: 22 | G25: Índia | H25: 75558.034 | I25: 0.00505288036 | K25: 22 | L25: Irlanda | M25: 179693.3864 | N25: 0.006437568291 | O25: -51745.9172
A26: 23 | B26: Rússia, Federação da | C26: 80027.8776 | D26: 0.006175094574 | F26: 23 | G26: Finlândia | H26: 73941.3526 | I26: 0.004944766143 | K26: 23 | L26: Roménia | M26: 164861.988 | N26: 0.005906229091 | O26: -113134.4744
A27: 24 | B27: Argélia | C27: 78380.8918 | D27: 0.006048010196 | F27: 24 | G27: Vietname | H27: 70011.1556 | I27: 0.004681937504 | K27: 24 | L27: Marrocos | M27: 151643.736 | N27: 0.005432681335 | O27: 66409.9252
A28: 25 | B28: México | C28: 73493.3644 | D28: 0.005670879815 | F28: 25 | G28: Costa Rica | H28: 69969.0578 | I28: 0.004679122249 | K28: 25 | L28: Suíça | M28: 147880.9734 | N28: 0.005297879261 | O28: 138858.8026
A29: 26 | B29: Japão | C29: 66606.0156 | D29: 0.005139439629 | F29: 26 | G29: Áustria | H29: 63908.1406 | I29: 0.004273803478 | K29: 26 | L29: Grécia | M29: 116697.7842 | N29: 0.004180732359 | O29: -11083.3998
A30: 27 | B30: Irlanda | C30: 63973.7346 | D30: 0.004936328105 | F30: 27 | G30: Grécia | H30: 63890.592 | I30: 0.00427262993 | K30: 27 | L30: Argentina | M30: 113763.425 | N30: 0.004075608079 | O30: -81692.2658
A31: 28 | B31: Luxemburgo | C31: 54794.7774 | D31: 0.004228063304 | F31: 28 | G31: Reino Unido (sem Irlanda do Norte) pós 2020 | H31: 61055.1054 | I31: 0.004083009134 | K31: 28 | L31: Uruguai | M31: 105101.1588 | N31: 0.003765279851 | O31: -99122.9996
A32: 29 | B32: Grécia | C32: 52807.1922 | D32: 0.004074697665 | F32: 29 | G32: Turquia | H32: 55987.9814 | I32: 0.003744149453 | K32: 29 | L32: Finlândia | M32: 103158.5318 | N32: 0.003695684669 | O32: -44724.1734
A33: 30 | B33: Áustria | C33: 39217.279 | D33: 0.003026075588 | F33: 30 | G33: Equador | H33: 48767.8678 | I33: 0.003261310391 | K33: 30 | L33: Áustria | M33: 103125.4196 | N33: 0.003694498415 | O33: -24690.8616
A34: 31 | B34: Moçambique | C34: 37446.547 | D34: 0.002889442731 | F34: 31 | G34: Chile | H34: 47784.2222 | I34: 0.003195529914 | K34: 31 | L34: Cabo Verde | M34: 101700.8832 | N34: 0.00364346398 | O34: 100025.33
A35: 32 | B35: África do Sul | C35: 37155.2308 | D35: 0.00286696425 | F35: 32 | G35: Bulgária | H35: 46240.758 | I35: 0.003092312036 | K35: 32 | L35: Índia | M35: 100022.4076 | N35: 0.003583332099 | O35: -51093.6604
A36: 33 | B36: Chile | C36: 36026.5554 | D36: 0.002779873632 | F36: 33 | G36: Cuba | H36: 43073.1354 | I36: 0.002880479923 | K36: 33 | L36: Egito | M36: 93738.5794 | N36: 0.00335821211 | O36: 73006.3914
A37: 34 | B37: Austrália | C37: 34889.2592 | D37: 0.002692117817 | F37: 34 | G37: Marrocos | H37: 42616.9054 | I37: 0.002849969923 | K37: 34 | L37: México | M37: 93580.153 | N37: 0.003352536438 | O37: 53406.5758
A38: 35 | B38: Arábia Saudita | C38: 32818.8452 | D38: 0.00253236096 | F38: 35 | G38: Moçambique | H38: 40008.831 | I38: 0.002675557127 | K38: 35 | L38: Chile | M38: 83810.7776 | N38: 0.003002545698 | O38: -11757.6668
A39: 36 | B39: Guiné-Bissau | C39: 32182.3082 | D39: 0.002483244623 | F39: 36 | G39: Checa, República | H39: 35780.8524 | I39: 0.002392814593 | K39: 36 | L39: Argélia | M39: 83294.638 | N39: 0.002984054845 | O39: 73467.1456
A40: 37 | B40: Finlândia | C40: 29217.1792 | D40: 0.002254449951 | F40: 37 | G40: Colômbia | H40: 29157.4358 | I40: 0.001949879145 | K40: 37 | L40: Japão | M40: 82993.326 | N40: 0.002973260255 | O40: 50218.7052
A41: 38 | B41: Checa, República | C41: 29096.25 | D41: 0.002245118837 | F41: 38 | G41: Indonésia | H41: 28526.3034 | I41: 0.001907672693 | K41: 38 | L41: Moçambique | M41: 77455.378 | N41: 0.002774861643 | O41: -2562.284
A42: 39 | B42: Emirados Árabes Unidos | C42: 29052.9664 | D42: 0.002241778997 | F42: 39 | G42: Guiana | H42: 28025.2924 | I42: 0.001874168001 | K42: 39 | L42: Vietname | M42: 75958.0768 | N42: 0.002721220388 | O42: -64064.2344
A43: 40 | B43: São Tomé e Príncipe | C43: 26792.4812 | D43: 0.002067355905 | F43: 40 | G43: Hungria | H43: 24242.0034 | I43: 0.001621163712 | K43: 40 | L43: Costa Rica | M43: 73986.347 | N43: 0.002650582589 | O43: -65951.7686
A44: 41 | B44: Jordânia | C44: 26642.1032 | D44: 0.002055752468 | F44: 41 | G44: Namíbia | H44: 22831.866 | I44: 0.001526861952 | K44: 41 | L44: Checa, República | M44: 64877.1024 | N44: 0.002324241229 | O44: -6684.6024
A45: 42 | B45: Roménia | C45: 25863.7568 | D45: 0.001995693864 | F45: 42 | G45: Costa do Marfim | H45: 22796.209 | I45: 0.00152447742 | K45: 42 | L45: Luxemburgo | M45: 63347.0378 | N45: 0.002269426215 | O45: 46242.517
A46: 43 | B46: Tunísia | C46: 24967.3514 | D46: 0.001926525616 | F46: 43 | G46: Uganda | H46: 22685.1228 | I46: 0.001517048623 | K46: 43 | L46: Bulgária | M46: 59231.1196 | N46: 0.002121972238 | O46: -33250.3964
A47: 44 | B47: Índia | C47: 24464.3736 | D47: 0.001887714946 | F47: 44 | G47: México | H47: 20086.7886 | I47: 0.001343287196 | K47: 44 | L47: Equador | M47: 51817.4262 | N47: 0.001856374497 | O47: -45718.3094
A48: 45 | B48: Noruega | C48: 22053.074 | D48: 0.001701654744 | F48: 45 | G48: Peru | H48: 19493.8856 | I48: 0.001303637303 | K48: 45 | L48: Austrália | M48: 48712.5526 | N48: 0.001745141489 | O48: 21065.9658
A49: 46 | B49: Coreia, República da | C49: 18924.4824 | D49: 0.001460247005 | F49: 46 | G49: Paraguai | H49: 18840.7592 | I49: 0.001259960021 | K49: 46 | L49: Cuba | M49: 48369.362 | N49: 0.001732846585 | O49: -37776.9088
A50: 47 | B50: Hungria | C50: 18306.327 | D50: 0.001412549026 | F50: 47 | G50: Senegal | H50: 17576.5504 | I50: 0.001175417115 | K50: 47 | L50: Hungria | M50: 42548.3304 | N50: 0.00152430642 | O50: -5935.6764
A51: 48 | B51: Nigéria | C51: 16216.7282 | D51: 0.001251311834 | F51: 48 | G51: Nova Zelânda | H51: 17377.015 | I51: 0.001162073352 | K51: 48 | L51: Colômbia | M51: 37490.321 | N51: 0.00134310175 | O51: -20824.5506
A52: 49 | B52: Argentina | C52: 16035.5796 | D52: 0.001237334083 | F52: 49 | G52: Japão | H52: 16387.3104 | I52: 0.001095887684 | K52: 49 | L52: Tunísia | M52: 35510.5226 | N52: 0.001272174891 | O52: 14424.1802
A53: 50 | B53: Lituânia | C53: 14426.2296 | D53: 0.001113153751 | F53: 50 | G53: Lituânia | H53: 15822.4366 | I53: 0.001058112221 | K53: 50 | L53: Noruega | M53: 34932.4536 | N53: 0.0012514654 | O53: 9173.6944
A54: 51 | B54: Ucrânia | C54: 14338.071 | D54: 0.001106351275 | F54: 51 | G54: Angola | H54: 15424.0848 | I54: 0.001031472777 | K54: 51 | L54: Costa do Marfim | M54: 32973.8046 | N54: 0.001181296224 | O54: -12618.6134
A55: 52 | B55: Macau | C55: 14162.3328 | D55: 0.001092791001 | F55: 52 | G55: Mauritânia | H55: 14124.4552 | I55: 0.0009445611341 | K55: 52 | L55: Arábia Saudita | M55: 32855.5924 | N55: 0.001177061238 | O55: 32782.098
A56: 53 | B56: Síria, República Árabe da | C56: 13309.7072 | D56: 0.00102700088 | F56: 53 | G56: Austrália | H56: 13823.2934 | I56: 0.0009244211904 | K56: 53 | L56: Guiné-Bissau | M56: 32561.5128 | N56: 0.00116652575 | O56: 31803.1036
A57: 54 | B57: Iraque | C57: 13216.9518 | D57: 0.001019843707 | F57: 54 | G57: Tanzânia, República Unida da | H57: 13711.0264 | I57: 0.0009169134287 | K57: 54 | L57: Indonésia | M57: 32128.1024 | N57: 0.001150998695 | O57: -24924.5044
A58: 55 | B58: Bulgária | C58: 12990.3616 | D58: 0.001002359601 | F58: 55 | G58: Eslovénia | H58: 13709.4752 | I58: 0.0009168096935 | K58: 55 | L58: Coreia, República da | M58: 31301.2172 | N58: 0.00112137529 | O58: 6547.7476
A59: 56 | B59: HongKong | C59: 12801.5844 | D59: 0.0009877932133 | F59: 56 | G59: Suazilândia | H59: 13238.7086 | I59: 0.0008853275706 | K59: 56 | L59: Lituânia | M59: 30248.6662 | N59: 0.001083667342 | O59: -1396.207
A60: 57 | B60: Eslováquia | C60: 12740.7416 | D60: 0.0009830984737 | F60: 57 | G60: Noruega | H60: 12879.3796 | I60: 0.0008612977441 | K60: 57 | L60: Emirados Árabes Unidos | M60: 29704.259 | N60: 0.001064163794 | O60: 28401.6738
A61: 58 | B61: Letónia | C61: 11849.96 | D61: 0.0009143641678 | F61: 58 | G61: Tailândia | H61: 12766.4348 | I61: 0.0008537446551 | K61: 58 | L61: Senegal | M61: 28854.894 | N61: 0.001033735044 | O61: -6298.2068
A62: 59 | B62: Croácia | C62: 11388.7032 | D62: 0.0008787727658 | F62: 59 | G62: Camarões | H62: 12420.4028 | I62: 0.0008306040543 | K62: 59 | L62: Guiana | M62: 28164.8726 | N62: 0.001009014825 | O62: -27885.7122
A63: 60 | B63: Senegal | C63: 11278.3436 | D63: 0.0008702572211 | F63: 60 | G63: Coreia, República da | H63: 12376.7348 | I63: 0.0008276837933 | K63: 60 | L63: São Tomé e Príncipe | M63: 27846.3486 | N63: 0.0009976036088 | O63: 25738.6138
A64: 61 | B64: Dominicana, República | C64: 11211.5302 | D64: 0.0008651017793 | F64: 61 | G64: Estónia | H64: 12113.6096 | I64: 0.0008100875155 | K64: 61 | L64: Jordânia | M64: 26699.1202 | N64: 0.0009565038148 | O64: 26585.0862
A65: 62 | B65: Líbia, Jamahira Árabe da | C65: 11110.2892 | D65: 0.0008572898422 | F65: 62 | G65: Moldava, República de | H65: 11911.9324 | I65: 0.0007966005214 | K65: 62 | L65: Peru | M65: 25631.4274 | N65: 0.000918253407 | O65: -13356.3438
A66: 63 | B66: Costa do Marfim | C66: 10177.5956 | D66: 0.0007853215311 | F66: 63 | G66: Sérvia | H66: 11557.857 | I66: 0.000772922025 | K66: 63 | L66: Uganda | M66: 23651.4418 | N66: 0.0008473198419 | O66: -21718.8038
A67: 64 | B67: Malta | C67: 10082.9972 | D67: 0.0007780221489 | F67: 64 | G67: Tunísia | H67: 10543.1712 | I67: 0.0007050657604 | K67: 64 | L67: Namíbia | M67: 23571.3778 | N67: 0.0008444515256 | O67: -22092.3542
A68: 65 | B68: Território Palestiniano Ocupado | C68: 9895.7186 | D68: 0.0007635713962 | F68: 65 | G68: Paquistão | H68: 10440.9988 | I68: 0.0006982330665 | K68: 65 | L68: Tailândia | M68: 22048.0496 | N68: 0.0007898778459 | O68: -3484.82
A69: 66 | B69: Líbano | C69: 9880.5148 | D69: 0.0007623982437 | F69: 66 | G69: Egito | H69: 10366.094 | I69: 0.0006932238706 | K69: 66 | L69: Eslovénia | M69: 22027.284 | N69: 0.0007891339122 | O69: -5391.6664
A70: 67 | B70: Chipre | C70: 9763.9754 | D70: 0.0007534058546 | F70: 67 | G70: Islândia | H70: 10004.441 | I70: 0.0006690386286 | K70: 67 | L70: Nigéria | M70: 21603.5138 | N70: 0.0007739522204 | O70: 10829.9426
A71: 68 | B71: Tailândia | C71: 9281.6148 | D71: 0.0007161860455 | F71: 68 | G71: Maurícias | H71: 9636.4388 | I71: 0.0006444287891 | K71: 68 | L71: Nova Zelânda | M71: 21601.671 | N71: 0.0007738862016 | O71: -13152.359
A72: 69 | B72: Kuwait | C72: 9121.1468 | D72: 0.0007038040468 | F72: 69 | G72: Letónia | H72: 9340.8474 | I72: 0.0006246613613 | K72: 69 | L72: Camarões | M72: 21512.3584 | N72: 0.0007706865515 | O72: -3328.4472
A73: 70 | B73: Camarões | C73: 9091.9556 | D73: 0.0007015516015 | F73: 70 | G73: Luxemburgo | H73: 8552.2604 | I73: 0.0005719252649 | K73: 70 | L73: Letónia | M73: 21190.8074 | N73: 0.0007591668926 | O73: 2509.1126
A74: 71 | B74: Colômbia | C74: 8332.8852 | D74: 0.000642980368 | F74: 71 | G74: Israel | H74: 8348.85 | I74: 0.0005583223645 | K74: 71 | L74: Estónia | M74: 20382.3 | N74: 0.0007302018777 | O74: -3844.9192
A75: 72 | B75: Eslovénia | C75: 8317.8088 | D75: 0.0006418170459 | F75: 72 | G75: Filipinas | H75: 8338.4466 | I75: 0.0005576266458 | K75: 72 | L75: Paraguai | M75: 20050.052 | N75: 0.0007182989957 | O75: -17631.4664
A76: 73 | B76: Estónia | C76: 8268.6904 | D76: 0.000638026982 | F76: 73 | G76: Belize | H76: 8129.6594 | I76: 0.0005436641763 | K76: 73 | L76: Croácia | M76: 18469.8002 | N76: 0.0006616860113 | O76: 4307.6062
A77: 74 | B77: Geórgia | C77: 8048.6886 | D77: 0.0006210512486 | F77: 74 | G77: Malásia | H77: 8113.8152 | I77: 0.0005426046087 | K77: 74 | L77: Eslováquia | M77: 18139.0792 | N77: 0.0006498378344 | O77: 7342.404
A78: 75 | B78: Gibraltar | C78: 7970.9208 | D78: 0.0006150505456 | F78: 75 | G78: Bangladesh | H78: 7929.0306 | I78: 0.000530247293 | K78: 75 | L78: Sérvia | M78: 17502.4848 | N78: 0.0006270316533 | O78: -5613.2292
A79: 76 | B79: Gana | C79: 7307.4466 | D79: 0.0005638556863 | F79: 76 | G79: Croácia | H79: 7081.097 | I79: 0.0004735424424 | K79: 76 | L79: Mauritânia | M79: 16931.2984 | N79: 0.0006065687329 | O79: -11317.612
A80: 77 | B80: Taiwan | C80: 6603.7526 | D80: 0.0005095573952 | F80: 77 | G80: Quénia | H80: 6721.3334 | I80: 0.0004494835524 | K80: 77 | L80: HongKong | M80: 15600.7076 | N80: 0.0005588999271 | O80: 10002.4612
A81: 78 | B81: Belarus | C81: 6189.2796 | D81: 0.0004775759151 | F81: 78 | G81: Gana | H81: 6621.1502 | I81: 0.0004427838846 | K81: 78 | L81: Maurícias | M81: 15492.987 | N81: 0.000555040805 | O81: -3779.8906
A82: 79 | B82: Guatemala | C82: 6179.6032 | D82: 0.0004768292667 | F82: 79 | G82: Panamá | H82: 6513.4974 | I82: 0.0004355846936 | K82: 79 | L82: Suazilândia | M82: 15229.8654 | N82: 0.0005456143965 | O82: -11247.5518
A83: 80 | B83: Peru | C83: 6137.5418 | D83: 0.0004735837336 | F83: 80 | G83: Honduras | H83: 6221.5346 | I83: 0.0004160599254 | K83: 80 | L83: Moldava, República de | M83: 14881.0396 | N83: 0.0005331176098 | O83: -8942.8252
A84: 81 | B84: Vietname | C84: 5946.9212 | D84: 0.0004588751062 | F84: 81 | G84: Suriname | H84: 5829.6302 | I84: 0.0003898516463 | K84: 81 | L84: Síria, República Árabe da | M84: 14259.5412 | N84: 0.0005108522473 | O84: 12359.8732
A85: 82 | B85: Sérvia | C85: 5944.6278 | D85: 0.0004586981434 | F85: 82 | G85: Eslováquia | H85: 5398.3376 | I85: 0.0003610093142 | K85: 82 | L85: Tanzânia, República Unida da | M85: 14227.4986 | N85: 0.0005097043117 | O85: -13194.5542
A86: 83 | B86: Maurícias | C86: 5856.5482 | D86: 0.0004519017635 | F86: 83 | G86: Nigéria | H86: 5386.7856 | I86: 0.0003602367839 | K86: 83 | L86: Macau | M86: 14182.009 | N86: 0.0005080746335 | O86: 14142.6566
A87: 84 | B87: Andorra | C87: 5401.2632 | D87: 0.0004167711563 | F87: 84 | G87: Etiópia | H87: 5332.9722 | I87: 0.0003566380577 | K87: 84 | L87: Gana | M87: 13928.5968 | N87: 0.0004989960671 | O87: 686.2964
A88: 85 | B88: Cuba | C88: 5296.2266 | D88: 0.0004086663438 | F88: 85 | G88: Congo | H88: 5207.279 | I88: 0.0003482324301 | K88: 85 | L88: Paquistão | M88: 13696.3036 | N88: 0.000490674095 | O88: -7185.694
A89: 86 | B89: Singapura | C89: 4670.5802 | D89: 0.0003603903454 | F89: 86 | G89: Guatemala | H89: 5139.0112 | I89: 0.000343667078 | K89: 86 | L89: Dominicana, República | M89: 13463.2218 | N89: 0.0004823238711 | O89: 8959.8386
A90: 87 | B90: Omã | C90: 4393.4536 | D90: 0.0003390067599 | F90: 87 | G90: Camboja | H90: 4965.3018 | I90: 0.0003320504071 | K90: 87 | L90: Iraque | M90: 13230.1254 | N90: 0.0004739731242 | O90: 13203.7782
A91: 88 | B91: Nova Zelânda | C91: 4224.656 | D91: 0.0003259820343 | F91: 88 | G91: Argélia | H91: 4913.7462 | I91: 0.0003286026694 | K91: 88 | L91: Chipre | M91: 13179.1368 | N91: 0.0004721464427 | O91: 6348.814
A92: 89 | B92: Panamá | C92: 4203.97 | D92: 0.0003243858655 | F92: 89 | G92: Reino Unido (Irlanda do Norte) pós-2020 | H92: 4864.879 | I92: 0.0003253347163 | K92: 89 | L92: Filipinas | M92: 11817.2578 | N92: 0.0004233567279 | O92: -4859.6354
A93: 90 | B93: Costa Rica | C93: 4017.2892 | D93: 0.0003099812401 | F93: 90 | G93: Macedónia, Antiga República jugoslava da | H93: 4838.7308 | I93: 0.0003235860773 | K93: 90 | L93: Islândia | M93: 11807.9024 | N93: 0.000423021568 | O93: -8200.9796
A94: 91 | B94: Catar | C94: 3814.9902 | D94: 0.0002943714864 | F94: 91 | G94: Zimbabwe | H94: 4709.246 | I94: 0.0003149268895 | K94: 91 | L94: Malta | M94: 11740.4076 | N94: 0.000420603547 | O94: 8425.5868
A95: 92 | B95: Burquina Faso | C95: 3646.8948 | D95: 0.0002814009439 | F95: 92 | G95: Suíça | H95: 4511.0854 | I95: 0.0003016750651 | K95: 92 | L95: Malásia | M95: 11542.323 | N95: 0.000413507108 | O95: -4685.3074
A96: 93 | B96: Indonésia | C96: 3601.799 | D96: 0.0002779212711 | F96: 93 | G96: Sri Lanca | H96: 4405.8098 | I96: 0.0002946348473 | K96: 93 | L96: Guatemala | M96: 11318.6144 | N96: 0.0004054926818 | O96: 1040.592
A97: 94 | B97: Sudão | C97: 3570.9408 | D97: 0.000275540197 | F97: 94 | G97: Madagáscar | H97: 3797.7566 | I97: 0.0002539717979 | K97: 94 | L97: Líbia, Jamahira Árabe da | M97: 11116.3092 | N97: 0.0003982450387 | O97: 11104.2692
A98: 95 | B98: Filipinas | C98: 3478.8112 | D98: 0.0002684313118 | F98: 95 | G98: Mali | H98: 3762.6334 | I98: 0.0002516229632 | K98: 95 | L98: Panamá | M98: 10717.4674 | N98: 0.0003839564142 | O98: -2309.5274
A99: 96 | B99: Mali | C99: 3441.82 | D99: 0.0002655770045 | F99: 96 | G99: Myanmar | H99: 3487.5672 | I99: 0.000233228141 | K99: 96 | L99: Líbano | M99: 10422.5976 | N99: 0.0003733926171 | O99: 9338.432
A100: 97 | B100: Malásia | C100: 3428.5078 | D100: 0.0002645498112 | F100: 97 | G100: Nicarágua | H100: 3458.6704 | I100: 0.0002312956917 | K100: 97 | L100: Kuwait | M100: 10304.9986 | N100: 0.0003691795984 | O100: 7937.295
A101: 98 | B101: Venezuela | C101: 3292.1542 | D101: 0.0002540285229 | F101: 98 | G101: Taiwan | H101: 3425.7168 | I101: 0.0002290919472 | K101: 98 | L101: Taiwan | M101: 10029.4694 | N101: 0.0003593086839 | O101: 3178.0358
A102: 99 | B102: Paquistão | C102: 3255.3048 | D102: 0.0002511851571 | F102: 99 | G102: Chipre | H102: 3415.1614 | I102: 0.0002283860637 | K102: 99 | L102: Território Palestiniano Ocupado | M102: 9896.2038 | N102: 0.0003545344047 | O102: 9895.2334
A103: 100 | B103: Irão, República Islâmica do | C103: 3151.3458 | D103: 0.0002431634942 | F103: 100 | G103: Congo, República Democrática do | H103: 3287.5926 | I103: 0.0002198550068 | K103: 100 | L103: Bangladesh | M103: 9893.849 | N103: 0.0003544500433 | O103: -5964.2122
A104: 101 | B104: Equador | C104: 3049.5584 | D104: 0.0002353093959 | F104: 101 | G104: Malavi | H104: 3258.3272 | I104: 0.0002178979077 | K104: 101 | L104: Quénia | M104: 9768.3614 | N104: 0.0003499544132 | O104: -3674.3054
A105: 102 | B105: Quénia | C105: 3047.028 | D105: 0.0002351141457 | F105: 102 | G105: Papuásia-Nova Guiné | H105: 3105.1676 | I105: 0.0002076554875 | K105: 102 | L105: Geórgia | M105: 8359.5618 | N105: 0.0002994837542 | O105: 7737.8154
A106: 103 | B106: Uruguai | C106: 2989.0796 | D106: 0.0002306427432 | F106: 103 | G106: HongKong | H106: 2799.1232 | I106: 0.0001871890241 | K106: 103 | L106: Belize | M106: 8131.84 | N106: 0.0002913255539 | O106: -8127.4788
A107: 104 | B107: Moldava, República de | C107: 2969.1072 | D107: 0.000229101637 | F107: 104 | G107: Gabão | H107: 2643.292 | I107: 0.0001767679428 | K107: 104 | L107: Gibraltar | M107: 8002.9498 | N107: 0.0002867080247 | O107: 7938.8918
A108: 105 | B108: Mauritânia | C108: 2806.8432 | D108: 0.0002165810557 | F108: 105 | G108: Centro-Africana, República | H108: 2579.2684 | I108: 0.0001724864181 | K108: 105 | L108: Congo | M108: 7636.6094 | N108: 0.0002735837724 | O108: -2777.9486
A109: 106 | B109: Timor-Leste | C109: 2726.394 | D109: 0.0002103734511 | F109: 106 | G109: Gâmbia | H109: 2389.373 | I109: 0.000159787322 | K109: 106 | L109: Honduras | M109: 7591.1752 | N109: 0.0002719560788 | O109: -4851.894
A110: 107 | B110: Guiné | C110: 2700.6706 | D110: 0.0002083885874 | F110: 107 | G110: Dominicana, República | H110: 2251.6916 | I110: 0.0001505799934 | K110: 107 | L110: Etiópia | M110: 7365.0862 | N110: 0.0002638563741 | O110: -3300.8582
A111: 108 | B111: Arménia | C111: 2588.4812 | D111: 0.0001997318521 | F111: 108 | G111: Serra Leoa | H111: 1997.9044 | I111: 0.0001336081866 | K111: 108 | L111: Reino Unido (Irlanda do Norte) pós-2020 | M111: 7284.542 | N111: 0.0002609708545 | O111: -2445.216
A112: 109 | B112: Gabão | C112: 2550.5466 | D112: 0.0001968047503 | F112: 109 | G112: Benim | H112: 1832.1494 | I112: 0.0001225234595 | K112: 109 | L112: Mali | M112: 7204.4534 | N112: 0.0002581016569 | O112: -320.8134
A113: 110 | B113: Congo | C113: 2429.3304 | D113: 0.0001874514909 | F113: 110 | G113: El Salvador | H113: 1779.7304 | I113: 0.0001190179827 | K113: 110 | L113: Belarus | M113: 7048.5194 | N113: 0.0002525152756 | O113: 5330.0398
A114: 111 | B114: Reino Unido (Irlanda do Norte) pós-2020 | C114: 2419.663 | D114: 0.000186705537 | F114: 111 | G114: Burquina Faso | H114: 1725.7576 | I114: 0.0001154085968 | K114: 111 | L114: Suriname | M114: 6411.9606 | N114: 0.0002297103698 | O114: -5247.2998
A115: 112 | B115: Albânia | C115: 2229.7502 | D115: 0.0001720515247 | F115: 112 | G115: Malta | H115: 1657.4104 | I115: 0.000110837935 | K115: 112 | L115: Singapura | M115: 5982.0136 | N115: 0.0002143073924 | O115: 3359.1468
A116: 113 | B116: Seychelles | C116: 2209.8298 | D116: 0.0001705144309 | F116: 113 | G116: Laos, República Democrática Popular do | H116: 1570.485 | I116: 0.0001050248715 | K116: 113 | L116: Camboja | M116: 5868.6792 | N116: 0.0002102471542 | O116: -4061.9244
A117: 114 | B117: Guiné Equatorial | C117: 2176.263 | D117: 0.0001679243564 | F117: 114 | G117: Singapura | H117: 1311.4334 | I117: 8.770101232e-05 | K117: 114 | L117: Sri Lanca | M117: 5846.5976 | N117: 0.0002094560744 | O117: -2965.022
A118: 115 | B118: Etiópia | C118: 2032.114 | D118: 0.0001568015611 | F118: 115 | G118: Seychelles | H118: 1264.2444 | I118: 8.45452874e-05 | K118: 115 | L118: Macedónia, Antiga República jugoslava da | M118: 5789.6166 | N118: 0.0002074147134 | O118: -3887.845
A119: 116 | B119: Suazilândia | C119: 1991.1568 | D119: 0.00015364123 | F119: 116 | G119: Kuwait | H119: 1183.8518 | I119: 7.916909948e-05 | K119: 116 | L119: Andorra | M119: 5443.4826 | N119: 0.0001950143613 | O119: 5359.0438
A120: 117 | B120: Bangladesh | C120: 1964.8184 | D120: 0.0001516089119 | F120: 117 | G120: Bolívia | H120: 1171.3558 | I120: 7.833343992e-05 | K120: 117 | L120: Burquina Faso | M120: 5372.6524 | N120: 0.0001924768486 | O120: 1921.1372
A121: 118 | B121: Islândia | C121: 1803.4614 | D121: 0.0001391583163 | F121: 118 | G121: Togo | H121: 1123.3282 | I121: 7.512163432e-05 | K121: 118 | L121: Gabão | M121: 5193.8386 | N121: 0.0001860707917 | O121: -92.7454
A122: 119 | B122: Benim | C122: 1771.8166 | D122: 0.0001367165468 | F122: 119 | G122: São Tomé e Príncipe | H122: 1053.8674 | I122: 7.047650139e-05 | K122: 119 | L122: Nicarágua | M122: 5085.114 | N122: 0.000182175701 | O122: -1832.2268
A123: 120 | B123: Congo, República Democrática do | C123: 1727.181 | D123: 0.0001332723838 | F123: 120 | G123: Venezuela | H123: 1042.655 | I123: 6.972668151e-05 | K123: 120 | L123: Congo, República Democrática do | M123: 5014.7736 | N123: 0.0001796557356 | O123: -1560.4116
A124: 121 | B124: Jamaica | C124: 1687.498 | D124: 0.0001302103724 | F124: 121 | G124: Iémen | H124: 1024.4982 | I124: 6.851246069e-05 | K124: 121 | L124: Omã | M124: 4885.6232 | N124: 0.0001750288846 | O124: 3901.284
A125: 122 | B125: Nicarágua | C125: 1626.4436 | D125: 0.0001254993054 | F125: 122 | G125: Síria, República Árabe da | H125: 949.834 | I125: 6.351935473e-05 | K125: 122 | L125: Zimbabwe | M125: 4774.2052 | N125: 0.0001710373021 | O125: -4644.2868
A126: 123 | B126: Togo | C126: 1570.864 | D126: 0.0001212106838 | F126: 123 | G126: Belarus | H126: 859.2398 | I126: 5.746094334e-05 | K126: 123 | L126: Venezuela | M126: 4334.8092 | N126: 0.0001552958114 | O126: 2249.4992
A127: 124 | B127: El Salvador | C127: 1565.6294 | D127: 0.0001208067726 | F127: 124 | G127: Cabo Verde | H127: 837.7766 | I127: 5.602560978e-05 | K127: 124 | L127: Madagáscar | M127: 4107.7518 | N127: 0.0001471614135 | O127: -3487.7614
A128: 125 | B128: Cazaquistão | C128: 1534.519 | D128: 0.0001184062384 | F128: 125 | G128: Bósnia-Herzegovina | H128: 758.2198 | I128: 5.070531529e-05 | K128: 125 | L128: Myanmar | M128: 3979.95 | N128: 0.0001425828765 | O128: -2995.1844
A129: 126 | B129: Sri Lanca | C129: 1440.7878 | D129: 0.0001111737709 | F129: 126 | G129: Turquemenistão | H129: 720.6558 | I129: 4.819325419e-05 | K129: 126 | L129: Catar | M129: 3836.467 | N129: 0.0001374425559 | O129: 3793.5134
A130: 127 | B130: Azerbaijão | C130: 1435.1898 | D130: 0.0001107418191 | F130: 127 | G130: Chade | H130: 675.9004 | I130: 4.520027423e-05 | K130: 127 | L130: Benim | M130: 3603.966 | N130: 0.0001291131394 | O130: -60.3328
A131: 128 | B131: Bolívia | C131: 1412.2374 | D131: 0.0001089707708 | F131: 128 | G131: Emirados Árabes Unidos | H131: 651.2926 | I131: 4.355464817e-05 | K131: 128 | L131: Sudão | M131: 3591.4234 | N131: 0.000128663797 | O131: 3550.4582
A132: 129 | B132: Honduras | C132: 1369.6406 | D132: 0.0001056839253 | F132: 129 | G132: Timor-Leste | H132: 614.587 | I132: 4.109999186e-05 | K132: 129 | L132: Seychelles | M132: 3474.0742 | N132: 0.0001244597275 | O132: 945.5854
A133: 130 | B133: São Bartolomeu | C133: 1280.9726 | D133: 9.884214338e-05 | F133: 130 | G133: Faroé, Ilhas | H133: 597.6172 | I133: 3.996515067e-05 | K133: 130 | L133: Irão, República Islâmica do | M133: 3375.8844 | N133: 0.0001209420491 | O133: 2926.8072
A134: 131 | B134: Ruanda | C134: 1241.1874 | D134: 9.577224599e-05 | F134: 131 | G134: Líbano | H134: 542.0828 | I134: 3.625133409e-05 | K134: 131 | L134: El Salvador | M134: 3345.3598 | N134: 0.0001198484964 | O134: -214.101
A135: 132 | B135: Paraguai | C135: 1209.2928 | D135: 9.331120144e-05 | F135: 132 | G135: Omã | H135: 492.1696 | I135: 3.291343057e-05 | K135: 132 | L135: Timor-Leste | M135: 3340.981 | N135: 0.0001196916246 | O135: 2111.807
A136: 133 | B136: Iémen | C136: 1145.3826 | D136: 8.837977578e-05 | F136: 133 | G136: Gronelândia | H136: 481.3548 | I136: 3.219019986e-05 | K136: 133 | L136: Malavi | M136: 3267.4564 | N136: 0.0001170575842 | O136: -3249.198
A137: 134 | B137: Montenegro | C137: 1046.3476 | D137: 8.073805755e-05 | F137: 134 | G137: Guiné-Bissau | H137: 379.2046 | I137: 2.535899063e-05 | K137: 134 | L137: Papuásia-Nova Guiné | M137: 3108.0532 | N137: 0.0001113469178 | O137: -3102.282
A138: 135 | B138: Uganda | C138: 966.319 | D138: 7.456290724e-05 | F138: 135 | G138: Geórgia | H138: 310.8732 | I138: 2.078938537e-05 | K138: 135 | L138: Guiné | M138: 3003.4878 | N138: 0.0001076008317 | O138: 2397.8534
A139: 136 | B139: Macedónia, Antiga República jugoslava da | C139: 950.8858 | D139: 7.337205384e-05 | F139: 136 | G139: Usbequistão | H139: 308.419 | I139: 2.06252628e-05 | K139: 136 | L139: Gâmbia | M139: 2880.9438 | N139: 0.0001032106569 | O139: -1897.8022
A140: 137 | B140: Bermudas | C140: 907.5284 | D140: 7.002651909e-05 | F140: 137 | G140: Guiné | H140: 302.8172 | I140: 2.025064711e-05 | K140: 137 | L140: Togo | M140: 2694.1922 | N140: 9.652022605e-05 | O140: 447.5358
A141: 138 | B141: Camboja | C141: 903.3774 | D141: 6.970622049e-05 | F141: 138 | G141: Irão, República Islâmica do | H141: 224.5386 | I141: 1.501583117e-05 | K141: 138 | L141: Centro-Africana, República | M141: 2675.6308 | N141: 9.585525845e-05 | O141: -2482.906
A142: 139 | B142: Barbados | C142: 889.1274 | D142: 6.860666493e-05 | F142: 139 | G142: Zâmbia | H142: 199.3992 | I142: 1.333465481e-05 | K142: 139 | L142: Arménia | M142: 2615.5848 | N142: 9.370409288e-05 | O142: 2561.3776
A143: 140 | B143: Trindade e Tobago | C143: 876.5142 | D143: 6.763340779e-05 | F143: 140 | G143: Azerbaijão | H143: 125.9264 | I143: 8.421222731e-06 | K143: 140 | L143: Bolívia | M143: 2583.5932 | N143: 9.255798443e-05 | O143: 240.8816
A144: 141 | B144: Namíbia | C144: 739.5118 | D144: 5.706205688e-05 | F144: 141 | G144: Fiji, Ilhas | H144: 123.8396 | I144: 8.281669725e-06 | K144: 141 | L144: Serra Leoa | M144: 2504.721 | N144: 8.973236472e-05 | O144: -1491.0878
A145: 142 | B145: Turquemenistão | C145: 730.8192 | D145: 5.639132027e-05 | F145: 142 | G145: Maldivas | H145: 106.2128 | I145: 7.102892211e-06 | K145: 142 | L145: Albânia | M145: 2335.6576 | N145: 8.367561881e-05 | O145: 2123.8428
A146: 143 | B146: Barém | C146: 714.5288 | D146: 5.513432379e-05 | F146: 143 | G146: Albânia | H146: 105.9074 | I146: 7.082468841e-06 | K146: 143 | L146: Guiné Equatorial | M146: 2182.2494 | N146: 7.817972504e-05 | O146: 2170.2766
A147: 144 | B147: Burundi | C147: 677.1012 | D147: 5.224634305e-05 | F147: 144 | G147: Tajiquistão | H147: 59.4122 | I147: 3.973141209e-06 | K147: 144 | L147: Iémen | M147: 2169.8808 | N147: 7.773661631e-05 | O147: 120.8844
A148: 145 | B148: Aruba | C148: 656.9934 | D148: 5.069478913e-05 | F148: 145 | G148: Jordânia | H148: 57.017 | I148: 3.812964211e-06 | K148: 145 | L148: Jamaica | M148: 1698.661 | N148: 6.085502872e-05 | O148: 1676.335
A149: 146 | B149: Niger | C149: 652.165 | D149: 5.032222113e-05 | F149: 146 | G149: Andorra | H149: 42.2194 | I149: 2.823387081e-06 | K149: 146 | L149: Laos, República Democrática Popular do | M149: 1586.3348 | N149: 5.683090965e-05 | O149: -1554.6352
A150: 147 | B150: São Martinho (parte holandesa) | C150: 597.7744 | D150: 4.612534488e-05 | F150: 147 | G150: Libéria | H150: 38.8276 | I150: 2.596563292e-06 | K150: 147 | L150: Azerbaijão | M150: 1561.1162 | N150: 5.59274459e-05 | O150: 1309.2634
A151: 148 | B151: Suriname | C151: 582.3304 | D151: 4.493365814e-05 | F151: 148 | G151: Falkland Ilhas (Malvinas) | H151: 38.0622 | I151: 2.545377807e-06 | K151: 148 | L151: Cazaquistão | M151: 1551.583 | N151: 5.558591622e-05 | O151: 1517.455
A152: 149 | B152: Bósnia-Herzegovina | C152: 535.6404 | D152: 4.133097399e-05 | F152: 149 | G152: Aruba | H152: 38.0518 | I152: 2.544682315e-06 | K152: 149 | L152: Turquemenistão | M152: 1451.475 | N152: 5.199951774e-05 | O152: 10.1634
A153: 150 | B153: Tanzânia, República Unida da | C153: 516.4722 | D153: 3.98519213e-05 | F153: 150 | G153: Arábia Saudita | H153: 36.7472 | I153: 2.457438281e-06 | K153: 150 | L153: Bósnia-Herzegovina | M153: 1293.8602 | N153: 4.635292129e-05 | O153: -222.5794
A154: 151 | B154: Ceuta e Melilha | C154: 507.8786 | D154: 3.918882371e-05 | F154: 151 | G154: São Marino | H154: 32.7702 | I154: 2.191479731e-06 | K154: 151 | L154: São Bartolomeu | M154: 1281.3282 | N154: 4.590395871e-05 | O154: 1280.617
A155: 152 | B155: Serra Leoa | C155: 506.8166 | D155: 3.910687789e-05 | F155: 152 | G155: Gibraltar | H155: 32.029 | I155: 2.1419126e-06 | K155: 152 | L155: Ruanda | M155: 1241.8574 | N155: 4.448990572e-05 | O155: 1240.5174
A156: 153 | B156: Myanmar | C156: 492.3828 | D156: 3.799313999e-05 | F156: 153 | G156: Botswana | H156: 30.0284 | I156: 2.008124148e-06 | K156: 153 | L156: Montenegro | M156: 1046.7 | N156: 3.749833461e-05 | O156: 1045.9952
A157: 154 | B157: Gâmbia | C157: 491.5708 | D157: 3.793048461e-05 | F157: 154 | G157: São Pedro e Miquelon | H157: 28.9156 | I157: 1.933706578e-06 | K157: 154 | L157: Bermudas | M157: 908.3498 | N157: 3.25418981e-05 | O157: 906.707
A158: 155 | B158: Curaçau | C158: 479.6396 | D158: 3.700985182e-05 | F158: 155 | G158: Arménia | H158: 27.1036 | I158: 1.812530593e-06 | K158: 155 | L158: Barbados | M158: 899.4474 | N158: 3.222296701e-05 | O158: 878.8074
A159: 156 | B159: Kosovo | C159: 471.1818 | D159: 3.63572328e-05 | F159: 156 | G159: Catar | H159: 21.4768 | I159: 1.436243046e-06 | K159: 156 | L159: Trindade e Tobago | M159: 876.838 | N159: 3.141297862e-05 | O159: 876.1904
A160: 157 | B160: Polinésia Francesa | C160: 366.6458 | D160: 2.829104755e-05 | F160: 157 | G160: Sudão | H160: 20.4826 | I160: 1.369756752e-06 | K160: 157 | L160: Barém | M160: 719.1302 | N160: 2.576305041e-05 | O160: 709.9274
A161: 158 | B161: Antígua e Barbuda | C161: 363.7054 | D161: 2.806416101e-05 | F161: 158 | G161: Macau | H161: 19.6762 | I161: 1.315829427e-06 | K161: 158 | L161: Aruba | M161: 695.0452 | N161: 2.490019822e-05 | O161: 618.9416
A162: 159 | B162: Haiti | C162: 328.5232 | D162: 2.534943935e-05 | F162: 159 | G162: Quirguizistão | H162: 17.4758 | I162: 1.168679516e-06 | K162: 159 | L162: Burundi | M162: 677.2152 | N162: 2.426143324e-05 | O162: 676.9872
A163: 160 | B163: Comores | C163: 311.607 | D163: 2.404415502e-05 | F163: 160 | G163: Cazaquistão | H163: 17.064 | I163: 1.141140735e-06 | K163: 160 | L163: Chade | M163: 676.014 | N163: 2.42183999e-05 | O163: -675.7868
A164: 161 | B164: Madagáscar | C164: 309.9952 | D164: 2.391978564e-05 | F164: 161 | G164: Salomão, Ilhas | H164: 16.0532 | I164: 1.07354433e-06 | K164: 161 | L164: Niger | M164: 655.4318 | N164: 2.348103654e-05 | O164: 648.8982
A165: 162 | B165: Nova Caledónia | C165: 302.6442 | D165: 2.33525693e-05 | F165: 162 | G165: Santa Helena | H165: 15.7338 | I165: 1.052184722e-06 | K165: 162 | L165: Faroé, Ilhas | M165: 598.4668 | N165: 2.14402487e-05 | O165: -596.7676
A166: 163 | B166: Libéria | C166: 295.8354 | D166: 2.282719008e-05 | F166: 163 | G166: Marshall, Ilhas | H166: 13.4098 | I166: 8.96769165e-07 | K166: 163 | L166: São Martinho (parte holandesa) | M166: 597.7772 | N166: 2.141554358e-05 | O166: 597.7716
A167: 164 | B167: Somália | C167: 292.9902 | D167: 2.260764934e-05 | F167: 164 | G167: Iraque | H167: 13.1736 | I167: 8.809734874e-07 | K167: 164 | L167: Usbequistão | M167: 531.501 | N167: 1.904117927e-05 | O167: -85.337
A168: 165 | B168: Bahamas | C168: 280.4744 | D168: 2.164190776e-05 | F168: 165 | G168: Curaçau | H168: 12.9632 | I168: 8.669031633e-07 | K168: 165 | L168: Ceuta e Melilha | M168: 507.8786 | N168: 1.819489986e-05 | O168: 507.8786
A169: 166 | B169: Usbequistão | C169: 223.082 | D169: 1.721340724e-05 | F169: 166 | G169: Jamaica | H169: 11.163 | I169: 7.465162932e-07 | K169: 166 | L169: Curaçau | M169: 492.6028 | N169: 1.764763984e-05 | O169: 466.6764
A170: 167 | B170: São Marino | C170: 219.9688 | D170: 1.697318715e-05 | F170: 167 | G170: Nepal | H170: 11.0964 | I170: 7.420624739e-07 | K170: 167 | L170: Gronelândia | M170: 481.9304 | N170: 1.726529798e-05 | O170: -480.7792
A171: 168 | B171: Bonaire, Santo Eustáquio e Saba | C171: 206.5448 | D171: 1.593736723e-05 | F171: 168 | G171: Barbados | H171: 10.32 | I171: 6.901413729e-07 | K171: 168 | L171: Kosovo | M171: 479.738 | N171: 1.718675461e-05 | O171: 462.6256
A172: 169 | B172: Guiana | C172: 139.5802 | D172: 1.077025858e-05 | F172: 169 | G172: Antígua e Barbuda | H172: 9.2324 | I172: 6.174090321e-07 | K172: 169 | L172: Antígua e Barbuda | M172: 372.9378 | N172: 1.336060611e-05 | O172: 354.473
A173: 170 | B173: Zâmbia | C173: 138.1944 | D173: 1.066332777e-05 | F173: 170 | G173: Kosovo | H173: 8.5562 | I173: 5.721887224e-07 | K173: 170 | L173: Polinésia Francesa | M173: 367.1436 | N173: 1.315302719e-05 | O173: 366.148
A174: 171 | B174: Maldivas | C174: 129.0678 | D174: 9.959102945e-06 | F174: 171 | G174: Jibuti | H174: 7.3022 | I174: 4.883285207e-07 | K174: 171 | L174: Zâmbia | M174: 337.5936 | N174: 1.209438977e-05 | O174: -61.2048
A175: 172 | B175: Santa Lúcia | C175: 120.252 | D175: 9.278860005e-06 | F175: 172 | G175: Líbia, Jamahira Árabe da | H175: 6.02 | I175: 4.025824675e-07 | K175: 172 | L175: Libéria | M175: 334.663 | N175: 1.198940017e-05 | O175: 257.0078
A176: 173 | B176: Liechtenstein | C176: 119.4194 | D176: 9.214615095e-06 | F176: 173 | G176: Guiné Equatorial | H176: 5.9864 | I176: 4.003354956e-07 | K176: 173 | L176: Haiti | M176: 328.8052 | N176: 1.177954276e-05 | O176: 328.2412
A177: 174 | B177: Afeganistão | C177: 109.4574 | D177: 8.445929308e-06 | F177: 174 | G177: Barém | H177: 4.6014 | I177: 3.077147784e-07 | K177: 174 | L177: Comores | M177: 311.607 | N177: 1.11634122e-05 | O177: 311.607
A178: 175 | B178: Quirguizistão | C178: 109.2342 | D178: 8.428706795e-06 | F178: 175 | G178: São Cristovão e Nevis | H178: 4.4456 | I178: 2.972957837e-07 | K178: 175 | L178: Nova Caledónia | M178: 303.3516 | N178: 1.086766007e-05 | O178: 301.9368
A179: 176 | B179: Virgens Britânicas, Ilhas | C179: 102.589 | D179: 7.915951244e-06 | F179: 176 | G179: Afeganistão | H179: 4.3746 | I179: 2.92547718e-07 | K179: 176 | L179: Somália | M179: 292.9902 | N179: 1.049645988e-05 | O179: 292.9902
A180: 177 | B180: Botswana | C180: 98.1832 | D180: 7.575991814e-06 | F180: 177 | G180: Niger | H180: 3.2668 | I180: 2.184645191e-07 | K180: 177 | L180: Bahamas | M180: 280.4744 | N180: 1.004807767e-05 | O180: 280.4744
A181: 178 | B181: Jibuti | C181: 96.957 | D181: 7.481376023e-06 | F181: 178 | G181: Liechtenstein | H181: 1.8556 | I181: 1.240916988e-07 | K181: 178 | L181: São Marino | M181: 252.739 | N181: 9.05444883e-06 | O181: 187.1986
A182: 179 | B182: Centro-Africana, República | C182: 96.3624 | D182: 7.43549562e-06 | F182: 179 | G182: Lesoto | H182: 1.7136 | I182: 1.145955675e-07 | K182: 179 | L182: Maldivas | M182: 235.2806 | N182: 8.428996527e-06 | O182: 22.855
A183: 180 | B183: Nepal | C183: 77.231 | D183: 5.959282482e-06 | F183: 180 | G183: Butão | H183: 1.2178 | I183: 8.143935697e-08 | K183: 180 | L183: Bonaire, Santo Eustáquio e Saba | M183: 206.5448 | N183: 7.399528061e-06 | O183: 206.5448
A184: 181 | B184: Zimbabwe | C184: 64.9592 | D184: 5.012368383e-06 | F184: 181 | G184: Bermudas | H184: 0.8214 | I184: 5.493043835e-08 | K184: 181 | L184: Fiji, Ilhas | M184: 135.9458 | N184: 4.870298172e-06 | O184: -111.7334
A185: 182 | B185: Caimão, Ilhas | C185: 51.6906 | D185: 3.988539409e-06 | F185: 182 | G185: Nova Caledónia | H185: 0.7074 | I185: 4.730678364e-08 | K185: 182 | L185: Botswana | M185: 128.2116 | N185: 4.593218188e-06 | O185: 68.1548
A186: 183 | B186: Mongólia | C186: 37.8358 | D186: 2.919478191e-06 | F186: 183 | G186: Ruanda | H186: 0.67 | I186: 4.480568991e-08 | K186: 183 | L186: Quirguizistão | M186: 126.71 | N186: 4.539422927e-06 | O186: 91.7584
A187: 184 | B187: Turcas e Caicos, Ilhas | C187: 19.071 | D187: 1.471552566e-06 | F187: 184 | G187: Polinésia Francesa | H187: 0.4978 | I187: 3.328995886e-08 | K187: 184 | L187: Liechtenstein | M187: 121.275 | N187: 4.344712458e-06 | O187: 117.5638
A188: 185 | B188: Laos, República Democrática Popular do | C188: 15.8498 | D188: 1.222998996e-06 | F188: 185 | G188: Território Palestiniano Ocupado | H188: 0.4852 | I188: 3.244734439e-08 | K188: 185 | L188: Santa Lúcia | M188: 120.2746 | N188: 4.308872834e-06 | O188: 120.2294
A189: 186 | B189: Fiji, Ilhas | C189: 12.1062 | D189: 9.341361058e-07 | F189: 186 | G189: São Bartolomeu | H189: 0.3556 | I189: 2.378045273e-08 | K189: 186 | L189: Afeganistão | M189: 113.832 | N189: 4.078064799e-06 | O189: 105.0828
A190: 187 | B190: Anguila | C190: 10.0614 | D190: 7.763556702e-07 | F190: 187 | G190: Montenegro | H190: 0.3524 | I190: 2.356645541e-08 | K190: 187 | L190: Jibuti | M190: 104.2592 | N190: 3.73511643e-06 | O190: 89.6548
A191: 188 | B191: Malavi | C191: 9.1292 | D191: 7.044254462e-07 | F191: 188 | G191: Micronésia, Estados Federados da | H191: 0.3438 | I191: 2.29913376e-08 | K191: 188 | L191: Virgens Britânicas, Ilhas | M191: 102.596 | N191: 3.675531802e-06 | O191: 102.582
A192: 189 | B192: Brunei Darussalam | C192: 7.7238 | D192: 5.959822615e-07 | F192: 189 | G192: Trindade e Tobago | H192: 0.3238 | I192: 2.165385432e-08 | K192: 189 | L192: Nepal | M192: 88.3274 | N192: 3.164355021e-06 | O192: 66.1346
A193: 190 | B193: São Vicente e Granadinas | C193: 7.6034 | D193: 5.866919815e-07 | F193: 190 | G193: Haiti | H193: 0.282 | I193: 1.885851426e-08 | K193: 190 | L193: Tajiquistão | M193: 59.4122 | N193: 2.128459497e-06 | O193: -59.4122
A194: 191 | B194: Guam | C194: 6.6636 | D194: 5.141753279e-07 | F194: 191 | G194: Oceano Indico, Território Britânico do | H194: 0.128 | I194: 8.559892998e-09 | K194: 191 | L194: Caimão, Ilhas | M194: 51.6906 | N194: 1.851830911e-06 | O194: 51.6906
A195: 192 | B195: Territórios Franceses do Sul | C195: 6.3102 | D195: 4.8690635e-07 | F195: 192 | G195: Burundi | H195: 0.114 | I195: 7.623654701e-09 | K195: 192 | L195: Falkland Ilhas (Malvinas) | M195: 38.0622 | N195: 1.363589483e-06 | O195: -38.0622
A196: 193 | B196: Menores distantes dos Estados Unidos, lhas | C196: 4.5544 | D196: 3.514256728e-07 | F196: 193 | G196: Nauru | H196: 0.0694 | I196: 4.641066985e-09 | K196: 193 | L196: Mongólia | M196: 37.85 | N196: 1.355987355e-06 | O196: 37.8216
A197: 194 | B197: Sudão do Sul | C197: 3.771 | D197: 2.909771237e-07 | F197: 194 | G197: Vanuatu | H197: 0.065 | I197: 4.346820663e-09 | K197: 194 | L197: São Pedro e Miquelon | M197: 29.2314 | N197: 1.047223482e-06 | O197: -28.5998
A198: 195 | B198: Melilha | C198: 3.6164 | D198: 2.790479104e-07 | F198: 195 | G198: Santa Lúcia | H198: 0.0226 | I198: 1.511356107e-09 | K198: 195 | L198: Turcas e Caicos, Ilhas | M198: 19.071 | N198: 6.832241705e-07 | O198: 19.071
A199: 196 | B199: Marianas do Norte, Ilhas | C199: 2.9244 | D199: 2.256519492e-07 | F199: 196 | G199: São Vicente e Granadinas | H199: 0.0144 | I199: 9.629879622e-10 | K199: 196 | L199: Salomão, Ilhas | M199: 16.0532 | N199: 5.751106001e-07 | O199: -16.0532
A200: 197 | B200: Papuásia-Nova Guiné | C200: 2.8856 | D200: 2.226580716e-07 | F200: 197 | G200: Mongólia | H200: 0.0142 | I200: 9.496131294e-10 | K200: 197 | L200: Santa Helena | M200: 15.7338 | N200: 5.636680014e-07 | O200: -15.7338
... 58 more rows

Sheet 2AA
A1: Ranking dos parceiros comerciais de Portugal por país (média 2018-2022 em milhares de euros) produtos agrícolas e agroalimentares
A2: Exportações | F2: Importações | K2: Trocas comerciais (total e saldo)
A3: P | B3: País | C3: média quinquénio | D3: % do Total | F3: P | G3: País | H3: média quinquénio | I3: % do Total | K3: P | L3: País | M3: Total (exp+imp) | N3: % do Total | O3: Saldo (exp-imp)
A4: 1 | B4: Espanha | C4: 2415706.759 | D4: 0.3417342339 | F4: 1 | G4: Espanha | H4: 4700233.367 | I4: 0.4607579981 | K4: 1 | L4: Espanha | M4: 7115940.126 | N4: 0.4120392909 | O4: -2284526.609
A5: 2 | B5: França | C5: 675806.7388 | D5: 0.09560195886 | F5: 2 | G5: França | H5: 803086.6822 | I5: 0.07872558298 | K5: 2 | L5: França | M5: 1478893.421 | N5: 0.08563340693 | O5: -127279.9434
A6: 3 | B6: Itália | C6: 450048.5236 | D6: 0.06366542085 | F6: 3 | G6: Alemanha | H6: 693242.9014 | I6: 0.06795773454 | K6: 3 | L6: Alemanha | M6: 953060.8432 | N6: 0.05518575298 | O6: -433424.9596
A7: 4 | B7: Brasil | C7: 371201.5514 | D7: 0.05251145543 | F7: 4 | G7: Países Baixos | H7: 600479.2596 | I7: 0.05886423076 | K7: 4 | L7: Países Baixos | M7: 932127.81 | N7: 0.05397365282 | O7: -268830.7092
A8: 5 | B8: Países Baixos | C8: 331648.5504 | D8: 0.0469161511 | F8: 5 | G8: Brasil | H8: 551829.2644 | I8: 0.05409513258 | K8: 5 | L8: Brasil | M8: 923030.8158 | N8: 0.05344690316 | O8: -180627.713
A9: 6 | B9: Angola | C9: 270788.7526 | D9: 0.03830671359 | F9: 6 | G9: Itália | H9: 327446.3636 | I9: 0.03209915746 | K9: 6 | L9: Itália | M9: 777494.8872 | N9: 0.04501983383 | O9: 122602.16 | P9: Nota: Nesta listagem, o Reino Unido passa a ser constituído por três componentes: Reino Unido [até 2020] ; Reino Unido (sem Irlanda do Norte) pós-2020 e Reino Unido (Irlanda do Norte) pós-2020. Estas componentes são calculadas igualmente como média do quinquénio, embora a primeira corresponda apenas a 2018-2020 e as duas últimas a 2021-2022.
A10: 7 | B10: Alemanha | C10: 259817.9418 | D10: 0.03675474475 | F10: 7 | G10: Bélgica | H10: 257333.6916 | I10: 0.02522609992 | K10: 7 | L10: Bélgica | M10: 424096.2578 | N10: 0.02455674419 | O10: -90571.1254
A11: 8 | B11: Reino Unido | C11: 202835.6198 | D11: 0.02869382838 | F11: 8 | G11: Estados Unidos | H11: 216724.4778 | I11: 0.02124522949 | K11: 8 | L11: Estados Unidos | M11: 400307.8654 | N11: 0.02317930816 | O11: -33141.0902
A12: 9 | B12: Estados Unidos | C12: 183583.3876 | D12: 0.02597034102 | F12: 9 | G12: Ucrânia | H12: 191922.8274 | I12: 0.01881395472 | K12: 9 | L12: Polónia | M12: 317334.5188 | N12: 0.01837484405 | O12: -48783.4444
A13: 10 | B13: Israel | C13: 169488.4306 | D13: 0.02397641965 | F13: 10 | G13: Polónia | H13: 183058.9816 | I13: 0.017945043 | K13: 10 | L13: Reino Unido | M13: 313115.4092 | N13: 0.01813054198 | O13: 92555.8304
A14: 11 | B14: Bélgica | C14: 166762.5662 | D14: 0.02359080944 | F14: 11 | G14: Roménia | H14: 135395.1758 | I14: 0.01327261974 | K14: 11 | L14: Angola | M14: 277910.725 | N14: 0.01609206036 | O14: 263666.7802
A15: 12 | B15: Reino Unido (sem Irlanda do Norte) pós 2020 | C15: 153037.8236 | D15: 0.02164925988 | F15: 12 | G15: África do Sul | H15: 112521.5396 | I15: 0.01103034579 | K15: 12 | L15: Reino Unido (sem Irlanda do Norte) pós 2020 | M15: 202616.3834 | N15: 0.01173223909 | O15: 103459.2638
A16: 13 | B16: Polónia | C16: 134275.5372 | D16: 0.01899508195 | F16: 13 | G16: Reino Unido | H16: 110279.7894 | I16: 0.01081058982 | K16: 13 | L16: Ucrânia | M16: 198678.0056 | N16: 0.01150419243 | O16: -185167.6492
A17: 14 | B17: Suíça | C17: 91992.068 | D17: 0.01301351614 | F17: 14 | G17: Irlanda | H17: 108062.8466 | I17: 0.01059326569 | K17: 14 | L17: Canadá | M17: 175329.8698 | N17: 0.01015224889 | O17: -30892.3678
A18: 15 | B18: Cabo Verde | C18: 85414.0192 | D18: 0.0120829626 | F18: 15 | G18: Canadá | H18: 103111.1188 | I18: 0.01010785401 | K18: 15 | L18: Israel | M18: 174655.5912 | N18: 0.01011320566 | O18: 164321.27
A19: 16 | B19: Canadá | C19: 72218.751 | D19: 0.01021631432 | F19: 16 | G19: Argentina | H19: 72787.4116 | I19: 0.007135258919 | K19: 16 | L19: Roménia | M19: 151197.393 | N19: 0.008754889093 | O19: -119592.9586
A20: 17 | B20: China, República Popular da | C20: 72213.4462 | D20: 0.01021556388 | F20: 17 | G20: Dinamarca | H20: 70233.1534 | I20: 0.006884868183 | K20: 17 | L20: Irlanda | M20: 134807.959 | N20: 0.007805880158 | O20: -81317.7342
A21: 18 | B21: Japão | C21: 54923.0146 | D21: 0.007769599622 | F21: 18 | G21: Costa Rica | H21: 69966.4334 | I21: 0.006858721955 | K21: 18 | L21: África do Sul | M21: 134356.7194 | N21: 0.007779751714 | O21: -90686.3598
A22: 19 | B22: Suécia | C22: 50793.0088 | D22: 0.007185354716 | F22: 19 | G22: Reino Unido (sem Irlanda do Norte) pós 2020 | H22: 49578.5598 | I22: 0.004860124206 | K22: 19 | L22: Dinamarca | M22: 117665.3674 | N22: 0.006813260608 | O22: -22800.9394
A23: 20 | B23: Rússia, Federação da | C23: 48391.7838 | D23: 0.006845669122 | F23: 20 | G23: China, República Popular da | H23: 45047.8158 | I23: 0.004415981039 | K23: 20 | L23: China, República Popular da | M23: 117261.262 | N23: 0.006789861408 | O23: 27165.6304
A24: 21 | B24: Dinamarca | C24: 47432.214 | D24: 0.006709925059 | F24: 21 | G24: Bulgária | H24: 43907.4694 | I24: 0.004304194307 | K24: 21 | L24: Suíça | M24: 94990.5356 | N24: 0.005500303858 | O24: 88993.6004
A25: 22 | B25: Luxemburgo | C25: 45125.6972 | D25: 0.006383637214 | F25: 22 | G25: Cuba | H25: 35799.7426 | I25: 0.00350940399 | K25: 22 | L25: Cabo Verde | M25: 85541.4296 | N25: 0.004953165621 | O25: 85286.6088
A26: 23 | B26: Marrocos | C26: 40786.9258 | D26: 0.005769859604 | F26: 23 | G26: Grécia | H26: 30645.8102 | I26: 0.003004170443 | K26: 23 | L26: Argentina | M26: 73024.74 | N26: 0.004228402931 | O26: -72550.0832
A27: 24 | B27: Guiné-Bissau | C27: 30105.237 | D27: 0.004258790959 | F27: 24 | G27: Vietname | H27: 28845.3448 | I27: 0.002827673072 | K27: 24 | L27: Costa Rica | M27: 71166.1566 | N27: 0.004120784068 | O27: -68766.7102
A28: 25 | B28: Irlanda | C28: 26745.1124 | D28: 0.00378345611 | F28: 25 | G28: Colômbia | H28: 28227.4602 | I28: 0.002767102617 | K28: 25 | L28: Japão | M28: 68496.2538 | N28: 0.003966186807 | O28: 41349.7754
A29: 26 | B29: São Tomé e Príncipe | C29: 25259.196 | D29: 0.003573253237 | F29: 26 | G29: Guiana | H29: 28025.2924 | I29: 0.002747284361 | K29: 26 | L29: Suécia | M29: 64449.5152 | N29: 0.003731865653 | O29: 37136.5024
A30: 27 | B30: Arábia Saudita | C30: 25195.0996 | D30: 0.003564185938 | F30: 27 | G30: Chile | H30: 24583.4362 | I30: 0.002409883503 | K30: 27 | L30: Rússia, Federação da | M30: 60550.976 | N30: 0.003506125793 | O30: 36232.5916
A31: 28 | B31: Moçambique | C31: 25036.1622 | D31: 0.003541702104 | F31: 28 | G31: Áustria | H31: 23718.0114 | I31: 0.002325046992 | K31: 28 | L31: Luxemburgo | M31: 53191.4828 | N31: 0.003079983877 | O31: 37059.9116
A32: 29 | B32: Grécia | C32: 22444.1484 | D32: 0.003175026866 | F32: 29 | G32: Uruguai | H32: 22544.1794 | I32: 0.002209977709 | K32: 29 | L32: Grécia | M32: 53089.9586 | N32: 0.003074105249 | O32: -8201.6618
A33: 30 | B33: África do Sul | C33: 21835.1798 | D33: 0.003088880062 | F33: 30 | G33: Checa, República | H33: 21986.3926 | I33: 0.002155298567 | K33: 30 | L33: Bulgária | M33: 52078.8802 | N33: 0.003015560065 | O33: -35736.0586
A34: 31 | B34: Finlândia | C34: 19871.7108 | D34: 0.002811120945 | F34: 31 | G34: Costa do Marfim | H34: 21706.691 | I34: 0.002127879769 | K34: 31 | L34: Marrocos | M34: 50674.6404 | N34: 0.002934249379 | O34: 30899.2112
A35: 32 | B35: Checa, República | C35: 18184.9724 | D35: 0.002572509097 | F35: 32 | G35: Índia | H35: 20830.7032 | I35: 0.00204200778 | K35: 32 | L35: Checa, República | M35: 40171.365 | N35: 0.002326070829 | O35: -3801.4202
A36: 33 | B36: Jordânia | C36: 17519.4376 | D36: 0.002478360242 | F36: 33 | G36: Paraguai | H36: 18542.9402 | I36: 0.001817741235 | K36: 33 | L36: Cuba | M36: 38669.2808 | N36: 0.00223909459 | O36: -32930.2044
A37: 34 | B37: Noruega | C37: 16995.9884 | D37: 0.002404311308 | F37: 34 | G37: Turquia | H37: 17991.0046 | I37: 0.001763635678 | K37: 34 | L37: Áustria | M37: 38078.486 | N37: 0.002204885383 | O37: -9357.5368
A38: 35 | B38: Roménia | C38: 15802.2172 | D38: 0.002235436304 | F38: 35 | G38: Hungria | H38: 16792.9934 | I38: 0.001646196139 | K38: 35 | L38: Moçambique | M38: 35149.7218 | N38: 0.002035299088 | O38: 14922.6026
A39: 36 | B39: Austrália | C39: 14444.222 | D39: 0.002043329606 | F39: 36 | G39: Uganda | H39: 16711.9036 | I39: 0.001638247007 | K39: 36 | L39: Colômbia | M39: 34588.8908 | N39: 0.002002824895 | O39: -21866.0296
A40: 37 | B40: Áustria | C40: 14360.4746 | D40: 0.002031482409 | F40: 37 | G40: Suécia | H40: 13656.5064 | I40: 0.001338730241 | K40: 37 | L40: Vietname | M40: 30879.9888 | N40: 0.001788065732 | O40: -26810.7008
A41: 38 | B41: Coreia, República da | C41: 13720.4568 | D41: 0.001940943277 | F41: 38 | G41: Japão | H41: 13573.2392 | I41: 0.001330567662 | K41: 38 | L41: Guiné-Bissau | M41: 30466.6832 | N41: 0.001764133807 | O41: 29743.7908
A42: 39 | B42: Iraque | C42: 12397.914 | D42: 0.001753851798 | F42: 39 | G42: Suazilândia | H42: 13238.5804 | I42: 0.001297761478 | K42: 39 | L42: Chile | M42: 30213.2108 | N42: 0.001749456816 | O42: -18953.6616
A43: 40 | B43: Emirados Árabes Unidos | C43: 11828.644 | D43: 0.001673320895 | F43: 40 | G43: Indonésia | H43: 13212.7406 | I43: 0.001295228435 | K43: 40 | L43: Guiana | M43: 28043.5358 | N43: 0.001623824597 | O43: -28007.049
A44: 41 | B44: Argélia | C44: 11256.5744 | D44: 0.001592393951 | F44: 41 | G44: México | H44: 13063.7214 | I44: 0.001280620269 | K44: 41 | L44: Hungria | M44: 28003.0576 | N44: 0.001621480759 | O44: -5582.9292
A45: 42 | B45: Macau | C45: 11226.3746 | D45: 0.001588121783 | F45: 42 | G45: Austrália | H45: 12930.0706 | I45: 0.001267518648 | K45: 42 | L45: Turquia | M45: 27957.3216 | N45: 0.001618832475 | O45: -8024.6876
A46: 43 | B46: Hungria | C46: 11210.0642 | D46: 0.001585814457 | F46: 43 | G46: Rússia, Federação da | H46: 12159.1922 | I46: 0.001191950403 | K46: 43 | L46: Finlândia | M46: 27396.6714 | N46: 0.001586368752 | O46: 12346.7502
A47: 44 | B47: Nigéria | C47: 10936.4444 | D47: 0.001547107254 | F47: 44 | G47: Moldava, República de | H47: 11903.439 | I47: 0.001166879237 | K47: 44 | L47: Austrália | M47: 27374.2926 | N47: 0.001585072937 | O47: 1514.1514
A48: 45 | B48: Turquia | C48: 9966.317 | D48: 0.001409869676 | F48: 45 | G48: Lituânia | H48: 11893.779 | I48: 0.001165932279 | K48: 45 | L48: Costa do Marfim | M48: 27312.2412 | N48: 0.001581479931 | O48: -16101.1408
A49: 46 | B49: Território Palestiniano Ocupado | C49: 9369.3582 | D49: 0.001325421819 | F49: 46 | G49: Peru | H49: 11310.0138 | I49: 0.001108706507 | K49: 46 | L49: São Tomé e Príncipe | M49: 26312.808 | N49: 0.001523609046 | O49: 24205.584
A50: 47 | B50: Eslováquia | C50: 9079.0046 | D50: 0.001284347395 | F50: 47 | G50: Paquistão | H50: 10304.445 | I50: 0.001010131855 | K50: 47 | L50: Arábia Saudita | M50: 25220.0634 | N50: 0.001460335087 | O50: 25170.1358
A51: 48 | B51: Senegal | C51: 8493.732 | D51: 0.001201552708 | F51: 48 | G51: Tailândia | H51: 10200.8142 | I51: 0.0009999730572 | K51: 48 | L51: Uruguai | M51: 24295.8202 | N51: 0.001406817982 | O51: -20792.5386
A52: 49 | B52: Bulgária | C52: 8171.4108 | D52: 0.001155956036 | F52: 49 | G52: Moçambique | H52: 10113.5596 | I52: 0.0009914195979 | K52: 49 | L52: Índia | M52: 23845.568 | N52: 0.001380746712 | O52: -17815.8384
A53: 50 | B53: Líbia, Jamahira Árabe da | C53: 7994.4952 | D53: 0.001130928944 | F53: 50 | G53: Marrocos | H53: 9887.7146 | I53: 0.000969280295 | K53: 50 | L53: Paraguai | M53: 19187.5668 | N53: 0.001111031189 | O53: -17898.3136
A54: 51 | B54: Gibraltar | C54: 7555.2434 | D54: 0.001068790865 | F54: 51 | G54: Egito | H54: 9790.5476 | I54: 0.0009597551355 | K54: 51 | L54: México | M54: 18719.3066 | N54: 0.001083917189 | O54: -7408.1362
A55: 52 | B55: Kuwait | C55: 7350.4748 | D55: 0.00103982359 | F55: 52 | G55: Sérvia | H55: 8809.786 | I55: 0.0008636123026 | K55: 52 | L55: Noruega | M55: 18007.7536 | N55: 0.001042715635 | O55: 15984.2232
A56: 53 | B56: Ucrânia | C56: 6755.1782 | D56: 0.0009556108741 | F56: 53 | G56: Equador | H56: 8208.356 | I56: 0.0008046548719 | K56: 53 | L56: Jordânia | M56: 17549.35 | N56: 0.001016172368 | O56: 17489.5252
A57: 54 | B57: Colômbia | C57: 6361.4306 | D57: 0.0008999099766 | F57: 54 | G57: Luxemburgo | H57: 8065.7856 | I57: 0.000790678874 | K57: 54 | L57: Uganda | M57: 17196.9522 | N57: 0.0009957672303 | O57: -16226.855
A58: 55 | B58: Letónia | C58: 5847.3278 | D58: 0.0008271832163 | F58: 55 | G58: Nova Zelânda | H58: 7880.7508 | I58: 0.0007725401439 | K58: 55 | L58: Lituânia | M58: 16927.7228 | N58: 0.0009801778508 | O58: -6859.8352
A59: 56 | B59: HongKong | C59: 5831.0346 | D59: 0.0008248783238 | F59: 56 | G59: Finlândia | H59: 7524.9606 | I59: 0.0007376624757 | K59: 56 | L59: Suazilândia | M59: 15229.1586 | N59: 0.0008818246921 | O59: -11248.0022
A60: 57 | B60: Maurícias | C60: 5663.2906 | D60: 0.0008011486774 | F60: 57 | G60: Letónia | H60: 7523.6884 | I60: 0.0007375377635 | K60: 57 | L60: Coreia, República da | M60: 14661.023 | N60: 0.0008489275365 | O60: 12779.8906
A61: 58 | B61: México | C61: 5655.5852 | D61: 0.0008000586448 | F61: 58 | G61: Malásia | H61: 7403.8212 | I61: 0.0007257873318 | K61: 58 | L61: Indonésia | M61: 14350.1382 | N61: 0.000830926155 | O61: -12075.343
A62: 59 | B62: Chile | C62: 5629.7746 | D62: 0.0007964073881 | F62: 59 | G62: Angola | H62: 7121.9724 | I62: 0.0006981580464 | K62: 59 | L62: Letónia | M62: 13371.0162 | N62: 0.0007742313645 | O62: -1676.3606
A63: 60 | B63: Costa do Marfim | C63: 5605.5502 | D63: 0.0007929805207 | F63: 60 | G63: Camarões | H63: 6330.963 | I63: 0.0006206163843 | K63: 60 | L63: Tailândia | M63: 13287.6996 | N63: 0.0007694070248 | O63: -7113.9288
A64: 61 | B64: Andorra | C64: 5268.3636 | D64: 0.0007452809379 | F64: 61 | G64: Honduras | H64: 6193.8364 | I64: 0.0006071740352 | K64: 61 | L64: Peru | M64: 13096.7276 | N64: 0.0007583490386 | O64: -9523.3
A65: 62 | B65: Lituânia | C65: 5033.9438 | D65: 0.0007121191022 | F65: 62 | G65: Etiópia | H65: 5332.904 | I65: 0.0005227779089 | K65: 62 | L65: Eslováquia | M65: 12639.492 | N65: 0.0007318734038 | O65: 5518.5172
A66: 63 | B66: Malta | C66: 4911.2352 | D66: 0.0006947603192 | F66: 63 | G66: Israel | H66: 5167.1606 | I66: 0.0005065302907 | K66: 63 | L66: Iraque | M66: 12410.178 | N66: 0.0007185952738 | O66: 12385.65
A67: 64 | B67: Estónia | C67: 4891.9612 | D67: 0.0006920337525 | F67: 64 | G67: Belize | H67: 5153.7922 | I67: 0.0005052198032 | K67: 64 | L67: Emirados Árabes Unidos | M67: 12284.869 | N67: 0.0007113394185 | O67: 11372.419
A68: 65 | B68: Síria, República Árabe da | C68: 4399.3294 | D68: 0.000622344354 | F68: 65 | G68: Camboja | H68: 4964.3942 | I68: 0.0004866533541 | K68: 65 | L68: Moldava, República de | M68: 12104.827 | N68: 0.0007009143198 | O68: -11702.051
A69: 66 | B69: Chipre | C69: 4051.8682 | D69: 0.0005731912908 | F69: 66 | G69: Zimbabwe | H69: 4709.0808 | I69: 0.0004616253009 | K69: 66 | L69: Argélia | M69: 11803.9212 | N69: 0.0006834907595 | O69: 10709.2276
A70: 67 | B70: Omã | C70: 3805.6814 | D70: 0.0005383648545 | F70: 67 | G70: Guatemala | H70: 4635.2426 | I70: 0.0004543870345 | K70: 67 | L70: Sérvia | M70: 11344.2962 | N70: 0.0006568767695 | O70: -6275.2758
A71: 68 | B71: Eslovénia | C71: 3315.0192 | D71: 0.0004689540826 | F71: 68 | G71: Suriname | H71: 4613.819 | I71: 0.0004522869058 | K71: 68 | L71: Egito | M71: 11329.12 | N71: 0.0006559980113 | O71: -8251.9752
A72: 69 | B72: Mali | C72: 3288.1148 | D72: 0.0004651480931 | F72: 69 | G72: Macedónia, Antiga República jugoslava da | H72: 4601.7574 | I72: 0.0004511045222 | K72: 69 | L72: Macau | M72: 11244.0184 | N72: 0.0006510703135 | O72: 11208.7308
A73: 70 | B73: Tailândia | C73: 3086.8854 | D73: 0.0004366814861 | F73: 70 | G73: Tanzânia, República Unida da | H73: 4539.7292 | I73: 0.0004450239753 | K73: 70 | L73: Nigéria | M73: 11134.6158 | N73: 0.0006447354977 | O73: 10738.273
A74: 71 | B74: Índia | C74: 3014.8648 | D74: 0.0004264932029 | F74: 71 | G74: Eslovénia | H74: 4539.0796 | I74: 0.0004449602959 | K74: 71 | L74: Paquistão | M74: 10571.2956 | N74: 0.0006121171716 | O74: -10037.5944
A75: 72 | B75: Singapura | C75: 2938.7244 | D75: 0.0004157221186 | F75: 72 | G75: Filipinas | H75: 4493.8362 | I75: 0.0004405251419 | K75: 72 | L75: Nova Zelânda | M75: 10270.7832 | N75: 0.0005947163905 | O75: -5490.7184
A76: 73 | B76: Cuba | C76: 2869.5382 | D76: 0.0004059347994 | F76: 73 | G76: Tunísia | H76: 4123.8374 | I76: 0.0004042546224 | K76: 73 | L76: Território Palestiniano Ocupado | M76: 9369.8434 | N76: 0.000542548639 | O76: 9368.873
A77: 74 | B77: Gana | C77: 2746.7854 | D77: 0.0003885697637 | F77: 74 | G77: Estónia | H77: 4040.7446 | I77: 0.0003961091391 | K77: 74 | L77: Senegal | M77: 9057.1362 | N77: 0.0005244417338 | O77: 7930.3278
A78: 75 | B78: Taiwan | C78: 2744.6238 | D78: 0.0003882639763 | F78: 75 | G78: Mali | H78: 3761.0172 | I78: 0.000368687812 | K78: 75 | L78: Equador | M78: 9035.7916 | N78: 0.0005232058024 | O78: -7380.9204
A79: 76 | B79: Sérvia | C79: 2534.5102 | D79: 0.0003585405797 | F79: 76 | G79: Eslováquia | H79: 3560.4874 | I79: 0.0003490301265 | K79: 76 | L79: Estónia | M79: 8932.7058 | N79: 0.0005172367528 | O79: 851.2166
A80: 77 | B80: Líbano | C80: 2490.8708 | D80: 0.0003523671992 | F80: 77 | G80: Myanmar | H80: 3336.3804 | I80: 0.0003270611976 | K80: 77 | L80: Malásia | M80: 8922.5932 | N80: 0.0005166511958 | O80: -5885.0492
A81: 78 | B81: Timor-Leste | C81: 2471.9198 | D81: 0.0003496863252 | F81: 78 | G81: Quénia | H81: 3256.788 | I81: 0.0003192588542 | K81: 78 | L81: Camarões | M81: 8612.0928 | N81: 0.0004986720725 | O81: -4049.8332
A82: 79 | B82: Belarus | C82: 2455.9286 | D82: 0.0003474241547 | F82: 79 | G82: Malavi | H82: 3254.1854 | I82: 0.0003190037245 | K82: 79 | L82: Kuwait | M82: 8534.0068 | N82: 0.0004941506039 | O82: 6166.9428
A83: 80 | B83: Nova Zelânda | C83: 2390.0324 | D83: 0.0003381022503 | F83: 80 | G83: Nicarágua | H83: 3164.5168 | I83: 0.0003102136238 | K83: 80 | L83: Líbia, Jamahira Árabe da | M83: 8000.447 | N83: 0.0004632555151 | O83: 7988.5434
A84: 81 | B84: Filipinas | C84: 2342.9576 | D84: 0.0003314428863 | F84: 81 | G84: Chipre | H84: 3103.6452 | I84: 0.000304246457 | K84: 81 | L84: Eslovénia | M84: 7854.0988 | N84: 0.0004547814123 | O84: -1224.0604
A85: 82 | B85: Guiné | C85: 2294.4076 | D85: 0.0003245748354 | F85: 82 | G85: Sri Lanca | H85: 3086.3876 | I85: 0.0003025547161 | K85: 82 | L85: Gibraltar | M85: 7555.2434 | N85: 0.0004374765776 | O85: 7555.2434
A86: 83 | B86: Camarões | C86: 2281.1298 | D86: 0.0003226965118 | F86: 83 | G86: Suíça | H86: 2998.4676 | I86: 0.0002939360284 | K86: 83 | L86: Maurícias | M86: 7215.0914 | N86: 0.0004177805169 | O86: 4111.4898
A87: 84 | B87: Irão, República Islâmica do | C87: 2234.7082 | D87: 0.0003161295517 | F87: 84 | G87: Taiwan | H87: 2719.0514 | I87: 0.0002665452078 | K87: 84 | L87: Chipre | M87: 7155.5134 | N87: 0.00041433073 | O87: 948.223
A88: 85 | B88: Congo | C88: 2180.7492 | D88: 0.000308496325 | F88: 85 | G88: Reino Unido (Irlanda do Norte) pós-2020 | H88: 2486.6052 | I88: 0.0002437587976 | K88: 85 | L88: Mali | M88: 7049.132 | N88: 0.0004081708529 | O88: -472.9024
A89: 86 | B89: Seychelles | C89: 2103.9052 | D89: 0.0002976257069 | F89: 86 | G89: Dominicana, República | H89: 2224.7388 | I89: 0.0002180883619 | K89: 86 | L89: HongKong | M89: 7034.0506 | N89: 0.000407297584 | O89: 4628.0186
A90: 87 | B90: Gabão | C90: 2079.6516 | D90: 0.0002941947088 | F90: 87 | G90: Serra Leoa | H90: 1997.841 | I90: 0.0001958458544 | K90: 87 | L90: Honduras | M90: 7007.5386 | N90: 0.000405762441 | O90: -5380.1342
A91: 88 | B91: Venezuela | C91: 2058.4802 | D91: 0.0002911997293 | F91: 88 | G91: Benim | H91: 1817.5436 | I91: 0.0001781715258 | K91: 88 | L91: Filipinas | M91: 6836.7938 | N91: 0.0003958756847 | O91: -2150.8786
A92: 89 | B92: Vietname | C92: 2034.644 | D92: 0.000287827778 | F92: 89 | G92: Croácia | H92: 1794.8456 | I92: 0.0001759464692 | K92: 89 | L92: Etiópia | M92: 6077.3128 | N92: 0.0003518989216 | O92: -4588.4952
A93: 90 | B93: Suazilândia | C93: 1990.5782 | D93: 0.0002815940775 | F93: 90 | G93: Burquina Faso | H93: 1725.7566 | I93: 0.000169173761 | K93: 90 | L93: Taiwan | M93: 5463.6752 | N93: 0.0003163670317 | O93: 25.5724
A94: 91 | B94: Sudão | C94: 1865.0268 | D94: 0.0002638331422 | F94: 91 | G94: Gana | H94: 1658.8832 | I94: 0.0001626182452 | K94: 91 | L94: Malta | M94: 5451.155 | N94: 0.0003156420657 | O94: 4371.3154
A95: 92 | B95: Burquina Faso | C95: 1848.8938 | D95: 0.0002615509122 | F95: 92 | G95: Laos, República Democrática Popular do | H95: 1570.3752 | I95: 0.0001539419167 | K95: 92 | L95: Camboja | M95: 5365.826 | N95: 0.0003107012005 | O95: -4562.9624
A96: 93 | B96: Guiné Equatorial | C96: 1818.0792 | D96: 0.0002571917723 | F96: 93 | G96: Maurícias | H96: 1551.8008 | I96: 0.0001521210915 | K96: 93 | L96: Síria, República Árabe da | M96: 5349.1634 | N96: 0.0003097363743 | O96: 3449.4954
A97: 94 | B97: Peru | C97: 1786.7138 | D97: 0.0002527547143 | F97: 94 | G97: Madagáscar | H97: 1535.4408 | I97: 0.0001505173411 | K97: 94 | L97: Andorra | M97: 5273.09 | N97: 0.0003053314426 | O97: 5263.6372
A98: 95 | B98: Croácia | C98: 1762.667 | D98: 0.0002493529708 | F98: 95 | G98: Panamá | H98: 1513.6732 | I98: 0.0001483834905 | K98: 95 | L98: Belize | M98: 5155.9728 | N98: 0.000298549923 | O98: -5151.6116
A99: 96 | B99: Uruguai | C99: 1751.6408 | D99: 0.0002477931664 | F99: 96 | G99: Congo, República Democrática do | H99: 1226.6954 | I99: 0.0001202514158 | K99: 96 | L99: Guatemala | M99: 5127.1054 | N99: 0.0002968783936 | O99: -4143.3798
A100: 97 | B100: Dominicana, República | C100: 1708.9932 | D100: 0.0002417600894 | F100: 97 | G100: HongKong | H100: 1203.016 | I100: 0.0001179301538 | K100: 97 | L100: Tanzânia, República Unida da | M100: 4910.617 | N100: 0.0002843429133 | O100: -4168.8414
A101: 98 | B101: Benim | C101: 1572.4166 | D101: 0.0002224394912 | F101: 98 | G101: Kuwait | H101: 1183.532 | I101: 0.0001160201616 | K101: 98 | L101: Macedónia, Antiga República jugoslava da | M101: 4874.4688 | N101: 0.0002822497987 | O101: -4329.046
A102: 99 | B102: Bangladesh | C102: 1558.9346 | D102: 0.0002205322808 | F102: 99 | G102: Togo | H102: 1123.3282 | I102: 0.0001101184584 | K102: 99 | L102: Tunísia | M102: 4849.4484 | N102: 0.0002808010248 | O102: -3398.2264
A103: 100 | B103: Egito | C103: 1538.5724 | D103: 0.0002176517736 | F103: 100 | G103: Singapura | H103: 1066.466 | I103: 0.0001045443281 | K103: 100 | L103: Zimbabwe | M103: 4772.3634 | N103: 0.0002763375178 | O103: -4645.7982
A104: 101 | B104: Malásia | C104: 1518.772 | D104: 0.0002148507405 | F104: 101 | G104: São Tomé e Príncipe | H104: 1053.612 | I104: 0.0001032842665 | K104: 101 | L104: Suriname | M104: 4769.9158 | N104: 0.0002761957927 | O104: -4457.7222
A105: 102 | B105: Catar | C105: 1515.1716 | D105: 0.0002143414155 | F105: 102 | G105: Noruega | H105: 1011.7652 | I105: 9.918207707e-05 | K105: 102 | L105: Gana | M105: 4405.6686 | N105: 0.0002551045306 | O105: 1087.9022
A106: 103 | B106: Geórgia | C106: 1344.215 | D106: 0.0001901573035 | F106: 103 | G106: Síria, República Árabe da | H106: 949.834 | I106: 9.3111039e-05 | K106: 103 | L106: Omã | M106: 4283.851 | N106: 0.0002480508404 | O106: 3327.5118
A107: 104 | B107: Albânia | C107: 1266.1722 | D107: 0.0001791170991 | F107: 104 | G107: Coreia, República da | H107: 940.5662 | I107: 9.220252816e-05 | K107: 104 | L107: Singapura | M107: 4005.1904 | N107: 0.0002319153595 | O107: 1872.2584
A108: 105 | B108: Reino Unido (Irlanda do Norte) pós-2020 | C108: 1227.8066 | D108: 0.0001736897686 | F108: 105 | G108: El Salvador | H108: 728.093 | I108: 7.137404612e-05 | K108: 105 | L108: Dominicana, República | M108: 3933.732 | N108: 0.0002277776534 | O108: -515.7456
A109: 106 | B109: Costa Rica | C109: 1199.7232 | D109: 0.0001697169937 | F109: 106 | G109: Turquemenistão | H109: 720.6558 | I109: 7.06449867e-05 | K109: 106 | L109: Myanmar | M109: 3786.5898 | N109: 0.000219257575 | O109: -2886.171
A110: 107 | B110: Indonésia | C110: 1137.3976 | D110: 0.0001609001987 | F110: 107 | G110: Chade | H110: 675.9004 | I110: 6.625767082e-05 | K110: 107 | L110: Reino Unido (Irlanda do Norte) pós-2020 | M110: 3714.4118 | N110: 0.0002150782015 | O110: -1258.7986
A111: 108 | B111: Islândia | C111: 1133.5366 | D111: 0.0001603540083 | F111: 108 | G111: Timor-Leste | H111: 614.309 | I111: 6.021994291e-05 | K111: 108 | L111: Quénia | M111: 3707.2604 | N111: 0.0002146641089 | O111: -2806.3156
A112: 109 | B112: Congo, República Democrática do | C112: 1102.9278 | D112: 0.0001560239816 | F112: 109 | G112: Senegal | H112: 563.4042 | I112: 5.522980904e-05 | K112: 109 | L112: Nicarágua | M112: 3581.5684 | N112: 0.0002073860766 | O112: -2747.4652
A113: 110 | B113: Togo | C113: 886.836 | D113: 0.0001254548881 | F113: 110 | G113: Argélia | H113: 547.3468 | I113: 5.36557222e-05 | K113: 110 | L113: Burquina Faso | M113: 3574.6504 | N113: 0.0002069854987 | O113: 123.1372
A114: 111 | B114: Panamá | C114: 853.2114 | D114: 0.0001206982359 | F114: 111 | G114: Malta | H114: 539.9198 | I114: 5.292766268e-05 | K114: 111 | L114: Croácia | M114: 3557.5126 | N114: 0.0002059931566 | O114: -32.1786
A115: 112 | B115: Equador | C115: 827.4356 | D115: 0.000117051902 | F115: 112 | G115: Líbano | H115: 532.182 | I115: 5.216913582e-05 | K115: 112 | L115: Sri Lanca | M115: 3479.4264 | N115: 0.0002014716764 | O115: -2693.3488
A116: 113 | B116: Ruanda | C116: 825.8566 | D116: 0.0001168285312 | F116: 113 | G116: Omã | H116: 478.1696 | I116: 4.687436781e-05 | K116: 113 | L116: Benim | M116: 3389.9602 | N116: 0.0001962912521 | O116: -245.127
A117: 114 | B117: Honduras | C117: 813.7022 | D117: 0.0001151091278 | F117: 114 | G117: Emirados Árabes Unidos | H117: 456.225 | I117: 4.472316612e-05 | K117: 114 | L117: Malavi | M117: 3260.7888 | N117: 0.0001888117496 | O117: -3247.582
A118: 115 | B118: Bermudas | C118: 793.1712 | D118: 0.0001122047415 | F118: 115 | G118: Belarus | H118: 370.985 | I118: 3.636719553e-05 | K118: 115 | L118: Timor-Leste | M118: 3086.2288 | N118: 0.000178704079 | O118: 1857.6108
A119: 116 | B119: Etiópia | C119: 744.4088 | D119: 0.0001053066437 | F119: 116 | G119: Guiné-Bissau | H119: 361.4462 | I119: 3.54321189e-05 | K119: 116 | L119: Líbano | M119: 3023.0528 | N119: 0.0001750459546 | O119: 1958.6888
A120: 117 | B120: Tunísia | C120: 725.611 | D120: 0.0001026474419 | F120: 117 | G120: Usbequistão | H120: 308.3676 | I120: 3.022889013e-05 | K120: 117 | L120: Belarus | M120: 2826.9136 | N120: 0.0001636887684 | O120: 2084.9436
A121: 118 | B121: Burundi | C121: 677.0954 | D121: 9.578425733e-05 | F121: 118 | G121: Guiné | H121: 302.1342 | I121: 2.961783773e-05 | K121: 118 | L121: Guiné | M121: 2596.5418 | N121: 0.0001503493879 | O121: 1992.2734
A122: 119 | B122: Iémen | C122: 670.7886 | D122: 9.489207559e-05 | F122: 119 | G122: Geórgia | H122: 294.6596 | I122: 2.888511204e-05 | K122: 119 | L122: Serra Leoa | M122: 2499.2974 | N122: 0.0001447185769 | O122: -1496.3846
A123: 120 | B123: Paraguai | C123: 644.6266 | D123: 9.119110857e-05 | F123: 120 | G123: Bolívia | H123: 281.7088 | I123: 2.761556131e-05 | K123: 120 | L123: Irão, República Islâmica do | M123: 2440.2744 | N123: 0.0001413009266 | O123: 2029.142
A124: 121 | B124: Namíbia | C124: 633.7298 | D124: 8.964960955e-05 | F124: 121 | G124: Bangladesh | H124: 280.8088 | I124: 2.752733544e-05 | K124: 121 | L124: Congo | M124: 2380.0768 | N124: 0.0001378152626 | O124: 1981.4216
A125: 122 | B125: Azerbaijão | C125: 594.9756 | D125: 8.416730637e-05 | F125: 122 | G125: Irão, República Islâmica do | H125: 205.5662 | I125: 2.015139747e-05 | K125: 122 | L125: Panamá | M125: 2366.8846 | N125: 0.0001370513853 | O125: -660.4618
A126: 123 | B126: Arménia | C126: 559.6906 | D126: 7.917576822e-05 | F126: 123 | G126: Congo | H126: 199.3276 | I126: 1.953983532e-05 | K126: 123 | L126: Congo, República Democrática do | M126: 2329.6232 | N126: 0.0001348938123 | O126: -123.7676
A127: 124 | B127: Cazaquistão | C127: 531.8816 | D127: 7.524181089e-05 | F127: 124 | G127: Zâmbia | H127: 199.294 | I127: 1.953654155e-05 | K127: 124 | L127: Venezuela | M127: 2213.4414 | N127: 0.0001281664557 | O127: 1903.519
A128: 125 | B128: Aruba | C128: 522.985 | D128: 7.398326708e-05 | F128: 125 | G128: Nigéria | H128: 198.1714 | I128: 1.942649448e-05 | K128: 125 | L128: Seychelles | M128: 2103.9052 | N128: 0.000121823904 | O128: 2103.9052
A129: 126 | B129: Serra Leoa | C129: 501.4564 | D129: 7.093775686e-05 | F129: 126 | G129: Islândia | H129: 193.9226 | I129: 1.900998993e-05 | K129: 126 | L129: Gabão | M129: 2079.9016 | N129: 0.0001204340066 | O129: 2079.4016
A130: 127 | B130: Guatemala | C130: 491.8628 | D130: 6.958061302e-05 | F130: 127 | G130: Venezuela | H130: 154.9612 | I130: 1.519065262e-05 | K130: 127 | L130: Togo | M130: 2010.1642 | N130: 0.0001163959529 | O130: -236.4922
A131: 128 | B131: Uganda | C131: 485.0486 | D131: 6.861665272e-05 | F131: 128 | G131: Cabo Verde | H131: 127.4104 | I131: 1.248988215e-05 | K131: 128 | L131: Sudão | M131: 1881.5594 | N131: 0.0001089492586 | O131: 1848.4942
A132: 129 | B132: São Bartolomeu | C132: 472.0258 | D132: 6.677440239e-05 | F132: 129 | G132: Azerbaijão | H132: 124.836 | I132: 1.223751694e-05 | K132: 129 | L132: Bangladesh | M132: 1839.7434 | N132: 0.0001065279573 | O132: 1278.1258
A133: 130 | B133: Mauritânia | C133: 470.2498 | D133: 6.652316328e-05 | F133: 130 | G133: Albânia | H133: 104.1554 | I133: 1.021022359e-05 | K133: 130 | L133: Guiné Equatorial | M133: 1818.0792 | N133: 0.0001052735199 | O133: 1818.0792
A134: 131 | B134: Barém | C134: 469.46 | D134: 6.641143544e-05 | F134: 131 | G134: Namíbia | H134: 70.1862 | I134: 6.880265399e-06 | K134: 131 | L134: Madagáscar | M134: 1665.0982 | N134: 9.641535334e-05 | O134: -1405.7834
A135: 132 | B135: Gâmbia | C135: 455.249 | D135: 6.440109823e-05 | F135: 132 | G135: Tajiquistão | H135: 59.4122 | I135: 5.824103655e-06 | K135: 132 | L135: Geórgia | M135: 1638.8746 | N135: 9.489690977e-05 | O135: 1049.5554
A136: 133 | B136: Quénia | C136: 450.4724 | D136: 6.372538387e-05 | F136: 133 | G136: Iémen | H136: 45.76 | I136: 4.485795565e-06 | K136: 133 | L136: Laos, República Democrática Popular do | M136: 1584.7624 | N136: 9.176361296e-05 | O136: -1555.988
A137: 134 | B137: Myanmar | C137: 450.2094 | D137: 6.368817898e-05 | F137: 134 | G137: Libéria | H137: 38.8276 | I137: 3.806221064e-06 | K137: 134 | L137: Catar | M137: 1531.2412 | N137: 8.866453723e-05 | O137: 1499.102
A138: 135 | B138: Kosovo | C138: 418.4652 | D138: 5.919753465e-05 | F138: 135 | G138: Aruba | H138: 38.0318 | I138: 3.728209785e-06 | K138: 135 | L138: Albânia | M138: 1370.3276 | N138: 7.934704376e-05 | O138: 1162.0168
A139: 136 | B139: Nicarágua | C139: 417.0516 | D139: 5.89975619e-05 | F139: 136 | G139: São Marino | H139: 32.7702 | I139: 3.212421718e-06 | K139: 136 | L139: Islândia | M139: 1327.4592 | N139: 7.686480462e-05 | O139: 939.614
A140: 137 | B140: Camboja | C140: 401.4318 | D140: 5.678793097e-05 | F140: 137 | G140: Botswana | H140: 30.0284 | I140: 2.943646493e-06 | K140: 137 | L140: El Salvador | M140: 1020.6408 | N140: 5.90988828e-05 | O140: -435.5452
A141: 138 | B141: Sri Lanca | C141: 393.0388 | D141: 5.560062815e-05 | F141: 138 | G141: Jordânia | H141: 29.9124 | I141: 2.932275159e-06 | K141: 138 | L141: Ruanda | M141: 826.094 | N141: 4.783390247e-05 | O141: 825.6192
A142: 139 | B142: Bolívia | C142: 391.1324 | D142: 5.533094222e-05 | F142: 139 | G142: Bósnia-Herzegovina | H142: 27.8982 | I142: 2.734825652e-06 | K142: 139 | L142: Bermudas | M142: 793.8626 | N142: 4.596758502e-05 | O142: 792.4798
A143: 140 | B143: Tanzânia, República Unida da | C143: 370.8878 | D143: 5.246707107e-05 | F143: 140 | G143: Papuásia-Nova Guiné | H143: 25.837 | I143: 2.532768794e-06 | K143: 140 | L143: Turquemenistão | M143: 732.4956 | N143: 4.241420842e-05 | O143: -708.816
A144: 141 | B144: São Martinho (parte holandesa) | C144: 349.244 | D144: 4.940526426e-05 | F144: 141 | G144: Arábia Saudita | H144: 24.9638 | I144: 2.44717009e-06 | K144: 141 | L144: Azerbaijão | M144: 719.8116 | N144: 4.167975784e-05 | O144: 470.1396
A145: 142 | B145: Comores | C145: 311.607 | D145: 4.408100406e-05 | F145: 142 | G145: Macau | H145: 17.6438 | I145: 1.729599646e-06 | K145: 142 | L145: Iémen | M145: 716.5486 | N145: 4.149081805e-05 | O145: 625.0286
A146: 143 | B146: Libéria | C146: 294.774 | D146: 4.169974965e-05 | F146: 143 | G146: Quirguizistão | H146: 17.4758 | I146: 1.713130816e-06 | K146: 143 | L146: Namíbia | M146: 703.916 | N146: 4.075934372e-05 | O146: 563.5436
A147: 144 | B147: Somália | C147: 292.8146 | D147: 4.142256615e-05 | F147: 144 | G147: Sudão | H147: 16.5326 | I147: 1.6206701e-06 | K147: 144 | L147: Burundi | M147: 677.2094 | N147: 3.921293266e-05 | O147: 676.9814
A148: 145 | B148: El Salvador | C148: 292.5478 | D148: 4.13848237e-05 | F148: 145 | G148: Catar | H148: 16.0696 | I148: 1.575282789e-06 | K148: 145 | L148: Chade | M148: 675.9044 | N148: 3.913736832e-05 | O148: -675.8964
A149: 146 | B149: Jamaica | C149: 276.7996 | D149: 3.915702886e-05 | F149: 146 | G149: Arménia | H149: 15.3428 | I149: 1.504035494e-06 | K149: 146 | L149: Bolívia | M149: 672.8412 | N149: 3.89599977e-05 | O149: 109.4236
A150: 147 | B150: Macedónia, Antiga República jugoslava da | C150: 272.7114 | D150: 3.857869794e-05 | F150: 147 | G150: Curaçau | H150: 12.9632 | I150: 1.270766282e-06 | K150: 147 | L150: Arménia | M150: 575.0334 | N150: 3.32965638e-05 | O150: 544.3478
A151: 148 | B151: Paquistão | C151: 266.8506 | D151: 3.77496089e-05 | F151: 148 | G151: Iraque | H151: 12.264 | I151: 1.202224581e-06 | K151: 148 | L151: Aruba | M151: 561.0168 | N151: 3.248495074e-05 | O151: 484.9532
A152: 149 | B152: Antígua e Barbuda | C152: 264.4064 | D152: 3.740384392e-05 | F152: 149 | G152: Jamaica | H152: 11.1274 | I152: 1.090805104e-06 | K152: 149 | L152: Cazaquistão | M152: 538.873 | N152: 3.12027427e-05 | O152: 524.8902
A153: 150 | B153: Argentina | C153: 237.3284 | D153: 3.357329637e-05 | F153: 150 | G153: Kosovo | H153: 8.3722 | I153: 8.207162943e-07 | K153: 150 | L153: Barém | M153: 473.8092 | N153: 2.743530768e-05 | O153: 465.1108
A154: 151 | B154: Curaçau | C154: 224.0074 | D154: 3.168886164e-05 | F154: 151 | G154: Cazaquistão | H154: 6.9914 | I154: 6.853581974e-07 | K154: 151 | L154: São Bartolomeu | M154: 472.3088 | N154: 2.734842896e-05 | O154: 471.7428
A155: 152 | B155: Moldava, República de | C155: 201.388 | D155: 2.848904307e-05 | F155: 152 | G155: Líbia, Jamahira Árabe da | H155: 5.9518 | I155: 5.834475097e-07 | K155: 152 | L155: Mauritânia | M155: 471.8238 | N155: 2.732034567e-05 | O155: 468.6758
A156: 153 | B156: Haiti | C156: 195.7344 | D156: 2.768926526e-05 | F156: 153 | G156: Andorra | H156: 4.7264 | I156: 4.633230804e-07 | K156: 153 | L156: Gâmbia | M156: 455.249 | N156: 2.636060335e-05 | O156: 455.249
A157: 154 | B157: Ceuta e Melilha | C157: 191.5534 | D157: 2.709780654e-05 | F157: 154 | G157: São Cristovão e Nevis | H157: 4.4456 | I157: 4.357966076e-07 | K157: 154 | L157: Kosovo | M157: 426.8374 | N157: 2.471546648e-05 | O157: 410.093
A158: 155 | B158: Suriname | C158: 156.0968 | D158: 2.208199326e-05 | F158: 155 | G158: Afeganistão | H158: 4.3746 | I158: 4.288365664e-07 | K158: 155 | L158: São Martinho (parte holandesa) | M158: 349.244 | N158: 2.022252121e-05 | O158: 349.244
A159: 156 | B159: Nova Caledónia | C159: 140.1192 | D159: 1.98217467e-05 | F159: 156 | G159: Barém | H159: 4.3492 | I159: 4.263466362e-07 | K159: 156 | L159: Usbequistão | M159: 348.7024 | N159: 2.019116056e-05 | O159: -268.0328
A160: 157 | B160: Trindade e Tobago | C160: 140.025 | D160: 1.980842084e-05 | F160: 157 | G160: Nepal | H160: 2.446 | I160: 2.397783206e-07 | K160: 157 | L160: Zâmbia | M160: 336.52 | N160: 1.948575448e-05 | O160: -62.068
A161: 158 | B161: Zâmbia | C161: 137.226 | D161: 1.941246462e-05 | F161: 158 | G161: Liechtenstein | H161: 1.7982 | I161: 1.762752969e-07 | K161: 158 | L161: Libéria | M161: 333.6016 | N161: 1.931676831e-05 | O161: 255.9464
A162: 159 | B162: Polinésia Francesa | C162: 133.1554 | D162: 1.883662346e-05 | F162: 159 | G162: Lesoto | H162: 1.7136 | I162: 1.679820647e-07 | K162: 159 | L162: Comores | M162: 311.607 | N162: 1.80431995e-05 | O162: 311.607
A163: 160 | B163: Madagáscar | C163: 129.6574 | D163: 1.834178428e-05 | F163: 160 | G163: Mauritânia | H163: 1.574 | I163: 1.542972513e-07 | K163: 160 | L163: Somália | M163: 292.8146 | N163: 1.695504993e-05 | O163: 292.8146
A164: 161 | B164: Maldivas | C164: 127.1794 | D164: 1.799123783e-05 | F164: 161 | G164: Fiji, Ilhas | H164: 1.3818 | I164: 1.354561257e-07 | K164: 161 | L164: Jamaica | M164: 287.927 | N164: 1.667203979e-05 | O164: 265.6722
A165: 162 | B165: Niger | C165: 113.05 | D165: 1.599244404e-05 | F165: 162 | G165: Bermudas | H165: 0.6914 | I165: 6.777707722e-08 | K165: 162 | L165: Antígua e Barbuda | M165: 264.426 | N165: 1.531124484e-05 | O165: 264.3868
A166: 163 | B166: Liechtenstein | C166: 106.2456 | D166: 1.502987008e-05 | F166: 163 | G166: Território Palestiniano Ocupado | H166: 0.4852 | I166: 4.756354913e-08 | K166: 163 | L166: Curaçau | M166: 236.9706 | N166: 1.372147548e-05 | O166: 211.0442
A167: 164 | B167: Centro-Africana, República | C167: 83.0308 | D167: 1.174582417e-05 | F167: 164 | G167: Montenegro | H167: 0.3086 | I167: 3.025167201e-08 | K167: 164 | L167: Haiti | M167: 195.7358 | N167: 1.133382783e-05 | O167: 195.733
A168: 165 | B168: Jibuti | C168: 77.3086 | D168: 1.093634196e-05 | F168: 165 | G168: São Bartolomeu | H168: 0.283 | I168: 2.774213603e-08 | K168: 165 | L168: Ceuta e Melilha | M168: 191.5534 | N168: 1.109165138e-05 | O168: 191.5534
A169: 166 | B169: Nepal | C169: 76.6542 | D169: 1.084376828e-05 | F169: 166 | G169: Gabão | H169: 0.25 | I169: 2.450718731e-08 | K169: 166 | L169: Nova Caledónia | M169: 140.1192 | N169: 8.113420685e-06 | O169: 140.1192
A170: 167 | B170: Zimbabwe | C170: 63.2826 | D170: 8.952175488e-06 | F170: 167 | G170: Ruanda | H170: 0.2374 | I170: 2.327202507e-08 | K170: 167 | L170: Trindade e Tobago | M170: 140.0354 | N170: 8.108568354e-06 | O170: 140.0146
A171: 168 | B171: Caimão, Ilhas | C171: 51.4562 | D171: 7.279172037e-06 | F171: 168 | G171: Barbados | H171: 0.1378 | I171: 1.350836164e-08 | K171: 168 | L171: Polinésia Francesa | M171: 133.1554 | N171: 7.710190871e-06 | O171: 133.1554
A172: 169 | B172: Bósnia-Herzegovina | C172: 50.6168 | D172: 7.16042761e-06 | F172: 169 | G172: Oceano Indico, Território Britânico do | H172: 0.128 | I172: 1.25476799e-08 | K172: 169 | L172: Maldivas | M172: 127.183 | N172: 7.364366789e-06 | O172: 127.1758
A173: 170 | B173: Montenegro | C173: 46.101 | D173: 6.521606922e-06 | F173: 170 | G173: Niger | H173: 0.1252 | I173: 1.22731994e-08 | K173: 170 | L173: Niger | M173: 113.1752 | N173: 6.553263283e-06 | O173: 112.9248
A174: 171 | B174: Bahamas | C174: 42.9652 | D174: 6.078005807e-06 | F174: 171 | G174: Burundi | H174: 0.114 | I174: 1.117527741e-08 | K174: 171 | L174: Liechtenstein | M174: 108.0438 | N174: 6.256136217e-06 | O174: 104.4474
A175: 172 | B175: Usbequistão | C175: 40.3348 | D175: 5.705900325e-06 | F175: 172 | G175: Antígua e Barbuda | H175: 0.0196 | I175: 1.921363485e-09 | K175: 172 | L175: Centro-Africana, República | M175: 83.0308 | N175: 4.807790868e-06 | O175: 83.0308
A176: 173 | B176: Mongólia | C176: 30.8452 | D176: 4.363468684e-06 | F176: 173 | G176: São Vicente e Granadinas | H176: 0.0144 | I176: 1.411613989e-09 | K176: 173 | L176: Nepal | M176: 79.1002 | N176: 4.580194569e-06 | O176: 74.2082
A177: 174 | B177: Afeganistão | C177: 18.9718 | D177: 2.683816451e-06 | F177: 174 | G177: Mongólia | H177: 0.0112 | I177: 1.097921991e-09 | K177: 174 | L177: Bósnia-Herzegovina | M177: 78.515 | N177: 4.546309321e-06 | O177: 22.7186
A178: 175 | B178: Guiana | C178: 18.2434 | D178: 2.580774467e-06 | F178: 175 | G178: Trindade e Tobago | H178: 0.0104 | I178: 1.019498992e-09 | K178: 175 | L178: Jibuti | M178: 77.3086 | N178: 4.476454293e-06 | O178: 77.3086
A179: 176 | B179: Turcas e Caicos, Ilhas | C179: 18.0666 | D179: 2.555763728e-06 | F179: 176 | G179: Virgens Britânicas, Ilhas | H179: 0.007 | I179: 6.862012446e-10 | K179: 176 | L179: Tajiquistão | M179: 59.4122 | N179: 3.440186444e-06 | O179: -59.4122
A180: 177 | B180: Laos, República Democrática Popular do | C180: 14.3872 | D180: 2.035263077e-06 | F180: 177 | G180: Santa Lúcia | H180: 0.004 | I180: 3.921149969e-10 | K180: 177 | L180: Caimão, Ilhas | M180: 51.4562 | N180: 2.979504575e-06 | O180: 51.4562
A181: 178 | B181: Barbados | C181: 14.032 | D181: 1.985015256e-06 | F181: 178 | G181: Maldivas | H181: 0.0036 | I181: 3.529034972e-10 | K181: 178 | L181: Montenegro | M181: 46.4096 | N181: 2.687287742e-06 | O181: 45.7924
A182: 179 | B182: Turquemenistão | C182: 11.8398 | D182: 1.674899061e-06 | F182: 179 | G182: Haiti | H182: 0.0014 | I182: 1.372402489e-10 | K182: 179 | L182: Bahamas | M182: 42.9652 | N182: 2.487844224e-06 | O182: 42.9652
A183: 180 | B183: Virgens Britânicas, Ilhas | C183: 9.9272 | D183: 1.40433605e-06 | F183: 180 | G183: Anguila | H183: 0 | I183: 0 | K183: 180 | L183: São Marino | M183: 32.7902 | N183: 1.898674036e-06 | O183: -32.7502
A184: 181 | B184: Fiji, Ilhas | C184: 8.1268 | D184: 1.149645238e-06 | F184: 181 | G184: Antárctica | H184: 0 | I184: 0 | K184: 181 | L184: Mongólia | M184: 30.8564 | N184: 1.786699853e-06 | O184: 30.834
A185: 182 | B185: Santa Lúcia | C185: 7.138 | D185: 1.00976617e-06 | F185: 182 | G185: Antilhas Holandesas | H185: 0 | I185: 0 | K185: 182 | L185: Botswana | M185: 30.1228 | N185: 1.744221696e-06 | O185: -29.934
A186: 183 | B186: Brunei Darussalam | C186: 6.98 | D186: 9.874149436e-07 | F186: 183 | G186: Bahamas | H186: 0 | I186: 0 | K186: 183 | L186: Papuásia-Nova Guiné | M186: 28.7226 | N186: 1.663144929e-06 | O186: -22.9514
A187: 184 | B187: Malavi | C187: 6.6034 | D187: 9.341398049e-07 | F187: 184 | G187: Bonaire, Santo Eustáquio e Saba | H187: 0 | I187: 0 | K187: 184 | L187: Afeganistão | M187: 23.3464 | N187: 1.351843036e-06 | O187: 14.5972
A188: 185 | B188: Guam | C188: 6.5774 | D188: 9.30461755e-07 | F188: 185 | G188: Bouvet, Ilha | H188: 0 | I188: 0 | K188: 185 | L188: Quirguizistão | M188: 22.1324 | N188: 1.281547939e-06 | O188: -12.8192
A189: 186 | B189: São Vicente e Granadinas | C189: 5.6654 | D189: 8.014470804e-07 | F189: 186 | G189: Brunei Darussalam | H189: 0 | I189: 0 | K189: 186 | L189: Turcas e Caicos, Ilhas | M189: 18.0666 | N189: 1.046123059e-06 | O189: 18.0666
A190: 187 | B190: Quirguizistão | C190: 4.6566 | D190: 6.58738743e-07 | F190: 187 | G190: Butão | H190: 0 | I190: 0 | K190: 187 | L190: Barbados | M190: 14.1698 | N190: 8.204839053e-07 | O190: 13.8942
A191: 188 | B191: Menores distantes dos Estados Unidos, lhas | C191: 4.5542 | D191: 6.442528848e-07 | F191: 188 | G191: Caimão, Ilhas | H191: 0 | I191: 0 | K191: 188 | L191: Virgens Britânicas, Ilhas | M191: 9.9342 | N191: 5.752269765e-07 | O191: 9.9202
A192: 189 | B192: Sudão do Sul | C192: 3.771 | D192: 5.334587037e-07 | F192: 189 | G192: Centro-Africana, República | H192: 0 | I192: 0 | K192: 189 | L192: Fiji, Ilhas | M192: 9.5086 | N192: 5.505831601e-07 | O192: 6.745
A193: 190 | B193: Bonaire, Santo Eustáquio e Saba | C193: 3.1276 | D193: 4.424411142e-07 | F193: 190 | G193: Ceuta | H193: 0 | I193: 0 | K193: 190 | L193: Santa Lúcia | M193: 7.142 | N193: 4.135482541e-07 | O193: 7.134
A194: 191 | B194: Marianas do Norte, Ilhas | C194: 2.9244 | D194: 4.136957394e-07 | F194: 191 | G194: Ceuta e Melilha | H194: 0 | I194: 0 | K194: 191 | L194: Brunei Darussalam | M194: 6.98 | N194: 4.041678541e-07 | O194: 6.98
A195: 192 | B195: Papuásia-Nova Guiné | C195: 2.8856 | D195: 4.082069572e-07 | F195: 192 | G195: Christmas, Ilha | H195: 0 | I195: 0 | K195: 192 | L195: Guam | M195: 6.5774 | N195: 3.808558228e-07 | O195: 6.5774
A196: 193 | B196: Belize | C196: 2.1806 | D196: 3.084752186e-07 | F196: 193 | G196: Cocos (Keeling), Ilhas | H196: 0 | I196: 0 | K196: 193 | L196: São Vicente e Granadinas | M196: 5.6798 | N196: 3.288814581e-07 | O196: 5.651
A197: 194 | B197: Melilha | C197: 1.3464 | D197: 1.904664011e-07 | F197: 194 | G197: Comores | H197: 0 | I197: 0 | K197: 194 | L197: Menores distantes dos Estados Unidos, lhas | M197: 4.5542 | N197: 2.637050489e-07 | O197: 4.5542
A198: 195 | B198: Granada | C198: 0.6866 | D198: 9.712881092e-08 | F198: 195 | G198: Cook, Ilhas | H198: 0 | I198: 0 | K198: 195 | L198: São Cristovão e Nevis | M198: 4.4456 | N198: 2.574167066e-07 | O198: -4.4456
A199: 196 | B199: Virgens dos Estados Unidos, Ilhas | C199: 0.295 | D199: 4.173172039e-08 | F199: 196 | G199: Coreia, República Popular Democrática da | H199: 0 | I199: 0 | K199: 196 | L199: Sudão do Sul | M199: 3.771 | N199: 2.183548679e-07 | O199: 3.771
A200: 197 | B200: Botswana | C200: 0.0944 | D200: 1.335415053e-08 | F200: 197 | G200: Domínica | H200: 0 | I200: 0 | K200: 197 | L200: Bonaire, Santo Eustáquio e Saba | M200: 3.1276 | N200: 1.810996247e-07 | O200: 3.1276
... 58 more rows

Sheet 2A
A1: Parceiros comerciais de Portugal - União Europeia vs. Países Terceiros (média 2018-2022 em milhões de euros) produtos agrícolas e agroalimentares, do mar e da floresta
A2: Exportações | F2: Importações | K2: Trocas comerciais (total e saldo)
A3: P | B3: Grupo de Países | C3: média quinquénio | D3: % do Total | F3: P | G3: Grupo de Países | H3: média quinquénio | I3: % do Total | K3: P | L3: Grupo de Países | M3: média quinquénio | N3: % do Total | O3: Saldo (exp-imp)
A4: 1 | B4: União Europeia | C4: 8689.586002 | D4: 0.6705040416 | F4: 1 | G4: União Europeia | H4: 11670.31785 | I4: 0.7804427503 | K4: 1 | L4: União Europeia | M4: 20359.90385 | N4: 0.7293995292 | O4: -2980.731848
A5: 2 | B5: Países Terceiros | C5: 4270.778311 | D5: 0.3295409146 | F5: 2 | G5: Países Terceiros | H5: 3283.140101 | I5: 0.2195572497 | K5: 2 | L5: Países Terceiros | M5: 7553.918411 | N5: 0.2706213434 | O5: 987.6382102
B6: Outros | C6: 0 | D6: -4.495620481e-05 | G6: Outros | H6: 0 | I6: 0 | L6: Outros | M6: 0 | N6: -2.087262559e-05 | O6: 0
B7: Total | C7: 12959.78169 | D7: 1 | G7: Total | H7: 14953.45795 | I7: 1 | L7: Total | M7: 27913.23964 | N7: 1 | O7: -1993.67626
F27: valores em milhões de euros
A28: Nota: Outros = Países não determinados, abastecimentos de bordo, etc.
A29: Fonte: GPP a partir de dados INE/Comércio Internacional (2022 provisórios) | M29: 2023-08-10

Sheet 3
A1: Principais produtos agrícolas e agroalimentares, do mar e da floresta transacionados entre Portugal e França em 2018-2022 (NC a 2 e 4 dígitos) em milhões de euros
AC4: P | AE4: Cód.NC | AF4: Descritivo | AG4: Média export quinquénio | AH4: % do total | AI4: % acumulada | AN4: P | AO4: NC | AP4: Exportações | AQ4: 2018 | AR4: 2019 | AS4: 2020 | AT4: 2021 | AU4: 2022 | AV4: média quinquénio
AC5: 1 | AD5: º | AE5: 48 | AF5: Papel e cartão | AG5: 259.147423 | AH5: 0.1907056931 | AN5: 1º | AO5: 48 | AP5: Papel e cartão | AQ5: 232.948439 | AR5: 249.721643 | AS5: 212.525868 | AT5: 229.305904 | AU5: 371.235261 | AV5: 259.147423
AC6: 2 | AD6: º | AE6: 45 | AF6: Cortiça e suas obras | AG6: 198.4557184 | AH6: 0.1460428774 | AN6: 2º | AO6: 45 | AP6: Cortiça e suas obras | AQ6: 191.801381 | AR6: 190.653879 | AS6: 179.772357 | AT6: 199.48326 | AU6: 230.567715 | AV6: 198.4557184
AC7: 3 | AD7: º | AE7: 22 | AF7: Bebidas, líquidos alcoólicos e vinagres | AG7: 145.5168656 | AH7: 0.1070853586 | AI7: 0.4438339292 | AN7: 3º | AO7: 22 | AP7: Bebidas, líquidos alcoólicos e vinagres | AQ7: 147.102716 | AR7: 146.949485 | AS7: 136.81316 | AT7: 146.534763 | AU7: 150.184204 | AV7: 145.5168656
AC8: 4 | AD8: º | AE8: 24 | AF8: Tabaco | AG8: 113.6585548 | AH8: 0.08364093775 | AO8: - | AP8: Outros | AQ8: 582.958373 | AR8: 652.386494 | AS8: 760.518815 | AT8: 848.448494 | AU8: 934.521105 | AV8: 755.7666562
AC9: 5 | AD9: º | AE9: 08 | AF9: Frutas | AG9: 113.3780518 | AH9: 0.08343451656 | AP9: Total | AQ9: 1154.810909 | AR9: 1239.711501 | AS9: 1289.6302 | AT9: 1423.772421 | AU9: 1686.508285 | AV9: 1358.886663
AC10: 6 | AD10: º | AE10: 44 | AF10: Madeira e suas obras | AG10: 76.9128302 | AH10: 0.05659988598
AC11: 7 | AD11: º | AE11: 16p | AF11: Preparações e conservas de peixes ou crustáceos (NC 1604-05) (p) | AG11: 64.6502422 | AH11: 0.04757588984
AC12: 8 | AD12: º | AE12: 20 | AF12: Preparações de produtos vegetais | AG12: 62.6144112 | AH12: 0.04607772885
AC13: 9 | AD13: º | AE13: 03 | AF13: Peixes e crustáceos | AG13: 55.2565968 | AH13: 0.04066313865
AC14: 10 | AD14: º | AE14: 07 | AF14: Produtos hortícolas | AG14: 40.6988994 | AH14: 0.02995017944 | AI14: 0.8317762062
AE15: - | AF15: Outros | AG15: 228.5970698 | AH15: 0.1682237938
AE16: Total | AG16: 1358.886663 | AH16: 1
AC38: P | AE38: Cód.NC | AF38: Descritivo | AG38: Média import quinquénio | AH38: % do total | AI38: % acumulada | AN38: P | AO38: NC | AP38: Importações | AQ38: 2018 | AR38: 2019 | AS38: 2020 | AT38: 2021 | AU38: 2022 | AV38: média quinquénio
AC39: 1 | AD39: º | AE39: 10 | AF39: Cereais | AG39: 189.943039 | AH39: 0.1926116857 | AN39: 1º | AO39: 10 | AP39: Cereais | AQ39: 188.338151 | AR39: 148.060198 | AS39: 167.227697 | AT39: 184.7552 | AU39: 261.333949 | AV39: 189.943039
AC40: 2 | AD40: º | AE40: 19a | AF40: Preparações à base de cereais (exc. NC 19022010) (a) | AG40: 75.8643822 | AH40: 0.0769302556 | AN40: 2º | AO40: 19a | AP40: Preparações à base de cereais (exc. NC 19022010) (a) | AQ40: 71.920198 | AR40: 73.447258 | AS40: 66.838539 | AT40: 74.473247 | AU40: 92.642669 | AV40: 75.8643822
AC41: 3 | AD41: º | AE41: 48 | AF41: Papel e cartão | AG41: 68.0149316 | AH41: 0.06897052241 | AI41: 0.3385124637 | AN41: 3º | AO41: 48 | AP41: Papel e cartão | AQ41: 71.257057 | AR41: 67.008942 | AS41: 57.722766 | AT41: 67.902355 | AU41: 76.183538 | AV41: 68.0149316
AC42: 4 | AD42: º | AE42: 09 | AF42: Café, chá, mate e especiarias | AG42: 67.7196828 | AH42: 0.06867112545 | AO42: - | AP42: Outros | AQ42: 592.37162 | AR42: 602.925519 | AS42: 567.952824 | AT42: 671.315716 | AU42: 827.047251 | AV42: 652.322586
AC43: 5 | AD43: º | AE43: 04 | AF43: Leite e laticínios; ovos; mel, etc. | AG43: 63.7679916 | AH43: 0.06466391409 | AP43: Total | AQ43: 923.887026 | AR43: 891.441917 | AS43: 859.741826 | AT43: 998.446518 | AU43: 1257.207407 | AV43: 986.1449388
AC44: 6 | AD44: º | AE44: 44 | AF44: Madeira e suas obras | AG44: 61.9844752 | AH44: 0.06285533978
AC45: 7 | AD45: º | AE45: 23a | AF45: Resíduos indústrias alimentares; alimentos p/ animais (exc. NC 230120) (a) | AG45: 55.0991906 | AH45: 0.05587331885
AC46: 8 | AD46: º | AE46: 07 | AF46: Produtos hortícolas | AG46: 53.5373726 | AH46: 0.05428955775
AC47: 9 | AD47: º | AE47: 02 | AF47: Carnes e miudezas | AG47: 45.5374416 | AH47: 0.04617722995
AC48: 10 | AD48: º | AE48: 22 | AF48: Bebidas, líquidos alcoólicos e vinagres | AG48: 41.8526352 | AH48: 0.04244065305 | AI48: 0.7334836026
AE49: - | AF49: Outros | AG49: 262.8237964 | AH49: 0.2665163974
AE50: Total | AG50: 986.1449388 | AH50: 1
AC62: DESAGREGAÇÃO A 4 DÍGITOS | AN62: DESAGREGAÇÃO A 4 DÍGITOS
AC64: P | AE64: Cód.NC | AF64: Descritivo | AG64: Média export quinquénio | AH64: % do total | AI64: % acumulada | AN64: P | AO64: NC | AP64: Exportações | AQ64: 2018 | AR64: 2019 | AS64: 2020 | AT64: 2021 | AU64: 2022 | AV64: média quinquénio
AC65: 1 | AD65: º | AE65: 4802 | AF65: Papel e cartão p/ escrita, etc. | AG65: 143.9489626 | AH65: 0.1059315442 | AN65: 1º | AO65: 4802 | AP65: Papel e cartão p/ escrita, etc. | AQ65: 142.036211 | AR65: 144.233828 | AS65: 109.945167 | AT65: 114.176749 | AU65: 209.352858 | AV65: 143.9489626
AC66: 2 | AD66: º | AE66: 2402 | AF66: Charutos, cigarrilhas e cigarros | AG66: 113.6307278 | AH66: 0.08362045995 | AN66: 2º | AO66: 2402 | AP66: Charutos, cigarrilhas e cigarros | AQ66: 37.824878 | AR66: 64.678844 | AS66: 173.339953 | AT66: 153.70262 | AU66: 138.607344 | AV66: 113.6307278
AC67: 3 | AD67: º | AE67: 2204 | AF67: Vinhos de uvas frescas | AG67: 113.0328316 | AH67: 0.0831804702 | AI67: 0.2727324743 | AN67: 3º | AO67: 2204 | AP67: Vinhos de uvas frescas | AQ67: 115.112974 | AR67: 114.137164 | AS67: 110.831074 | AT67: 115.202619 | AU67: 109.880327 | AV67: 113.0328316
AC68: 4 | AD68: º | AE68: 4503 | AF68: Obras de cortiça natural | AG68: 98.4313152 | AH68: 0.07243526474 | AN68: - | AO68: - | AP68: Outros | AQ68: 859.836846 | AR68: 916.661665 | AS68: 895.514006 | AT68: 1040.690433 | AU68: 1228.667756 | AV68: 988.2741412
AC69: 5 | AD69: º | AE69: 4504 | AF69: Cortiça aglomerada e suas obras | AG69: 97.314031 | AH69: 0.07161305916 | AP69: Total | AQ69: 1154.810909 | AR69: 1239.711501 | AS69: 1289.6302 | AT69: 1423.772421 | AU69: 1686.508285 | AV69: 1358.886663
AC70: 6 | AD70: º | AE70: 1604 | AF70: Preparações e conservas de peixes, etc. | AG70: 62.2354152 | AH70: 0.045798827
AC71: 7 | AD71: º | AE71: 4819 | AF71: Embalagens de papel, cartão etc. | AG71: 37.72766 | AH71: 0.02776365463
AC72: 8 | AD72: º | AE72: 0810 | AF72: Outras frutas frescas | AG72: 36.9359478 | AH72: 0.02718103636
AC73: 9 | AD73: º | AE73: 1905 | AF73: Produtos de padaria, pastelaria, etc. | AG73: 34.1301104 | AH73: 0.02511623031
AC74: 10 | AD74: º | AE74: 4818 | AF74: Papel para toucador, etc., pasta de celulose, etc. | AG74: 32.283316 | AH74: 0.02375718069 | AI74: 0.5663977272
AE75: - | AF75: Outros | AG75: 589.2163456 | AH75: 0.4336022728
AE76: Total | AG76: 1358.886663 | AH76: 1
AC89: DESAGREGAÇÃO A 4 DÍGITOS | AN89: DESAGREGAÇÃO A 4 DÍGITOS
G91: média 2018-2022 em milhões de euros | I91: Cód. NC | J91: Descritivo | K91: Export | L91: Import | M91: Saldo | AC91: P | AE91: Cód.NC | AF91: Descritivo | AG91: Média import quinquénio | AH91: % do total | AI91: % acumulada | AN91: P | AO91: NC | AP91: Importações | AQ91: 2018 | AR91: 2019 | AS91: 2020 | AT91: 2021 | AU91: 2022 | AV91: média quinquénio
I92: 4802 | J92: Papel e cartão p/ escrita, etc. | K92: 143.9489626 | L92: 8.4316992 | M92: 135.5172634 | AC92: 1 | AD92: º | AE92: 1001 | AF92: Trigo e mistura trigo/centeio | AG92: 152.0904194 | AH92: 0.1542272474 | AN92: 1º | AO92: 1001 | AP92: Trigo e mistura trigo/centeio | AQ92: 147.792246 | AR92: 124.504602 | AS92: 135.586575 | AT92: 137.447582 | AU92: 215.121092 | AV92: 152.0904194
I93: 2402 | J93: Charutos, cigarrilhas e cigarros | K93: 113.6307278 | L93: 0 | M93: 113.6307278 | AC93: 2 | AD93: º | AE93: 0901 | AF93: Café | AG93: 59.9585618 | AH93: 0.06080096286 | AN93: 2º | AO93: 0901 | AP93: Café | AQ93: 44.127637 | AR93: 50.434652 | AS93: 58.313269 | AT93: 76.391956 | AU93: 70.525295 | AV93: 59.9585618
I94: 4503 | J94: Obras de cortiça natural | K94: 98.4313152 | L94: 1.2832198 | M94: 97.1480954 | AC94: 3 | AD94: º | AE94: 2309 | AF94: Preparações p/ alimentação animal | AG94: 41.6578396 | AH94: 0.04224312062 | AI94: 0.2572713308 | AN94: 3º | AO94: 2309 | AP94: Preparações p/ alimentação animal | AQ94: 30.719925 | AR94: 35.950886 | AS94: 38.521492 | AT94: 47.771977 | AU94: 55.324918 | AV94: 41.6578396
I95: 4504 | J95: Cortiça aglomerada e suas obras | K95: 97.314031 | L95: 3.0144024 | M95: 94.2996286 | AC95: 4 | AD95: º | AE95: 0701 | AF95: Batatas, frescas ou refrigeradas | AG95: 41.3799026 | AH95: 0.04196127868 | AN95: - | AO95: - | AP95: Outros | AQ95: 701.247218 | AR95: 680.551777 | AS95: 627.32049 | AT95: 736.835003 | AU95: 916.236102 | AV95: 732.438118
I96: 2204 | J96: Vinhos de uvas frescas | K96: 113.0328316 | L96: 24.1633212 | M96: 88.8695104 | AC96: 5 | AD96: º | AE96: 0406 | AF96: Queijos e requeijão | AG96: 35.4665684 | AH96: 0.03596486379 | AP96: Total | AQ96: 923.887026 | AR96: 891.441917 | AS96: 859.741826 | AT96: 998.446518 | AU96: 1257.207407 | AV96: 986.1449388
I97: 1604 | J97: Preparações e conservas de peixes, etc. | K97: 62.2354152 | L97: 2.9775282 | M97: 59.257887 | AC97: 6 | AD97: º | AE97: 1905 | AF97: Produtos de padaria, pastelaria, etc. | AG97: 34.9379706 | AH97: 0.03542883934
I98: 0810 | J98: Outras frutas frescas | K98: 36.9359478 | L98: 1.652091 | M98: 35.2838568 | AC98: 7 | AD98: º | AE98: 2204 | AF98: Vinhos de uvas frescas | AG98: 24.1633212 | AH98: 0.02450280912
I99: 4819 | J99: Embalagens de papel, cartão etc. | K99: 37.72766 | L99: 5.4275844 | M99: 32.3000756 | AC99: 8 | AD99: º | AE99: 1005 | AF99: Milho | AG99: 21.1208494 | AH99: 0.02141759144
I100: 4818 | J100: Papel para toucador, etc., pasta de celulose, etc. | K100: 32.283316 | L100: 1.9929792 | M100: 30.2903368 | AC100: 9 | AD100: º | AE100: 2106 | AF100: Outras preparações alimentícias | AG100: 20.9310656 | AH100: 0.02122514123
I101: 0805 | J101: Citrinos, frescos ou secos | K101: 29.1086992 | L101: 0.826185 | M101: 28.2825142 | AC101: 10 | AD101: º | AE101: 1806 | AF101: Chocolate e outras preparações com cacau | AG101: 20.6763516 | AH101: 0.02096684857 | AI101: 0.458738703
I102: - | J102: Outros | K102: 564.8945768 | L102: 511.0595944 | M102: 53.8349824 | AE102: - | AF102: Outros | AG102: 533.7620886 | AH102: 0.541261297
I103: 0403 | J103: Leitelho, leite coalhado, iogurte, etc. | K103: 0.3810112 | L103: 14.9637778 | M103: -14.5827666 | AE103: Total | AG103: 986.1449388 | AH103: 1
I104: 4410 | J104: Painéis de partículas de madeira, etc. | K104: 2.0809658 | L104: 17.0709978 | M104: -14.990032
I105: 2106 | J105: Outras preparações alimentícias | K105: 4.5685622 | L105: 20.9310656 | M105: -16.3625034
I106: 1005 | J106: Milho | K106: 2.0381636 | L106: 21.1208494 | M106: -19.0826858
I107: 1806 | J107: Chocolate e outras preparações com cacau | K107: 0.9750446 | L107: 20.6763516 | M107: -19.701307
I108: 0406 | J108: Queijos e requeijão | K108: 4.2884034 | L108: 35.4665684 | M108: -31.178165
I109: 0701 | J109: Batatas, frescas ou refrigeradas | K109: 4.3108856 | L109: 41.3799026 | M109: -37.069017
I110: 2309 | J110: Preparações p/ alimentação animal | K110: 1.000196 | L110: 41.6578396 | M110: -40.6576436
I111: 0901 | J111: Café | K111: 9.6997256 | L111: 59.9585618 | M111: -50.2588362
I112: 1001 | J112: Trigo e mistura trigo/centeio | K112: 0.000222 | L112: 152.0904194 | M112: -152.0901974
I113: Total | K113: 1358.886663 | L113: 986.1449388 | M113: 372.7417244
A116: Fonte: GPP a partir de dados INE/Comércio Internacional (2022 definitivos) | Y116: 2023-11-03T15:23:15.730

Sheet 3A
A1: Principais produtos agrícolas e agroalimentares transacionados entre Portugal e França em 2018-2022 (NC a 2 e 4 dígitos) em milhões de euros
AC4: P | AE4: Cód.NC | AF4: Descritivo | AG4: Média export quinquénio | AH4: % do total | AI4: % acumulada | AN4: P | AO4: NC | AP4: Exportações | AQ4: 2018 | AR4: 2019 | AS4: 2020 | AT4: 2021 | AU4: 2022 | AV4: média quinquénio
AC5: 1 | AD5: º | AE5: 22 | AF5: Bebidas, líquidos alcoólicos e vinagres | AG5: 145.5168656 | AH5: 0.2153231941 | AN5: 1º | AO5: 22 | AP5: Bebidas, líquidos alcoólicos e vinagres | AQ5: 147.102716 | AR5: 146.949485 | AS5: 136.81316 | AT5: 146.534763 | AU5: 150.184204 | AV5: 145.5168656
AC6: 2 | AD6: º | AE6: 24 | AF6: Tabaco | AG6: 113.6585548 | AH6: 0.1681820383 | AN6: 2º | AO6: 24 | AP6: Tabaco | AQ6: 37.82494 | AR6: 64.678844 | AS6: 173.409598 | AT6: 153.771967 | AU6: 138.607425 | AV6: 113.6585548
AC7: 3 | AD7: º | AE7: 08 | AF7: Frutas | AG7: 113.3780518 | AH7: 0.1677669743 | AI7: 0.5512722067 | AN7: 3º | AO7: 08 | AP7: Frutas | AQ7: 74.40839 | AR7: 99.964362 | AS7: 112.559397 | AT7: 134.375299 | AU7: 145.582811 | AV7: 113.3780518
AC8: 4 | AD8: º | AE8: 20 | AF8: Preparações de produtos vegetais | AG8: 62.6144112 | AH8: 0.09265135668 | AO8: - | AP8: Outros | AQ8: 264.346528 | AR8: 281.016803 | AS8: 276.725565 | AT8: 321.53808 | AU8: 372.639357 | AV8: 303.2532666
AC9: 5 | AD9: º | AE9: 07 | AF9: Produtos hortícolas | AG9: 40.6988994 | AH9: 0.06022268951 | AP9: Total | AQ9: 523.682574 | AR9: 592.609494 | AS9: 699.50772 | AT9: 756.220109 | AU9: 807.013797 | AV9: 675.8067388
AC10: 6 | AD10: º | AE10: 19a | AF10: Preparações à base de cereais (exc. NC 19022010) (a) | AG10: 40.5576998 | AH10: 0.06001375463
AC11: 7 | AD11: º | AE11: 15 | AF11: Gorduras e óleos animais ou vegetais | AG11: 26.6868368 | AH11: 0.03948885867
AC12: 8 | AD12: º | AE12: 04 | AF12: Leite e laticínios; ovos; mel, etc. | AG12: 24.639464 | AH12: 0.03645933458
AC13: 9 | AD13: º | AE13: 02 | AF13: Carnes e miudezas | AG13: 21.772366 | AH13: 0.03221685247
AC14: 10 | AD14: º | AE14: 21 | AF14: Preparações alimentícias diversas | AG14: 18.3373086 | AH14: 0.02713395346 | AI14: 0.8994590067
AE15: - | AF15: Outros | AG15: 67.9462808 | AH15: 0.1005409933
AE16: Total | AG16: 675.8067388 | AH16: 1
AC38: P | AE38: Cód.NC | AF38: Descritivo | AG38: Média import quinquénio | AH38: % do total | AI38: % acumulada | AN38: P | AO38: NC | AP38: Importações | AQ38: 2018 | AR38: 2019 | AS38: 2020 | AT38: 2021 | AU38: 2022 | AV38: média quinquénio
AC39: 1 | AD39: º | AE39: 10 | AF39: Cereais | AG39: 189.943039 | AH39: 0.2365162357 | AN39: 1º | AO39: 10 | AP39: Cereais | AQ39: 188.338151 | AR39: 148.060198 | AS39: 167.227697 | AT39: 184.7552 | AU39: 261.333949 | AV39: 189.943039
AC40: 2 | AD40: º | AE40: 19a | AF40: Preparações à base de cereais (exc. NC 19022010) (a) | AG40: 75.8643822 | AH40: 0.09446599462 | AN40: 2º | AO40: 19a | AP40: Preparações à base de cereais (exc. NC 19022010) (a) | AQ40: 71.920198 | AR40: 73.447258 | AS40: 66.838539 | AT40: 74.473247 | AU40: 92.642669 | AV40: 75.8643822
AC41: 3 | AD41: º | AE41: 09 | AF41: Café, chá, mate e especiarias | AG41: 67.7196828 | AH41: 0.0843242508 | AI41: 0.4153064811 | AN41: 3º | AO41: 09 | AP41: Café, chá, mate e especiarias | AQ41: 49.976205 | AR41: 58.258963 | AS41: 67.090312 | AT41: 85.529785 | AU41: 77.743149 | AV41: 67.7196828
AC42: 4 | AD42: º | AE42: 04 | AF42: Leite e laticínios; ovos; mel, etc. | AG42: 63.7679916 | AH42: 0.07940362232 | AO42: - | AP42: Outros | AQ42: 421.417944 | AR42: 442.505251 | AS42: 405.088027 | AT42: 474.191156 | AU42: 604.595513 | AV42: 469.5595782
AC43: 5 | AD43: º | AE43: 23a | AF43: Resíduos indústrias alimentares; alimentos p/ animais (exc. NC 230120) (a) | AG43: 55.0991906 | AH43: 0.06860926949 | AP43: Total | AQ43: 731.652498 | AR43: 722.27167 | AS43: 706.244575 | AT43: 818.949388 | AU43: 1036.31528 | AV43: 803.0866822
AC44: 6 | AD44: º | AE44: 07 | AF44: Produtos hortícolas | AG44: 53.5373726 | AH44: 0.06666450059
AC45: 7 | AD45: º | AE45: 02 | AF45: Carnes e miudezas | AG45: 45.5374416 | AH45: 0.05670302174
AC46: 8 | AD46: º | AE46: 22 | AF46: Bebidas, líquidos alcoólicos e vinagres | AG46: 41.8526352 | AH46: 0.05211471704
AC47: 9 | AD47: º | AE47: 21 | AF47: Preparações alimentícias diversas | AG47: 41.6420806 | AH47: 0.05185253538
AC48: 10 | AD48: º | AE48: 20 | AF48: Preparações de produtos vegetais | AG48: 37.1819606 | AH48: 0.0462988136 | AI48: 0.8369529612
AE49: - | AF49: Outros | AG49: 130.9409054 | AH49: 0.1630470388
AE50: Total | AG50: 803.0866822 | AH50: 1
AC62: DESAGREGAÇÃO A 4 DÍGITOS | AN62: DESAGREGAÇÃO A 4 DÍGITOS
AC64: P | AE64: Cód.NC | AF64: Descritivo | AG64: Média export quinquénio | AH64: % do total | AI64: % acumulada | AN64: P | AO64: NC | AP64: Exportações | AQ64: 2018 | AR64: 2019 | AS64: 2020 | AT64: 2021 | AU64: 2022 | AV64: média quinquénio
AC65: 1 | AD65: º | AE65: 2402 | AF65: Charutos, cigarrilhas e cigarros | AG65: 113.6307278 | AH65: 0.1681408623 | AN65: 1º | AO65: 2402 | AP65: Charutos, cigarrilhas e cigarros | AQ65: 37.824878 | AR65: 64.678844 | AS65: 173.339953 | AT65: 153.70262 | AU65: 138.607344 | AV65: 113.6307278
AC66: 2 | AD66: º | AE66: 2204 | AF66: Vinhos de uvas frescas | AG66: 113.0328316 | AH66: 0.1672561475 | AN66: 2º | AO66: 2204 | AP66: Vinhos de uvas frescas | AQ66: 115.112974 | AR66: 114.137164 | AS66: 110.831074 | AT66: 115.202619 | AU66: 109.880327 | AV66: 113.0328316
AC67: 3 | AD67: º | AE67: 0810 | AF67: Outras frutas frescas | AG67: 36.9359478 | AH67: 0.0546546012 | AI67: 0.390051611 | AN67: 3º | AO67: 0810 | AP67: Outras frutas frescas | AQ67: 19.492793 | AR67: 32.623533 | AS67: 30.824539 | AT67: 46.890044 | AU67: 54.84883 | AV67: 36.9359478
AC68: 4 | AD68: º | AE68: 1905 | AF68: Produtos de padaria, pastelaria, etc. | AG68: 34.1301104 | AH68: 0.0505027672 | AN68: - | AO68: - | AP68: Outros | AQ68: 351.251929 | AR68: 381.169953 | AS68: 384.512154 | AT68: 440.424826 | AU68: 503.677296 | AV68: 412.2072316
AC69: 5 | AD69: º | AE69: 0805 | AF69: Citrinos, frescos ou secos | AG69: 29.1086992 | AH69: 0.04307251989 | AP69: Total | AQ69: 523.682574 | AR69: 592.609494 | AS69: 699.50772 | AT69: 756.220109 | AU69: 807.013797 | AV69: 675.8067388
AC70: 6 | AD70: º | AE70: 2203 | AF70: Cervejas de malte | AG70: 21.2398784 | AH70: 0.03142892366
AC71: 7 | AD71: º | AE71: 0811 | AF71: Frutas não cozidas ou cozidas em água ou vapor, congeladas | AG71: 21.1228566 | AH71: 0.03125576498
AC72: 8 | AD72: º | AE72: 2008 | AF72: Frutas preparadas | AG72: 20.0522152 | AH72: 0.02967152301
AC73: 9 | AD73: º | AE73: 0808 | AF73: Maçãs, peras e marmelos, frescos | AG73: 16.4844694 | AH73: 0.02439228326
AC74: 10 | AD74: º | AE74: 0504 | AF74: Tripas de animais (excepto peixes) | AG74: 14.4869234 | AH74: 0.02143648852 | AI74: 0.6218118815
AE75: - | AF75: Outros | AG75: 255.582079 | AH75: 0.3781881185
AE76: Total | AG76: 675.8067388 | AH76: 1
AC89: DESAGREGAÇÃO A 4 DÍGITOS | AN89: DESAGREGAÇÃO A 4 DÍGITOS
G91: média 2018-2022 em milhões de euros | I91: Cód. NC | J91: Descritivo | K91: Export | L91: Import | M91: Saldo | AC91: P | AE91: Cód.NC | AF91: Descritivo | AG91: Média import quinquénio | AH91: % do total | AI91: % acumulada | AN91: P | AO91: NC | AP91: Importações | AQ91: 2018 | AR91: 2019 | AS91: 2020 | AT91: 2021 | AU91: 2022 | AV91: média quinquénio
I92: 2402 | J92: Charutos, cigarrilhas e cigarros | K92: 113.6307278 | L92: 0 | M92: 113.6307278 | AC92: 1 | AD92: º | AE92: 1001 | AF92: Trigo e mistura trigo/centeio | AG92: 152.0904194 | AH92: 0.1893823205 | AN92: 1º | AO92: 1001 | AP92: Trigo e mistura trigo/centeio | AQ92: 147.792246 | AR92: 124.504602 | AS92: 135.586575 | AT92: 137.447582 | AU92: 215.121092 | AV92: 152.0904194
I93: 2204 | J93: Vinhos de uvas frescas | K93: 113.0328316 | L93: 24.1633212 | M93: 88.8695104 | AC93: 2 | AD93: º | AE93: 0901 | AF93: Café | AG93: 59.9585618 | AH93: 0.0746601371 | AN93: 2º | AO93: 0901 | AP93: Café | AQ93: 44.127637 | AR93: 50.434652 | AS93: 58.313269 | AT93: 76.391956 | AU93: 70.525295 | AV93: 59.9585618
I94: 0810 | J94: Outras frutas frescas | K94: 36.9359478 | L94: 1.652091 | M94: 35.2838568 | AC94: 3 | AD94: º | AE94: 2309 | AF94: Preparações p/ alimentação animal | AG94: 41.6578396 | AH94: 0.05187215841 | AI94: 0.315914616 | AN94: 3º | AO94: 2309 | AP94: Preparações p/ alimentação animal | AQ94: 30.719925 | AR94: 35.950886 | AS94: 38.521492 | AT94: 47.771977 | AU94: 55.324918 | AV94: 41.6578396
I95: 0805 | J95: Citrinos, frescos ou secos | K95: 29.1086992 | L95: 0.826185 | M95: 28.2825142 | AC95: 4 | AD95: º | AE95: 0701 | AF95: Batatas, frescas ou refrigeradas | AG95: 41.3799026 | AH95: 0.05152607249 | AN95: - | AO95: - | AP95: Outros | AQ95: 509.01269 | AR95: 511.38153 | AS95: 473.823239 | AT95: 557.337873 | AU95: 695.343975 | AV95: 549.3798614
I96: 0811 | J96: Frutas não cozidas ou cozidas em água ou vapor, congeladas | K96: 21.1228566 | L96: 0.8382328 | M96: 20.2846238 | AC96: 5 | AD96: º | AE96: 0406 | AF96: Queijos e requeijão | AG96: 35.4665684 | AH96: 0.04416281478 | AP96: Total | AQ96: 731.652498 | AR96: 722.27167 | AS96: 706.244575 | AT96: 818.949388 | AU96: 1036.31528 | AV96: 803.0866822
I97: 2203 | J97: Cervejas de malte | K97: 21.2398784 | L97: 1.2235254 | M97: 20.016353 | AC97: 6 | AD97: º | AE97: 1905 | AF97: Produtos de padaria, pastelaria, etc. | AG97: 34.9379706 | AH97: 0.04350460713
I98: 2008 | J98: Frutas preparadas | K98: 20.0522152 | L98: 4.86328 | M98: 15.1889352 | AC98: 7 | AD98: º | AE98: 2204 | AF98: Vinhos de uvas frescas | AG98: 24.1633212 | AH98: 0.03008806115
I99: 1509 | J99: Azeite (processos mecânicos ou físicos) | K99: 13.6993922 | L99: 0.2261274 | M99: 13.4732648 | AC99: 8 | AD99: º | AE99: 1005 | AF99: Milho | AG99: 21.1208494 | AH99: 0.02629958866
I100: 2002 | J100: Tomates preparados | K100: 12.2493276 | L100: 0.1147458 | M100: 12.1345818 | AC100: 9 | AD100: º | AE100: 2106 | AF100: Outras preparações alimentícias | AG100: 20.9310656 | AH100: 0.02606327071
I101: 2005 | J101: Produtos hortícolas preparados, não congelados | K101: 11.9721774 | L101: 3.6913176 | M101: 8.2808598 | AC101: 10 | AD101: º | AE101: 1806 | AF101: Chocolate e outras preparações com cacau | AG101: 20.6763516 | AH101: 0.02574610196 | AI101: 0.5633051328
I102: - | J102: Outros | K102: 255.4971914 | L102: 343.9897686 | M102: -88.4925772 | AE102: - | AF102: Outros | AG102: 350.703832 | AH102: 0.4366948672
I103: 1003 | J103: Cevada | K103: 0.0032794 | L103: 13.2527512 | M103: -13.2494718 | AE103: Total | AG103: 803.0866822 | AH103: 1
I104: 0403 | J104: Leitelho, leite coalhado, iogurte, etc. | K104: 0.3810112 | L104: 14.9637778 | M104: -14.5827666
I105: 2106 | J105: Outras preparações alimentícias | K105: 4.5685622 | L105: 20.9310656 | M105: -16.3625034
I106: 1005 | J106: Milho | K106: 2.0381636 | L106: 21.1208494 | M106: -19.0826858
I107: 1806 | J107: Chocolate e outras preparações com cacau | K107: 0.9750446 | L107: 20.6763516 | M107: -19.701307
I108: 0406 | J108: Queijos e requeijão | K108: 4.2884034 | L108: 35.4665684 | M108: -31.178165
I109: 0701 | J109: Batatas, frescas ou refrigeradas | K109: 4.3108856 | L109: 41.3799026 | M109: -37.069017
I110: 2309 | J110: Preparações p/ alimentação animal | K110: 1.000196 | L110: 41.6578396 | M110: -40.6576436
I111: 0901 | J111: Café | K111: 9.6997256 | L111: 59.9585618 | M111: -50.2588362
I112: 1001 | J112: Trigo e mistura trigo/centeio | K112: 0.000222 | L112: 152.0904194 | M112: -152.0901974
I113: Total | K113: 675.8067388 | L113: 803.0866822 | M113: -127.2799434
A116: Fonte: GPP a partir de dados INE/Comércio Internacional (2022 definitivos) | Y116: 2023-11-03T15:23:15.730

Sheet 4A
A1: Evolução da balança comercial Portugal-França 2018-2022 por produto em euros (NC 2 dígitos)
A3: =+aux!A31 -> Evolução da balança comercial Portugal-França para Bebidas, líquidos alcoólicos e vinagres
A5: Selecione o produto:
Q7: Para obter uma maior desagregação deste produto, clique no botão respetivo:
A20: =+aux!A43 -> Evolução da balança comercial Portugal-França para Cereais
A22: Selecione o produto:
A38: Fonte: GPP a partir de dados INE/Comércio Internacional (2022 definitivos) | N38: 2023-11-03T15:23:15.730

Sheet 5.2
A1: Trocas comerciais Portugal-França 2018-2022 em milhares de euros (NC 2 dígitos) | C1: Produtos agrícolas e agroalimentares, do mar e da floresta
A2: Cód. NC | B2: Descritivo | C2: Importações | K2: Exportações | S2: Saldo quinquénio (exp-imp) | T2: Evolução das importações | U2: =+"Variação das Importações " & INDEX(K3:N3,1,aux!AL1) & "-"& '5.2'!O3 &"" -> Variação das Importações 2018-2022 | Z2: Evolução das exportações | AA2: ="Variação das Exportações " & INDEX(K3:N3,1,aux!AL1) & "-"& '5.2'!O3 &"" -> Variação das Exportações 2018-2022
C3: 2018 | D3: 2019 | E3: 2020 | F3: 2021 | G3: 2022 | H3: média quinquénio | I3: % Subtot | J3: % Total | K3: 2018 | L3: 2019 | M3: 2020 | N3: 2021 | O3: 2022 | P3: média quinquénio | Q3: % Subtot | R3: % Total | U3: variação total em valor | V3: % no subtotal de variação | W3: % no total de variação | X3: taxa de variação média anual | Y3: taxa de variação total | AA3: variação total em valor | AB3: % no subtotal de variação | AC3: % no total de variação | AD3: taxa de variação média anual | AE3: taxa de variação total
A4: 01 | B4: Animais vivos | C4: 10383.499 | D4: 12952.964 | E4: 12682.591 | F4: 10616.782 | G4: 13498.256 | H4: 12026.8184 | I4: 0.01497574131 | J4: 0.01219579184 | K4: 1755.336 | L4: 1806.231 | M4: 3078.878 | N4: 2311.431 | O4: 940.182 | P4: 1978.4116 | Q4: 0.002927481314 | R4: 0.00145590626 | S4: -10048.4068 | U4: =G4-INDEX($C4:$G4,1,aux!$AL$1) -> 3114.757 | V4: =IF($U$37<>0,U4/$U$37, "n.d.") -> 0.0102236216 | W4: =IF($U$53<>0,U4/$U$53, "n.d.") -> 0.009344634104 | X4: =+IF(INDEX($C4:$G4,1,aux!$AL$1)>0,(G4/INDEX($C4:$G4,1,aux!$AL$1))^(1/($G$3-INDEX($C$3:$G$3,1,aux!$AL$1)))-1,"n.d.") -> 0.06778418389 | Y4: =IF(INDEX($C4:$G4,1,aux!$AL$1)>0,(G4-INDEX($C4:$G4,1,aux!$AL$1))/INDEX($C4:$G4,1,aux!$AL$1),"n.d.") -> 0.299971811 | AA4: =O4-INDEX($K4:$O4,1,aux!$AL$1) -> -815.154 | AB4: =IF($AA$37<>0,AA4/$AA$37, "n.d.") -> -0.002877035546 | AC4: =IF($AA$53<>0,AA4/$AA$53, "n.d.") -> -0.001533116462 | AD4: =+IF(INDEX($K4:$O4,1,aux!$AL$1)>0,(O4/INDEX($K4:$O4,1,aux!$AL$1))^(1/($O$3-INDEX($K$3:$O$3,1,aux!$AL$1)))-1,"n.d.") -> -0.1445139776 | AE4: =IF(INDEX($K4:$O4,1,aux!$AL$1)>0,(O4-INDEX($K4:$O4,1,aux!$AL$1))/INDEX($K4:$O4,1,aux!$AL$1),"n.d.") -> -0.4643863055
A5: 02 | B5: Carnes e miudezas | C5: 41876.258 | D5: 42409.33 | E5: 37926.799 | F5: 44318.984 | G5: 61155.837 | H5: 45537.4416 | I5: 0.05670302174 | J5: 0.04617722995 | K5: 18264.597 | L5: 18528.553 | M5: 18505.027 | N5: 23365.979 | O5: 30197.674 | P5: 21772.366 | Q5: 0.03221685247 | R5: 0.01602220891 | S5: -23765.0756 | U5: =G5-INDEX($C5:$G5,1,aux!$AL$1) -> 19279.579 | V5: 0.06328170075 | W5: 0.05784098453 | X5: =+IF(INDEX($C5:$G5,1,aux!$AL$1)>0,(G5/INDEX($C5:$G5,1,aux!$AL$1))^(1/($G$3-INDEX($C$3:$G$3,1,aux!$AL$1)))-1,"n.d.") -> 0.09930324994 | Y5: =IF(INDEX($C5:$G5,1,aux!$AL$1)>0,(G5-INDEX($C5:$G5,1,aux!$AL$1))/INDEX($C5:$G5,1,aux!$AL$1),"n.d.") -> 0.4603940257 | AA5: =O5-INDEX($K5:$O5,1,aux!$AL$1) -> 11933.077 | AB5: 0.04211705605 | AC5: 0.02244336259 | AD5: =+IF(INDEX($K5:$O5,1,aux!$AL$1)>0,(O5/INDEX($K5:$O5,1,aux!$AL$1))^(1/($O$3-INDEX($K$3:$O$3,1,aux!$AL$1)))-1,"n.d.") -> 0.1339420213 | AE5: =IF(INDEX($K5:$O5,1,aux!$AL$1)>0,(O5-INDEX($K5:$O5,1,aux!$AL$1))/INDEX($K5:$O5,1,aux!$AL$1),"n.d.") -> 0.6533446645
A6: 04 | B6: Leite e laticínios; ovos; mel, etc. | C6: 61746.196 | D6: 61884.956 | E6: 53695.857 | F6: 57215.496 | G6: 84297.453 | H6: 63767.9916 | I6: 0.07940362232 | J6: 0.06466391409 | K6: 22943.805 | L6: 21059.3 | M6: 14531.141 | N6: 28484.302 | O6: 36178.772 | P6: 24639.464 | Q6: 0.03645933458 | R6: 0.01813209642 | S6: -39128.5276 | U6: =G6-INDEX($C6:$G6,1,aux!$AL$1) -> 22551.257 | V6: 0.07402038691 | W6: 0.06765639992 | X6: =+IF(INDEX($C6:$G6,1,aux!$AL$1)>0,(G6/INDEX($C6:$G6,1,aux!$AL$1))^(1/($G$3-INDEX($C$3:$G$3,1,aux!$AL$1)))-1,"n.d.") -> 0.08093868905 | Y6: =IF(INDEX($C6:$G6,1,aux!$AL$1)>0,(G6-INDEX($C6:$G6,1,aux!$AL$1))/INDEX($C6:$G6,1,aux!$AL$1),"n.d.") -> 0.3652250416 | AA6: =O6-INDEX($K6:$O6,1,aux!$AL$1) -> 13234.967 | AB6: 0.04671199616 | AC6: 0.02489191709 | AD6: =+IF(INDEX($K6:$O6,1,aux!$AL$1)>0,(O6/INDEX($K6:$O6,1,aux!$AL$1))^(1/($O$3-INDEX($K$3:$O$3,1,aux!$AL$1)))-1,"n.d.") -> 0.1205909086 | AE6: =IF(INDEX($K6:$O6,1,aux!$AL$1)>0,(O6-INDEX($K6:$O6,1,aux!$AL$1))/INDEX($K6:$O6,1,aux!$AL$1),"n.d.") -> 0.5768427251
A7: 05a | B7: Outros produtos de origem animal (exc. NC 0508, 051191) (a) | C7: 5968.911 | D7: 7189.428 | E7: 5469.073 | F7: 8790.483 | G7: 10726.038 | H7: 7628.7866 | I7: 0.009499331478 | J7: 0.007735968923 | K7: 15138.973 | L7: 15377.675 | M7: 13814.21 | N7: 14838.679 | O7: 20307.552 | P7: 15895.4178 | Q7: 0.02352065596 | R7: 0.01169738303 | S7: 8266.6312 | U7: =G7-INDEX($C7:$G7,1,aux!$AL$1) -> 4757.127 | V7: 0.0156144015 | W7: 0.01427193556 | X7: =+IF(INDEX($C7:$G7,1,aux!$AL$1)>0,(G7/INDEX($C7:$G7,1,aux!$AL$1))^(1/($G$3-INDEX($C$3:$G$3,1,aux!$AL$1)))-1,"n.d.") -> 0.1578066962 | Y7: =IF(INDEX($C7:$G7,1,aux!$AL$1)>0,(G7-INDEX($C7:$G7,1,aux!$AL$1))/INDEX($C7:$G7,1,aux!$AL$1),"n.d.") -> 0.796984073 | AA7: =O7-INDEX($K7:$O7,1,aux!$AL$1) -> 5168.579 | AB7: 0.0182421794 | AC7: 0.009720903719 | AD7: =+IF(INDEX($K7:$O7,1,aux!$AL$1)>0,(O7/INDEX($K7:$O7,1,aux!$AL$1))^(1/($O$3-INDEX($K$3:$O$3,1,aux!$AL$1)))-1,"n.d.") -> 0.0761933147 | AE7: =IF(INDEX($K7:$O7,1,aux!$AL$1)>0,(O7-INDEX($K7:$O7,1,aux!$AL$1))/INDEX($K7:$O7,1,aux!$AL$1),"n.d.") -> 0.3414088261
A8: 06 | B8: Plantas vivas e produtos de floricultura | C8: 1735.859 | D8: 706.846 | E8: 372.334 | F8: 803.199 | G8: 2133.828 | H8: 1150.4132 | I8: 0.00143248945 | J8: 0.001166576184 | K8: 4113.263 | L8: 4878.76 | M8: 4009.343 | N8: 4896.948 | O8: 4259.614 | P8: 4431.5856 | Q8: 0.006557474712 | R8: 0.00326118853 | S8: 3281.1724 | U8: =G8-INDEX($C8:$G8,1,aux!$AL$1) -> 397.969 | V8: 0.001306260638 | W8: 0.001193953393 | X8: =+IF(INDEX($C8:$G8,1,aux!$AL$1)>0,(G8/INDEX($C8:$G8,1,aux!$AL$1))^(1/($G$3-INDEX($C$3:$G$3,1,aux!$AL$1)))-1,"n.d.") -> 0.05295846667 | Y8: =IF(INDEX($C8:$G8,1,aux!$AL$1)>0,(G8-INDEX($C8:$G8,1,aux!$AL$1))/INDEX($C8:$G8,1,aux!$AL$1),"n.d.") -> 0.2292634367 | AA8: =O8-INDEX($K8:$O8,1,aux!$AL$1) -> 146.351 | AB8: 0.0005165367885 | AC8: 0.0002752524398 | AD8: =+IF(INDEX($K8:$O8,1,aux!$AL$1)>0,(O8/INDEX($K8:$O8,1,aux!$AL$1))^(1/($O$3-INDEX($K$3:$O$3,1,aux!$AL$1)))-1,"n.d.") -> 0.00877878828 | AE8: =IF(INDEX($K8:$O8,1,aux!$AL$1)>0,(O8-INDEX($K8:$O8,1,aux!$AL$1))/INDEX($K8:$O8,1,aux!$AL$1),"n.d.") -> 0.03558026803
A9: 07 | B9: Produtos hortícolas | C9: 47999.336 | D9: 57178.894 | E9: 46668.959 | F9: 44130.843 | G9: 71708.831 | H9: 53537.3726 | I9: 0.06666450059 | J9: 0.05428955775 | K9: 30368.836 | L9: 43086.619 | M9: 45377.622 | N9: 44994.103 | O9: 39667.317 | P9: 40698.8994 | Q9: 0.06022268951 | R9: 0.02995017944 | S9: -12838.4732 | U9: =G9-INDEX($C9:$G9,1,aux!$AL$1) -> 23709.495 | V9: 0.07782209184 | W9: 0.07113124895 | X9: =+IF(INDEX($C9:$G9,1,aux!$AL$1)>0,(G9/INDEX($C9:$G9,1,aux!$AL$1))^(1/($G$3-INDEX($C$3:$G$3,1,aux!$AL$1)))-1,"n.d.") -> 0.1055651831 | Y9: =IF(INDEX($C9:$G9,1,aux!$AL$1)>0,(G9-INDEX($C9:$G9,1,aux!$AL$1))/INDEX($C9:$G9,1,aux!$AL$1),"n.d.") -> 0.4939546455 | AA9: =O9-INDEX($K9:$O9,1,aux!$AL$1) -> 9298.481 | AB9: 0.03281841267 | AC9: 0.01748829582 | AD9: =+IF(INDEX($K9:$O9,1,aux!$AL$1)>0,(O9/INDEX($K9:$O9,1,aux!$AL$1))^(1/($O$3-INDEX($K$3:$O$3,1,aux!$AL$1)))-1,"n.d.") -> 0.06905775965 | AE9: =IF(INDEX($K9:$O9,1,aux!$AL$1)>0,(O9-INDEX($K9:$O9,1,aux!$AL$1))/INDEX($K9:$O9,1,aux!$AL$1),"n.d.") -> 0.3061849654
A10: 08 | B10: Frutas | C10: 22558.822 | D10: 15336.979 | E10: 17689.126 | F10: 18737.224 | G10: 17706.781 | H10: 18405.7864 | I10: 0.02291880417 | J10: 0.01866438256 | K10: 74408.39 | L10: 99964.362 | M10: 112559.397 | N10: 134375.299 | O10: 145582.811 | P10: 113378.0518 | Q10: 0.1677669743 | R10: 0.08343451656 | S10: 94972.2654 | U10: =G10-INDEX($C10:$G10,1,aux!$AL$1) -> -4852.041 | V10: -0.01592593939 | W10: -0.01455668863 | X10: =+IF(INDEX($C10:$G10,1,aux!$AL$1)>0,(G10/INDEX($C10:$G10,1,aux!$AL$1))^(1/($G$3-INDEX($C$3:$G$3,1,aux!$AL$1)))-1,"n.d.") -> -0.05874824361 | Y10: =IF(INDEX($C10:$G10,1,aux!$AL$1)>0,(G10-INDEX($C10:$G10,1,aux!$AL$1))/INDEX($C10:$G10,1,aux!$AL$1),"n.d.") -> -0.2150839703 | AA10: =O10-INDEX($K10:$O10,1,aux!$AL$1) -> 71174.421 | AB10: 0.2512057099 | AC10: 0.1338626524 | AD10: =+IF(INDEX($K10:$O10,1,aux!$AL$1)>0,(O10/INDEX($K10:$O10,1,aux!$AL$1))^(1/($O$3-INDEX($K$3:$O$3,1,aux!$AL$1)))-1,"n.d.") -> 0.1826930597 | AE10: =IF(INDEX($K10:$O10,1,aux!$AL$1)>0,(O10-INDEX($K10:$O10,1,aux!$AL$1))/INDEX($K10:$O10,1,aux!$AL$1),"n.d.") -> 0.9565375759
A11: 09 | B11: Café, chá, mate e especiarias | C11: 49976.205 | D11: 58258.963 | E11: 67090.312 | F11: 85529.785 | G11: 77743.149 | H11: 67719.6828 | I11: 0.0843242508 | J11: 0.06867112545 | K11: 6104.89 | L11: 7928.747 | M11: 10643.142 | N11: 13438.381 | O11: 12780.229 | P11: 10179.0778 | Q11: 0.01506211349 | R11: 0.007490748181 | S11: -57540.605 | U11: =G11-INDEX($C11:$G11,1,aux!$AL$1) -> 27766.944 | V11: 0.09113992795 | W11: 0.08330406895 | X11: =+IF(INDEX($C11:$G11,1,aux!$AL$1)>0,(G11/INDEX($C11:$G11,1,aux!$AL$1))^(1/($G$3-INDEX($C$3:$G$3,1,aux!$AL$1)))-1,"n.d.") -> 0.1167982207 | Y11: =IF(INDEX($C11:$G11,1,aux!$AL$1)>0,(G11-INDEX($C11:$G11,1,aux!$AL$1))/INDEX($C11:$G11,1,aux!$AL$1),"n.d.") -> 0.5556032916 | AA11: =O11-INDEX($K11:$O11,1,aux!$AL$1) -> 6675.339 | AB11: 0.02356019548 | AC11: 0.01255477138 | AD11: =+IF(INDEX($K11:$O11,1,aux!$AL$1)>0,(O11/INDEX($K11:$O11,1,aux!$AL$1))^(1/($O$3-INDEX($K$3:$O$3,1,aux!$AL$1)))-1,"n.d.") -> 0.2028603188 | AE11: =IF(INDEX($K11:$O11,1,aux!$AL$1)>0,(O11-INDEX($K11:$O11,1,aux!$AL$1))/INDEX($K11:$O11,1,aux!$AL$1),"n.d.") -> 1.093441323
A12: 10 | B12: Cereais | C12: 188338.151 | D12: 148060.198 | E12: 167227.697 | F12: 184755.2 | G12: 261333.949 | H12: 189943.039 | I12: 0.2365162357 | J12: 0.1926116857 | K12: 5315.849 | L12: 6371.636 | M12: 5657.768 | N12: 6745.713 | O12: 6902.267 | P12: 6198.6466 | Q12: 0.009172217802 | R12: 0.004561562614 | S12: -183744.3924 | U12: =G12-INDEX($C12:$G12,1,aux!$AL$1) -> 72995.798 | V12: 0.2395953898 | W12: 0.2189959035 | X12: =+IF(INDEX($C12:$G12,1,aux!$AL$1)>0,(G12/INDEX($C12:$G12,1,aux!$AL$1))^(1/($G$3-INDEX($C$3:$G$3,1,aux!$AL$1)))-1,"n.d.") -> 0.08533643386 | Y12: =IF(INDEX($C12:$G12,1,aux!$AL$1)>0,(G12-INDEX($C12:$G12,1,aux!$AL$1))/INDEX($C12:$G12,1,aux!$AL$1),"n.d.") -> 0.3875783935 | AA12: =O12-INDEX($K12:$O12,1,aux!$AL$1) -> 1586.418 | AB12: 0.005599164057 | AC12: 0.002983685968 | AD12: =+IF(INDEX($K12:$O12,1,aux!$AL$1)>0,(O12/INDEX($K12:$O12,1,aux!$AL$1))^(1/($O$3-INDEX($K$3:$O$3,1,aux!$AL$1)))-1,"n.d.") -> 0.06746779088 | AE12: =IF(INDEX($K12:$O12,1,aux!$AL$1)>0,(O12-INDEX($K12:$O12,1,aux!$AL$1))/INDEX($K12:$O12,1,aux!$AL$1),"n.d.") -> 0.2984317275
A13: 11 | B13: Produtos da indústria de moagem e outros | C13: 4392.918 | D13: 5104.75 | E13: 5099.878 | F13: 5192.266 | G13: 5983.726 | H13: 5154.7076 | I13: 0.006418619203 | J13: 0.005227129803 | K13: 4621.202 | L13: 3395.448 | M13: 2714.222 | N13: 3482.83 | O13: 2565.552 | P13: 3355.8508 | Q13: 0.004965695971 | R13: 0.002469559008 | S13: -1798.8568 | U13: =G13-INDEX($C13:$G13,1,aux!$AL$1) -> 1590.808 | V13: 0.005221537037 | W13: 0.004772609449 | X13: =+IF(INDEX($C13:$G13,1,aux!$AL$1)>0,(G13/INDEX($C13:$G13,1,aux!$AL$1))^(1/($G$3-INDEX($C$3:$G$3,1,aux!$AL$1)))-1,"n.d.") -> 0.0803255577 | Y13: =IF(INDEX($C13:$G13,1,aux!$AL$1)>0,(G13-INDEX($C13:$G13,1,aux!$AL$1))/INDEX($C13:$G13,1,aux!$AL$1),"n.d.") -> 0.3621301376 | AA13: =O13-INDEX($K13:$O13,1,aux!$AL$1) -> -2055.65 | AB13: -0.007255289333 | AC13: -0.003866203018 | AD13: =+IF(INDEX($K13:$O13,1,aux!$AL$1)>0,(O13/INDEX($K13:$O13,1,aux!$AL$1))^(1/($O$3-INDEX($K$3:$O$3,1,aux!$AL$1)))-1,"n.d.") -> -0.1368098672 | AE13: =IF(INDEX($K13:$O13,1,aux!$AL$1)>0,(O13-INDEX($K13:$O13,1,aux!$AL$1))/INDEX($K13:$O13,1,aux!$AL$1),"n.d.") -> -0.4448301546
A14: 12 | B14: Sementes e frutos oleaginosos | C14: 4094.674 | D14: 6603.856 | E14: 3842.125 | F14: 22712.583 | G14: 26921.97 | H14: 12835.0416 | I14: 0.01598213728 | J14: 0.01301537035 | K14: 4799.707 | L14: 6565.712 | M14: 4921.801 | N14: 4778.532 | O14: 8188.206 | P14: 5850.7916 | Q14: 0.008657492245 | R14: 0.004305577322 | S14: -6984.25 | U14: =G14-INDEX($C14:$G14,1,aux!$AL$1) -> 22827.296 | V14: 0.07492643457 | W14: 0.0684845491 | X14: =+IF(INDEX($C14:$G14,1,aux!$AL$1)>0,(G14/INDEX($C14:$G14,1,aux!$AL$1))^(1/($G$3-INDEX($C$3:$G$3,1,aux!$AL$1)))-1,"n.d.") -> 0.6012969494 | Y14: =IF(INDEX($C14:$G14,1,aux!$AL$1)>0,(G14-INDEX($C14:$G14,1,aux!$AL$1))/INDEX($C14:$G14,1,aux!$AL$1),"n.d.") -> 5.574875069 | AA14: =O14-INDEX($K14:$O14,1,aux!$AL$1) -> 3388.499 | AB14: 0.01195949731 | AC14: 0.006372984244 | AD14: =+IF(INDEX($K14:$O14,1,aux!$AL$1)>0,(O14/INDEX($K14:$O14,1,aux!$AL$1))^(1/($O$3-INDEX($K$3:$O$3,1,aux!$AL$1)))-1,"n.d.") -> 0.1428612518 | AE14: =IF(INDEX($K14:$O14,1,aux!$AL$1)>0,(O14-INDEX($K14:$O14,1,aux!$AL$1))/INDEX($K14:$O14,1,aux!$AL$1),"n.d.") -> 0.7059803859
A15: 13a | B15: Sucos e extratos vegetais (exc. NC 1301) (a) | C15: 1109.86 | D15: 1048.164 | E15: 691.984 | F15: 741.667 | G15: 1028.936 | H15: 924.1222 | I15: 0.001150712894 | J15: 0.000937105859 | K15: 29.833 | L15: 53.085 | M15: 30.172 | N15: 313.029 | O15: 192.613 | P15: 123.7464 | Q15: 0.0001831091537 | R15: 9.106454817e-05 | S15: -800.3758 | U15: =G15-INDEX($C15:$G15,1,aux!$AL$1) -> -80.924 | V15: -0.0002656182664 | W15: -0.0002427814338 | X15: =+IF(INDEX($C15:$G15,1,aux!$AL$1)>0,(G15/INDEX($C15:$G15,1,aux!$AL$1))^(1/($G$3-INDEX($C$3:$G$3,1,aux!$AL$1)))-1,"n.d.") -> -0.01874916179 | Y15: =IF(INDEX($C15:$G15,1,aux!$AL$1)>0,(G15-INDEX($C15:$G15,1,aux!$AL$1))/INDEX($C15:$G15,1,aux!$AL$1),"n.d.") -> -0.07291370083 | AA15: =O15-INDEX($K15:$O15,1,aux!$AL$1) -> 162.78 | AB15: 0.0005745219262 | AC15: 0.0003061515955 | AD15: =+IF(INDEX($K15:$O15,1,aux!$AL$1)>0,(O15/INDEX($K15:$O15,1,aux!$AL$1))^(1/($O$3-INDEX($K$3:$O$3,1,aux!$AL$1)))-1,"n.d.") -> 0.5940324819 | AE15: =IF(INDEX($K15:$O15,1,aux!$AL$1)>0,(O15-INDEX($K15:$O15,1,aux!$AL$1))/INDEX($K15:$O15,1,aux!$AL$1),"n.d.") -> 5.456373814
A16: 14 | B16: Matérias para entrançar e outros | C16: 81.017 | D16: 50.338 | E16: 38.369 | F16: 82.549 | G16: 85.365 | H16: 67.5276 | I16: 8.408507014e-05 | J16: 6.847634394e-05 | K16: 61.818 | L16: 102.797 | M16: 9.839 | N16: 0.392 | O16: 0.111 | P16: 34.9914 | Q16: 5.177722859e-05 | R16: 2.575005035e-05 | S16: -32.5362 | U16: =G16-INDEX($C16:$G16,1,aux!$AL$1) -> 4.348 | V16: 1.427151676e-05 | W16: 1.304450687e-05 | X16: =+IF(INDEX($C16:$G16,1,aux!$AL$1)>0,(G16/INDEX($C16:$G16,1,aux!$AL$1))^(1/($G$3-INDEX($C$3:$G$3,1,aux!$AL$1)))-1,"n.d.") -> 0.01315506936 | Y16: =IF(INDEX($C16:$G16,1,aux!$AL$1)>0,(G16-INDEX($C16:$G16,1,aux!$AL$1))/INDEX($C16:$G16,1,aux!$AL$1),"n.d.") -> 0.05366774874 | AA16: =O16-INDEX($K16:$O16,1,aux!$AL$1) -> -61.707 | AB16: -0.0002177910339 | AC16: -0.0001160566194 | AD16: =+IF(INDEX($K16:$O16,1,aux!$AL$1)>0,(O16/INDEX($K16:$O16,1,aux!$AL$1))^(1/($O$3-INDEX($K$3:$O$3,1,aux!$AL$1)))-1,"n.d.") -> -0.7941494616 | AE16: =IF(INDEX($K16:$O16,1,aux!$AL$1)>0,(O16-INDEX($K16:$O16,1,aux!$AL$1))/INDEX($K16:$O16,1,aux!$AL$1),"n.d.") -> -0.9982044065
A17: 15 | B17: Gorduras e óleos animais ou vegetais | C17: 9501.044 | D17: 7480.824 | E17: 5587.905 | F17: 2557.74 | G17: 9167.132 | H17: 6858.929 | I17: 0.008540708185 | J17: 0.006955295038 | K17: 21827.695 | L17: 19563.719 | M17: 15546.604 | N17: 23647.182 | O17: 52848.984 | P17: 26686.8368 | Q17: 0.03948885867 | R17: 0.01963875099 | S17: 19827.9078 | U17: =G17-INDEX($C17:$G17,1,aux!$AL$1) -> -333.912 | V17: -0.001096005222 | W17: -0.001001774926 | X17: =+IF(INDEX($C17:$G17,1,aux!$AL$1)>0,(G17/INDEX($C17:$G17,1,aux!$AL$1))^(1/($G$3-INDEX($C$3:$G$3,1,aux!$AL$1)))-1,"n.d.") -> -0.008904420959 | Y17: =IF(INDEX($C17:$G17,1,aux!$AL$1)>0,(G17-INDEX($C17:$G17,1,aux!$AL$1))/INDEX($C17:$G17,1,aux!$AL$1),"n.d.") -> -0.03514476935 | AA17: =O17-INDEX($K17:$O17,1,aux!$AL$1) -> 31021.289 | AB17: 0.1094877178 | AC17: 0.05834388207 | AD17: =+IF(INDEX($K17:$O17,1,aux!$AL$1)>0,(O17/INDEX($K17:$O17,1,aux!$AL$1))^(1/($O$3-INDEX($K$3:$O$3,1,aux!$AL$1)))-1,"n.d.") -> 0.2474041698 | AE17: =IF(INDEX($K17:$O17,1,aux!$AL$1)>0,(O17-INDEX($K17:$O17,1,aux!$AL$1))/INDEX($K17:$O17,1,aux!$AL$1),"n.d.") -> 1.421189411
A18: 16a | B18: Preparações de carnes (exc. NC 1604-05) (a) | C18: 12297.459 | D18: 12175.27 | E18: 10404.348 | F18: 14981.581 | G18: 20496.792 | H18: 14071.09 | I18: 0.0175212593 | J18: 0.01426878489 | K18: 6880.635 | L18: 8840.287 | M18: 10485.311 | N18: 12650.231 | O18: 13216.467 | P18: 10414.5862 | Q18: 0.01541059833 | R18: 0.007664057998 | S18: -3656.5038 | U18: =G18-INDEX($C18:$G18,1,aux!$AL$1) -> 8199.333 | V18: 0.02691281471 | W18: 0.02459895484 | X18: =+IF(INDEX($C18:$G18,1,aux!$AL$1)>0,(G18/INDEX($C18:$G18,1,aux!$AL$1))^(1/($G$3-INDEX($C$3:$G$3,1,aux!$AL$1)))-1,"n.d.") -> 0.1362335996 | Y18: =IF(INDEX($C18:$G18,1,aux!$AL$1)>0,(G18-INDEX($C18:$G18,1,aux!$AL$1))/INDEX($C18:$G18,1,aux!$AL$1),"n.d.") -> 0.6667501799 | AA18: =O18-INDEX($K18:$O18,1,aux!$AL$1) -> 6335.832 | AB18: 0.02236192656 | AC18: 0.0119162371 | AD18: =+IF(INDEX($K18:$O18,1,aux!$AL$1)>0,(O18/INDEX($K18:$O18,1,aux!$AL$1))^(1/($O$3-INDEX($K$3:$O$3,1,aux!$AL$1)))-1,"n.d.") -> 0.1772581723 | AE18: =IF(INDEX($K18:$O18,1,aux!$AL$1)>0,(O18-INDEX($K18:$O18,1,aux!$AL$1))/INDEX($K18:$O18,1,aux!$AL$1),"n.d.") -> 0.9208208254
A19: 17 | B19: Açúcares e produtos de confeitaria | C19: 14899.776 | D19: 22886.959 | E19: 10349.085 | F19: 16039.527 | G19: 29258.108 | H19: 18686.691 | I19: 0.02326858534 | J19: 0.01894923379 | K19: 1461.627 | L19: 1171.465 | M19: 3072.664 | N19: 3869.55 | O19: 3676.495 | P19: 2650.3602 | Q19: 0.003921772376 | R19: 0.001950390913 | S19: -16036.3308 | U19: =G19-INDEX($C19:$G19,1,aux!$AL$1) -> 14358.332 | V19: 0.04712860529 | W19: 0.04307666983 | X19: =+IF(INDEX($C19:$G19,1,aux!$AL$1)>0,(G19/INDEX($C19:$G19,1,aux!$AL$1))^(1/($G$3-INDEX($C$3:$G$3,1,aux!$AL$1)))-1,"n.d.") -> 0.1837680791 | Y19: =IF(INDEX($C19:$G19,1,aux!$AL$1)>0,(G19-INDEX($C19:$G19,1,aux!$AL$1))/INDEX($C19:$G19,1,aux!$AL$1),"n.d.") -> 0.9636609302 | AA19: =O19-INDEX($K19:$O19,1,aux!$AL$1) -> 2214.868 | AB19: 0.007817239401 | AC19: 0.004165655314 | AD19: =+IF(INDEX($K19:$O19,1,aux!$AL$1)>0,(O19/INDEX($K19:$O19,1,aux!$AL$1))^(1/($O$3-INDEX($K$3:$O$3,1,aux!$AL$1)))-1,"n.d.") -> 0.2593584359 | AE19: =IF(INDEX($K19:$O19,1,aux!$AL$1)>0,(O19-INDEX($K19:$O19,1,aux!$AL$1))/INDEX($K19:$O19,1,aux!$AL$1),"n.d.") -> 1.515344202
A20: 18 | B20: Cacau e suas preparações | C20: 21065.221 | D20: 21221.994 | E20: 22438.34 | F20: 21562.588 | G20: 21193.986 | H20: 21496.4258 | I20: 0.02676725474 | J20: 0.02179844458 | K20: 1095.103 | L20: 941.885 | M20: 1336.52 | N20: 1491.162 | O20: 603.437 | P20: 1093.6214 | Q20: 0.001618245775 | R20: 0.0008047922094 | S20: -20402.8044 | U20: =G20-INDEX($C20:$G20,1,aux!$AL$1) -> 128.765 | V20: 0.0004226476209 | W20: 0.0003863100108 | X20: =+IF(INDEX($C20:$G20,1,aux!$AL$1)>0,(G20/INDEX($C20:$G20,1,aux!$AL$1))^(1/($G$3-INDEX($C$3:$G$3,1,aux!$AL$1)))-1,"n.d.") -> 0.001524680013 | Y20: =IF(INDEX($C20:$G20,1,aux!$AL$1)>0,(G20-INDEX($C20:$G20,1,aux!$AL$1))/INDEX($C20:$G20,1,aux!$AL$1),"n.d.") -> 0.006112682131 | AA20: =O20-INDEX($K20:$O20,1,aux!$AL$1) -> -491.666 | AB20: -0.00173530469 | AC20: -0.0009247102246 | AD20: =+IF(INDEX($K20:$O20,1,aux!$AL$1)>0,(O20/INDEX($K20:$O20,1,aux!$AL$1))^(1/($O$3-INDEX($K$3:$O$3,1,aux!$AL$1)))-1,"n.d.") -> -0.1384227126 | AE20: =IF(INDEX($K20:$O20,1,aux!$AL$1)>0,(O20-INDEX($K20:$O20,1,aux!$AL$1))/INDEX($K20:$O20,1,aux!$AL$1),"n.d.") -> -0.448967814
A21: 19a | B21: Preparações à base de cereais (exc. NC 19022010) (a) | C21: 71920.198 | D21: 73447.258 | E21: 66838.539 | F21: 74473.247 | G21: 92642.669 | H21: 75864.3822 | I21: 0.09446599462 | J21: 0.0769302556 | K21: 33550.563 | L21: 42746.499 | M21: 41317.136 | N21: 44127.08 | O21: 41047.221 | P21: 40557.6998 | Q21: 0.06001375463 | R21: 0.02984627114 | S21: -35306.6824 | U21: =G21-INDEX($C21:$G21,1,aux!$AL$1) -> 20722.471 | V21: 0.0680177305 | W21: 0.06216982873 | X21: =+IF(INDEX($C21:$G21,1,aux!$AL$1)>0,(G21/INDEX($C21:$G21,1,aux!$AL$1))^(1/($G$3-INDEX($C$3:$G$3,1,aux!$AL$1)))-1,"n.d.") -> 0.0653444458 | Y21: =IF(INDEX($C21:$G21,1,aux!$AL$1)>0,(G21-INDEX($C21:$G21,1,aux!$AL$1))/INDEX($C21:$G21,1,aux!$AL$1),"n.d.") -> 0.2881314509 | AA21: =O21-INDEX($K21:$O21,1,aux!$AL$1) -> 7496.658 | AB21: 0.02645899001 | AC21: 0.01409948279 | AD21: =+IF(INDEX($K21:$O21,1,aux!$AL$1)>0,(O21/INDEX($K21:$O21,1,aux!$AL$1))^(1/($O$3-INDEX($K$3:$O$3,1,aux!$AL$1)))-1,"n.d.") -> 0.05170995999 | AE21: =IF(INDEX($K21:$O21,1,aux!$AL$1)>0,(O21-INDEX($K21:$O21,1,aux!$AL$1))/INDEX($K21:$O21,1,aux!$AL$1),"n.d.") -> 0.2234435828
A22: 20 | B22: Preparações de produtos vegetais | C22: 34483.08 | D22: 36593.845 | E22: 34610.326 | F22: 37250.308 | G22: 42972.244 | H22: 37181.9606 | I22: 0.0462988136 | J22: 0.03770435677 | K22: 62807.248 | L22: 59013.919 | M22: 59839.487 | N22: 62728.18 | O22: 68683.222 | P22: 62614.4112 | Q22: 0.09265135668 | R22: 0.04607772885 | S22: 25432.4506 | U22: =G22-INDEX($C22:$G22,1,aux!$AL$1) -> 8489.164 | V22: 0.02786413209 | W22: 0.02546848163 | X22: =+IF(INDEX($C22:$G22,1,aux!$AL$1)>0,(G22/INDEX($C22:$G22,1,aux!$AL$1))^(1/($G$3-INDEX($C$3:$G$3,1,aux!$AL$1)))-1,"n.d.") -> 0.05656323808 | Y22: =IF(INDEX($C22:$G22,1,aux!$AL$1)>0,(G22-INDEX($C22:$G22,1,aux!$AL$1))/INDEX($C22:$G22,1,aux!$AL$1),"n.d.") -> 0.2461834616 | AA22: =O22-INDEX($K22:$O22,1,aux!$AL$1) -> 5875.974 | AB22: 0.02073888623 | AC22: 0.01105135038 | AD22: =+IF(INDEX($K22:$O22,1,aux!$AL$1)>0,(O22/INDEX($K22:$O22,1,aux!$AL$1))^(1/($O$3-INDEX($K$3:$O$3,1,aux!$AL$1)))-1,"n.d.") -> 0.02261044404 | AE22: =IF(INDEX($K22:$O22,1,aux!$AL$1)>0,(O22-INDEX($K22:$O22,1,aux!$AL$1))/INDEX($K22:$O22,1,aux!$AL$1),"n.d.") -> 0.09355566733
A23: 21 | B23: Preparações alimentícias diversas | C23: 40307.044 | D23: 40031.435 | E23: 33900.336 | F23: 44302.964 | G23: 49668.624 | H23: 41642.0806 | I23: 0.05185253538 | J23: 0.04222714021 | K23: 18817.891 | L23: 15149.694 | M23: 17545.444 | N23: 19727.819 | O23: 20445.695 | P23: 18337.3086 | Q23: 0.02713395346 | R23: 0.01349436204 | S23: -23304.772 | U23: =G23-INDEX($C23:$G23,1,aux!$AL$1) -> 9361.58 | V23: 0.03072767845 | W23: 0.02808583133 | X23: =+IF(INDEX($C23:$G23,1,aux!$AL$1)>0,(G23/INDEX($C23:$G23,1,aux!$AL$1))^(1/($G$3-INDEX($C$3:$G$3,1,aux!$AL$1)))-1,"n.d.") -> 0.05359886668 | Y23: =IF(INDEX($C23:$G23,1,aux!$AL$1)>0,(G23-INDEX($C23:$G23,1,aux!$AL$1))/INDEX($C23:$G23,1,aux!$AL$1),"n.d.") -> 0.2322566745 | AA23: =O23-INDEX($K23:$O23,1,aux!$AL$1) -> 1627.804 | AB23: 0.00574523338 | AC23: 0.003061523478 | AD23: =+IF(INDEX($K23:$O23,1,aux!$AL$1)>0,(O23/INDEX($K23:$O23,1,aux!$AL$1))^(1/($O$3-INDEX($K$3:$O$3,1,aux!$AL$1)))-1,"n.d.") -> 0.02095766101 | AE23: =IF(INDEX($K23:$O23,1,aux!$AL$1)>0,(O23-INDEX($K23:$O23,1,aux!$AL$1))/INDEX($K23:$O23,1,aux!$AL$1),"n.d.") -> 0.08650299866
A24: 22 | B24: Bebidas, líquidos alcoólicos e vinagres | C24: 36395.7 | D24: 36134.19 | E24: 37368.544 | F24: 46236.027 | G24: 53128.715 | H24: 41852.6352 | I24: 0.05211471704 | J24: 0.04244065305 | K24: 147102.716 | L24: 146949.485 | M24: 136813.16 | N24: 146534.763 | O24: 150184.204 | P24: 145516.8656 | Q24: 0.2153231941 | R24: 0.1070853586 | S24: 103664.2304 | U24: =G24-INDEX($C24:$G24,1,aux!$AL$1) -> 16733.015 | V24: 0.05492306901 | W24: 0.05020099566 | X24: =+IF(INDEX($C24:$G24,1,aux!$AL$1)>0,(G24/INDEX($C24:$G24,1,aux!$AL$1))^(1/($G$3-INDEX($C$3:$G$3,1,aux!$AL$1)))-1,"n.d.") -> 0.0991825087 | Y24: =IF(INDEX($C24:$G24,1,aux!$AL$1)>0,(G24-INDEX($C24:$G24,1,aux!$AL$1))/INDEX($C24:$G24,1,aux!$AL$1),"n.d.") -> 0.4597525257 | AA24: =O24-INDEX($K24:$O24,1,aux!$AL$1) -> 3081.488 | AB24: 0.01087592101 | AC24: 0.005795567439 | AD24: =+IF(INDEX($K24:$O24,1,aux!$AL$1)>0,(O24/INDEX($K24:$O24,1,aux!$AL$1))^(1/($O$3-INDEX($K$3:$O$3,1,aux!$AL$1)))-1,"n.d.") -> 0.005196323372 | AE24: =IF(INDEX($K24:$O24,1,aux!$AL$1)>0,(O24-INDEX($K24:$O24,1,aux!$AL$1))/INDEX($K24:$O24,1,aux!$AL$1),"n.d.") -> 0.02094786612
A25: 23a | B25: Resíduos indústrias alimentares; alimentos p/ animais (exc. NC 230120) (a) | C25: 40151.505 | D25: 45101.273 | E25: 55172.713 | F25: 66587.559 | G25: 68482.903 | H25: 55099.1906 | I25: 0.06860926949 | J25: 0.05587331885 | K25: 2451.418 | L25: 2485.497 | M25: 2558.806 | N25: 4176.602 | O25: 8394.997 | P25: 4013.464 | Q25: 0.005938774756 | R25: 0.00295349429 | S25: -51085.7266 | U25: =G25-INDEX($C25:$G25,1,aux!$AL$1) -> 28331.398 | V25: 0.09299264523 | W25: 0.08499749675 | X25: =+IF(INDEX($C25:$G25,1,aux!$AL$1)>0,(G25/INDEX($C25:$G25,1,aux!$AL$1))^(1/($G$3-INDEX($C$3:$G$3,1,aux!$AL$1)))-1,"n.d.") -> 0.1427996095 | Y25: =IF(INDEX($C25:$G25,1,aux!$AL$1)>0,(G25-INDEX($C25:$G25,1,aux!$AL$1))/INDEX($C25:$G25,1,aux!$AL$1),"n.d.") -> 0.705612355 | AA25: =O25-INDEX($K25:$O25,1,aux!$AL$1) -> 5943.579 | AB25: 0.02097749389 | AC25: 0.01117849978 | AD25: =+IF(INDEX($K25:$O25,1,aux!$AL$1)>0,(O25/INDEX($K25:$O25,1,aux!$AL$1))^(1/($O$3-INDEX($K$3:$O$3,1,aux!$AL$1)))-1,"n.d.") -> 0.3603504157 | AE25: =IF(INDEX($K25:$O25,1,aux!$AL$1)>0,(O25-INDEX($K25:$O25,1,aux!$AL$1))/INDEX($K25:$O25,1,aux!$AL$1),"n.d.") -> 2.424547344
A26: 24 | B26: Tabaco | C26: 0 | D26: 0 | E26: 0 | F26: 1.104 | G26: 462.011 | H26: 92.623 | I26: 0.0001153337517 | J26: 9.39243273e-05 | K26: 37824.94 | L26: 64678.844 | M26: 173409.598 | N26: 153771.967 | O26: 138607.425 | P26: 113658.5548 | Q26: 0.1681820383 | R26: 0.08364093775 | S26: 113565.9318 | U26: =G26-INDEX($C26:$G26,1,aux!$AL$1) -> 462.011 | V26: 0.001516466819 | W26: 0.001386086859 | X26: =+IF(INDEX($C26:$G26,1,aux!$AL$1)>0,(G26/INDEX($C26:$G26,1,aux!$AL$1))^(1/($G$3-INDEX($C$3:$G$3,1,aux!$AL$1)))-1,"n.d.") -> n.d. | Y26: =IF(INDEX($C26:$G26,1,aux!$AL$1)>0,(G26-INDEX($C26:$G26,1,aux!$AL$1))/INDEX($C26:$G26,1,aux!$AL$1),"n.d.") -> n.d. | AA26: =O26-INDEX($K26:$O26,1,aux!$AL$1) -> 100782.485 | AB26: 0.3557055376 | AC26: 0.1895485845 | AD26: =+IF(INDEX($K26:$O26,1,aux!$AL$1)>0,(O26/INDEX($K26:$O26,1,aux!$AL$1))^(1/($O$3-INDEX($K$3:$O$3,1,aux!$AL$1)))-1,"n.d.") -> 0.3835729478 | AE26: =IF(INDEX($K26:$O26,1,aux!$AL$1)>0,(O26-INDEX($K26:$O26,1,aux!$AL$1))/INDEX($K26:$O26,1,aux!$AL$1),"n.d.") -> 2.664445337
A27: 29 | B27: Manitol e sorbitol (NC 290543; 290544) | C27: 378.827 | D27: 361.32 | E27: 388.03 | F27: 43.049 | G27: 102.694 | H27: 254.784 | I27: 0.0003172559148 | J27: 0.0002583636441 | K27: 0 | L27: 0 | M27: 0.131 | N27: 0 | O27: 0.192 | P27: 0.0646 | Q27: 9.558945819e-08 | R27: 4.753891678e-08 | S27: -254.7194 | U27: =G27-INDEX($C27:$G27,1,aux!$AL$1) -> -276.133 | V27: -0.0009063561955 | W27: -0.0008284311904 | X27: =+IF(INDEX($C27:$G27,1,aux!$AL$1)>0,(G27/INDEX($C27:$G27,1,aux!$AL$1))^(1/($G$3-INDEX($C$3:$G$3,1,aux!$AL$1)))-1,"n.d.") -> -0.2784340412 | Y27: =IF(INDEX($C27:$G27,1,aux!$AL$1)>0,(G27-INDEX($C27:$G27,1,aux!$AL$1))/INDEX($C27:$G27,1,aux!$AL$1),"n.d.") -> -0.7289158376 | AA27: =O27-INDEX($K27:$O27,1,aux!$AL$1) -> 0.192 | AB27: 6.776521061e-07 | AC27: 3.611076689e-07 | AD27: =+IF(INDEX($K27:$O27,1,aux!$AL$1)>0,(O27/INDEX($K27:$O27,1,aux!$AL$1))^(1/($O$3-INDEX($K$3:$O$3,1,aux!$AL$1)))-1,"n.d.") -> n.d. | AE27: =IF(INDEX($K27:$O27,1,aux!$AL$1)>0,(O27-INDEX($K27:$O27,1,aux!$AL$1))/INDEX($K27:$O27,1,aux!$AL$1),"n.d.") -> n.d.
A28: 33 | B28: Óleos essenciais e resinóides (NC 3301) | C28: 5214.136 | D28: 6531.507 | E28: 6024.601 | F28: 6330.827 | G28: 5513.137 | H28: 5922.8416 | I28: 0.007375096277 | J28: 0.006006055872 | K28: 399.898 | L28: 141.143 | M28: 277.786 | N28: 323.052 | O28: 343.304 | P28: 297.0366 | Q28: 0.0004395289111 | R28: 0.0002185882076 | S28: -5625.805 | U28: =G28-INDEX($C28:$G28,1,aux!$AL$1) -> 299.001 | V28: 0.0009814162335 | W28: 0.0008970378562 | X28: =+IF(INDEX($C28:$G28,1,aux!$AL$1)>0,(G28/INDEX($C28:$G28,1,aux!$AL$1))^(1/($G$3-INDEX($C$3:$G$3,1,aux!$AL$1)))-1,"n.d.") -> 0.01403771394 | Y28: =IF(INDEX($C28:$G28,1,aux!$AL$1)>0,(G28-INDEX($C28:$G28,1,aux!$AL$1))/INDEX($C28:$G28,1,aux!$AL$1),"n.d.") -> 0.05734430402 | AA28: =O28-INDEX($K28:$O28,1,aux!$AL$1) -> -56.594 | AB28: -0.0001997450172 | AC28: -0.0001064402469 | AD28: =+IF(INDEX($K28:$O28,1,aux!$AL$1)>0,(O28/INDEX($K28:$O28,1,aux!$AL$1))^(1/($O$3-INDEX($K$3:$O$3,1,aux!$AL$1)))-1,"n.d.") -> -0.03742980985 | AE28: =IF(INDEX($K28:$O28,1,aux!$AL$1)>0,(O28-INDEX($K28:$O28,1,aux!$AL$1))/INDEX($K28:$O28,1,aux!$AL$1),"n.d.") -> -0.1415210879
A29: 35 | B29: Caseínas, albuminas, gelatinas, peptonas, dextrinas (NC 3501 a 3505) | C29: 1286.997 | D29: 1416.488 | E29: 1572.752 | F29: 1911.197 | G29: 3922.114 | H29: 2021.9096 | I29: 0.00251767293 | J29: 0.002050316866 | K29: 89.662 | L29: 164.091 | M29: 384.465 | N29: 447.332 | O29: 290.695 | P29: 275.249 | Q29: 0.0004072895167 | R29: 0.000202554788 | S29: -1746.6606 | U29: =G29-INDEX($C29:$G29,1,aux!$AL$1) -> 2635.117 | V29: 0.008649290808 | W29: 0.00790565819 | X29: =+IF(INDEX($C29:$G29,1,aux!$AL$1)>0,(G29/INDEX($C29:$G29,1,aux!$AL$1))^(1/($G$3-INDEX($C$3:$G$3,1,aux!$AL$1)))-1,"n.d.") -> 0.321252036 | Y29: =IF(INDEX($C29:$G29,1,aux!$AL$1)>0,(G29-INDEX($C29:$G29,1,aux!$AL$1))/INDEX($C29:$G29,1,aux!$AL$1),"n.d.") -> 2.047492729 | AA29: =O29-INDEX($K29:$O29,1,aux!$AL$1) -> 201.033 | AB29: 0.0007095335201 | AC29: 0.0003780966562 | AD29: =+IF(INDEX($K29:$O29,1,aux!$AL$1)>0,(O29/INDEX($K29:$O29,1,aux!$AL$1))^(1/($O$3-INDEX($K$3:$O$3,1,aux!$AL$1)))-1,"n.d.") -> 0.3418602408 | AE29: =IF(INDEX($K29:$O29,1,aux!$AL$1)>0,(O29-INDEX($K29:$O29,1,aux!$AL$1))/INDEX($K29:$O29,1,aux!$AL$1),"n.d.") -> 2.242120408
A30: 38a | B30: Agentes de acabamento, ácidos gordos, sorbitol (NC 380910, 382311-12-13-19-70, 382460) (a) | C30: 718.863 | D30: 470.1 | E30: 1584.569 | F30: 1424.509 | G30: 808.544 | H30: 1001.317 | I30: 0.001246835519 | J30: 0.001015385224 | K30: 1023.367 | L30: 1184.528 | M30: 357.904 | N30: 1.205 | O30: 0.038 | P30: 513.4084 | Q30: 0.000759697071 | R30: 0.0003778154675 | S30: -487.9086 | U30: =G30-INDEX($C30:$G30,1,aux!$AL$1) -> 89.681 | V30: 0.0002943615213 | W30: 0.0002690534546 | X30: =+IF(INDEX($C30:$G30,1,aux!$AL$1)>0,(G30/INDEX($C30:$G30,1,aux!$AL$1))^(1/($G$3-INDEX($C$3:$G$3,1,aux!$AL$1)))-1,"n.d.") -> 0.02982725598 | Y30: =IF(INDEX($C30:$G30,1,aux!$AL$1)>0,(G30-INDEX($C30:$G30,1,aux!$AL$1))/INDEX($C30:$G30,1,aux!$AL$1),"n.d.") -> 0.1247539517 | AA30: =O30-INDEX($K30:$O30,1,aux!$AL$1) -> -1023.329 | AB30: -0.003611776313 | AC30: -0.001924645571 | AD30: =+IF(INDEX($K30:$O30,1,aux!$AL$1)>0,(O30/INDEX($K30:$O30,1,aux!$AL$1))^(1/($O$3-INDEX($K$3:$O$3,1,aux!$AL$1)))-1,"n.d.") -> -0.9219382924 | AE30: =IF(INDEX($K30:$O30,1,aux!$AL$1)>0,(O30-INDEX($K30:$O30,1,aux!$AL$1))/INDEX($K30:$O30,1,aux!$AL$1),"n.d.") -> -0.9999628677
A31: 41 | B31: Couro e peles em bruto (NC 4101 a 4103) | C31: 1019.457 | D31: 1089.262 | E31: 1255.754 | F31: 523.756 | G31: 666.793 | H31: 911.0044 | I31: 0.001134378667 | J31: 0.0009238037576 | K31: 17.228 | L31: 0 | M31: 0 | N31: 0.963 | O31: 398.76 | P31: 83.3902 | Q31: 0.0001233935609 | R31: 6.136656004e-05 | S31: -827.6142 | U31: =G31-INDEX($C31:$G31,1,aux!$AL$1) -> -352.664 | V31: -0.001157555241 | W31: -0.001058033112 | X31: =+IF(INDEX($C31:$G31,1,aux!$AL$1)>0,(G31/INDEX($C31:$G31,1,aux!$AL$1))^(1/($G$3-INDEX($C$3:$G$3,1,aux!$AL$1)))-1,"n.d.") -> -0.1006980608 | Y31: =IF(INDEX($C31:$G31,1,aux!$AL$1)>0,(G31-INDEX($C31:$G31,1,aux!$AL$1))/INDEX($C31:$G31,1,aux!$AL$1),"n.d.") -> -0.3459331782 | AA31: =O31-INDEX($K31:$O31,1,aux!$AL$1) -> 381.532 | AB31: 0.001346593559 | AC31: 0.0007175735996 | AD31: =+IF(INDEX($K31:$O31,1,aux!$AL$1)>0,(O31/INDEX($K31:$O31,1,aux!$AL$1))^(1/($O$3-INDEX($K$3:$O$3,1,aux!$AL$1)))-1,"n.d.") -> 1.193406777 | AE31: =IF(INDEX($K31:$O31,1,aux!$AL$1)>0,(O31-INDEX($K31:$O31,1,aux!$AL$1))/INDEX($K31:$O31,1,aux!$AL$1),"n.d.") -> 22.14604133
A32: 43 | B32: Peles com pelo em bruto (NC 4301) | C32: 67.853 | D32: 61.153 | E32: 59.792 | F32: 92.413 | G32: 93.359 | H32: 74.914 | I32: 9.328258289e-05 | J32: 7.596652079e-05 | K32: 0 | L32: 0 | M32: 0 | N32: 0 | O32: 3 | P32: 0.6 | Q32: 8.87827785e-07 | R32: 4.415379268e-07 | S32: -74.314 | U32: =G32-INDEX($C32:$G32,1,aux!$AL$1) -> 25.506 | V32: 8.371879175e-05 | W32: 7.652097338e-05 | X32: =+IF(INDEX($C32:$G32,1,aux!$AL$1)>0,(G32/INDEX($C32:$G32,1,aux!$AL$1))^(1/($G$3-INDEX($C$3:$G$3,1,aux!$AL$1)))-1,"n.d.") -> 0.08304570468 | Y32: =IF(INDEX($C32:$G32,1,aux!$AL$1)>0,(G32-INDEX($C32:$G32,1,aux!$AL$1))/INDEX($C32:$G32,1,aux!$AL$1),"n.d.") -> 0.3759008445 | AA32: =O32-INDEX($K32:$O32,1,aux!$AL$1) -> 3 | AB32: 1.058831416e-05 | AC32: 5.642307326e-06 | AD32: =+IF(INDEX($K32:$O32,1,aux!$AL$1)>0,(O32/INDEX($K32:$O32,1,aux!$AL$1))^(1/($O$3-INDEX($K$3:$O$3,1,aux!$AL$1)))-1,"n.d.") -> n.d. | AE32: =IF(INDEX($K32:$O32,1,aux!$AL$1)>0,(O32-INDEX($K32:$O32,1,aux!$AL$1))/INDEX($K32:$O32,1,aux!$AL$1),"n.d.") -> n.d.
A33: 50 | B33: Seda crua (NC 5001-5003) | C33: 0 | D33: 0.005 | E33: 0 | F33: 0 | G33: 0 | H33: 0.001 | I33: 1.245195596e-09 | J33: 1.014049721e-09 | K33: 0 | L33: 29.847 | M33: 0 | N33: 0 | O33: 0 | P33: 5.9694 | Q33: 8.832998633e-06 | R33: 4.392860834e-06 | S33: 5.9684 | U33: =G33-INDEX($C33:$G33,1,aux!$AL$1) -> 0 | V33: 0 | W33: 0 | X33: =+IF(INDEX($C33:$G33,1,aux!$AL$1)>0,(G33/INDEX($C33:$G33,1,aux!$AL$1))^(1/($G$3-INDEX($C$3:$G$3,1,aux!$AL$1)))-1,"n.d.") -> n.d. | Y33: =IF(INDEX($C33:$G33,1,aux!$AL$1)>0,(G33-INDEX($C33:$G33,1,aux!$AL$1))/INDEX($C33:$G33,1,aux!$AL$1),"n.d.") -> n.d. | AA33: =O33-INDEX($K33:$O33,1,aux!$AL$1) -> 0 | AB33: 0 | AC33: 0 | AD33: =+IF(INDEX($K33:$O33,1,aux!$AL$1)>0,(O33/INDEX($K33:$O33,1,aux!$AL$1))^(1/($O$3-INDEX($K$3:$O$3,1,aux!$AL$1)))-1,"n.d.") -> n.d. | AE33: =IF(INDEX($K33:$O33,1,aux!$AL$1)>0,(O33-INDEX($K33:$O33,1,aux!$AL$1))/INDEX($K33:$O33,1,aux!$AL$1),"n.d.") -> n.d.
A34: 51 | B34: Lã não cardada (NC 5101-5103) | C34: 17.482 | D34: 7.986 | E34: 0.002 | F34: 30.122 | G34: 6.923 | H34: 12.503 | I34: 1.556868054e-05 | J34: 1.267866366e-05 | K34: 3.079 | L34: 11.914 | M34: 8.374 | N34: 0 | O34: 20.927 | P34: 8.8588 | Q34: 1.31084813e-05 | R34: 6.51916031e-06 | S34: -3.6442 | U34: =G34-INDEX($C34:$G34,1,aux!$AL$1) -> -10.559 | V34: -3.465799114e-05 | W34: -3.167823092e-05 | X34: =+IF(INDEX($C34:$G34,1,aux!$AL$1)>0,(G34/INDEX($C34:$G34,1,aux!$AL$1))^(1/($G$3-INDEX($C$3:$G$3,1,aux!$AL$1)))-1,"n.d.") -> -0.2067212807 | Y34: =IF(INDEX($C34:$G34,1,aux!$AL$1)>0,(G34-INDEX($C34:$G34,1,aux!$AL$1))/INDEX($C34:$G34,1,aux!$AL$1),"n.d.") -> -0.6039926782 | AA34: =O34-INDEX($K34:$O34,1,aux!$AL$1) -> 17.848 | AB34: 6.299341037e-05 | AC34: 3.356796705e-05 | AD34: =+IF(INDEX($K34:$O34,1,aux!$AL$1)>0,(O34/INDEX($K34:$O34,1,aux!$AL$1))^(1/($O$3-INDEX($K$3:$O$3,1,aux!$AL$1)))-1,"n.d.") -> 0.6146348476 | AE34: =IF(INDEX($K34:$O34,1,aux!$AL$1)>0,(O34-INDEX($K34:$O34,1,aux!$AL$1))/INDEX($K34:$O34,1,aux!$AL$1),"n.d.") -> 5.796687236
A35: 52 | B35: Algodão (NC 5201-5203) | C35: 1612.159 | D35: 262.362 | E35: 193.462 | F35: 973.32 | G35: 3404.213 | H35: 1289.1032 | I35: 0.001605185628 | J35: 0.00130721474 | K35: 389.265 | L35: 408.347 | M35: 684.027 | N35: 657.046 | O35: 448.986 | P35: 517.5342 | Q35: 0.0007658020708 | R35: 0.0003808516295 | S35: -771.569 | U35: =G35-INDEX($C35:$G35,1,aux!$AL$1) -> 1792.054 | V35: 0.005882090317 | W35: 0.00537637091 | X35: =+IF(INDEX($C35:$G35,1,aux!$AL$1)>0,(G35/INDEX($C35:$G35,1,aux!$AL$1))^(1/($G$3-INDEX($C$3:$G$3,1,aux!$AL$1)))-1,"n.d.") -> 0.2054583607 | Y35: =IF(INDEX($C35:$G35,1,aux!$AL$1)>0,(G35-INDEX($C35:$G35,1,aux!$AL$1))/INDEX($C35:$G35,1,aux!$AL$1),"n.d.") -> 1.111586388 | AA35: =O35-INDEX($K35:$O35,1,aux!$AL$1) -> 59.721 | AB35: 0.00021078157 | AC35: 0.0001123214119 | AD35: =+IF(INDEX($K35:$O35,1,aux!$AL$1)>0,(O35/INDEX($K35:$O35,1,aux!$AL$1))^(1/($O$3-INDEX($K$3:$O$3,1,aux!$AL$1)))-1,"n.d.") -> 0.03632711318 | AE35: =IF(INDEX($K35:$O35,1,aux!$AL$1)>0,(O35-INDEX($K35:$O35,1,aux!$AL$1))/INDEX($K35:$O35,1,aux!$AL$1),"n.d.") -> 0.1534199067
A36: 53 | B36: Linho e cânhamo em bruto (NC 5301-5302) | C36: 53.991 | D36: 212.773 | E36: 0.373 | F36: 0.489 | G36: 0.2 | H36: 53.5652 | I36: 6.669915115e-05 | J36: 5.431777611e-05 | K36: 13.74 | L36: 9.405 | M36: 17.741 | N36: 40.357 | O36: 36.848 | P36: 23.6182 | Q36: 3.494815699e-05 | R36: 1.738055177e-05 | S36: -29.947 | U36: =G36-INDEX($C36:$G36,1,aux!$AL$1) -> -53.791 | V36: -0.000176559144 | W36: =IF($U$53<>0,U36/$U$53, "n.d.") -> -0.0001613792707 | X36: =+IF(INDEX($C36:$G36,1,aux!$AL$1)>0,(G36/INDEX($C36:$G36,1,aux!$AL$1))^(1/($G$3-INDEX($C$3:$G$3,1,aux!$AL$1)))-1,"n.d.") -> -0.7532954518 | Y36: =IF(INDEX($C36:$G36,1,aux!$AL$1)>0,(G36-INDEX($C36:$G36,1,aux!$AL$1))/INDEX($C36:$G36,1,aux!$AL$1),"n.d.") -> -0.9962956789 | AA36: =O36-INDEX($K36:$O36,1,aux!$AL$1) -> 23.108 | AB36: 8.155825452e-05 | AC36: =IF($AA$53<>0,AA36/$AA$53, "n.d.") -> 4.346081257e-05 | AD36: =+IF(INDEX($K36:$O36,1,aux!$AL$1)>0,(O36/INDEX($K36:$O36,1,aux!$AL$1))^(1/($O$3-INDEX($K$3:$O$3,1,aux!$AL$1)))-1,"n.d.") -> 0.2796959544 | AE36: =IF(INDEX($K36:$O36,1,aux!$AL$1)>0,(O36-INDEX($K36:$O36,1,aux!$AL$1))/INDEX($K36:$O36,1,aux!$AL$1),"n.d.") -> 1.681804949
A37: Subtotal Agrícola e Agroalimentar | C37: 731652.498 | D37: 722271.67 | E37: 706244.575 | F37: 818949.388 | G37: 1036315.28 | H37: 803086.6822 | I37: 1 | J37: 0.814369826 | K37: 523682.574 | L37: 592609.494 | M37: 699507.72 | N37: 756220.109 | O37: 807013.797 | P37: 675806.7388 | Q37: 1 | R37: 0.4973238439 | S37: -127279.9434 | U37: =G37-INDEX($C37:$G37,1,aux!$AL$1) -> 304662.782 | V37: 1 | W37: 0.9140238622 | X37: =+IF(INDEX($C37:$G37,1,aux!$AL$1)>0,(G37/INDEX($C37:$G37,1,aux!$AL$1))^(1/($G$3-INDEX($C$3:$G$3,1,aux!$AL$1)))-1,"n.d.") -> 0.09092968778 | Y37: =IF(INDEX($C37:$G37,1,aux!$AL$1)>0,(G37-INDEX($C37:$G37,1,aux!$AL$1))/INDEX($C37:$G37,1,aux!$AL$1),"n.d.") -> 0.4164036654 | AA37: =O37-INDEX($K37:$O37,1,aux!$AL$1) -> 283331.223 | AB37: 1 | AC37: 0.5328806118 | AD37: =+IF(INDEX($K37:$O37,1,aux!$AL$1)>0,(O37/INDEX($K37:$O37,1,aux!$AL$1))^(1/($O$3-INDEX($K$3:$O$3,1,aux!$AL$1)))-1,"n.d.") -> 0.1141744863 | AE37: =IF(INDEX($K37:$O37,1,aux!$AL$1)>0,(O37-INDEX($K37:$O37,1,aux!$AL$1))/INDEX($K37:$O37,1,aux!$AL$1),"n.d.") -> 0.5410361869
A38: 03 | B38: Peixes e crustáceos | C38: 29813.934 | D38: 29317.833 | E38: 27050.227 | F38: 34257.097 | G38: 46305.322 | H38: 33348.8826 | I38: 0.8856352066 | J38: 0.03381742509 | K38: 43444.104 | L38: 50834.106 | M38: 50685.382 | N38: 66548.784 | O38: 64770.608 | P38: 55256.5968 | Q38: 0.4533203223 | R38: 0.04066313865 | S38: 21907.7142 | U38: =G38-INDEX($C38:$G38,1,aux!$AL$1) -> 16491.388 | V38: =IF($U$44<>0,U38/$U$44, "n.d.") -> 0.8612104153 | W38: 0.04947608649 | X38: =+IF(INDEX($C38:$G38,1,aux!$AL$1)>0,(G38/INDEX($C38:$G38,1,aux!$AL$1))^(1/($G$3-INDEX($C$3:$G$3,1,aux!$AL$1)))-1,"n.d.") -> 0.1163565008 | Y38: =IF(INDEX($C38:$G38,1,aux!$AL$1)>0,(G38-INDEX($C38:$G38,1,aux!$AL$1))/INDEX($C38:$G38,1,aux!$AL$1),"n.d.") -> 0.5531436408 | AA38: =O38-INDEX($K38:$O38,1,aux!$AL$1) -> 21326.504 | AB38: =IF($AA$44<>0,AA38/$AA$44, "n.d.") -> 0.5776045637 | AC38: 0.04011022992 | AD38: =+IF(INDEX($K38:$O38,1,aux!$AL$1)>0,(O38/INDEX($K38:$O38,1,aux!$AL$1))^(1/($O$3-INDEX($K$3:$O$3,1,aux!$AL$1)))-1,"n.d.") -> 0.1049987387 | AE38: =IF(INDEX($K38:$O38,1,aux!$AL$1)>0,(O38-INDEX($K38:$O38,1,aux!$AL$1))/INDEX($K38:$O38,1,aux!$AL$1),"n.d.") -> 0.4908952432
A39: 05p | B39: Outros produtos de pescado (NC 0508, 051191) (p) | C39: 0 | D39: 0.193 | E39: 7.746 | F39: 4.975 | G39: 18.71 | H39: 6.3248 | I39: 0.0001679656144 | J39: 6.413661675e-06 | K39: 11.4 | L39: 16.356 | M39: 8.684 | N39: 7.703 | O39: 8.591 | P39: 10.5468 | Q39: 8.652503143e-05 | R39: 7.761353677e-06 | S39: 4.222 | U39: =G39-INDEX($C39:$G39,1,aux!$AL$1) -> 18.71 | V39: 0.0009770703879 | W39: 5.613218113e-05 | X39: =+IF(INDEX($C39:$G39,1,aux!$AL$1)>0,(G39/INDEX($C39:$G39,1,aux!$AL$1))^(1/($G$3-INDEX($C$3:$G$3,1,aux!$AL$1)))-1,"n.d.") -> n.d. | Y39: =IF(INDEX($C39:$G39,1,aux!$AL$1)>0,(G39-INDEX($C39:$G39,1,aux!$AL$1))/INDEX($C39:$G39,1,aux!$AL$1),"n.d.") -> n.d. | AA39: =O39-INDEX($K39:$O39,1,aux!$AL$1) -> -2.809 | AB39: -7.607863058e-05 | AC39: -5.283080427e-06 | AD39: =+IF(INDEX($K39:$O39,1,aux!$AL$1)>0,(O39/INDEX($K39:$O39,1,aux!$AL$1))^(1/($O$3-INDEX($K$3:$O$3,1,aux!$AL$1)))-1,"n.d.") -> -0.06828150409 | AE39: =IF(INDEX($K39:$O39,1,aux!$AL$1)>0,(O39-INDEX($K39:$O39,1,aux!$AL$1))/INDEX($K39:$O39,1,aux!$AL$1),"n.d.") -> -0.2464035088
A40: 16p | B40: Preparações e conservas de peixes ou crustáceos (NC 1604-05) (p) | C40: 2360.638 | D40: 3341.198 | E40: 3162.915 | F40: 3147.602 | G40: 4599.755 | H40: 3322.4216 | I40: 0.08823244771 | J40: 0.003369100696 | K40: 58906.158 | L40: 59937.861 | M40: 66525.839 | N40: 63467.707 | O40: 74413.646 | P40: 64650.2422 | Q40: 0.5303849735 | R40: 0.04757588984 | S40: 61327.8206 | U40: =G40-INDEX($C40:$G40,1,aux!$AL$1) -> 2239.117 | V40: 0.1169307812 | W40: 0.006717612026 | X40: =+IF(INDEX($C40:$G40,1,aux!$AL$1)>0,(G40/INDEX($C40:$G40,1,aux!$AL$1))^(1/($G$3-INDEX($C$3:$G$3,1,aux!$AL$1)))-1,"n.d.") -> 0.1814798701 | Y40: =IF(INDEX($C40:$G40,1,aux!$AL$1)>0,(G40-INDEX($C40:$G40,1,aux!$AL$1))/INDEX($C40:$G40,1,aux!$AL$1),"n.d.") -> 0.9485219674 | AA40: =O40-INDEX($K40:$O40,1,aux!$AL$1) -> 15507.488 | AB40: 0.4200030085 | AC40: 0.02916600439 | AD40: =+IF(INDEX($K40:$O40,1,aux!$AL$1)>0,(O40/INDEX($K40:$O40,1,aux!$AL$1))^(1/($O$3-INDEX($K$3:$O$3,1,aux!$AL$1)))-1,"n.d.") -> 0.06016380153 | AE40: =IF(INDEX($K40:$O40,1,aux!$AL$1)>0,(O40-INDEX($K40:$O40,1,aux!$AL$1))/INDEX($K40:$O40,1,aux!$AL$1),"n.d.") -> 0.2632575019
A41: 19p | B41: Massas recheadas com pescado (NC 19022010) (p) | C41: 339.402 | D41: 485.477 | E41: 395.819 | F41: 547.394 | G41: 502.913 | H41: 454.201 | I41: 0.01206206521 | J41: 0.0004605823973 | K41: 640.002 | L41: 680.526 | M41: 1481.071 | N41: 2182.121 | O41: 883.684 | P41: 1173.4808 | Q41: 0.009627134591 | R41: 0.0008635604659 | S41: 719.2798 | U41: =G41-INDEX($C41:$G41,1,aux!$AL$1) -> 163.511 | V41: 0.008538843196 | W41: 0.0004905520614 | X41: =+IF(INDEX($C41:$G41,1,aux!$AL$1)>0,(G41/INDEX($C41:$G41,1,aux!$AL$1))^(1/($G$3-INDEX($C$3:$G$3,1,aux!$AL$1)))-1,"n.d.") -> 0.1033025355 | Y41: =IF(INDEX($C41:$G41,1,aux!$AL$1)>0,(G41-INDEX($C41:$G41,1,aux!$AL$1))/INDEX($C41:$G41,1,aux!$AL$1),"n.d.") -> 0.4817620403 | AA41: =O41-INDEX($K41:$O41,1,aux!$AL$1) -> 243.682 | AB41: 0.006599855058 | AC41: 0.000458309578 | AD41: =+IF(INDEX($K41:$O41,1,aux!$AL$1)>0,(O41/INDEX($K41:$O41,1,aux!$AL$1))^(1/($O$3-INDEX($K$3:$O$3,1,aux!$AL$1)))-1,"n.d.") -> 0.08399908382 | AE41: =IF(INDEX($K41:$O41,1,aux!$AL$1)>0,(O41-INDEX($K41:$O41,1,aux!$AL$1))/INDEX($K41:$O41,1,aux!$AL$1),"n.d.") -> 0.3807519352
A42: 23p | B42: Farinhas de pescado (NC 230120) (p) | C42: 0.738 | D42: 7.915 | E42: 0.879 | F42: 20.76 | G42: 204.903 | H42: 47.039 | I42: 0.001249199111 | J42: 4.769988482e-05 | K42: 101.068 | L42: 0 | M42: 0.004 | N42: 0 | O42: 0 | P42: 20.2144 | Q42: 0.0001658371824 | R42: 1.487570711e-05 | S42: -26.8246 | U42: =G42-INDEX($C42:$G42,1,aux!$AL$1) -> 204.165 | V42: 0.01066186936 | W42: 0.0006125188006 | X42: =+IF(INDEX($C42:$G42,1,aux!$AL$1)>0,(G42/INDEX($C42:$G42,1,aux!$AL$1))^(1/($G$3-INDEX($C$3:$G$3,1,aux!$AL$1)))-1,"n.d.") -> 3.081999891 | Y42: =IF(INDEX($C42:$G42,1,aux!$AL$1)>0,(G42-INDEX($C42:$G42,1,aux!$AL$1))/INDEX($C42:$G42,1,aux!$AL$1),"n.d.") -> 276.6463415 | AA42: =O42-INDEX($K42:$O42,1,aux!$AL$1) -> -101.068 | AB42: -0.002737314003 | AC42: -0.0001900855723 | AD42: =+IF(INDEX($K42:$O42,1,aux!$AL$1)>0,(O42/INDEX($K42:$O42,1,aux!$AL$1))^(1/($O$3-INDEX($K$3:$O$3,1,aux!$AL$1)))-1,"n.d.") -> -1 | AE42: =IF(INDEX($K42:$O42,1,aux!$AL$1)>0,(O42-INDEX($K42:$O42,1,aux!$AL$1))/INDEX($K42:$O42,1,aux!$AL$1),"n.d.") -> -1
A43: 25 | B43: Sal e cloreto de sódio puro; água do mar (NC 2501) | C43: 548.075 | D43: 531.24 | E43: 384.541 | F43: 338.165 | G43: 580.265 | H43: 476.4572 | I43: 0.01265311572 | J43: 0.0004831512907 | K43: 816.599 | L43: 602.881 | M43: 782.817 | N43: 942.421 | O43: 765.128 | P43: 781.9692 | Q43: 0.006415207419 | R43: 0.0005754484323 | S43: 305.512 | U43: =G43-INDEX($C43:$G43,1,aux!$AL$1) -> 32.19 | V43: 0.001681020619 | W43: 9.657375257e-05 | X43: =+IF(INDEX($C43:$G43,1,aux!$AL$1)>0,(G43/INDEX($C43:$G43,1,aux!$AL$1))^(1/($G$3-INDEX($C$3:$G$3,1,aux!$AL$1)))-1,"n.d.") -> 0.01437046568 | Y43: =IF(INDEX($C43:$G43,1,aux!$AL$1)>0,(G43-INDEX($C43:$G43,1,aux!$AL$1))/INDEX($C43:$G43,1,aux!$AL$1),"n.d.") -> 0.05873283766 | AA43: =O43-INDEX($K43:$O43,1,aux!$AL$1) -> -51.471 | AB43: -0.001394034601 | AC43: -9.68050668e-05 | AD43: =+IF(INDEX($K43:$O43,1,aux!$AL$1)>0,(O43/INDEX($K43:$O43,1,aux!$AL$1))^(1/($O$3-INDEX($K$3:$O$3,1,aux!$AL$1)))-1,"n.d.") -> -0.01614451106 | AE43: =IF(INDEX($K43:$O43,1,aux!$AL$1)>0,(O43-INDEX($K43:$O43,1,aux!$AL$1))/INDEX($K43:$O43,1,aux!$AL$1),"n.d.") -> -0.06303093685
A44: Subtotal Mar | C44: 33062.787 | D44: 33683.856 | E44: 31002.127 | F44: 38315.993 | G44: 52211.868 | H44: 37655.3262 | I44: 1 | J44: 0.03818437303 | K44: 103919.331 | L44: 112071.73 | M44: 119483.797 | N44: 133148.736 | O44: 140841.657 | P44: 121893.0502 | Q44: 1 | R44: 0.08970067446 | S44: 84237.724 | U44: =G44-INDEX($C44:$G44,1,aux!$AL$1) -> 19149.081 | V44: 1 | W44: 0.05744947531 | X44: =+IF(INDEX($C44:$G44,1,aux!$AL$1)>0,(G44/INDEX($C44:$G44,1,aux!$AL$1))^(1/($G$3-INDEX($C$3:$G$3,1,aux!$AL$1)))-1,"n.d.") -> 0.1210047247 | Y44: =IF(INDEX($C44:$G44,1,aux!$AL$1)>0,(G44-INDEX($C44:$G44,1,aux!$AL$1))/INDEX($C44:$G44,1,aux!$AL$1),"n.d.") -> 0.5791732258 | AA44: =O44-INDEX($K44:$O44,1,aux!$AL$1) -> 36922.326 | AB44: 1 | AC44: 0.06944237017 | AD44: =+IF(INDEX($K44:$O44,1,aux!$AL$1)>0,(O44/INDEX($K44:$O44,1,aux!$AL$1))^(1/($O$3-INDEX($K$3:$O$3,1,aux!$AL$1)))-1,"n.d.") -> 0.0789683263 | AE44: =IF(INDEX($K44:$O44,1,aux!$AL$1)>0,(O44-INDEX($K44:$O44,1,aux!$AL$1))/INDEX($K44:$O44,1,aux!$AL$1),"n.d.") -> 0.355297957
A45: 13f | B45: Gomas e resinas (NC 1301) (f) | C45: 669.168 | D45: 824.816 | E45: 574.305 | F45: 765.402 | G45: 750.879 | H45: 716.914 | I45: 0.004930533367 | J45: 0.0007269864416 | K45: 26.14 | L45: 24.95 | M45: 288.805 | N45: 107.32 | O45: 142.801 | P45: 118.0032 | Q45: 0.0002102743407 | R45: 8.683814714e-05 | S45: -598.9108 | U45: =G45-INDEX($C45:$G45,1,aux!$AL$1) -> 81.711 | V45: =IF($U$52<>0,U45/$U$52, "n.d.") -> 0.008593452734 | W45: 0.0002451425255 | X45: =+IF(INDEX($C45:$G45,1,aux!$AL$1)>0,(G45/INDEX($C45:$G45,1,aux!$AL$1))^(1/($G$3-INDEX($C$3:$G$3,1,aux!$AL$1)))-1,"n.d.") -> 0.02922114124 | Y45: =IF(INDEX($C45:$G45,1,aux!$AL$1)>0,(G45-INDEX($C45:$G45,1,aux!$AL$1))/INDEX($C45:$G45,1,aux!$AL$1),"n.d.") -> 0.1221083495 | AA45: =O45-INDEX($K45:$O45,1,aux!$AL$1) -> 116.661 | AB45: =IF($AA$52<>0,AA45/$AA$52, "n.d.") -> 0.0005517351897 | AC45: 0.000219412405 | AD45: =+IF(INDEX($K45:$O45,1,aux!$AL$1)>0,(O45/INDEX($K45:$O45,1,aux!$AL$1))^(1/($O$3-INDEX($K$3:$O$3,1,aux!$AL$1)))-1,"n.d.") -> 0.5288202142 | AE45: =IF(INDEX($K45:$O45,1,aux!$AL$1)>0,(O45-INDEX($K45:$O45,1,aux!$AL$1))/INDEX($K45:$O45,1,aux!$AL$1),"n.d.") -> 4.462930375
A46: 38f | B46: Tall oil, essências e colofónias (NC 3803,3805,3806) (f) | C46: 146.103 | D46: 128.738 | E46: 277.038 | F46: 276.33 | G46: 434.591 | H46: 252.56 | I46: 0.001736966369 | J46: 0.0002561083975 | K46: 7958.74 | L46: 6902.285 | M46: 7285.57 | N46: 13246.626 | O46: 16425.824 | P46: 10363.809 | Q46: 0.01846766109 | R46: 0.007626691232 | S46: 10111.249 | U46: =G46-INDEX($C46:$G46,1,aux!$AL$1) -> 288.488 | V46: 0.03033995413 | W46: 0.0008654976306 | X46: =+IF(INDEX($C46:$G46,1,aux!$AL$1)>0,(G46/INDEX($C46:$G46,1,aux!$AL$1))^(1/($G$3-INDEX($C$3:$G$3,1,aux!$AL$1)))-1,"n.d.") -> 0.3132741585 | Y46: =IF(INDEX($C46:$G46,1,aux!$AL$1)>0,(G46-INDEX($C46:$G46,1,aux!$AL$1))/INDEX($C46:$G46,1,aux!$AL$1),"n.d.") -> 1.974552199 | AA46: =O46-INDEX($K46:$O46,1,aux!$AL$1) -> 8467.084 | AB46: 0.04004412955 | AC46: 0.01592463003 | AD46: =+IF(INDEX($K46:$O46,1,aux!$AL$1)>0,(O46/INDEX($K46:$O46,1,aux!$AL$1))^(1/($O$3-INDEX($K$3:$O$3,1,aux!$AL$1)))-1,"n.d.") -> 0.1985901711 | AE46: =IF(INDEX($K46:$O46,1,aux!$AL$1)>0,(O46-INDEX($K46:$O46,1,aux!$AL$1))/INDEX($K46:$O46,1,aux!$AL$1),"n.d.") -> 1.063872422
A47: 44 | B47: Madeira e suas obras | C47: 61924.052 | D47: 56881.692 | E47: 51248.058 | F47: 63043.737 | G47: 76824.837 | H47: 61984.4752 | I47: 0.4262945391 | J47: 0.06285533978 | K47: 62632.743 | L47: 67853.832 | M47: 63506.566 | N47: 83790.859 | O47: 106780.151 | P47: 76912.8302 | Q47: 0.1370538652 | R47: 0.05659988598 | S47: 14928.355 | U47: =G47-INDEX($C47:$G47,1,aux!$AL$1) -> 14900.785 | V47: 1.567098574 | W47: 0.04470409207 | X47: =+IF(INDEX($C47:$G47,1,aux!$AL$1)>0,(G47/INDEX($C47:$G47,1,aux!$AL$1))^(1/($G$3-INDEX($C$3:$G$3,1,aux!$AL$1)))-1,"n.d.") -> 0.05538415644 | Y47: =IF(INDEX($C47:$G47,1,aux!$AL$1)>0,(G47-INDEX($C47:$G47,1,aux!$AL$1))/INDEX($C47:$G47,1,aux!$AL$1),"n.d.") -> 0.2406300059 | AA47: =O47-INDEX($K47:$O47,1,aux!$AL$1) -> 44147.408 | AB47: 0.2087902429 | AC47: 0.0830310812 | AD47: =+IF(INDEX($K47:$O47,1,aux!$AL$1)>0,(O47/INDEX($K47:$O47,1,aux!$AL$1))^(1/($O$3-INDEX($K$3:$O$3,1,aux!$AL$1)))-1,"n.d.") -> 0.1426738131 | AE47: =IF(INDEX($K47:$O47,1,aux!$AL$1)>0,(O47-INDEX($K47:$O47,1,aux!$AL$1))/INDEX($K47:$O47,1,aux!$AL$1),"n.d.") -> 0.7048614812
A48: 45 | B48: Cortiça e suas obras | C48: 2591.883 | D48: 2179.061 | E48: 6796.939 | F48: 6458.696 | G48: 7576.647 | H48: 5120.6452 | I48: 0.0352169326 | J48: 0.005192588836 | K48: 191801.381 | L48: 190653.879 | M48: 179772.357 | N48: 199483.26 | O48: 230567.715 | P48: 198455.7184 | Q48: 0.3536357095 | R48: 0.1460428774 | S48: 193335.0732 | U48: =G48-INDEX($C48:$G48,1,aux!$AL$1) -> 4984.764 | V48: 0.5242419481 | W48: 0.0149548731 | X48: =+IF(INDEX($C48:$G48,1,aux!$AL$1)>0,(G48/INDEX($C48:$G48,1,aux!$AL$1))^(1/($G$3-INDEX($C$3:$G$3,1,aux!$AL$1)))-1,"n.d.") -> 0.3075714068 | Y48: =IF(INDEX($C48:$G48,1,aux!$AL$1)>0,(G48-INDEX($C48:$G48,1,aux!$AL$1))/INDEX($C48:$G48,1,aux!$AL$1),"n.d.") -> 1.923221071 | AA48: =O48-INDEX($K48:$O48,1,aux!$AL$1) -> 38766.334 | AB48: 0.1833410535 | AC48: 0.07291052345 | AD48: =+IF(INDEX($K48:$O48,1,aux!$AL$1)>0,(O48/INDEX($K48:$O48,1,aux!$AL$1))^(1/($O$3-INDEX($K$3:$O$3,1,aux!$AL$1)))-1,"n.d.") -> 0.04709646024 | AE48: =IF(INDEX($K48:$O48,1,aux!$AL$1)>0,(O48-INDEX($K48:$O48,1,aux!$AL$1))/INDEX($K48:$O48,1,aux!$AL$1),"n.d.") -> 0.2021170744
A49: 46 | B49: Obras de espartaria ou de cestaria | C49: 138.939 | D49: 477.491 | E49: 572.918 | F49: 754.766 | G49: 1042.85 | H49: 597.3928 | I49: 0.004108533427 | J49: 0.0006057860021 | K49: 2.427 | L49: 7.174 | M49: 5.287 | N49: 396.942 | O49: 28.764 | P49: 88.1188 | Q49: 0.0001570222043 | R49: 6.484632044e-05 | S49: -509.274 | U49: =G49-INDEX($C49:$G49,1,aux!$AL$1) -> 903.911 | V49: 0.09506328957 | W49: 0.002711838374 | X49: =+IF(INDEX($C49:$G49,1,aux!$AL$1)>0,(G49/INDEX($C49:$G49,1,aux!$AL$1))^(1/($G$3-INDEX($C$3:$G$3,1,aux!$AL$1)))-1,"n.d.") -> 0.6551959659 | Y49: =IF(INDEX($C49:$G49,1,aux!$AL$1)>0,(G49-INDEX($C49:$G49,1,aux!$AL$1))/INDEX($C49:$G49,1,aux!$AL$1),"n.d.") -> 6.505811903 | AA49: =O49-INDEX($K49:$O49,1,aux!$AL$1) -> 26.337 | AB49: 0.0001245579044 | AC49: 4.953381602e-05 | AD49: =+IF(INDEX($K49:$O49,1,aux!$AL$1)>0,(O49/INDEX($K49:$O49,1,aux!$AL$1))^(1/($O$3-INDEX($K$3:$O$3,1,aux!$AL$1)))-1,"n.d.") -> 0.8554312886 | AE49: =IF(INDEX($K49:$O49,1,aux!$AL$1)>0,(O49-INDEX($K49:$O49,1,aux!$AL$1))/INDEX($K49:$O49,1,aux!$AL$1),"n.d.") -> 10.85166873
A50: 47 | B50: Pastas de madeira | C50: 22444.539 | D50: 7985.651 | E50: 5303.1 | F50: 1979.851 | G50: 5866.917 | H50: 8716.0116 | I50: 0.05994385104 | J50: 0.008838469131 | K50: 31839.134 | L50: 19866.514 | M50: 7254.23 | N50: 8072.665 | O50: 13472.315 | P50: 16100.9716 | Q50: 0.02869092693 | R50: 0.01184864937 | S50: 7384.96 | U50: =G50-INDEX($C50:$G50,1,aux!$AL$1) -> -16577.622 | V50: -1.74344961 | W50: -0.04973479855 | X50: =+IF(INDEX($C50:$G50,1,aux!$AL$1)>0,(G50/INDEX($C50:$G50,1,aux!$AL$1))^(1/($G$3-INDEX($C$3:$G$3,1,aux!$AL$1)))-1,"n.d.") -> -0.2849690943 | Y50: =IF(INDEX($C50:$G50,1,aux!$AL$1)>0,(G50-INDEX($C50:$G50,1,aux!$AL$1))/INDEX($C50:$G50,1,aux!$AL$1),"n.d.") -> -0.7386038091 | AA50: =O50-INDEX($K50:$O50,1,aux!$AL$1) -> -18366.819 | AB50: -0.08686382223 | AC50: -0.0345437458 | AD50: =+IF(INDEX($K50:$O50,1,aux!$AL$1)>0,(O50/INDEX($K50:$O50,1,aux!$AL$1))^(1/($O$3-INDEX($K$3:$O$3,1,aux!$AL$1)))-1,"n.d.") -> -0.1934705214 | AE50: =IF(INDEX($K50:$O50,1,aux!$AL$1)>0,(O50-INDEX($K50:$O50,1,aux!$AL$1))/INDEX($K50:$O50,1,aux!$AL$1),"n.d.") -> -0.5768630202
A51: 48 | B51: Papel e cartão | C51: 71257.057 | D51: 67008.942 | E51: 57722.766 | F51: 67902.355 | G51: 76183.538 | H51: 68014.9316 | I51: 0.4677686441 | J51: 0.06897052241 | K51: 232948.439 | L51: 249721.643 | M51: 212525.868 | N51: 229305.904 | O51: 371235.261 | P51: 259147.423 | Q51: 0.4617845408 | R51: 0.1907056931 | S51: 191132.4914 | U51: =G51-INDEX($C51:$G51,1,aux!$AL$1) -> 4926.481 | V51: 0.5181123914 | W51: 0.01478001731 | X51: =+IF(INDEX($C51:$G51,1,aux!$AL$1)>0,(G51/INDEX($C51:$G51,1,aux!$AL$1))^(1/($G$3-INDEX($C$3:$G$3,1,aux!$AL$1)))-1,"n.d.") -> 0.01685332727 | Y51: =IF(INDEX($C51:$G51,1,aux!$AL$1)>0,(G51-INDEX($C51:$G51,1,aux!$AL$1))/INDEX($C51:$G51,1,aux!$AL$1),"n.d.") -> 0.06913674529 | AA51: =O51-INDEX($K51:$O51,1,aux!$AL$1) -> 138286.822 | AB51: 0.6540121032 | AC51: 0.260085583 | AD51: =+IF(INDEX($K51:$O51,1,aux!$AL$1)>0,(O51/INDEX($K51:$O51,1,aux!$AL$1))^(1/($O$3-INDEX($K$3:$O$3,1,aux!$AL$1)))-1,"n.d.") -> 0.1235628055 | AE51: =IF(INDEX($K51:$O51,1,aux!$AL$1)>0,(O51-INDEX($K51:$O51,1,aux!$AL$1))/INDEX($K51:$O51,1,aux!$AL$1),"n.d.") -> 0.5936370409
A52: Subtotal Florestas | C52: 159171.741 | D52: 135486.391 | E52: 122495.124 | F52: 141181.137 | G52: 168680.259 | H52: 145402.9304 | I52: 1 | J52: 0.147445801 | K52: 527209.004 | L52: 535030.277 | M52: 470638.683 | N52: 534403.576 | O52: 738652.831 | P52: 561186.8742 | Q52: 1 | R52: 0.4129754816 | S52: 415783.9438 | U52: =G52-INDEX($C52:$G52,1,aux!$AL$1) -> 9508.518 | V52: 1 | W52: 0.02852666246 | X52: =+IF(INDEX($C52:$G52,1,aux!$AL$1)>0,(G52/INDEX($C52:$G52,1,aux!$AL$1))^(1/($G$3-INDEX($C$3:$G$3,1,aux!$AL$1)))-1,"n.d.") -> 0.01461101566 | Y52: =IF(INDEX($C52:$G52,1,aux!$AL$1)>0,(G52-INDEX($C52:$G52,1,aux!$AL$1))/INDEX($C52:$G52,1,aux!$AL$1),"n.d.") -> 0.05973747564 | AA52: =O52-INDEX($K52:$O52,1,aux!$AL$1) -> 211443.827 | AB52: 1 | AC52: 0.3976770181 | AD52: =+IF(INDEX($K52:$O52,1,aux!$AL$1)>0,(O52/INDEX($K52:$O52,1,aux!$AL$1))^(1/($O$3-INDEX($K$3:$O$3,1,aux!$AL$1)))-1,"n.d.") -> 0.08796365399 | AE52: =IF(INDEX($K52:$O52,1,aux!$AL$1)>0,(O52-INDEX($K52:$O52,1,aux!$AL$1))/INDEX($K52:$O52,1,aux!$AL$1),"n.d.") -> 0.4010626249
B53: TOTAL | C53: 923887.026 | D53: 891441.917 | E53: 859741.826 | F53: 998446.518 | G53: 1257207.407 | H53: 986144.9388 | J53: 1 | K53: 1154810.909 | L53: 1239711.501 | M53: 1289630.2 | N53: 1423772.421 | O53: 1686508.285 | P53: 1358886.663 | R53: 1 | S53: 372741.7244 | U53: =G53-INDEX($C53:$G53,1,aux!$AL$1) -> 333320.381 | W53: 1 | X53: =+IF(INDEX($C53:$G53,1,aux!$AL$1)>0,(G53/INDEX($C53:$G53,1,aux!$AL$1))^(1/($G$3-INDEX($C$3:$G$3,1,aux!$AL$1)))-1,"n.d.") -> 0.08005784475 | Y53: =IF(INDEX($C53:$G53,1,aux!$AL$1)>0,(G53-INDEX($C53:$G53,1,aux!$AL$1))/INDEX($C53:$G53,1,aux!$AL$1),"n.d.") -> 0.3607804543 | AA53: =O53-INDEX($K53:$O53,1,aux!$AL$1) -> 531697.376 | AC53: 1 | AD53: =+IF(INDEX($K53:$O53,1,aux!$AL$1)>0,(O53/INDEX($K53:$O53,1,aux!$AL$1))^(1/($O$3-INDEX($K$3:$O$3,1,aux!$AL$1)))-1,"n.d.") -> 0.09930802993 | AE53: =IF(INDEX($K53:$O53,1,aux!$AL$1)>0,(O53-INDEX($K53:$O53,1,aux!$AL$1))/INDEX($K53:$O53,1,aux!$AL$1),"n.d.") -> 0.4604194261
B54: a - agrícola e agroalimentar; p - pescas; f - florestas
A55: Fonte: GPP a partir de dados INE/Comércio Internacional (2022 definitivos) | S55: 2023-11-03T15:23:15.730

Sheet 5.2_var
A1: ="Principais contributos por produto para a variação das trocas comerciais PT-França_x000D_ no período " & INDEX('5.2'!K3:N3,1,aux!AL1) & "-2022 (NC 2 dígitos - milhares de euros) Produtos agrícolas e agroalimentares, do mar e da floresta" -> Principais contributos por produto para a variação das trocas comerciais PT-França no período 2018-2022 (NC 2 dígitos - milhares de euros) Produtos agrícolas e agroalimentares, do mar e da floresta
E5: aumento das importações | J5: aumento das exportações
E17: redução das importações | J17: redução das exportações
A28: Fonte: GPP a partir de dados INE/Comércio Internacional (2022 definitivos) | F28: a - agrícola e agroalimentar; p - mar; f - florestas | H28: ='3'!Y116 -> 2023-11-03T15:23:15.730
A29: Cód. NC | B29: Descritivo | C29: ="Variação das Importações " & INDEX('5.2'!K3:N3,1,aux!AL1) & "-"& '5.2'!O3 &"" -> Variação das Importações 2018-2022 | F29: Cód. NC | G29: Descritivo | H29: ="Variação das Exportações " & INDEX('5.2'!K3:N3,1,aux!AL1) & "-"& '5.2'!O3 &"" -> Variação das Exportações 2018-2022
C30: variação total em valor | D30: % do aumento/ redução total | H30: variação total em valor | I30: % do aumento/ redução total
A31: =IF(C31>0,aux!AU6,"") -> 10 | B31: =IF(C31>0,aux!AV6,"") -> Cereais | C31: =IF(aux!AW6>0,aux!AW6,0) -> 72995.798 | D31: =IF(SUM($C$31:$C$41)<>0,C31/SUM($C$31:$C$41),0) -> 0.2051261808 | F31: =IF(H31>0,aux!AZ6,"") -> 48 | G31: =IF(H31>0,aux!BA6,"") -> Papel e cartão | H31: =IF(aux!BB6>0,aux!BB6,0) -> 138286.822 | I31: =IF(SUM($H$31:$H$41)<>0,H31/SUM($H$31:$H$41),0) -> 0.2492895764
A32: =IF(C32>0,aux!AU7,"") -> 23a | B32: =IF(C32>0,aux!AV7,"") -> Resíduos indústrias alimentares; alimentos p/ animais (exc. NC 230120) (a) | C32: =IF(aux!AW7>0,aux!AW7,0) -> 28331.398 | D32: =IF(SUM($C$31:$C$41)<>0,C32/SUM($C$31:$C$41),0) -> 0.07961432889 | F32: =IF(H32>0,aux!AZ7,"") -> 24 | G32: =IF(H32>0,aux!BA7,"") -> Tabaco | H32: =IF(aux!BB7>0,aux!BB7,0) -> 100782.485 | I32: =IF(SUM($H$31:$H$41)<>0,H32/SUM($H$31:$H$41),0) -> 0.1816805292
A33: =IF(C33>0,aux!AU8,"") -> 09 | B33: =IF(C33>0,aux!AV8,"") -> Café, chá, mate e especiarias | C33: =IF(aux!AW8>0,aux!AW8,0) -> 27766.944 | D33: 0.07802815138 | F33: =IF(H33>0,aux!AZ8,"") -> 08 | G33: =IF(H33>0,aux!BA8,"") -> Frutas | H33: =IF(aux!BB8>0,aux!BB8,0) -> 71174.421 | I33: 0.1283060888
A34: =IF(C34>0,aux!AU9,"") -> 07 | B34: =IF(C34>0,aux!AV9,"") -> Produtos hortícolas | C34: =IF(aux!AW9>0,aux!AW9,0) -> 23709.495 | D34: 0.06662627565 | F34: =IF(H34>0,aux!AZ9,"") -> 44 | G34: =IF(H34>0,aux!BA9,"") -> Madeira e suas obras | H34: =IF(aux!BB9>0,aux!BB9,0) -> 44147.408 | I34: 0.07958450763
A35: =IF(C35>0,aux!AU10,"") -> 12 | B35: =IF(C35>0,aux!AV10,"") -> Sementes e frutos oleaginosos | C35: =IF(aux!AW10>0,aux!AW10,0) -> 22827.296 | D35: 0.06414719992 | F35: =IF(H35>0,aux!AZ10,"") -> 45 | G35: =IF(H35>0,aux!BA10,"") -> Cortiça e suas obras | H35: =IF(aux!BB10>0,aux!BB10,0) -> 38766.334 | I35: 0.06988404855
A36: =IF(C36>0,aux!AU11,"") -> 04 | B36: =IF(C36>0,aux!AV11,"") -> Leite e laticínios; ovos; mel, etc. | C36: =IF(aux!AW11>0,aux!AW11,0) -> 22551.257 | D36: 0.06337150012 | F36: =IF(H36>0,aux!AZ11,"") -> 15 | G36: =IF(H36>0,aux!BA11,"") -> Gorduras e óleos animais ou vegetais | H36: =IF(aux!BB11>0,aux!BB11,0) -> 31021.289 | I36: 0.05592206028
A37: =IF(C37>0,aux!AU12,"") -> 19a | B37: =IF(C37>0,aux!AV12,"") -> Preparações à base de cereais (exc. NC 19022010) (a) | C37: =IF(aux!AW12>0,aux!AW12,0) -> 20722.471 | D37: 0.05823241132 | F37: =IF(H37>0,aux!AZ12,"") -> 03 | G37: =IF(H37>0,aux!BA12,"") -> Peixes e crustáceos | H37: =IF(aux!BB12>0,aux!BB12,0) -> 21326.504 | I37: 0.0384452768
A38: =IF(C38>0,aux!AU13,"") -> 02 | B38: =IF(C38>0,aux!AV13,"") -> Carnes e miudezas | C38: =IF(aux!AW13>0,aux!AW13,0) -> 19279.579 | D38: 0.05417772689 | F38: =IF(H38>0,aux!AZ13,"") -> 16p | G38: =IF(H38>0,aux!BA13,"") -> Preparações e conservas de peixes ou crustáceos (NC 1604-05) (p) | H38: =IF(aux!BB13>0,aux!BB13,0) -> 15507.488 | I38: 0.02795533992
A39: =IF(C39>0,aux!AU14,"") -> 22 | B39: =IF(C39>0,aux!AV14,"") -> Bebidas, líquidos alcoólicos e vinagres | C39: =IF(aux!AW14>0,aux!AW14,0) -> 16733.015 | D39: 0.04702160337 | F39: =IF(H39>0,aux!AZ14,"") -> 04 | G39: =IF(H39>0,aux!BA14,"") -> Leite e laticínios; ovos; mel, etc. | H39: =IF(aux!BB14>0,aux!BB14,0) -> 13234.967 | I39: 0.02385866759
A40: =IF(C40>0,aux!AU15,"") -> 03 | B40: =IF(C40>0,aux!AV15,"") -> Peixes e crustáceos | C40: =IF(aux!AW15>0,aux!AW15,0) -> 16491.388 | D40: 0.04634260505 | F40: =IF(H40>0,aux!AZ15,"") -> 02 | G40: =IF(H40>0,aux!BA15,"") -> Carnes e miudezas | H40: =IF(aux!BB15>0,aux!BB15,0) -> 11933.077 | I40: 0.02151175121
B41: Outros contributos para o aumento das importações | C41: =SUMIF(aux!AW16:AW51,">0") -> 84449.386 | D41: 0.2373120166 | G41: Outros contributos para o aumento das exportações | H41: =SUMIF(aux!BB16:BB51,">0") -> 68542.848 | I41: 0.1235621536
B42: Outros contributos para a redução das importações | C42: =SUMIF(aux!AW6:AW41,"<0") -> 0 | D42: =IF(SUM($C$42:$C$52)<>0,C42/SUM($C$42:$C$52),0) -> 0 | G42: Outros contributos para a redução das exportações | H42: =SUMIF(aux!BB6:BB41,"<0") -> 0 | I42: =IF(SUM($H$42:$H$52)<>0,H42/SUM($H$42:$H$52),0) -> 0
A43: =IF(C43<>0,aux!AU42,"") ->  | B43: =IF(C43<0,aux!AV42,"") ->  | C43: =IF(aux!AW42<0,aux!AW42,0) -> 0 | D43: =IF(SUM($C$42:$C$52)<>0,C43/SUM($C$42:$C$52),0) -> 0 | F43: =IF(H43<>0,aux!AZ42,"") -> 05p | G43: =IF(H43<>0,aux!BA42,"") -> Outros produtos de pescado (NC 0508, 051191) (p) | H43: =IF(aux!BB42<0,aux!BB42,0) -> -2.809 | I43: =IF(SUM($H$42:$H$52)<>0,H43/SUM($H$42:$H$52),0) -> 0.0001219911156
A44: =IF(C44<>0,aux!AU43,"") ->  | B44: =IF(C44<0,aux!AV43,"") ->  | C44: =IF(aux!AW43<0,aux!AW43,0) -> 0 | D44: 0 | F44: =IF(H44<>0,aux!AZ43,"") -> 25 | G44: =IF(H44<>0,aux!BA43,"") -> Sal e cloreto de sódio puro; água do mar (NC 2501) | H44: =IF(aux!BB43<0,aux!BB43,0) -> -51.471 | I44: 0.002235316736
A45: =IF(C45<>0,aux!AU44,"") -> 51 | B45: =IF(C45<0,aux!AV44,"") -> Lã não cardada (NC 5101-5103) | C45: =IF(aux!AW44<0,aux!AW44,0) -> -10.559 | D45: 0.0004685050071 | F45: =IF(H45<>0,aux!AZ44,"") -> 33 | G45: =IF(H45<>0,aux!BA44,"") -> Óleos essenciais e resinóides (NC 3301) | H45: =IF(aux!BB44<0,aux!BB44,0) -> -56.594 | I45: 0.002457801779
A46: =IF(C46<>0,aux!AU45,"") -> 53 | B46: =IF(C46<0,aux!AV45,"") -> Linho e cânhamo em bruto (NC 5301-5302) | C46: =IF(aux!AW45<0,aux!AW45,0) -> -53.791 | D46: 0.002386717761 | F46: =IF(H46<>0,aux!AZ45,"") -> 14 | G46: =IF(H46<>0,aux!BA45,"") -> Matérias para entrançar e outros | H46: =IF(aux!BB45<0,aux!BB45,0) -> -61.707 | I46: 0.002679852535
A47: =IF(C47<>0,aux!AU46,"") -> 13a | B47: =IF(C47<0,aux!AV46,"") -> Sucos e extratos vegetais (exc. NC 1301) (a) | C47: =IF(aux!AW46<0,aux!AW46,0) -> -80.924 | D47: 0.003590614566 | F47: =IF(H47<>0,aux!AZ46,"") -> 23p | G47: =IF(H47<>0,aux!BA46,"") -> Farinhas de pescado (NC 230120) (p) | H47: =IF(aux!BB46<0,aux!BB46,0) -> -101.068 | I47: 0.004389248157
A48: =IF(C48<>0,aux!AU47,"") -> 29 | B48: =IF(C48<0,aux!AV47,"") -> Manitol e sorbitol (NC 290543; 290544) | C48: =IF(aux!AW47<0,aux!AW47,0) -> -276.133 | D48: 0.01225207815 | F48: =IF(H48<>0,aux!AZ47,"") -> 18 | G48: =IF(H48<>0,aux!BA47,"") -> Cacau e suas preparações | H48: =IF(aux!BB47<0,aux!BB47,0) -> -491.666 | I48: 0.02135239724
A49: =IF(C49<>0,aux!AU48,"") -> 15 | B49: =IF(C49<0,aux!AV48,"") -> Gorduras e óleos animais ou vegetais | C49: =IF(aux!AW48<0,aux!AW48,0) -> -333.912 | D49: 0.01481574429 | F49: =IF(H49<>0,aux!AZ48,"") -> 01 | G49: =IF(H49<>0,aux!BA48,"") -> Animais vivos | H49: =IF(aux!BB48<0,aux!BB48,0) -> -815.154 | I49: 0.03540104872
A50: =IF(C50<>0,aux!AU49,"") -> 41 | B50: =IF(C50<0,aux!AV49,"") -> Couro e peles em bruto (NC 4101 a 4103) | C50: =IF(aux!AW49<0,aux!AW49,0) -> -352.664 | D50: 0.01564777439 | F50: =IF(H50<>0,aux!AZ49,"") -> 38a | G50: =IF(H50<>0,aux!BA49,"") -> Agentes de acabamento, ácidos gordos, sorbitol (NC 380910, 382311-12-13-19-70, 382460) (a) | H50: =IF(aux!BB49<0,aux!BB49,0) -> -1023.329 | I50: 0.04444181074
A51: =IF(C51<>0,aux!AU50,"") -> 08 | B51: =IF(C51<0,aux!AV50,"") -> Frutas | C51: =IF(aux!AW50<0,aux!AW50,0) -> -4852.041 | D51: 0.2152860596 | F51: =IF(H51<>0,aux!AZ50,"") -> 11 | G51: =IF(H51<>0,aux!BA50,"") -> Produtos da indústria de moagem e outros | H51: =IF(aux!BB50<0,aux!BB50,0) -> -2055.65 | I51: 0.08927413202
A52: =IF(C52<>0,aux!AU51,"") -> 47 | B52: =IF(C52<0,aux!AV51,"") -> Pastas de madeira | C52: =IF(aux!AW51<0,aux!AW51,0) -> -16577.622 | D52: 0.7355525062 | F52: =IF(H52<>0,aux!AZ51,"") -> 47 | G52: =IF(H52<>0,aux!BA51,"") -> Pastas de madeira | H52: =IF(aux!BB51<0,aux!BB51,0) -> -18366.819 | I52: 0.797646401
A53: TOTAL | C53: =SUM(C31:C52) -> 333320.381 | F53: TOTAL | H53: =SUM(H31:H52) -> 531697.376

Sheet 5.2A
A1: Trocas comerciais Portugal-França 2018-2022 em milhares de euros (NC 4 dígitos) | G1: Produtos agrícolas e agroalimentares, do mar e da floresta
A2: Cód. NC | B2: Descritivo | C2: Importações | K2: Exportações | S2: Saldo quinquénio (exp-imp) | T2: Evolução das importações | U2: =+"Variação das Importações " & INDEX(K3:N3,1,aux!AL1) & "-"& '5.2'!O3 &"" -> Variação das Importações 2018-2022 | Z2: Evolução das exportações | AA2: ="Variação das Exportações " & INDEX(K3:N3,1,aux!AL1) & "-"& '5.2'!O3 &"" -> Variação das Exportações 2018-2022
C3: 2018 | D3: 2019 | E3: 2020 | F3: 2021 | G3: 2022 | H3: média quinquénio | I3: % Subtot | J3: % Total | K3: 2018 | L3: 2019 | M3: 2020 | N3: 2021 | O3: 2022 | P3: média quinquénio | Q3: % Subtot | R3: % Total | U3: variação total em valor | V3: % no subtotal de variação | W3: % no total de variação | X3: taxa de variação média anual | Y3: taxa de variação total | AA3: variação total em valor | AB3: % no subtotal de variação | AC3: % no total de variação | AD3: taxa de variação média anual | AE3: taxa de variação total | AX3: filtro
A4: 0101 | B4: Equídeos vivos | C4: 326.322 | D4: 1317.721 | E4: 454.754 | F4: 60.12 | G4: 1431.858 | H4: 718.155 | I4: 0.0008942434434 | J4: 0.0007282448773 | K4: 17.413 | L4: 429.374 | M4: 1858.323 | N4: 82.365 | O4: 398 | P4: 557.095 | Q4: 0.0008243406998 | R4: 0.0004099642855 | S4: -161.06 | U4: =G4-INDEX($C4:$G4,1,aux!$AL$1) -> 1105.536 | V4: =IF($U$237<>0,U4/$U$237, "n.d.") -> 0.003628720229 | W4: =IF($U$322<>0,U4/$U$322, "n.d.") -> 0.003316736878 | X4: =+IF(INDEX($C4:$G4,1,aux!$AL$1)>0,(G4/INDEX($C4:$G4,1,aux!$AL$1))^(1/($G$3-INDEX($C$3:$G$3,1,aux!$AL$1)))-1,"n.d.") -> 0.4473161194 | Y4: =IF(INDEX($C4:$G4,1,aux!$AL$1)>0,(G4-INDEX($C4:$G4,1,aux!$AL$1))/INDEX($C4:$G4,1,aux!$AL$1),"n.d.") -> 3.387868424 | AA4: =O4-INDEX($K4:$O4,1,aux!$AL$1) -> 380.587 | AB4: =IF($AA$237<>0,AA4/$AA$237, "n.d.") -> 0.00134325824 | AC4: =IF($AA$322<>0,AA4/$AA$322, "n.d.") -> 0.0007157962728 | AD4: =+IF(INDEX($K4:$O4,1,aux!$AL$1)>0,(O4/INDEX($K4:$O4,1,aux!$AL$1))^(1/($O$3-INDEX($K$3:$O$3,1,aux!$AL$1)))-1,"n.d.") -> 1.186514532 | AE4: =IF(INDEX($K4:$O4,1,aux!$AL$1)>0,(O4-INDEX($K4:$O4,1,aux!$AL$1))/INDEX($K4:$O4,1,aux!$AL$1),"n.d.") -> 21.85648653 | AX4: =+LEFT(A4,2) -> 01
A5: 0102 | B5: Bovinos vivos | C5: 289.307 | D5: 1763.098 | E5: 388.483 | F5: 107.643 | G5: 0 | H5: 509.7062 | I5: 0.0006346839156 | J5: 0.0005168674299 | K5: 0 | L5: 0 | M5: 0 | N5: 0 | O5: 0 | P5: 0 | Q5: 0 | R5: 0 | S5: -509.7062 | U5: =G5-INDEX($C5:$G5,1,aux!$AL$1) -> -289.307 | V5: -0.0009495974471 | W5: -0.0008679547261 | X5: =+IF(INDEX($C5:$G5,1,aux!$AL$1)>0,(G5/INDEX($C5:$G5,1,aux!$AL$1))^(1/($G$3-INDEX($C$3:$G$3,1,aux!$AL$1)))-1,"n.d.") -> -1 | Y5: =IF(INDEX($C5:$G5,1,aux!$AL$1)>0,(G5-INDEX($C5:$G5,1,aux!$AL$1))/INDEX($C5:$G5,1,aux!$AL$1),"n.d.") -> -1 | AA5: =O5-INDEX($K5:$O5,1,aux!$AL$1) -> 0 | AB5: 0 | AC5: 0 | AD5: =+IF(INDEX($K5:$O5,1,aux!$AL$1)>0,(O5/INDEX($K5:$O5,1,aux!$AL$1))^(1/($O$3-INDEX($K$3:$O$3,1,aux!$AL$1)))-1,"n.d.") -> n.d. | AE5: =IF(INDEX($K5:$O5,1,aux!$AL$1)>0,(O5-INDEX($K5:$O5,1,aux!$AL$1))/INDEX($K5:$O5,1,aux!$AL$1),"n.d.") -> n.d. | AX5: 01
A6: 0103 | B6: Suínos vivos | C6: 212.541 | D6: 128.255 | E6: 62.667 | F6: 37.319 | G6: 0 | H6: 88.1564 | I6: 0.0001097719611 | J6: 8.939497282e-05 | K6: 0 | L6: 0 | M6: 2.512 | N6: 24.206 | O6: 28.735 | P6: 11.0906 | Q6: 1.641090472e-05 | R6: 8.161534218e-06 | S6: -77.0658 | U6: =G6-INDEX($C6:$G6,1,aux!$AL$1) -> -212.541 | V6: -0.0006976270571 | W6: -0.0006376477771 | X6: =+IF(INDEX($C6:$G6,1,aux!$AL$1)>0,(G6/INDEX($C6:$G6,1,aux!$AL$1))^(1/($G$3-INDEX($C$3:$G$3,1,aux!$AL$1)))-1,"n.d.") -> -1 | Y6: =IF(INDEX($C6:$G6,1,aux!$AL$1)>0,(G6-INDEX($C6:$G6,1,aux!$AL$1))/INDEX($C6:$G6,1,aux!$AL$1),"n.d.") -> -1 | AA6: =O6-INDEX($K6:$O6,1,aux!$AL$1) -> 28.735 | AB6: 0.0001014184024 | AC6: 5.404390034e-05 | AD6: =+IF(INDEX($K6:$O6,1,aux!$AL$1)>0,(O6/INDEX($K6:$O6,1,aux!$AL$1))^(1/($O$3-INDEX($K$3:$O$3,1,aux!$AL$1)))-1,"n.d.") -> n.d. | AE6: =IF(INDEX($K6:$O6,1,aux!$AL$1)>0,(O6-INDEX($K6:$O6,1,aux!$AL$1))/INDEX($K6:$O6,1,aux!$AL$1),"n.d.") -> n.d. | AX6: 01
A7: 0104 | B7: Ovinos ou caprinos vivos | C7: 0 | D7: 4.951 | E7: 777.528 | F7: 33.706 | G7: 188.338 | H7: 200.9046 | I7: 0.0002501655232 | J7: 0.0002037272536 | K7: 1534.147 | L7: 782.147 | M7: 765.665 | N7: 1961.046 | O7: 0 | P7: 1008.601 | Q7: 0.001492439986 | R7: 0.0007422259908 | S7: 807.6964 | U7: =G7-INDEX($C7:$G7,1,aux!$AL$1) -> 188.338 | V7: 0.0006181851251 | W7: 0.0005650359556 | X7: =+IF(INDEX($C7:$G7,1,aux!$AL$1)>0,(G7/INDEX($C7:$G7,1,aux!$AL$1))^(1/($G$3-INDEX($C$3:$G$3,1,aux!$AL$1)))-1,"n.d.") -> n.d. | Y7: =IF(INDEX($C7:$G7,1,aux!$AL$1)>0,(G7-INDEX($C7:$G7,1,aux!$AL$1))/INDEX($C7:$G7,1,aux!$AL$1),"n.d.") -> n.d. | AA7: =O7-INDEX($K7:$O7,1,aux!$AL$1) -> -1534.147 | AB7: -0.0054146768 | AC7: -0.002885376286 | AD7: =+IF(INDEX($K7:$O7,1,aux!$AL$1)>0,(O7/INDEX($K7:$O7,1,aux!$AL$1))^(1/($O$3-INDEX($K$3:$O$3,1,aux!$AL$1)))-1,"n.d.") -> -1 | AE7: =IF(INDEX($K7:$O7,1,aux!$AL$1)>0,(O7-INDEX($K7:$O7,1,aux!$AL$1))/INDEX($K7:$O7,1,aux!$AL$1),"n.d.") -> -1 | AX7: 01
A8: 0105 | B8: Aves de capoeira vivas | C8: 9044.707 | D8: 8965.986 | E8: 10535.602 | F8: 10038.853 | G8: 11660.563 | H8: 10049.1422 | I8: 0.01251314761 | J8: 0.01019032984 | K8: 0 | L8: 0 | M8: 0 | N8: 0 | O8: 0 | P8: 0 | Q8: 0 | R8: 0 | S8: -10049.1422 | U8: =G8-INDEX($C8:$G8,1,aux!$AL$1) -> 2615.856 | V8: 0.00858607009 | W8: 0.007847872945 | X8: =+IF(INDEX($C8:$G8,1,aux!$AL$1)>0,(G8/INDEX($C8:$G8,1,aux!$AL$1))^(1/($G$3-INDEX($C$3:$G$3,1,aux!$AL$1)))-1,"n.d.") -> 0.06556820738 | Y8: =IF(INDEX($C8:$G8,1,aux!$AL$1)>0,(G8-INDEX($C8:$G8,1,aux!$AL$1))/INDEX($C8:$G8,1,aux!$AL$1),"n.d.") -> 0.2892140121 | AA8: =O8-INDEX($K8:$O8,1,aux!$AL$1) -> 0 | AB8: 0 | AC8: 0 | AD8: =+IF(INDEX($K8:$O8,1,aux!$AL$1)>0,(O8/INDEX($K8:$O8,1,aux!$AL$1))^(1/($O$3-INDEX($K$3:$O$3,1,aux!$AL$1)))-1,"n.d.") -> n.d. | AE8: =IF(INDEX($K8:$O8,1,aux!$AL$1)>0,(O8-INDEX($K8:$O8,1,aux!$AL$1))/INDEX($K8:$O8,1,aux!$AL$1),"n.d.") -> n.d. | AX8: 01
A9: 0106 | B9: Outros animais vivos | C9: 510.622 | D9: 772.953 | E9: 463.557 | F9: 339.141 | G9: 217.497 | H9: 460.754 | I9: 0.0005737288517 | J9: 0.0004672274651 | K9: 203.776 | L9: 594.71 | M9: 452.378 | N9: 243.814 | O9: 513.447 | P9: 401.625 | Q9: 0.0005942897236 | R9: 0.0002955544497 | S9: -59.129 | U9: =G9-INDEX($C9:$G9,1,aux!$AL$1) -> -293.125 | V9: -0.0009621293355 | W9: -0.0008794091712 | X9: =+IF(INDEX($C9:$G9,1,aux!$AL$1)>0,(G9/INDEX($C9:$G9,1,aux!$AL$1))^(1/($G$3-INDEX($C$3:$G$3,1,aux!$AL$1)))-1,"n.d.") -> -0.1921356622 | Y9: =IF(INDEX($C9:$G9,1,aux!$AL$1)>0,(G9-INDEX($C9:$G9,1,aux!$AL$1))/INDEX($C9:$G9,1,aux!$AL$1),"n.d.") -> -0.5740547802 | AA9: =O9-INDEX($K9:$O9,1,aux!$AL$1) -> 309.671 | AB9: 0.001092964611 | AC9: 0.0005824196507 | AD9: =+IF(INDEX($K9:$O9,1,aux!$AL$1)>0,(O9/INDEX($K9:$O9,1,aux!$AL$1))^(1/($O$3-INDEX($K$3:$O$3,1,aux!$AL$1)))-1,"n.d.") -> 0.2598987554 | AE9: =IF(INDEX($K9:$O9,1,aux!$AL$1)>0,(O9-INDEX($K9:$O9,1,aux!$AL$1))/INDEX($K9:$O9,1,aux!$AL$1),"n.d.") -> 1.519663748 | AX9: 01
A10: 01SS | B10: Animais vivos | C10: 0 | D10: 0 | E10: 0 | F10: 0 | G10: 0 | H10: 0 | I10: 0 | J10: 0 | K10: 0 | L10: 0 | M10: 0 | N10: 0 | O10: 0 | P10: 0 | Q10: 0 | R10: 0 | S10: 0 | U10: =G10-INDEX($C10:$G10,1,aux!$AL$1) -> 0 | V10: 0 | W10: 0 | X10: =+IF(INDEX($C10:$G10,1,aux!$AL$1)>0,(G10/INDEX($C10:$G10,1,aux!$AL$1))^(1/($G$3-INDEX($C$3:$G$3,1,aux!$AL$1)))-1,"n.d.") -> n.d. | Y10: =IF(INDEX($C10:$G10,1,aux!$AL$1)>0,(G10-INDEX($C10:$G10,1,aux!$AL$1))/INDEX($C10:$G10,1,aux!$AL$1),"n.d.") -> n.d. | AA10: =O10-INDEX($K10:$O10,1,aux!$AL$1) -> 0 | AB10: 0 | AC10: 0 | AD10: =+IF(INDEX($K10:$O10,1,aux!$AL$1)>0,(O10/INDEX($K10:$O10,1,aux!$AL$1))^(1/($O$3-INDEX($K$3:$O$3,1,aux!$AL$1)))-1,"n.d.") -> n.d. | AE10: =IF(INDEX($K10:$O10,1,aux!$AL$1)>0,(O10-INDEX($K10:$O10,1,aux!$AL$1))/INDEX($K10:$O10,1,aux!$AL$1),"n.d.") -> n.d. | AX10: 01
A11: 0201 | B11: Carnes de bovino, frescas ou refrigeradas | C11: 15870.402 | D11: 15064.684 | E11: 9779.924 | F11: 11508.874 | G11: 14859.695 | H11: 13416.7158 | I11: 0.01670643543 | J11: 0.01360521691 | K11: 1971.427 | L11: 2787.475 | M11: 3223.89 | N11: 3321.795 | O11: 3803.659 | P11: 3021.6492 | Q11: 0.004471173527 | R11: 0.002223621205 | S11: -10395.0666 | U11: =G11-INDEX($C11:$G11,1,aux!$AL$1) -> -1010.707 | V11: -0.003317461337 | W11: -0.003032238824 | X11: =+IF(INDEX($C11:$G11,1,aux!$AL$1)>0,(G11/INDEX($C11:$G11,1,aux!$AL$1))^(1/($G$3-INDEX($C$3:$G$3,1,aux!$AL$1)))-1,"n.d.") -> -0.01631626166 | Y11: =IF(INDEX($C11:$G11,1,aux!$AL$1)>0,(G11-INDEX($C11:$G11,1,aux!$AL$1))/INDEX($C11:$G11,1,aux!$AL$1),"n.d.") -> -0.06368502827 | AA11: =O11-INDEX($K11:$O11,1,aux!$AL$1) -> 1832.232 | AB11: 0.006466749342 | AC11: 0.003446005346 | AD11: =+IF(INDEX($K11:$O11,1,aux!$AL$1)>0,(O11/INDEX($K11:$O11,1,aux!$AL$1))^(1/($O$3-INDEX($K$3:$O$3,1,aux!$AL$1)))-1,"n.d.") -> 0.1785695567 | AE11: =IF(INDEX($K11:$O11,1,aux!$AL$1)>0,(O11-INDEX($K11:$O11,1,aux!$AL$1))/INDEX($K11:$O11,1,aux!$AL$1),"n.d.") -> 0.9293937843 | AX11: 02
A12: 0202 | B12: Carnes de bovino, congeladas | C12: 2787.307 | D12: 2497.261 | E12: 2277.317 | F12: 4332.699 | G12: 10110.632 | H12: 4401.0432 | I12: 0.005480159611 | J12: 0.004462876629 | K12: 236.664 | L12: 366.778 | M12: 1083.739 | N12: 1343.435 | O12: 3418.966 | P12: 1289.9164 | Q12: 0.001908706034 | R12: 0.0009492450216 | S12: -3111.1268 | U12: =G12-INDEX($C12:$G12,1,aux!$AL$1) -> 7323.325 | V12: 0.02403747826 | W12: 0.02197082872 | X12: =+IF(INDEX($C12:$G12,1,aux!$AL$1)>0,(G12/INDEX($C12:$G12,1,aux!$AL$1))^(1/($G$3-INDEX($C$3:$G$3,1,aux!$AL$1)))-1,"n.d.") -> 0.3800612906 | Y12: =IF(INDEX($C12:$G12,1,aux!$AL$1)>0,(G12-INDEX($C12:$G12,1,aux!$AL$1))/INDEX($C12:$G12,1,aux!$AL$1),"n.d.") -> 2.627383708 | AA12: =O12-INDEX($K12:$O12,1,aux!$AL$1) -> 3182.302 | AB12: 0.01123173777 | AC12: 0.005985175296 | AD12: =+IF(INDEX($K12:$O12,1,aux!$AL$1)>0,(O12/INDEX($K12:$O12,1,aux!$AL$1))^(1/($O$3-INDEX($K$3:$O$3,1,aux!$AL$1)))-1,"n.d.") -> 0.9495781345 | AE12: =IF(INDEX($K12:$O12,1,aux!$AL$1)>0,(O12-INDEX($K12:$O12,1,aux!$AL$1))/INDEX($K12:$O12,1,aux!$AL$1),"n.d.") -> 13.44649799 | AX12: 02
A13: 0203 | B13: Carnes de suíno | C13: 2433.406 | D13: 3010.637 | E13: 3607.014 | F13: 2904.417 | G13: 3562.249 | H13: 3103.5446 | I13: 0.003864520068 | J13: 0.003147148536 | K13: 5849.98 | L13: 6602.003 | M13: 5854.822 | N13: 6994.677 | O13: 7834.687 | P13: 6627.2338 | Q13: 0.009806403842 | R13: 0.004876958454 | S13: 3523.6892 | U13: =G13-INDEX($C13:$G13,1,aux!$AL$1) -> 1128.843 | V13: 0.003705221204 | W13: 0.003386660595 | X13: =+IF(INDEX($C13:$G13,1,aux!$AL$1)>0,(G13/INDEX($C13:$G13,1,aux!$AL$1))^(1/($G$3-INDEX($C$3:$G$3,1,aux!$AL$1)))-1,"n.d.") -> 0.09996134825 | Y13: =IF(INDEX($C13:$G13,1,aux!$AL$1)>0,(G13-INDEX($C13:$G13,1,aux!$AL$1))/INDEX($C13:$G13,1,aux!$AL$1),"n.d.") -> 0.4638942289 | AA13: =O13-INDEX($K13:$O13,1,aux!$AL$1) -> 1984.707 | AB13: 0.007004900409 | AC13: 0.003732775616 | AD13: =+IF(INDEX($K13:$O13,1,aux!$AL$1)>0,(O13/INDEX($K13:$O13,1,aux!$AL$1))^(1/($O$3-INDEX($K$3:$O$3,1,aux!$AL$1)))-1,"n.d.") -> 0.07576353105 | AE13: =IF(INDEX($K13:$O13,1,aux!$AL$1)>0,(O13-INDEX($K13:$O13,1,aux!$AL$1))/INDEX($K13:$O13,1,aux!$AL$1),"n.d.") -> 0.3392673137 | AX13: 02
A14: 0204 | B14: Carnes de ovino ou caprino | C14: 8036.748 | D14: 10178.233 | E14: 11384.715 | F14: 12797.937 | G14: 16196.355 | H14: 11718.7976 | I14: 0.01459219516 | J14: 0.01188344344 | K14: 2309.929 | L14: 1967.65 | M14: 1469.604 | N14: 1480.239 | O14: 1452.998 | P14: 1736.084 | Q14: 0.002568906021 | R14: 0.001277578217 | S14: -9982.7136 | U14: =G14-INDEX($C14:$G14,1,aux!$AL$1) -> 8159.607 | V14: 0.02678242136 | W14: 0.02447977221 | X14: =+IF(INDEX($C14:$G14,1,aux!$AL$1)>0,(G14/INDEX($C14:$G14,1,aux!$AL$1))^(1/($G$3-INDEX($C$3:$G$3,1,aux!$AL$1)))-1,"n.d.") -> 0.1914730792 | Y14: =IF(INDEX($C14:$G14,1,aux!$AL$1)>0,(G14-INDEX($C14:$G14,1,aux!$AL$1))/INDEX($C14:$G14,1,aux!$AL$1),"n.d.") -> 1.015287153 | AA14: =O14-INDEX($K14:$O14,1,aux!$AL$1) -> -856.931 | AB14: -0.00302448488 | AC14: -0.001611689353 | AD14: =+IF(INDEX($K14:$O14,1,aux!$AL$1)>0,(O14/INDEX($K14:$O14,1,aux!$AL$1))^(1/($O$3-INDEX($K$3:$O$3,1,aux!$AL$1)))-1,"n.d.") -> -0.1094330041 | AE14: =IF(INDEX($K14:$O14,1,aux!$AL$1)>0,(O14-INDEX($K14:$O14,1,aux!$AL$1))/INDEX($K14:$O14,1,aux!$AL$1),"n.d.") -> -0.3709772032 | AX14: 02
A15: 0205 | B15: Carnes de equídeo | C15: 0 | D15: 0 | E15: 0.043 | F15: 0 | G15: 0 | H15: 0.0086 | I15: 1.070868213e-08 | J15: 8.7208276e-09 | K15: 13.018 | L15: 155.271 | M15: 0 | N15: 0 | O15: 0 | P15: 33.6578 | Q15: 4.980388337e-05 | R15: 2.476865872e-05 | S15: 33.6492 | U15: =G15-INDEX($C15:$G15,1,aux!$AL$1) -> 0 | V15: 0 | W15: 0 | X15: =+IF(INDEX($C15:$G15,1,aux!$AL$1)>0,(G15/INDEX($C15:$G15,1,aux!$AL$1))^(1/($G$3-INDEX($C$3:$G$3,1,aux!$AL$1)))-1,"n.d.") -> n.d. | Y15: =IF(INDEX($C15:$G15,1,aux!$AL$1)>0,(G15-INDEX($C15:$G15,1,aux!$AL$1))/INDEX($C15:$G15,1,aux!$AL$1),"n.d.") -> n.d. | AA15: =O15-INDEX($K15:$O15,1,aux!$AL$1) -> -13.018 | AB15: -4.594622457e-05 | AC15: -2.448385226e-05 | AD15: =+IF(INDEX($K15:$O15,1,aux!$AL$1)>0,(O15/INDEX($K15:$O15,1,aux!$AL$1))^(1/($O$3-INDEX($K$3:$O$3,1,aux!$AL$1)))-1,"n.d.") -> -1 | AE15: =IF(INDEX($K15:$O15,1,aux!$AL$1)>0,(O15-INDEX($K15:$O15,1,aux!$AL$1))/INDEX($K15:$O15,1,aux!$AL$1),"n.d.") -> -1 | AX15: 02
A16: 0206 | B16: Miudezas de bovino, suíno, ovino, caprino,equídeo | C16: 1092.862 | D16: 1327.126 | E16: 1000.067 | F16: 1159.735 | G16: 912.277 | H16: 1098.4134 | I16: 0.001367739528 | J16: 0.001113845802 | K16: 183.977 | L16: 163.264 | M16: 547.181 | N16: 265.767 | O16: 336.973 | P16: 299.4324 | Q16: 0.0004430740074 | R16: 0.0002203512685 | S16: -798.981 | U16: =G16-INDEX($C16:$G16,1,aux!$AL$1) -> -180.585 | V16: -0.000592737317 | W16: -0.0005417760518 | X16: =+IF(INDEX($C16:$G16,1,aux!$AL$1)>0,(G16/INDEX($C16:$G16,1,aux!$AL$1))^(1/($G$3-INDEX($C$3:$G$3,1,aux!$AL$1)))-1,"n.d.") -> -0.0441486671 | Y16: =IF(INDEX($C16:$G16,1,aux!$AL$1)>0,(G16-INDEX($C16:$G16,1,aux!$AL$1))/INDEX($C16:$G16,1,aux!$AL$1),"n.d.") -> -0.1652404421 | AA16: =O16-INDEX($K16:$O16,1,aux!$AL$1) -> 152.996 | AB16: 0.0005399899043 | AC16: 0.0002877501506 | AD16: =+IF(INDEX($K16:$O16,1,aux!$AL$1)>0,(O16/INDEX($K16:$O16,1,aux!$AL$1))^(1/($O$3-INDEX($K$3:$O$3,1,aux!$AL$1)))-1,"n.d.") -> 0.1633432998 | AE16: =IF(INDEX($K16:$O16,1,aux!$AL$1)>0,(O16-INDEX($K16:$O16,1,aux!$AL$1))/INDEX($K16:$O16,1,aux!$AL$1),"n.d.") -> 0.8316039505 | AX16: 02
A17: 0207 | B17: Carnes e miudezas de aves de capoeira | C17: 8532.058 | D17: 7026.591 | E17: 5694.136 | F17: 7302.288 | G17: 11569.574 | H17: 8024.9294 | I17: 0.009992606748 | J17: 0.008137677419 | K17: 4328.186 | L17: 4027.883 | M17: 3370.294 | N17: 4797.781 | O17: 9439.177 | P17: 5192.6642 | Q17: 0.007683652592 | R17: 0.003821263642 | S17: -2832.2652 | U17: =G17-INDEX($C17:$G17,1,aux!$AL$1) -> 3037.516 | V17: 0.009970092113 | W17: 0.0091129021 | X17: =+IF(INDEX($C17:$G17,1,aux!$AL$1)>0,(G17/INDEX($C17:$G17,1,aux!$AL$1))^(1/($G$3-INDEX($C$3:$G$3,1,aux!$AL$1)))-1,"n.d.") -> 0.07911043524 | Y17: =IF(INDEX($C17:$G17,1,aux!$AL$1)>0,(G17-INDEX($C17:$G17,1,aux!$AL$1))/INDEX($C17:$G17,1,aux!$AL$1),"n.d.") -> 0.3560121134 | AA17: =O17-INDEX($K17:$O17,1,aux!$AL$1) -> 5110.991 | AB17: 0.01803892612 | AC17: 0.009612593988 | AD17: =+IF(INDEX($K17:$O17,1,aux!$AL$1)>0,(O17/INDEX($K17:$O17,1,aux!$AL$1))^(1/($O$3-INDEX($K$3:$O$3,1,aux!$AL$1)))-1,"n.d.") -> 0.215226002 | AE17: =IF(INDEX($K17:$O17,1,aux!$AL$1)>0,(O17-INDEX($K17:$O17,1,aux!$AL$1))/INDEX($K17:$O17,1,aux!$AL$1),"n.d.") -> 1.180862144 | AX17: 02
A18: 0208 | B18: Outras carnes e miudezas | C18: 281.603 | D18: 172.116 | E18: 131.432 | F18: 188.313 | G18: 189.203 | H18: 192.5334 | I18: 0.0002397417418 | J18: 0.0001952384405 | K18: 5.091 | L18: 13.544 | M18: 24.498 | N18: 44.207 | O18: 115.189 | P18: 40.5058 | Q18: 5.993695782e-05 | R18: 2.980807826e-05 | S18: -152.0276 | U18: =G18-INDEX($C18:$G18,1,aux!$AL$1) -> -92.4 | V18: -0.0003032861428 | W18: -0.0002772107716 | X18: =+IF(INDEX($C18:$G18,1,aux!$AL$1)>0,(G18/INDEX($C18:$G18,1,aux!$AL$1))^(1/($G$3-INDEX($C$3:$G$3,1,aux!$AL$1)))-1,"n.d.") -> -0.09463711815 | Y18: =IF(INDEX($C18:$G18,1,aux!$AL$1)>0,(G18-INDEX($C18:$G18,1,aux!$AL$1))/INDEX($C18:$G18,1,aux!$AL$1),"n.d.") -> -0.3281215044 | AA18: =O18-INDEX($K18:$O18,1,aux!$AL$1) -> 110.098 | AB18: 0.0003885840707 | AC18: 0.0002070689173 | AD18: =+IF(INDEX($K18:$O18,1,aux!$AL$1)>0,(O18/INDEX($K18:$O18,1,aux!$AL$1))^(1/($O$3-INDEX($K$3:$O$3,1,aux!$AL$1)))-1,"n.d.") -> 1.18098148 | AE18: =IF(INDEX($K18:$O18,1,aux!$AL$1)>0,(O18-INDEX($K18:$O18,1,aux!$AL$1))/INDEX($K18:$O18,1,aux!$AL$1),"n.d.") -> 21.62600668 | AX18: 02
A19: 0209 | B19: Toucinho, gorduras de porco e de aves | C19: 285.494 | D19: 316.215 | E19: 800.296 | F19: 503.607 | G19: 146.322 | H19: 410.3868 | I19: 0.0005110118361 | J19: 0.00041615262 | K19: 13.195 | L19: 17.541 | M19: 24.271 | N19: 17.349 | O19: 68.165 | P19: 28.1042 | Q19: 4.158614939e-05 | R19: 2.068178367e-05 | S19: -382.2826 | U19: =G19-INDEX($C19:$G19,1,aux!$AL$1) -> -139.172 | V19: -0.0004568066998 | W19: -0.000417532224 | X19: =+IF(INDEX($C19:$G19,1,aux!$AL$1)>0,(G19/INDEX($C19:$G19,1,aux!$AL$1))^(1/($G$3-INDEX($C$3:$G$3,1,aux!$AL$1)))-1,"n.d.") -> -0.1538874032 | Y19: =IF(INDEX($C19:$G19,1,aux!$AL$1)>0,(G19-INDEX($C19:$G19,1,aux!$AL$1))/INDEX($C19:$G19,1,aux!$AL$1),"n.d.") -> -0.4874778454 | AA19: =O19-INDEX($K19:$O19,1,aux!$AL$1) -> 54.97 | AB19: 0.0001940132098 | AC19: 0.0001033858779 | AD19: =+IF(INDEX($K19:$O19,1,aux!$AL$1)>0,(O19/INDEX($K19:$O19,1,aux!$AL$1))^(1/($O$3-INDEX($K$3:$O$3,1,aux!$AL$1)))-1,"n.d.") -> 0.5076065343 | AE19: =IF(INDEX($K19:$O19,1,aux!$AL$1)>0,(O19-INDEX($K19:$O19,1,aux!$AL$1))/INDEX($K19:$O19,1,aux!$AL$1),"n.d.") -> 4.165971959 | AX19: 02
A20: 0210 | B20: Carnes e miudezas processadas; farinhas de carnes | C20: 2556.378 | D20: 2816.467 | E20: 3251.855 | F20: 3621.114 | G20: 3609.53 | H20: 3171.0688 | I20: 0.003948600905 | J20: 0.003215621432 | K20: 3353.13 | L20: 2427.144 | M20: 2906.728 | N20: 5100.729 | O20: 3727.86 | P20: 3503.1182 | Q20: 0.005183609454 | R20: 0.002577932579 | S20: 332.0494 | U20: =G20-INDEX($C20:$G20,1,aux!$AL$1) -> 1053.152 | V20: 0.003456779306 | W20: 0.003159578772 | X20: =+IF(INDEX($C20:$G20,1,aux!$AL$1)>0,(G20/INDEX($C20:$G20,1,aux!$AL$1))^(1/($G$3-INDEX($C$3:$G$3,1,aux!$AL$1)))-1,"n.d.") -> 0.09007504148 | Y20: =IF(INDEX($C20:$G20,1,aux!$AL$1)>0,(G20-INDEX($C20:$G20,1,aux!$AL$1))/INDEX($C20:$G20,1,aux!$AL$1),"n.d.") -> 0.4119703737 | AA20: =O20-INDEX($K20:$O20,1,aux!$AL$1) -> 374.73 | AB20: 0.001322586322 | AC20: 0.0007047806081 | AD20: =+IF(INDEX($K20:$O20,1,aux!$AL$1)>0,(O20/INDEX($K20:$O20,1,aux!$AL$1))^(1/($O$3-INDEX($K$3:$O$3,1,aux!$AL$1)))-1,"n.d.") -> 0.02683887139 | AE20: =IF(INDEX($K20:$O20,1,aux!$AL$1)>0,(O20-INDEX($K20:$O20,1,aux!$AL$1))/INDEX($K20:$O20,1,aux!$AL$1),"n.d.") -> 0.1117552854 | AX20: 02
A21: 02SS | B21: Carnes e miudezas, comestíveis | C21: 0 | D21: 0 | E21: 0 | F21: 0 | G21: 0 | H21: 0 | I21: 0 | J21: 0 | K21: 0 | L21: 0 | M21: 0 | N21: 0 | O21: 0 | P21: 0 | Q21: 0 | R21: 0 | S21: 0 | U21: =G21-INDEX($C21:$G21,1,aux!$AL$1) -> 0 | V21: 0 | W21: 0 | X21: =+IF(INDEX($C21:$G21,1,aux!$AL$1)>0,(G21/INDEX($C21:$G21,1,aux!$AL$1))^(1/($G$3-INDEX($C$3:$G$3,1,aux!$AL$1)))-1,"n.d.") -> n.d. | Y21: =IF(INDEX($C21:$G21,1,aux!$AL$1)>0,(G21-INDEX($C21:$G21,1,aux!$AL$1))/INDEX($C21:$G21,1,aux!$AL$1),"n.d.") -> n.d. | AA21: =O21-INDEX($K21:$O21,1,aux!$AL$1) -> 0 | AB21: 0 | AC21: 0 | AD21: =+IF(INDEX($K21:$O21,1,aux!$AL$1)>0,(O21/INDEX($K21:$O21,1,aux!$AL$1))^(1/($O$3-INDEX($K$3:$O$3,1,aux!$AL$1)))-1,"n.d.") -> n.d. | AE21: =IF(INDEX($K21:$O21,1,aux!$AL$1)>0,(O21-INDEX($K21:$O21,1,aux!$AL$1))/INDEX($K21:$O21,1,aux!$AL$1),"n.d.") -> n.d. | AX21: 02
A22: 0401 | B22: Leite e nata, não concentrados | C22: 3621.016 | D22: 2203.026 | E22: 1349.91 | F22: 3129.872 | G22: 1858.116 | H22: 2432.388 | I22: 0.003028798826 | J22: 0.002466562373 | K22: 1327.582 | L22: 807.151 | M22: 260.209 | N22: 1032.178 | O22: 2477.569 | P22: 1180.9378 | Q22: 0.001747448985 | R22: 0.0008690480464 | S22: -1251.4502 | U22: =G22-INDEX($C22:$G22,1,aux!$AL$1) -> -1762.9 | V22: -0.005786397631 | W22: -0.005288905511 | X22: =+IF(INDEX($C22:$G22,1,aux!$AL$1)>0,(G22/INDEX($C22:$G22,1,aux!$AL$1))^(1/($G$3-INDEX($C$3:$G$3,1,aux!$AL$1)))-1,"n.d.") -> -0.1536293498 | Y22: =IF(INDEX($C22:$G22,1,aux!$AL$1)>0,(G22-INDEX($C22:$G22,1,aux!$AL$1))/INDEX($C22:$G22,1,aux!$AL$1),"n.d.") -> -0.4868523089 | AA22: =O22-INDEX($K22:$O22,1,aux!$AL$1) -> 1149.987 | AB22: 0.004058807878 | AC22: 0.002162860025 | AD22: =+IF(INDEX($K22:$O22,1,aux!$AL$1)>0,(O22/INDEX($K22:$O22,1,aux!$AL$1))^(1/($O$3-INDEX($K$3:$O$3,1,aux!$AL$1)))-1,"n.d.") -> 0.1688024163 | AE22: =IF(INDEX($K22:$O22,1,aux!$AL$1)>0,(O22-INDEX($K22:$O22,1,aux!$AL$1))/INDEX($K22:$O22,1,aux!$AL$1),"n.d.") -> 0.866226719 | AX22: 04
A23: 0402 | B23: Leite e nata, concentrados | C23: 1950.67 | D23: 855.311 | E23: 585.839 | F23: 730.275 | G23: 5299.58 | H23: 1884.335 | I23: 0.002346365644 | J23: 0.001910809381 | K23: 1969.134 | L23: 2245.67 | M23: 3497.15 | N23: 3663.761 | O23: 8107.561 | P23: 3896.6552 | Q23: 0.005765931259 | R23: 0.002867535097 | S23: 2012.3202 | U23: =G23-INDEX($C23:$G23,1,aux!$AL$1) -> 3348.91 | V23: 0.01099218611 | W23: 0.0100471204 | X23: =+IF(INDEX($C23:$G23,1,aux!$AL$1)>0,(G23/INDEX($C23:$G23,1,aux!$AL$1))^(1/($G$3-INDEX($C$3:$G$3,1,aux!$AL$1)))-1,"n.d.") -> 0.2838503738 | Y23: =IF(INDEX($C23:$G23,1,aux!$AL$1)>0,(G23-INDEX($C23:$G23,1,aux!$AL$1))/INDEX($C23:$G23,1,aux!$AL$1),"n.d.") -> 1.716799869 | AA23: =O23-INDEX($K23:$O23,1,aux!$AL$1) -> 6138.427 | AB23: 0.02166519784 | AC23: 0.01154496388 | AD23: =+IF(INDEX($K23:$O23,1,aux!$AL$1)>0,(O23/INDEX($K23:$O23,1,aux!$AL$1))^(1/($O$3-INDEX($K$3:$O$3,1,aux!$AL$1)))-1,"n.d.") -> 0.4244714145 | AE23: =IF(INDEX($K23:$O23,1,aux!$AL$1)>0,(O23-INDEX($K23:$O23,1,aux!$AL$1))/INDEX($K23:$O23,1,aux!$AL$1),"n.d.") -> 3.117323148 | AX23: 04
A24: 0403 | B24: Leitelho, leite coalhado, iogurte, etc. | C24: 15554.577 | D24: 18079.735 | E24: 14344.814 | F24: 13165.592 | G24: 13674.171 | H24: 14963.7778 | I24: 0.01863283022 | J24: 0.0151740147 | K24: 276.038 | L24: 242.393 | M24: 392.309 | N24: 513.183 | O24: 481.133 | P24: 381.0112 | Q24: 0.0005637872163 | R24: 0.0002803848255 | S24: -14582.7666 | U24: =G24-INDEX($C24:$G24,1,aux!$AL$1) -> -1880.406 | V24: -0.006172089638 | W24: -0.005641437209 | X24: =+IF(INDEX($C24:$G24,1,aux!$AL$1)>0,(G24/INDEX($C24:$G24,1,aux!$AL$1))^(1/($G$3-INDEX($C$3:$G$3,1,aux!$AL$1)))-1,"n.d.") -> -0.03169828654 | Y24: =IF(INDEX($C24:$G24,1,aux!$AL$1)>0,(G24-INDEX($C24:$G24,1,aux!$AL$1))/INDEX($C24:$G24,1,aux!$AL$1),"n.d.") -> -0.1208908478 | AA24: =O24-INDEX($K24:$O24,1,aux!$AL$1) -> 205.095 | AB24: 0.0007238700974 | AC24: 0.0003857363404 | AD24: =+IF(INDEX($K24:$O24,1,aux!$AL$1)>0,(O24/INDEX($K24:$O24,1,aux!$AL$1))^(1/($O$3-INDEX($K$3:$O$3,1,aux!$AL$1)))-1,"n.d.") -> 0.1490106876 | AE24: =IF(INDEX($K24:$O24,1,aux!$AL$1)>0,(O24-INDEX($K24:$O24,1,aux!$AL$1))/INDEX($K24:$O24,1,aux!$AL$1),"n.d.") -> 0.7429955296 | AX24: 04
A25: 0404 | B25: Soro de leite e outros produtos do leite | C25: 1437.138 | D25: 2171.893 | E25: 1991.788 | F25: 2050.77 | G25: 4420.528 | H25: 2414.4234 | I25: 0.003006429385 | J25: 0.002448345375 | K25: 206.637 | L25: 575.873 | M25: 429.231 | N25: 768.287 | O25: 272.774 | P25: 450.5604 | Q25: 0.0006667000699 | R25: 0.0003315658415 | S25: -1963.863 | U25: =G25-INDEX($C25:$G25,1,aux!$AL$1) -> 2983.39 | V25: 0.009792433393 | W25: 0.00895051779 | X25: =+IF(INDEX($C25:$G25,1,aux!$AL$1)>0,(G25/INDEX($C25:$G25,1,aux!$AL$1))^(1/($G$3-INDEX($C$3:$G$3,1,aux!$AL$1)))-1,"n.d.") -> 0.3243229895 | Y25: =IF(INDEX($C25:$G25,1,aux!$AL$1)>0,(G25-INDEX($C25:$G25,1,aux!$AL$1))/INDEX($C25:$G25,1,aux!$AL$1),"n.d.") -> 2.075924511 | AA25: =O25-INDEX($K25:$O25,1,aux!$AL$1) -> 66.137 | AB25: 0.0002334264445 | AC25: 0.0001243884265 | AD25: =+IF(INDEX($K25:$O25,1,aux!$AL$1)>0,(O25/INDEX($K25:$O25,1,aux!$AL$1))^(1/($O$3-INDEX($K$3:$O$3,1,aux!$AL$1)))-1,"n.d.") -> 0.07188630227 | AE25: =IF(INDEX($K25:$O25,1,aux!$AL$1)>0,(O25-INDEX($K25:$O25,1,aux!$AL$1))/INDEX($K25:$O25,1,aux!$AL$1),"n.d.") -> 0.3200636866 | AX25: 04
A26: 0405 | B26: Manteiga | C26: 3662.839 | D26: 3786.223 | E26: 3476.079 | F26: 3828.817 | G26: 4675.955 | H26: 3885.9826 | I26: 0.00483880842 | J26: 0.003940579571 | K26: 10679.365 | L26: 10061.013 | M26: 3320.506 | N26: 12271.805 | O26: 11824.34 | P26: 9631.4058 | Q26: 0.01425171613 | R26: 0.007087718248 | S26: 5745.4232 | U26: =G26-INDEX($C26:$G26,1,aux!$AL$1) -> 1013.116 | V26: 0.00332536844 | W26: 0.003039466105 | X26: =+IF(INDEX($C26:$G26,1,aux!$AL$1)>0,(G26/INDEX($C26:$G26,1,aux!$AL$1))^(1/($G$3-INDEX($C$3:$G$3,1,aux!$AL$1)))-1,"n.d.") -> 0.06295070259 | Y26: =IF(INDEX($C26:$G26,1,aux!$AL$1)>0,(G26-INDEX($C26:$G26,1,aux!$AL$1))/INDEX($C26:$G26,1,aux!$AL$1),"n.d.") -> 0.2765931017 | AA26: =O26-INDEX($K26:$O26,1,aux!$AL$1) -> 1144.975 | AB26: 0.004041118334 | AC26: 0.00215343361 | AD26: =+IF(INDEX($K26:$O26,1,aux!$AL$1)>0,(O26/INDEX($K26:$O26,1,aux!$AL$1))^(1/($O$3-INDEX($K$3:$O$3,1,aux!$AL$1)))-1,"n.d.") -> 0.02578860346 | AE26: =IF(INDEX($K26:$O26,1,aux!$AL$1)>0,(O26-INDEX($K26:$O26,1,aux!$AL$1))/INDEX($K26:$O26,1,aux!$AL$1),"n.d.") -> 0.1072137716 | AX26: 04
A27: 0406 | B27: Queijos e requeijão | C27: 32222.045 | D27: 31743.254 | E27: 29795.948 | F27: 32090.3 | G27: 51481.295 | H27: 35466.5684 | I27: 0.04416281478 | J27: 0.03596486379 | K27: 3490.173 | L27: 4195.77 | M27: 3886.475 | N27: 5223.377 | O27: 4646.222 | P27: 4288.4034 | Q27: 0.006345606153 | R27: 0.003155821244 | S27: -31178.165 | U27: =G27-INDEX($C27:$G27,1,aux!$AL$1) -> 19259.25 | V27: 0.06321497452 | W27: 0.05777999516 | X27: =+IF(INDEX($C27:$G27,1,aux!$AL$1)>0,(G27/INDEX($C27:$G27,1,aux!$AL$1))^(1/($G$3-INDEX($C$3:$G$3,1,aux!$AL$1)))-1,"n.d.") -> 0.1242789795 | Y27: =IF(INDEX($C27:$G27,1,aux!$AL$1)>0,(G27-INDEX($C27:$G27,1,aux!$AL$1))/INDEX($C27:$G27,1,aux!$AL$1),"n.d.") -> 0.5977041494 | AA27: =O27-INDEX($K27:$O27,1,aux!$AL$1) -> 1156.049 | AB27: 0.004080203331 | AC27: 0.002174261247 | AD27: =+IF(INDEX($K27:$O27,1,aux!$AL$1)>0,(O27/INDEX($K27:$O27,1,aux!$AL$1))^(1/($O$3-INDEX($K$3:$O$3,1,aux!$AL$1)))-1,"n.d.") -> 0.07414583942 | AE27: =IF(INDEX($K27:$O27,1,aux!$AL$1)>0,(O27-INDEX($K27:$O27,1,aux!$AL$1))/INDEX($K27:$O27,1,aux!$AL$1),"n.d.") -> 0.3312297127 | AX27: 04
A28: 0407 | B28: Ovos de aves, com cascas | C28: 2263.319 | D28: 1889.303 | E28: 1309.111 | F28: 1344.989 | G28: 1469.316 | H28: 1655.2076 | I28: 0.002061057214 | J28: 0.001678462805 | K28: 3674.392 | L28: 2521.69 | M28: 2571.247 | N28: 4392.036 | O28: 8142.063 | P28: 4260.2856 | Q28: 0.00630399988 | R28: 0.003135129452 | S28: 2605.078 | U28: =G28-INDEX($C28:$G28,1,aux!$AL$1) -> -794.003 | V28: -0.002606169992 | W28: -0.002382101561 | X28: =+IF(INDEX($C28:$G28,1,aux!$AL$1)>0,(G28/INDEX($C28:$G28,1,aux!$AL$1))^(1/($G$3-INDEX($C$3:$G$3,1,aux!$AL$1)))-1,"n.d.") -> -0.1023803327 | Y28: =IF(INDEX($C28:$G28,1,aux!$AL$1)>0,(G28-INDEX($C28:$G28,1,aux!$AL$1))/INDEX($C28:$G28,1,aux!$AL$1),"n.d.") -> -0.3508135619 | AA28: =O28-INDEX($K28:$O28,1,aux!$AL$1) -> 4467.671 | AB28: 0.01576836803 | AC28: 0.008402657605 | AD28: =+IF(INDEX($K28:$O28,1,aux!$AL$1)>0,(O28/INDEX($K28:$O28,1,aux!$AL$1))^(1/($O$3-INDEX($K$3:$O$3,1,aux!$AL$1)))-1,"n.d.") -> 0.2200770076 | AE28: =IF(INDEX($K28:$O28,1,aux!$AL$1)>0,(O28-INDEX($K28:$O28,1,aux!$AL$1))/INDEX($K28:$O28,1,aux!$AL$1),"n.d.") -> 1.215893949 | AX28: 04
A29: 0408 | B29: Ovos de aves, sem casca | C29: 990.799 | D29: 1084.694 | E29: 792.882 | F29: 800.154 | G29: 1224.449 | H29: 978.5956 | I29: 0.001218542932 | J29: 0.0009923445951 | K29: 676.299 | L29: 265.45 | M29: 25.345 | N29: 28.442 | O29: 27.202 | P29: 204.5476 | Q29: 0.0003026717377 | R29: 0.0001505258721 | S29: -774.048 | U29: =G29-INDEX($C29:$G29,1,aux!$AL$1) -> 233.65 | V29: 0.0007669134985 | W29: 0.0007009772379 | X29: =+IF(INDEX($C29:$G29,1,aux!$AL$1)>0,(G29/INDEX($C29:$G29,1,aux!$AL$1))^(1/($G$3-INDEX($C$3:$G$3,1,aux!$AL$1)))-1,"n.d.") -> 0.05435966957 | Y29: =IF(INDEX($C29:$G29,1,aux!$AL$1)>0,(G29-INDEX($C29:$G29,1,aux!$AL$1))/INDEX($C29:$G29,1,aux!$AL$1),"n.d.") -> 0.2358197778 | AA29: =O29-INDEX($K29:$O29,1,aux!$AL$1) -> -649.097 | AB29: -0.002290947652 | AC29: -0.001220801586 | AD29: =+IF(INDEX($K29:$O29,1,aux!$AL$1)>0,(O29/INDEX($K29:$O29,1,aux!$AL$1))^(1/($O$3-INDEX($K$3:$O$3,1,aux!$AL$1)))-1,"n.d.") -> -0.5521675878 | AE29: =IF(INDEX($K29:$O29,1,aux!$AL$1)>0,(O29-INDEX($K29:$O29,1,aux!$AL$1))/INDEX($K29:$O29,1,aux!$AL$1),"n.d.") -> -0.9597781455 | AX29: 04
A30: 0409 | B30: Mel natural | C30: 39.153 | D30: 70.902 | E30: 49.469 | F30: 74.247 | G30: 61.409 | H30: 59.036 | I30: 7.351136721e-05 | J30: 5.986543933e-05 | K30: 644.185 | L30: 144.29 | M30: 148.669 | N30: 590.851 | O30: 199.908 | P30: 345.5806 | Q30: 0.0005113600977 | R30: 0.0002543115694 | S30: 286.5446 | U30: =G30-INDEX($C30:$G30,1,aux!$AL$1) -> 22.256 | V30: 7.305125967e-05 | W30: 6.67705945e-05 | X30: =+IF(INDEX($C30:$G30,1,aux!$AL$1)>0,(G30/INDEX($C30:$G30,1,aux!$AL$1))^(1/($G$3-INDEX($C$3:$G$3,1,aux!$AL$1)))-1,"n.d.") -> 0.1190944585 | Y30: =IF(INDEX($C30:$G30,1,aux!$AL$1)>0,(G30-INDEX($C30:$G30,1,aux!$AL$1))/INDEX($C30:$G30,1,aux!$AL$1),"n.d.") -> 0.568436646 | AA30: =O30-INDEX($K30:$O30,1,aux!$AL$1) -> -444.277 | AB30: -0.00156804815 | AC30: -0.0008355824573 | AD30: =+IF(INDEX($K30:$O30,1,aux!$AL$1)>0,(O30/INDEX($K30:$O30,1,aux!$AL$1))^(1/($O$3-INDEX($K$3:$O$3,1,aux!$AL$1)))-1,"n.d.") -> -0.2536287682 | AE30: =IF(INDEX($K30:$O30,1,aux!$AL$1)>0,(O30-INDEX($K30:$O30,1,aux!$AL$1))/INDEX($K30:$O30,1,aux!$AL$1),"n.d.") -> -0.6896729977 | AX30: 04
A31: 0410 | B31: Outros produtos comestíveis de origem animal | C31: 4.64 | D31: 0.615 | E31: 0.017 | F31: 0.48 | G31: 132.634 | H31: 27.6772 | I31: 3.446352755e-05 | J31: 2.806605694e-05 | K31: 0 | L31: 0 | M31: 0 | N31: 0.382 | O31: 0 | P31: 0.0764 | Q31: 1.130500713e-07 | R31: 5.622249601e-08 | S31: -27.6008 | U31: =G31-INDEX($C31:$G31,1,aux!$AL$1) -> 127.994 | V31: 0.0004201169541 | W31: 0.000383996921 | X31: =+IF(INDEX($C31:$G31,1,aux!$AL$1)>0,(G31/INDEX($C31:$G31,1,aux!$AL$1))^(1/($G$3-INDEX($C$3:$G$3,1,aux!$AL$1)))-1,"n.d.") -> 1.312246984 | Y31: =IF(INDEX($C31:$G31,1,aux!$AL$1)>0,(G31-INDEX($C31:$G31,1,aux!$AL$1))/INDEX($C31:$G31,1,aux!$AL$1),"n.d.") -> 27.58491379 | AA31: =O31-INDEX($K31:$O31,1,aux!$AL$1) -> 0 | AB31: 0 | AC31: 0 | AD31: =+IF(INDEX($K31:$O31,1,aux!$AL$1)>0,(O31/INDEX($K31:$O31,1,aux!$AL$1))^(1/($O$3-INDEX($K$3:$O$3,1,aux!$AL$1)))-1,"n.d.") -> n.d. | AE31: =IF(INDEX($K31:$O31,1,aux!$AL$1)>0,(O31-INDEX($K31:$O31,1,aux!$AL$1))/INDEX($K31:$O31,1,aux!$AL$1),"n.d.") -> n.d. | AX31: 04
A32: 04SS | B32: Leite e lacticínios; ovos de aves; mel natural; etc. | C32: 0 | D32: 0 | E32: 0 | F32: 0 | G32: 0 | H32: 0 | I32: 0 | J32: 0 | K32: 0 | L32: 0 | M32: 0 | N32: 0 | O32: 0 | P32: 0 | Q32: 0 | R32: 0 | S32: 0 | U32: =G32-INDEX($C32:$G32,1,aux!$AL$1) -> 0 | V32: 0 | W32: 0 | X32: =+IF(INDEX($C32:$G32,1,aux!$AL$1)>0,(G32/INDEX($C32:$G32,1,aux!$AL$1))^(1/($G$3-INDEX($C$3:$G$3,1,aux!$AL$1)))-1,"n.d.") -> n.d. | Y32: =IF(INDEX($C32:$G32,1,aux!$AL$1)>0,(G32-INDEX($C32:$G32,1,aux!$AL$1))/INDEX($C32:$G32,1,aux!$AL$1),"n.d.") -> n.d. | AA32: =O32-INDEX($K32:$O32,1,aux!$AL$1) -> 0 | AB32: 0 | AC32: 0 | AD32: =+IF(INDEX($K32:$O32,1,aux!$AL$1)>0,(O32/INDEX($K32:$O32,1,aux!$AL$1))^(1/($O$3-INDEX($K$3:$O$3,1,aux!$AL$1)))-1,"n.d.") -> n.d. | AE32: =IF(INDEX($K32:$O32,1,aux!$AL$1)>0,(O32-INDEX($K32:$O32,1,aux!$AL$1))/INDEX($K32:$O32,1,aux!$AL$1),"n.d.") -> n.d. | AX32: 04
A33: 0501 | B33: Cabelos em bruto | C33: 0.784 | D33: 0.566 | E33: 0 | F33: 0 | G33: 0.186 | H33: 0.3072 | I33: 3.825240871e-07 | J33: 3.115160743e-07 | K33: 0 | L33: 0 | M33: 0 | N33: 0 | O33: 0 | P33: 0 | Q33: 0 | R33: 0 | S33: -0.3072 | U33: =G33-INDEX($C33:$G33,1,aux!$AL$1) -> -0.598 | V33: -1.962825902e-06 | W33: -1.794069712e-06 | X33: =+IF(INDEX($C33:$G33,1,aux!$AL$1)>0,(G33/INDEX($C33:$G33,1,aux!$AL$1))^(1/($G$3-INDEX($C$3:$G$3,1,aux!$AL$1)))-1,"n.d.") -> -0.3020903226 | Y33: =IF(INDEX($C33:$G33,1,aux!$AL$1)>0,(G33-INDEX($C33:$G33,1,aux!$AL$1))/INDEX($C33:$G33,1,aux!$AL$1),"n.d.") -> -0.762755102 | AA33: =O33-INDEX($K33:$O33,1,aux!$AL$1) -> 0 | AB33: 0 | AC33: 0 | AD33: =+IF(INDEX($K33:$O33,1,aux!$AL$1)>0,(O33/INDEX($K33:$O33,1,aux!$AL$1))^(1/($O$3-INDEX($K$3:$O$3,1,aux!$AL$1)))-1,"n.d.") -> n.d. | AE33: =IF(INDEX($K33:$O33,1,aux!$AL$1)>0,(O33-INDEX($K33:$O33,1,aux!$AL$1))/INDEX($K33:$O33,1,aux!$AL$1),"n.d.") -> n.d. | AX33: 05
A34: 0502 | B34: Cerdas de porco ou de javali, etc. | C34: 3.257 | D34: 0 | E34: 0 | F34: 0.066 | G34: 0 | H34: 0.6646 | I34: 8.275569932e-07 | J34: 6.739374445e-07 | K34: 0 | L34: 0 | M34: 0 | N34: 0 | O34: 0 | P34: 0 | Q34: 0 | R34: 0 | S34: -0.6646 | U34: =G34-INDEX($C34:$G34,1,aux!$AL$1) -> -3.257 | V34: -1.06905083e-05 | W34: -9.771379687e-06 | X34: =+IF(INDEX($C34:$G34,1,aux!$AL$1)>0,(G34/INDEX($C34:$G34,1,aux!$AL$1))^(1/($G$3-INDEX($C$3:$G$3,1,aux!$AL$1)))-1,"n.d.") -> -1 | Y34: =IF(INDEX($C34:$G34,1,aux!$AL$1)>0,(G34-INDEX($C34:$G34,1,aux!$AL$1))/INDEX($C34:$G34,1,aux!$AL$1),"n.d.") -> -1 | AA34: =O34-INDEX($K34:$O34,1,aux!$AL$1) -> 0 | AB34: 0 | AC34: 0 | AD34: =+IF(INDEX($K34:$O34,1,aux!$AL$1)>0,(O34/INDEX($K34:$O34,1,aux!$AL$1))^(1/($O$3-INDEX($K$3:$O$3,1,aux!$AL$1)))-1,"n.d.") -> n.d. | AE34: =IF(INDEX($K34:$O34,1,aux!$AL$1)>0,(O34-INDEX($K34:$O34,1,aux!$AL$1))/INDEX($K34:$O34,1,aux!$AL$1),"n.d.") -> n.d. | AX34: 05
A35: 0504 | B35: Tripas de animais (excepto peixes) | C35: 5588.523 | D35: 7000.975 | E35: 5349.851 | F35: 7689.301 | G35: 10556.161 | H35: 7236.9622 | I35: 0.009011433461 | J35: 0.007338639499 | K35: 13779.147 | L35: 14074.723 | M35: 12668.854 | N35: 13417.234 | O35: 18494.659 | P35: 14486.9234 | Q35: 0.02143648852 | R35: 0.01066087687 | S35: 7249.9612 | U35: =G35-INDEX($C35:$G35,1,aux!$AL$1) -> 4967.638 | V35: 0.01630536545 | W35: 0.01490349311 | X35: =+IF(INDEX($C35:$G35,1,aux!$AL$1)>0,(G35/INDEX($C35:$G35,1,aux!$AL$1))^(1/($G$3-INDEX($C$3:$G$3,1,aux!$AL$1)))-1,"n.d.") -> 0.1723363758 | Y35: =IF(INDEX($C35:$G35,1,aux!$AL$1)>0,(G35-INDEX($C35:$G35,1,aux!$AL$1))/INDEX($C35:$G35,1,aux!$AL$1),"n.d.") -> 0.8888999831 | AA35: =O35-INDEX($K35:$O35,1,aux!$AL$1) -> 4715.512 | AB35: 0.01664310749 | AC35: 0.008868789302 | AD35: =+IF(INDEX($K35:$O35,1,aux!$AL$1)>0,(O35/INDEX($K35:$O35,1,aux!$AL$1))^(1/($O$3-INDEX($K$3:$O$3,1,aux!$AL$1)))-1,"n.d.") -> 0.07635615531 | AE35: =IF(INDEX($K35:$O35,1,aux!$AL$1)>0,(O35-INDEX($K35:$O35,1,aux!$AL$1))/INDEX($K35:$O35,1,aux!$AL$1),"n.d.") -> 0.3422208936 | AX35: 05
A36: 0505 | B36: Peles e outras partes de aves | C36: 0 | D36: 0 | E36: 0 | F36: 1.002 | G36: 16.909 | H36: 3.5822 | I36: 4.460539665e-06 | J36: 3.63252891e-06 | K36: 0 | L36: 33.392 | M36: 0 | N36: 0 | O36: 0 | P36: 6.6784 | Q36: 9.882115132e-06 | R36: 4.914611484e-06 | S36: 3.0962 | U36: =G36-INDEX($C36:$G36,1,aux!$AL$1) -> 16.909 | V36: 5.550070766e-05 | W36: 5.072897118e-05 | X36: =+IF(INDEX($C36:$G36,1,aux!$AL$1)>0,(G36/INDEX($C36:$G36,1,aux!$AL$1))^(1/($G$3-INDEX($C$3:$G$3,1,aux!$AL$1)))-1,"n.d.") -> n.d. | Y36: =IF(INDEX($C36:$G36,1,aux!$AL$1)>0,(G36-INDEX($C36:$G36,1,aux!$AL$1))/INDEX($C36:$G36,1,aux!$AL$1),"n.d.") -> n.d. | AA36: =O36-INDEX($K36:$O36,1,aux!$AL$1) -> 0 | AB36: 0 | AC36: 0 | AD36: =+IF(INDEX($K36:$O36,1,aux!$AL$1)>0,(O36/INDEX($K36:$O36,1,aux!$AL$1))^(1/($O$3-INDEX($K$3:$O$3,1,aux!$AL$1)))-1,"n.d.") -> n.d. | AE36: =IF(INDEX($K36:$O36,1,aux!$AL$1)>0,(O36-INDEX($K36:$O36,1,aux!$AL$1))/INDEX($K36:$O36,1,aux!$AL$1),"n.d.") -> n.d. | AX36: 05
A37: 0506 | B37: Ossos e núcleos córneos, em bruto | C37: 148.72 | D37: 113.897 | E37: 95.592 | F37: 46.894 | G37: 132.356 | H37: 107.4918 | I37: 0.000133848316 | J37: 0.0001090020298 | K37: 12.935 | L37: 0 | M37: 17.543 | N37: 0 | O37: 0 | P37: 6.0956 | Q37: 9.01973841e-06 | R37: 4.485730977e-06 | S37: -101.3962 | U37: =G37-INDEX($C37:$G37,1,aux!$AL$1) -> -16.364 | V37: -5.371184459e-05 | W37: -4.909390764e-05 | X37: =+IF(INDEX($C37:$G37,1,aux!$AL$1)>0,(G37/INDEX($C37:$G37,1,aux!$AL$1))^(1/($G$3-INDEX($C$3:$G$3,1,aux!$AL$1)))-1,"n.d.") -> -0.02872197229 | Y37: =IF(INDEX($C37:$G37,1,aux!$AL$1)>0,(G37-INDEX($C37:$G37,1,aux!$AL$1))/INDEX($C37:$G37,1,aux!$AL$1),"n.d.") -> -0.1100322754 | AA37: =O37-INDEX($K37:$O37,1,aux!$AL$1) -> -12.935 | AB37: -4.565328121e-05 | AC37: -2.432774842e-05 | AD37: =+IF(INDEX($K37:$O37,1,aux!$AL$1)>0,(O37/INDEX($K37:$O37,1,aux!$AL$1))^(1/($O$3-INDEX($K$3:$O$3,1,aux!$AL$1)))-1,"n.d.") -> -1 | AE37: =IF(INDEX($K37:$O37,1,aux!$AL$1)>0,(O37-INDEX($K37:$O37,1,aux!$AL$1))/INDEX($K37:$O37,1,aux!$AL$1),"n.d.") -> -1 | AX37: 05
A38: 0507 | B38: Marfim, carapaças de tartaruga, etc. | C38: 0 | D38: 0 | E38: 0 | F38: 0 | G38: 0.972 | H38: 0.1944 | I38: 2.420660239e-07 | J38: 1.971312658e-07 | K38: 0 | L38: 0 | M38: 0 | N38: 0 | O38: 0 | P38: 0 | Q38: 0 | R38: 0 | S38: -0.1944 | U38: =G38-INDEX($C38:$G38,1,aux!$AL$1) -> 0.972 | V38: 3.190412671e-06 | W38: 2.916113311e-06 | X38: =+IF(INDEX($C38:$G38,1,aux!$AL$1)>0,(G38/INDEX($C38:$G38,1,aux!$AL$1))^(1/($G$3-INDEX($C$3:$G$3,1,aux!$AL$1)))-1,"n.d.") -> n.d. | Y38: =IF(INDEX($C38:$G38,1,aux!$AL$1)>0,(G38-INDEX($C38:$G38,1,aux!$AL$1))/INDEX($C38:$G38,1,aux!$AL$1),"n.d.") -> n.d. | AA38: =O38-INDEX($K38:$O38,1,aux!$AL$1) -> 0 | AB38: 0 | AC38: 0 | AD38: =+IF(INDEX($K38:$O38,1,aux!$AL$1)>0,(O38/INDEX($K38:$O38,1,aux!$AL$1))^(1/($O$3-INDEX($K$3:$O$3,1,aux!$AL$1)))-1,"n.d.") -> n.d. | AE38: =IF(INDEX($K38:$O38,1,aux!$AL$1)>0,(O38-INDEX($K38:$O38,1,aux!$AL$1))/INDEX($K38:$O38,1,aux!$AL$1),"n.d.") -> n.d. | AX38: 05
A39: 0510 | B39: Âmbar-cinzento, castóreo, algália e almíscar, etc. | C39: 1.041 | D39: 0.426 | E39: 0.738 | F39: 0.315 | G39: 0.316 | H39: 0.5672 | I39: 7.062749421e-07 | J39: 5.751690017e-07 | K39: 0 | L39: 0 | M39: 0 | N39: 0 | O39: 0 | P39: 0 | Q39: 0 | R39: 0 | S39: -0.5672 | U39: =G39-INDEX($C39:$G39,1,aux!$AL$1) -> -0.725 | V39: -2.379680233e-06 | W39: -2.175084517e-06 | X39: =+IF(INDEX($C39:$G39,1,aux!$AL$1)>0,(G39/INDEX($C39:$G39,1,aux!$AL$1))^(1/($G$3-INDEX($C$3:$G$3,1,aux!$AL$1)))-1,"n.d.") -> -0.2577348197 | Y39: =IF(INDEX($C39:$G39,1,aux!$AL$1)>0,(G39-INDEX($C39:$G39,1,aux!$AL$1))/INDEX($C39:$G39,1,aux!$AL$1),"n.d.") -> -0.6964457253 | AA39: =O39-INDEX($K39:$O39,1,aux!$AL$1) -> 0 | AB39: 0 | AC39: 0 | AD39: =+IF(INDEX($K39:$O39,1,aux!$AL$1)>0,(O39/INDEX($K39:$O39,1,aux!$AL$1))^(1/($O$3-INDEX($K$3:$O$3,1,aux!$AL$1)))-1,"n.d.") -> n.d. | AE39: =IF(INDEX($K39:$O39,1,aux!$AL$1)>0,(O39-INDEX($K39:$O39,1,aux!$AL$1))/INDEX($K39:$O39,1,aux!$AL$1),"n.d.") -> n.d. | AX39: 05
A40: 0511 | B40: Outros produtos de origem animal (exc. NC 0511 91) (a) | C40: 226.586 | D40: 73.564 | E40: 22.892 | F40: 1052.905 | G40: 19.138 | H40: 279.017 | I40: 0.0003474307397 | J40: 0.000282937111 | K40: 1346.891 | L40: 1269.56 | M40: 1127.813 | N40: 1421.445 | O40: 1812.893 | P40: 1395.7204 | Q40: 0.002065265585 | R40: 0.00102710582 | S40: 1116.7034 | U40: =G40-INDEX($C40:$G40,1,aux!$AL$1) -> -207.448 | V40: -0.0006809102137 | W40: -0.0006223681834 | X40: =+IF(INDEX($C40:$G40,1,aux!$AL$1)>0,(G40/INDEX($C40:$G40,1,aux!$AL$1))^(1/($G$3-INDEX($C$3:$G$3,1,aux!$AL$1)))-1,"n.d.") -> -0.460904298 | Y40: =IF(INDEX($C40:$G40,1,aux!$AL$1)>0,(G40-INDEX($C40:$G40,1,aux!$AL$1))/INDEX($C40:$G40,1,aux!$AL$1),"n.d.") -> -0.9155375884 | AA40: =O40-INDEX($K40:$O40,1,aux!$AL$1) -> 466.002 | AB40: 0.001644725191 | AC40: 0.0008764421662 | AD40: =+IF(INDEX($K40:$O40,1,aux!$AL$1)>0,(O40/INDEX($K40:$O40,1,aux!$AL$1))^(1/($O$3-INDEX($K$3:$O$3,1,aux!$AL$1)))-1,"n.d.") -> 0.07710968337 | AE40: =IF(INDEX($K40:$O40,1,aux!$AL$1)>0,(O40-INDEX($K40:$O40,1,aux!$AL$1))/INDEX($K40:$O40,1,aux!$AL$1),"n.d.") -> 0.3459834537 | AX40: 05
A41: 05SS | B41: Outros produtos de origem animal | C41: 0 | D41: 0 | E41: 0 | F41: 0 | G41: 0 | H41: 0 | I41: 0 | J41: 0 | K41: 0 | L41: 0 | M41: 0 | N41: 0 | O41: 0 | P41: 0 | Q41: 0 | R41: 0 | S41: 0 | U41: =G41-INDEX($C41:$G41,1,aux!$AL$1) -> 0 | V41: 0 | W41: 0 | X41: =+IF(INDEX($C41:$G41,1,aux!$AL$1)>0,(G41/INDEX($C41:$G41,1,aux!$AL$1))^(1/($G$3-INDEX($C$3:$G$3,1,aux!$AL$1)))-1,"n.d.") -> n.d. | Y41: =IF(INDEX($C41:$G41,1,aux!$AL$1)>0,(G41-INDEX($C41:$G41,1,aux!$AL$1))/INDEX($C41:$G41,1,aux!$AL$1),"n.d.") -> n.d. | AA41: =O41-INDEX($K41:$O41,1,aux!$AL$1) -> 0 | AB41: 0 | AC41: 0 | AD41: =+IF(INDEX($K41:$O41,1,aux!$AL$1)>0,(O41/INDEX($K41:$O41,1,aux!$AL$1))^(1/($O$3-INDEX($K$3:$O$3,1,aux!$AL$1)))-1,"n.d.") -> n.d. | AE41: =IF(INDEX($K41:$O41,1,aux!$AL$1)>0,(O41-INDEX($K41:$O41,1,aux!$AL$1))/INDEX($K41:$O41,1,aux!$AL$1),"n.d.") -> n.d. | AX41: 05
A42: 0601 | B42: Bolbos, tubérculos, raízes, etc. | C42: 5.562 | D42: 10.709 | E42: 12.934 | F42: 4.459 | G42: 6.301 | H42: 7.993 | I42: 9.9528484e-06 | J42: 8.10529942e-06 | K42: 15.333 | L42: 189.795 | M42: 433.504 | N42: 439.865 | O42: 515.202 | P42: 318.7398 | Q42: 0.0004716434177 | R42: 0.0002345595175 | S42: 310.7468 | U42: =G42-INDEX($C42:$G42,1,aux!$AL$1) -> 0.739 | V42: 2.425632679e-06 | W42: 2.217086149e-06 | X42: =+IF(INDEX($C42:$G42,1,aux!$AL$1)>0,(G42/INDEX($C42:$G42,1,aux!$AL$1))^(1/($G$3-INDEX($C$3:$G$3,1,aux!$AL$1)))-1,"n.d.") -> 0.03167907905 | Y42: =IF(INDEX($C42:$G42,1,aux!$AL$1)>0,(G42-INDEX($C42:$G42,1,aux!$AL$1))/INDEX($C42:$G42,1,aux!$AL$1),"n.d.") -> 0.1328658756 | AA42: =O42-INDEX($K42:$O42,1,aux!$AL$1) -> 499.869 | AB42: 0.00176425667 | AC42: 0.0009401381736 | AD42: =+IF(INDEX($K42:$O42,1,aux!$AL$1)>0,(O42/INDEX($K42:$O42,1,aux!$AL$1))^(1/($O$3-INDEX($K$3:$O$3,1,aux!$AL$1)))-1,"n.d.") -> 1.407618109 | AE42: =IF(INDEX($K42:$O42,1,aux!$AL$1)>0,(O42-INDEX($K42:$O42,1,aux!$AL$1))/INDEX($K42:$O42,1,aux!$AL$1),"n.d.") -> 32.60086089 | AX42: 06
A43: 0602 | B43: Plantas vivas | C43: 1702.425 | D43: 661.141 | E43: 348.314 | F43: 735.963 | G43: 1947.616 | H43: 1079.0918 | I43: 0.001343680357 | J43: 0.001094252739 | K43: 3947.725 | L43: 4555.425 | M43: 3506.469 | N43: 4387.57 | O43: 3644.184 | P43: 4008.2746 | Q43: 0.005931095933 | R43: 0.002949675428 | S43: 2929.1828 | U43: =G43-INDEX($C43:$G43,1,aux!$AL$1) -> 245.191 | V43: 0.0008047947255 | W43: 0.0007356015833 | X43: =+IF(INDEX($C43:$G43,1,aux!$AL$1)>0,(G43/INDEX($C43:$G43,1,aux!$AL$1))^(1/($G$3-INDEX($C$3:$G$3,1,aux!$AL$1)))-1,"n.d.") -> 0.03421024675 | Y43: =IF(INDEX($C43:$G43,1,aux!$AL$1)>0,(G43-INDEX($C43:$G43,1,aux!$AL$1))/INDEX($C43:$G43,1,aux!$AL$1),"n.d.") -> 0.1440245532 | AA43: =O43-INDEX($K43:$O43,1,aux!$AL$1) -> -303.541 | AB43: -0.001071329156 | AC43: -0.000570890536 | AD43: =+IF(INDEX($K43:$O43,1,aux!$AL$1)>0,(O43/INDEX($K43:$O43,1,aux!$AL$1))^(1/($O$3-INDEX($K$3:$O$3,1,aux!$AL$1)))-1,"n.d.") -> -0.01980303997 | AE43: =IF(INDEX($K43:$O43,1,aux!$AL$1)>0,(O43-INDEX($K43:$O43,1,aux!$AL$1))/INDEX($K43:$O43,1,aux!$AL$1),"n.d.") -> -0.07689010759 | AX43: 06
A44: 0603 | B44: Flores e seus botões | C44: 4.101 | D44: 4.009 | E44: 5.134 | F44: 37.402 | G44: 45.004 | H44: 19.13 | I44: 2.382059175e-05 | J44: 1.939877116e-05 | K44: 21.511 | L44: 28.266 | M44: 18.6 | N44: 17.624 | O44: 12.271 | P44: 19.6544 | Q44: 2.90828707e-05 | R44: 1.446360505e-05 | S44: 0.5244 | U44: =G44-INDEX($C44:$G44,1,aux!$AL$1) -> 40.903 | V44: 0.0001342566353 | W44: 0.0001227137683 | X44: =+IF(INDEX($C44:$G44,1,aux!$AL$1)>0,(G44/INDEX($C44:$G44,1,aux!$AL$1))^(1/($G$3-INDEX($C$3:$G$3,1,aux!$AL$1)))-1,"n.d.") -> 0.8200794101 | Y44: =IF(INDEX($C44:$G44,1,aux!$AL$1)>0,(G44-INDEX($C44:$G44,1,aux!$AL$1))/INDEX($C44:$G44,1,aux!$AL$1),"n.d.") -> 9.973908803 | AA44: =O44-INDEX($K44:$O44,1,aux!$AL$1) -> -9.24 | AB44: -3.261200761e-05 | AC44: -1.737830657e-05 | AD44: =+IF(INDEX($K44:$O44,1,aux!$AL$1)>0,(O44/INDEX($K44:$O44,1,aux!$AL$1))^(1/($O$3-INDEX($K$3:$O$3,1,aux!$AL$1)))-1,"n.d.") -> -0.130929839 | AE44: =IF(INDEX($K44:$O44,1,aux!$AL$1)>0,(O44-INDEX($K44:$O44,1,aux!$AL$1))/INDEX($K44:$O44,1,aux!$AL$1),"n.d.") -> -0.4295476733 | AX44: 06
A45: 0604 | B45: Folhagem, folhas, ramos e outras partes de plantas | C45: 23.771 | D45: 30.987 | E45: 5.952 | F45: 25.375 | G45: 134.907 | H45: 44.1984 | I45: 5.503565304e-05 | J45: 4.481937519e-05 | K45: 128.694 | L45: 105.274 | M45: 50.77 | N45: 51.889 | O45: 87.957 | P45: 84.9168 | Q45: 0.0001256524908 | R45: 6.24899797e-05 | S45: 40.7184 | U45: =G45-INDEX($C45:$G45,1,aux!$AL$1) -> 111.136 | V45: 0.0003647836446 | W45: 0.0003334209557 | X45: =+IF(INDEX($C45:$G45,1,aux!$AL$1)>0,(G45/INDEX($C45:$G45,1,aux!$AL$1))^(1/($G$3-INDEX($C$3:$G$3,1,aux!$AL$1)))-1,"n.d.") -> 0.543464902 | Y45: =IF(INDEX($C45:$G45,1,aux!$AL$1)>0,(G45-INDEX($C45:$G45,1,aux!$AL$1))/INDEX($C45:$G45,1,aux!$AL$1),"n.d.") -> 4.675276598 | AA45: =O45-INDEX($K45:$O45,1,aux!$AL$1) -> -40.737 | AB45: -0.000143778718 | AC45: -7.661689118e-05 | AD45: =+IF(INDEX($K45:$O45,1,aux!$AL$1)>0,(O45/INDEX($K45:$O45,1,aux!$AL$1))^(1/($O$3-INDEX($K$3:$O$3,1,aux!$AL$1)))-1,"n.d.") -> -0.09076105967 | AE45: =IF(INDEX($K45:$O45,1,aux!$AL$1)>0,(O45-INDEX($K45:$O45,1,aux!$AL$1))/INDEX($K45:$O45,1,aux!$AL$1),"n.d.") -> -0.3165415637 | AX45: 06
A46: 06SS | B46: Plantas vivas e produtos de floricultura | C46: 0 | D46: 0 | E46: 0 | F46: 0 | G46: 0 | H46: 0 | I46: 0 | J46: 0 | K46: 0 | L46: 0 | M46: 0 | N46: 0 | O46: 0 | P46: 0 | Q46: 0 | R46: 0 | S46: 0 | U46: =G46-INDEX($C46:$G46,1,aux!$AL$1) -> 0 | V46: 0 | W46: 0 | X46: =+IF(INDEX($C46:$G46,1,aux!$AL$1)>0,(G46/INDEX($C46:$G46,1,aux!$AL$1))^(1/($G$3-INDEX($C$3:$G$3,1,aux!$AL$1)))-1,"n.d.") -> n.d. | Y46: =IF(INDEX($C46:$G46,1,aux!$AL$1)>0,(G46-INDEX($C46:$G46,1,aux!$AL$1))/INDEX($C46:$G46,1,aux!$AL$1),"n.d.") -> n.d. | AA46: =O46-INDEX($K46:$O46,1,aux!$AL$1) -> 0 | AB46: 0 | AC46: 0 | AD46: =+IF(INDEX($K46:$O46,1,aux!$AL$1)>0,(O46/INDEX($K46:$O46,1,aux!$AL$1))^(1/($O$3-INDEX($K$3:$O$3,1,aux!$AL$1)))-1,"n.d.") -> n.d. | AE46: =IF(INDEX($K46:$O46,1,aux!$AL$1)>0,(O46-INDEX($K46:$O46,1,aux!$AL$1))/INDEX($K46:$O46,1,aux!$AL$1),"n.d.") -> n.d. | AX46: 06
A47: 0701 | B47: Batatas, frescas ou refrigeradas | C47: 38030.455 | D47: 46170.859 | E47: 36930.095 | F47: 31616.096 | G47: 54152.008 | H47: 41379.9026 | I47: 0.05152607249 | J47: 0.04196127868 | K47: 1651.068 | L47: 6991.361 | M47: 4400.889 | N47: 4810.676 | O47: 3700.434 | P47: 4310.8856 | Q47: 0.006378873356 | R47: 0.003172365817 | S47: -37069.017 | U47: =G47-INDEX($C47:$G47,1,aux!$AL$1) -> 16121.553 | V47: 0.05291605655 | W47: 0.04836653838 | X47: =+IF(INDEX($C47:$G47,1,aux!$AL$1)>0,(G47/INDEX($C47:$G47,1,aux!$AL$1))^(1/($G$3-INDEX($C$3:$G$3,1,aux!$AL$1)))-1,"n.d.") -> 0.09237250638 | Y47: =IF(INDEX($C47:$G47,1,aux!$AL$1)>0,(G47-INDEX($C47:$G47,1,aux!$AL$1))/INDEX($C47:$G47,1,aux!$AL$1),"n.d.") -> 0.4239116519 | AA47: =O47-INDEX($K47:$O47,1,aux!$AL$1) -> 2049.366 | AB47: 0.007233110344 | AC47: 0.003854384265 | AD47: =+IF(INDEX($K47:$O47,1,aux!$AL$1)>0,(O47/INDEX($K47:$O47,1,aux!$AL$1))^(1/($O$3-INDEX($K$3:$O$3,1,aux!$AL$1)))-1,"n.d.") -> 0.2235505754 | AE47: =IF(INDEX($K47:$O47,1,aux!$AL$1)>0,(O47-INDEX($K47:$O47,1,aux!$AL$1))/INDEX($K47:$O47,1,aux!$AL$1),"n.d.") -> 1.241236581 | AX47: 07
A48: 0702 | B48: Tomates, frescos ou refrigerados | C48: 68.801 | D48: 28.665 | E48: 481.987 | F48: 107.938 | G48: 237.704 | H48: 185.019 | I48: 0.000230384844 | J48: 0.0001876184653 | K48: 1326.072 | L48: 2117.288 | M48: 1029.056 | N48: 977.544 | O48: 804.346 | P48: 1250.8612 | Q48: 0.001850915548 | R48: 0.0009205044349 | S48: 1065.8422 | U48: =G48-INDEX($C48:$G48,1,aux!$AL$1) -> 168.903 | V48: 0.0005543932833 | W48: 0.00050672869 | X48: =+IF(INDEX($C48:$G48,1,aux!$AL$1)>0,(G48/INDEX($C48:$G48,1,aux!$AL$1))^(1/($G$3-INDEX($C$3:$G$3,1,aux!$AL$1)))-1,"n.d.") -> 0.3633596449 | Y48: =IF(INDEX($C48:$G48,1,aux!$AL$1)>0,(G48-INDEX($C48:$G48,1,aux!$AL$1))/INDEX($C48:$G48,1,aux!$AL$1),"n.d.") -> 2.454949783 | AA48: =O48-INDEX($K48:$O48,1,aux!$AL$1) -> -521.726 | AB48: -0.001841399598 | AC48: -0.000981246144 | AD48: =+IF(INDEX($K48:$O48,1,aux!$AL$1)>0,(O48/INDEX($K48:$O48,1,aux!$AL$1))^(1/($O$3-INDEX($K$3:$O$3,1,aux!$AL$1)))-1,"n.d.") -> -0.1174913917 | AE48: =IF(INDEX($K48:$O48,1,aux!$AL$1)>0,(O48-INDEX($K48:$O48,1,aux!$AL$1))/INDEX($K48:$O48,1,aux!$AL$1),"n.d.") -> -0.3934371588 | AX48: 07
A49: 0703 | B49: Cebolas, alhos, etc., frescos ou refrigerados | C49: 2819.911 | D49: 3283.99 | E49: 2478.645 | F49: 3132.923 | G49: 4311.743 | H49: 3205.4424 | I49: 0.00399140276 | J49: 0.003250477971 | K49: 1155.854 | L49: 1437.234 | M49: 1410.95 | N49: 1645.373 | O49: 698.332 | P49: 1269.5486 | Q49: 0.001878567536 | R49: 0.000934256428 | S49: -1935.8938 | U49: =G49-INDEX($C49:$G49,1,aux!$AL$1) -> 1491.832 | V49: 0.004896666374 | W49: 0.004475669911 | X49: =+IF(INDEX($C49:$G49,1,aux!$AL$1)>0,(G49/INDEX($C49:$G49,1,aux!$AL$1))^(1/($G$3-INDEX($C$3:$G$3,1,aux!$AL$1)))-1,"n.d.") -> 0.1119989223 | Y49: =IF(INDEX($C49:$G49,1,aux!$AL$1)>0,(G49-INDEX($C49:$G49,1,aux!$AL$1))/INDEX($C49:$G49,1,aux!$AL$1),"n.d.") -> 0.5290351362 | AA49: =O49-INDEX($K49:$O49,1,aux!$AL$1) -> -457.522 | AB49: -0.001614795557 | AC49: -0.0008604932442 | AD49: =+IF(INDEX($K49:$O49,1,aux!$AL$1)>0,(O49/INDEX($K49:$O49,1,aux!$AL$1))^(1/($O$3-INDEX($K$3:$O$3,1,aux!$AL$1)))-1,"n.d.") -> -0.1183631367 | AE49: =IF(INDEX($K49:$O49,1,aux!$AL$1)>0,(O49-INDEX($K49:$O49,1,aux!$AL$1))/INDEX($K49:$O49,1,aux!$AL$1),"n.d.") -> -0.3958302692 | AX49: 07
A50: 0704 | B50: Couves, frescas ou refrigeradas | C50: 413.25 | D50: 417.256 | E50: 108.315 | F50: 307.574 | G50: 285.01 | H50: 306.281 | I50: 0.0003813797524 | J50: 0.0003105841626 | K50: 2983.005 | L50: 3597.403 | M50: 3413.077 | N50: 3314.853 | O50: 2813.495 | P50: 3224.3666 | Q50: 0.004771137094 | R50: 0.00237280024 | S50: 2918.0856 | U50: =G50-INDEX($C50:$G50,1,aux!$AL$1) -> -128.24 | V50: -0.0004209244042 | W50: -0.0003847349496 | X50: =+IF(INDEX($C50:$G50,1,aux!$AL$1)>0,(G50/INDEX($C50:$G50,1,aux!$AL$1))^(1/($G$3-INDEX($C$3:$G$3,1,aux!$AL$1)))-1,"n.d.") -> -0.08869907945 | Y50: =IF(INDEX($C50:$G50,1,aux!$AL$1)>0,(G50-INDEX($C50:$G50,1,aux!$AL$1))/INDEX($C50:$G50,1,aux!$AL$1),"n.d.") -> -0.3103206292 | AA50: =O50-INDEX($K50:$O50,1,aux!$AL$1) -> -169.51 | AB50: -0.0005982750443 | AC50: -0.0003188091716 | AD50: =+IF(INDEX($K50:$O50,1,aux!$AL$1)>0,(O50/INDEX($K50:$O50,1,aux!$AL$1))^(1/($O$3-INDEX($K$3:$O$3,1,aux!$AL$1)))-1,"n.d.") -> -0.01451948546 | AE50: =IF(INDEX($K50:$O50,1,aux!$AL$1)>0,(O50-INDEX($K50:$O50,1,aux!$AL$1))/INDEX($K50:$O50,1,aux!$AL$1),"n.d.") -> -0.05682524837 | AX50: 07
A51: 0705 | B51: Alfaces, frescas ou refrigeradas | C51: 59.353 | D51: 31.052 | E51: 50.173 | F51: 177.625 | G51: 334.47 | H51: 130.5346 | I51: 0.0001625411091 | J51: 0.0001323685747 | K51: 691.241 | L51: 714.321 | M51: 235.878 | N51: 123.098 | O51: 155.102 | P51: 383.928 | Q51: 0.0005681032431 | R51: 0.0002825312886 | S51: 253.3934 | U51: =G51-INDEX($C51:$G51,1,aux!$AL$1) -> 275.117 | V51: 0.0009030213608 | W51: 0.0008253830719 | X51: =+IF(INDEX($C51:$G51,1,aux!$AL$1)>0,(G51/INDEX($C51:$G51,1,aux!$AL$1))^(1/($G$3-INDEX($C$3:$G$3,1,aux!$AL$1)))-1,"n.d.") -> 0.5407373962 | Y51: =IF(INDEX($C51:$G51,1,aux!$AL$1)>0,(G51-INDEX($C51:$G51,1,aux!$AL$1))/INDEX($C51:$G51,1,aux!$AL$1),"n.d.") -> 4.635266962 | AA51: =O51-INDEX($K51:$O51,1,aux!$AL$1) -> -536.139 | AB51: -0.001892269388 | AC51: -0.001008353669 | AD51: =+IF(INDEX($K51:$O51,1,aux!$AL$1)>0,(O51/INDEX($K51:$O51,1,aux!$AL$1))^(1/($O$3-INDEX($K$3:$O$3,1,aux!$AL$1)))-1,"n.d.") -> -0.3117488004 | AE51: =IF(INDEX($K51:$O51,1,aux!$AL$1)>0,(O51-INDEX($K51:$O51,1,aux!$AL$1))/INDEX($K51:$O51,1,aux!$AL$1),"n.d.") -> -0.7756180551 | AX51: 07
A52: 0706 | B52: Cenouras, nabos, beterrabas, etc., frescos ou refrigerados | C52: 521.114 | D52: 773.186 | E52: 143.809 | F52: 462.408 | G52: 446.838 | H52: 469.471 | I52: 0.0005845832217 | J52: 0.0004760669365 | K52: 2718.203 | L52: 3363.6 | M52: 3826.956 | N52: 4031.765 | O52: 1432.364 | P52: 3074.5776 | Q52: 0.004549492367 | R52: 0.002262571032 | S52: 2605.1066 | U52: =G52-INDEX($C52:$G52,1,aux!$AL$1) -> -74.276 | V52: -0.0002437974193 | W52: -0.0002228366588 | X52: =+IF(INDEX($C52:$G52,1,aux!$AL$1)>0,(G52/INDEX($C52:$G52,1,aux!$AL$1))^(1/($G$3-INDEX($C$3:$G$3,1,aux!$AL$1)))-1,"n.d.") -> -0.03771361849 | Y52: =IF(INDEX($C52:$G52,1,aux!$AL$1)>0,(G52-INDEX($C52:$G52,1,aux!$AL$1))/INDEX($C52:$G52,1,aux!$AL$1),"n.d.") -> -0.1425331118 | AA52: =O52-INDEX($K52:$O52,1,aux!$AL$1) -> -1285.839 | AB52: -0.004538289096 | AC52: -0.00241836627 | AD52: =+IF(INDEX($K52:$O52,1,aux!$AL$1)>0,(O52/INDEX($K52:$O52,1,aux!$AL$1))^(1/($O$3-INDEX($K$3:$O$3,1,aux!$AL$1)))-1,"n.d.") -> -0.14799356 | AE52: =IF(INDEX($K52:$O52,1,aux!$AL$1)>0,(O52-INDEX($K52:$O52,1,aux!$AL$1))/INDEX($K52:$O52,1,aux!$AL$1),"n.d.") -> -0.4730474508 | AX52: 07
A53: 0707 | B53: Pepinos e pepininhos, frescos ou refrigerados | C53: 1.483 | D53: 1.187 | E53: 1.161 | F53: 1.251 | G53: 0.833 | H53: 1.183 | I53: 1.47306639e-06 | J53: 1.19962082e-06 | K53: 14.418 | L53: 23.059 | M53: 19.549 | N53: 19.02 | O53: 17.648 | P53: 18.7388 | Q53: 2.77280455e-05 | R53: 1.378981817e-05 | S53: 17.5558 | U53: =G53-INDEX($C53:$G53,1,aux!$AL$1) -> -0.65 | V53: -2.133506416e-06 | W53: -1.950075774e-06 | X53: =+IF(INDEX($C53:$G53,1,aux!$AL$1)>0,(G53/INDEX($C53:$G53,1,aux!$AL$1))^(1/($G$3-INDEX($C$3:$G$3,1,aux!$AL$1)))-1,"n.d.") -> -0.1342829665 | Y53: =IF(INDEX($C53:$G53,1,aux!$AL$1)>0,(G53-INDEX($C53:$G53,1,aux!$AL$1))/INDEX($C53:$G53,1,aux!$AL$1),"n.d.") -> -0.4383007417 | AA53: =O53-INDEX($K53:$O53,1,aux!$AL$1) -> 3.23 | AB53: 1.140008491e-05 | AC53: 6.074884221e-06 | AD53: =+IF(INDEX($K53:$O53,1,aux!$AL$1)>0,(O53/INDEX($K53:$O53,1,aux!$AL$1))^(1/($O$3-INDEX($K$3:$O$3,1,aux!$AL$1)))-1,"n.d.") -> 0.05183500129 | AE53: =IF(INDEX($K53:$O53,1,aux!$AL$1)>0,(O53-INDEX($K53:$O53,1,aux!$AL$1))/INDEX($K53:$O53,1,aux!$AL$1),"n.d.") -> 0.2240255237 | AX53: 07
A54: 0708 | B54: Tomates preparados ou conservados | C54: 2.524 | D54: 0.749 | E54: 267.967 | F54: 160.74 | G54: 184.753 | H54: 123.3466 | I54: 0.0001535906431 | J54: 0.0001250795853 | K54: 39.279 | L54: 30.952 | M54: 38.905 | N54: 30.496 | O54: 29.809 | P54: 33.8882 | Q54: 5.014480924e-05 | R54: 2.493820928e-05 | S54: -89.4584 | U54: =G54-INDEX($C54:$G54,1,aux!$AL$1) -> 182.229 | V54: 0.0005981334471 | W54: 0.0005467082434 | X54: =+IF(INDEX($C54:$G54,1,aux!$AL$1)>0,(G54/INDEX($C54:$G54,1,aux!$AL$1))^(1/($G$3-INDEX($C$3:$G$3,1,aux!$AL$1)))-1,"n.d.") -> 1.924997755 | Y54: =IF(INDEX($C54:$G54,1,aux!$AL$1)>0,(G54-INDEX($C54:$G54,1,aux!$AL$1))/INDEX($C54:$G54,1,aux!$AL$1),"n.d.") -> 72.19849445 | AA54: =O54-INDEX($K54:$O54,1,aux!$AL$1) -> -9.47 | AB54: -3.342377836e-05 | AC54: -1.781088346e-05 | AD54: =+IF(INDEX($K54:$O54,1,aux!$AL$1)>0,(O54/INDEX($K54:$O54,1,aux!$AL$1))^(1/($O$3-INDEX($K$3:$O$3,1,aux!$AL$1)))-1,"n.d.") -> -0.0666452412 | AE54: =IF(INDEX($K54:$O54,1,aux!$AL$1)>0,(O54-INDEX($K54:$O54,1,aux!$AL$1))/INDEX($K54:$O54,1,aux!$AL$1),"n.d.") -> -0.2410957509 | AX54: 07
A55: 0709 | B55: Outros produtos hortícolas, frescos ou refrigerados | C55: 366.668 | D55: 289.37 | E55: 309.024 | F55: 333.882 | G55: 262.842 | H55: 312.3572 | I55: 0.0003889458099 | J55: 0.0003167457315 | K55: 3662.497 | L55: 5950.408 | M55: 6284.024 | N55: 6700.805 | O55: 4361.553 | P55: 5391.8574 | Q55: 0.007978401354 | R55: 0.00396784923 | S55: 5079.5002 | U55: =G55-INDEX($C55:$G55,1,aux!$AL$1) -> -103.826 | V55: -0.0003407899032 | W55: -0.0003114901036 | X55: =+IF(INDEX($C55:$G55,1,aux!$AL$1)>0,(G55/INDEX($C55:$G55,1,aux!$AL$1))^(1/($G$3-INDEX($C$3:$G$3,1,aux!$AL$1)))-1,"n.d.") -> -0.07985676314 | Y55: =IF(INDEX($C55:$G55,1,aux!$AL$1)>0,(G55-INDEX($C55:$G55,1,aux!$AL$1))/INDEX($C55:$G55,1,aux!$AL$1),"n.d.") -> -0.2831607885 | AA55: =O55-INDEX($K55:$O55,1,aux!$AL$1) -> 699.056 | AB55: 0.002467274847 | AC55: 0.00131476293 | AD55: =+IF(INDEX($K55:$O55,1,aux!$AL$1)>0,(O55/INDEX($K55:$O55,1,aux!$AL$1))^(1/($O$3-INDEX($K$3:$O$3,1,aux!$AL$1)))-1,"n.d.") -> 0.04463835928 | AE55: =IF(INDEX($K55:$O55,1,aux!$AL$1)>0,(O55-INDEX($K55:$O55,1,aux!$AL$1))/INDEX($K55:$O55,1,aux!$AL$1),"n.d.") -> 0.1908686888 | AX55: 07
A56: 0710 | B56: Produtos hortícolas congelados | C56: 3725.187 | D56: 3739.778 | E56: 3007.752 | F56: 3606.612 | G56: 7678.174 | H56: 4351.5006 | I56: 0.005418469384 | J56: 0.004412637969 | K56: 11609.001 | L56: 11620.627 | M56: 13019.47 | N56: 11464.203 | O56: 14006.676 | P56: 12343.9954 | Q56: 0.01826557016 | R56: 0.009083903562 | S56: 7992.4948 | U56: =G56-INDEX($C56:$G56,1,aux!$AL$1) -> 3952.987 | V56: 0.01297495865 | W56: 0.01185942182 | X56: =+IF(INDEX($C56:$G56,1,aux!$AL$1)>0,(G56/INDEX($C56:$G56,1,aux!$AL$1))^(1/($G$3-INDEX($C$3:$G$3,1,aux!$AL$1)))-1,"n.d.") -> 0.1981949028 | Y56: =IF(INDEX($C56:$G56,1,aux!$AL$1)>0,(G56-INDEX($C56:$G56,1,aux!$AL$1))/INDEX($C56:$G56,1,aux!$AL$1),"n.d.") -> 1.061151293 | AA56: =O56-INDEX($K56:$O56,1,aux!$AL$1) -> 2397.675 | AB56: 0.008462445383 | AC56: 0.004509473073 | AD56: =+IF(INDEX($K56:$O56,1,aux!$AL$1)>0,(O56/INDEX($K56:$O56,1,aux!$AL$1))^(1/($O$3-INDEX($K$3:$O$3,1,aux!$AL$1)))-1,"n.d.") -> 0.04805737538 | AE56: =IF(INDEX($K56:$O56,1,aux!$AL$1)>0,(O56-INDEX($K56:$O56,1,aux!$AL$1))/INDEX($K56:$O56,1,aux!$AL$1),"n.d.") -> 0.2065358595 | AX56: 07
A57: 0711 | B57: Produtos hortícolas conservados transitoriamente | C57: 37.44 | D57: 35.168 | E57: 44.995 | F57: 45.916 | G57: 54.56 | H57: 43.6158 | I57: 5.431020208e-05 | J57: 4.422858982e-05 | K57: 24.195 | L57: 27.978 | M57: 27.708 | N57: 4.343 | O57: 2.013 | P57: 17.2474 | Q57: 2.552120157e-05 | R57: 1.269230206e-05 | S57: -26.3684 | U57: =G57-INDEX($C57:$G57,1,aux!$AL$1) -> 17.12 | V57: 5.619327667e-05 | W57: 5.136199577e-05 | X57: =+IF(INDEX($C57:$G57,1,aux!$AL$1)>0,(G57/INDEX($C57:$G57,1,aux!$AL$1))^(1/($G$3-INDEX($C$3:$G$3,1,aux!$AL$1)))-1,"n.d.") -> 0.09871392914 | Y57: =IF(INDEX($C57:$G57,1,aux!$AL$1)>0,(G57-INDEX($C57:$G57,1,aux!$AL$1))/INDEX($C57:$G57,1,aux!$AL$1),"n.d.") -> 0.4572649573 | AA57: =O57-INDEX($K57:$O57,1,aux!$AL$1) -> -22.182 | AB57: -7.828999489e-05 | AC57: -4.171922037e-05 | AD57: =+IF(INDEX($K57:$O57,1,aux!$AL$1)>0,(O57/INDEX($K57:$O57,1,aux!$AL$1))^(1/($O$3-INDEX($K$3:$O$3,1,aux!$AL$1)))-1,"n.d.") -> -0.4629316779 | AE57: =IF(INDEX($K57:$O57,1,aux!$AL$1)>0,(O57-INDEX($K57:$O57,1,aux!$AL$1))/INDEX($K57:$O57,1,aux!$AL$1),"n.d.") -> -0.9168009919 | AX57: 07
A58: 0712 | B58: Produtos hortícolas secos | C58: 1124.78 | D58: 1352.376 | E58: 1889.095 | F58: 2154.213 | G58: 2025.89 | H58: 1709.2708 | I58: 0.002128376473 | J58: 0.001733285578 | K58: 1249.401 | L58: 1390.786 | M58: 1580.348 | N58: 1520.423 | O58: 2114.041 | P58: 1570.9998 | Q58: 0.002324628788 | R58: 0.001156093324 | S58: -138.271 | U58: =G58-INDEX($C58:$G58,1,aux!$AL$1) -> 901.11 | V58: 0.002957729179 | W58: 0.002703435047 | X58: =+IF(INDEX($C58:$G58,1,aux!$AL$1)>0,(G58/INDEX($C58:$G58,1,aux!$AL$1))^(1/($G$3-INDEX($C$3:$G$3,1,aux!$AL$1)))-1,"n.d.") -> 0.1584760742 | Y58: =IF(INDEX($C58:$G58,1,aux!$AL$1)>0,(G58-INDEX($C58:$G58,1,aux!$AL$1))/INDEX($C58:$G58,1,aux!$AL$1),"n.d.") -> 0.8011433347 | AA58: =O58-INDEX($K58:$O58,1,aux!$AL$1) -> 864.64 | AB58: 0.003051693318 | AC58: 0.001626188202 | AD58: =+IF(INDEX($K58:$O58,1,aux!$AL$1)>0,(O58/INDEX($K58:$O58,1,aux!$AL$1))^(1/($O$3-INDEX($K$3:$O$3,1,aux!$AL$1)))-1,"n.d.") -> 0.1405199573 | AE58: =IF(INDEX($K58:$O58,1,aux!$AL$1)>0,(O58-INDEX($K58:$O58,1,aux!$AL$1))/INDEX($K58:$O58,1,aux!$AL$1),"n.d.") -> 0.6920436273 | AX58: 07
A59: 0713 | B59: Legumes de vagem, secos, em grão | C59: 819.876 | D59: 1022.728 | E59: 914.858 | F59: 1837.511 | G59: 1699.256 | H59: 1258.8458 | I59: 0.001567509246 | J59: 0.001276532232 | K59: 2041.985 | L59: 3123.472 | M59: 6785.083 | N59: 6494.938 | O59: 6711.371 | P59: 5031.3698 | Q59: 0.007444983175 | R59: 0.003702567651 | S59: 3772.524 | U59: =G59-INDEX($C59:$G59,1,aux!$AL$1) -> 879.38 | V59: 0.002886404418 | W59: 0.002638242514 | X59: =+IF(INDEX($C59:$G59,1,aux!$AL$1)>0,(G59/INDEX($C59:$G59,1,aux!$AL$1))^(1/($G$3-INDEX($C$3:$G$3,1,aux!$AL$1)))-1,"n.d.") -> 0.1998519443 | Y59: =IF(INDEX($C59:$G59,1,aux!$AL$1)>0,(G59-INDEX($C59:$G59,1,aux!$AL$1))/INDEX($C59:$G59,1,aux!$AL$1),"n.d.") -> 1.072576829 | AA59: =O59-INDEX($K59:$O59,1,aux!$AL$1) -> 4669.386 | AB59: 0.01648030863 | AC59: 0.008782036946 | AD59: =+IF(INDEX($K59:$O59,1,aux!$AL$1)>0,(O59/INDEX($K59:$O59,1,aux!$AL$1))^(1/($O$3-INDEX($K$3:$O$3,1,aux!$AL$1)))-1,"n.d.") -> 0.3464482769 | AE59: =IF(INDEX($K59:$O59,1,aux!$AL$1)>0,(O59-INDEX($K59:$O59,1,aux!$AL$1))/INDEX($K59:$O59,1,aux!$AL$1),"n.d.") -> 2.286689667 | AX59: 07
A60: 0714 | B60: Raízes de mandioca, de araruta, batata-doce, etc. | C60: 8.494 | D60: 32.53 | E60: 41.083 | F60: 186.154 | G60: 34.75 | H60: 60.6022 | I60: 7.546159256e-05 | J60: 6.1453644e-05 | K60: 1202.617 | L60: 2698.13 | M60: 3305.729 | N60: 3856.566 | O60: 2820.133 | P60: 2776.635 | Q60: 0.004108622836 | R60: 0.002043316102 | S60: 2716.0328 | U60: =G60-INDEX($C60:$G60,1,aux!$AL$1) -> 26.256 | V60: 8.618052992e-05 | W60: 7.877106081e-05 | X60: =+IF(INDEX($C60:$G60,1,aux!$AL$1)>0,(G60/INDEX($C60:$G60,1,aux!$AL$1))^(1/($G$3-INDEX($C$3:$G$3,1,aux!$AL$1)))-1,"n.d.") -> 0.4221998813 | Y60: =IF(INDEX($C60:$G60,1,aux!$AL$1)>0,(G60-INDEX($C60:$G60,1,aux!$AL$1))/INDEX($C60:$G60,1,aux!$AL$1),"n.d.") -> 3.091123146 | AA60: =O60-INDEX($K60:$O60,1,aux!$AL$1) -> 1617.516 | AB60: 0.005708922521 | AC60: 0.003042174126 | AD60: =+IF(INDEX($K60:$O60,1,aux!$AL$1)>0,(O60/INDEX($K60:$O60,1,aux!$AL$1))^(1/($O$3-INDEX($K$3:$O$3,1,aux!$AL$1)))-1,"n.d.") -> 0.2374725184 | AE60: =IF(INDEX($K60:$O60,1,aux!$AL$1)>0,(O60-INDEX($K60:$O60,1,aux!$AL$1))/INDEX($K60:$O60,1,aux!$AL$1),"n.d.") -> 1.344996786 | AX60: 07
A61: 07SS | B61: Produtos hortícolas, plantas, raízes e tubérculos, comestíveis | C61: 0 | D61: 0 | E61: 0 | F61: 0 | G61: 0 | H61: 0 | I61: 0 | J61: 0 | K61: 0 | L61: 0 | M61: 0 | N61: 0 | O61: 0 | P61: 0 | Q61: 0 | R61: 0 | S61: 0 | U61: =G61-INDEX($C61:$G61,1,aux!$AL$1) -> 0 | V61: 0 | W61: 0 | X61: =+IF(INDEX($C61:$G61,1,aux!$AL$1)>0,(G61/INDEX($C61:$G61,1,aux!$AL$1))^(1/($G$3-INDEX($C$3:$G$3,1,aux!$AL$1)))-1,"n.d.") -> n.d. | Y61: =IF(INDEX($C61:$G61,1,aux!$AL$1)>0,(G61-INDEX($C61:$G61,1,aux!$AL$1))/INDEX($C61:$G61,1,aux!$AL$1),"n.d.") -> n.d. | AA61: =O61-INDEX($K61:$O61,1,aux!$AL$1) -> 0 | AB61: 0 | AC61: 0 | AD61: =+IF(INDEX($K61:$O61,1,aux!$AL$1)>0,(O61/INDEX($K61:$O61,1,aux!$AL$1))^(1/($O$3-INDEX($K$3:$O$3,1,aux!$AL$1)))-1,"n.d.") -> n.d. | AE61: =IF(INDEX($K61:$O61,1,aux!$AL$1)>0,(O61-INDEX($K61:$O61,1,aux!$AL$1))/INDEX($K61:$O61,1,aux!$AL$1),"n.d.") -> n.d. | AX61: 07
A62: 0801 | B62: Cocos, castanhas do brasil e castanha de cajú | C62: 73.168 | D62: 152.398 | E62: 122.928 | F62: 132.635 | G62: 92.261 | H62: 114.678 | I62: 0.0001427965406 | J62: 0.0001162891939 | K62: 8.543 | L62: 7.543 | M62: 17.5 | N62: 12.507 | O62: 130.714 | P62: 35.3614 | Q62: 5.232472239e-05 | R62: 2.602233207e-05 | S62: -79.3166 | U62: =G62-INDEX($C62:$G62,1,aux!$AL$1) -> 19.093 | V62: 6.266928922e-05 | W62: 5.728122578e-05 | X62: =+IF(INDEX($C62:$G62,1,aux!$AL$1)>0,(G62/INDEX($C62:$G62,1,aux!$AL$1))^(1/($G$3-INDEX($C$3:$G$3,1,aux!$AL$1)))-1,"n.d.") -> 0.05967879384 | Y62: =IF(INDEX($C62:$G62,1,aux!$AL$1)>0,(G62-INDEX($C62:$G62,1,aux!$AL$1))/INDEX($C62:$G62,1,aux!$AL$1),"n.d.") -> 0.2609474087 | AA62: =O62-INDEX($K62:$O62,1,aux!$AL$1) -> 122.171 | AB62: 0.0004311949763 | AC62: 0.0002297754428 | AD62: =+IF(INDEX($K62:$O62,1,aux!$AL$1)>0,(O62/INDEX($K62:$O62,1,aux!$AL$1))^(1/($O$3-INDEX($K$3:$O$3,1,aux!$AL$1)))-1,"n.d.") -> 0.9777797439 | AE62: =IF(INDEX($K62:$O62,1,aux!$AL$1)>0,(O62-INDEX($K62:$O62,1,aux!$AL$1))/INDEX($K62:$O62,1,aux!$AL$1),"n.d.") -> 14.30071403 | AX62: 08
A63: 0802 | B63: Frutas de casca rija | C63: 3164.661 | D63: 3194.91 | E63: 3407.21 | F63: 3816.956 | G63: 3959.279 | H63: 3508.6032 | I63: 0.004368897253 | J63: 0.003557898096 | K63: 9112.868 | L63: 3922.397 | M63: 3324.513 | N63: 3752.281 | O63: 2422.567 | P63: 4506.9252 | Q63: 0.006668955696 | R63: 0.003316630682 | S63: 998.322 | U63: =G63-INDEX($C63:$G63,1,aux!$AL$1) -> 794.618 | V63: 0.002608188617 | W63: 0.002383946633 | X63: =+IF(INDEX($C63:$G63,1,aux!$AL$1)>0,(G63/INDEX($C63:$G63,1,aux!$AL$1))^(1/($G$3-INDEX($C$3:$G$3,1,aux!$AL$1)))-1,"n.d.") -> 0.05760191338 | Y63: =IF(INDEX($C63:$G63,1,aux!$AL$1)>0,(G63-INDEX($C63:$G63,1,aux!$AL$1))/INDEX($C63:$G63,1,aux!$AL$1),"n.d.") -> 0.2510910331 | AA63: =O63-INDEX($K63:$O63,1,aux!$AL$1) -> -6690.301 | AB63: -0.02361300293 | AC63: -0.01258291145 | AD63: =+IF(INDEX($K63:$O63,1,aux!$AL$1)>0,(O63/INDEX($K63:$O63,1,aux!$AL$1))^(1/($O$3-INDEX($K$3:$O$3,1,aux!$AL$1)))-1,"n.d.") -> -0.2819491852 | AE63: =IF(INDEX($K63:$O63,1,aux!$AL$1)>0,(O63-INDEX($K63:$O63,1,aux!$AL$1))/INDEX($K63:$O63,1,aux!$AL$1),"n.d.") -> -0.7341597618 | AX63: 08
A64: 0803 | B64: Bananas, frescas ou secas | C64: 675.097 | D64: 307.382 | E64: 409.939 | F64: 511.893 | G64: 518.614 | H64: 484.585 | I64: 0.000603403108 | J64: 0.000491393284 | K64: 65.894 | L64: 41.503 | M64: 84.46 | N64: 79.579 | O64: 119.282 | P64: 78.1436 | Q64: 0.0001156300988 | R64: 5.750560523e-05 | S64: -406.4414 | U64: =G64-INDEX($C64:$G64,1,aux!$AL$1) -> -156.483 | V64: -0.0005136268991 | W64: -0.0004694672421 | X64: =+IF(INDEX($C64:$G64,1,aux!$AL$1)>0,(G64/INDEX($C64:$G64,1,aux!$AL$1))^(1/($G$3-INDEX($C$3:$G$3,1,aux!$AL$1)))-1,"n.d.") -> -0.06379810777 | Y64: =IF(INDEX($C64:$G64,1,aux!$AL$1)>0,(G64-INDEX($C64:$G64,1,aux!$AL$1))/INDEX($C64:$G64,1,aux!$AL$1),"n.d.") -> -0.2317933571 | AA64: =O64-INDEX($K64:$O64,1,aux!$AL$1) -> 53.388 | AB64: 0.0001884296388 | AC64: 0.0001004105012 | AD64: =+IF(INDEX($K64:$O64,1,aux!$AL$1)>0,(O64/INDEX($K64:$O64,1,aux!$AL$1))^(1/($O$3-INDEX($K$3:$O$3,1,aux!$AL$1)))-1,"n.d.") -> 0.1599312798 | AE64: =IF(INDEX($K64:$O64,1,aux!$AL$1)>0,(O64-INDEX($K64:$O64,1,aux!$AL$1))/INDEX($K64:$O64,1,aux!$AL$1),"n.d.") -> 0.8102103378 | AX64: 08
A65: 0804 | B65: Tâmaras, figos, ananases, abacates, goiabas, mangas | C65: 380.258 | D65: 433.297 | E65: 237.2 | F65: 403.774 | G65: 469.363 | H65: 384.7784 | I65: 0.0004791243692 | J65: 0.0003901844291 | K65: 1374.622 | L65: 2657.525 | M65: 2368.933 | N65: 3488.601 | O65: 3759.716 | P65: 2729.8794 | Q65: 0.004039437968 | R65: 0.002008908818 | S65: 2345.101 | U65: =G65-INDEX($C65:$G65,1,aux!$AL$1) -> 89.105 | V65: 0.0002924709064 | W65: 0.0002673253875 | X65: =+IF(INDEX($C65:$G65,1,aux!$AL$1)>0,(G65/INDEX($C65:$G65,1,aux!$AL$1))^(1/($G$3-INDEX($C$3:$G$3,1,aux!$AL$1)))-1,"n.d.") -> 0.05404128759 | Y65: =IF(INDEX($C65:$G65,1,aux!$AL$1)>0,(G65-INDEX($C65:$G65,1,aux!$AL$1))/INDEX($C65:$G65,1,aux!$AL$1),"n.d.") -> 0.2343277459 | AA65: =O65-INDEX($K65:$O65,1,aux!$AL$1) -> 2385.094 | AB65: 0.008418041523 | AC65: 0.004485811117 | AD65: =+IF(INDEX($K65:$O65,1,aux!$AL$1)>0,(O65/INDEX($K65:$O65,1,aux!$AL$1))^(1/($O$3-INDEX($K$3:$O$3,1,aux!$AL$1)))-1,"n.d.") -> 0.2860058305 | AE65: =IF(INDEX($K65:$O65,1,aux!$AL$1)>0,(O65-INDEX($K65:$O65,1,aux!$AL$1))/INDEX($K65:$O65,1,aux!$AL$1),"n.d.") -> 1.73509081 | AX65: 08
A66: 0805 | B66: Citrinos, frescos ou secos | C66: 1019.866 | D66: 332.084 | E66: 756.796 | F66: 1219.668 | G66: 802.511 | H66: 826.185 | I66: 0.001028761924 | J66: 0.0008377926687 | K66: 20111.877 | L66: 22371.013 | M66: 33341.443 | N66: 31312.696 | O66: 38406.467 | P66: 29108.6992 | Q66: 0.04307251989 | R66: 0.02142099116 | S66: 28282.5142 | U66: =G66-INDEX($C66:$G66,1,aux!$AL$1) -> -217.355 | V66: -0.0007134281338 | W66: -0.0006520903383 | X66: =+IF(INDEX($C66:$G66,1,aux!$AL$1)>0,(G66/INDEX($C66:$G66,1,aux!$AL$1))^(1/($G$3-INDEX($C$3:$G$3,1,aux!$AL$1)))-1,"n.d.") -> -0.05816034899 | Y66: =IF(INDEX($C66:$G66,1,aux!$AL$1)>0,(G66-INDEX($C66:$G66,1,aux!$AL$1))/INDEX($C66:$G66,1,aux!$AL$1),"n.d.") -> -0.2131211355 | AA66: =O66-INDEX($K66:$O66,1,aux!$AL$1) -> 18294.59 | AB66: 0.06456962211 | AC66: 0.03440789973 | AD66: =+IF(INDEX($K66:$O66,1,aux!$AL$1)>0,(O66/INDEX($K66:$O66,1,aux!$AL$1))^(1/($O$3-INDEX($K$3:$O$3,1,aux!$AL$1)))-1,"n.d.") -> 0.1755414268 | AE66: =IF(INDEX($K66:$O66,1,aux!$AL$1)>0,(O66-INDEX($K66:$O66,1,aux!$AL$1))/INDEX($K66:$O66,1,aux!$AL$1),"n.d.") -> 0.9096411041 | AX66: 08
A67: 0806 | B67: Uvas, frescas ou secas | C67: 733.686 | D67: 311.846 | E67: 176.412 | F67: 162.627 | G67: 250.785 | H67: 327.0712 | I67: 0.0004072676179 | J67: 0.0003316664591 | K67: 852.405 | L67: 156.178 | M67: 208.992 | N67: 147.317 | O67: 228.216 | P67: 318.6216 | Q67: 0.0004714685156 | R67: 0.0002344725345 | S67: -8.4496 | U67: =G67-INDEX($C67:$G67,1,aux!$AL$1) -> -482.901 | V67: -0.001585034433 | W67: -0.001448759294 | X67: =+IF(INDEX($C67:$G67,1,aux!$AL$1)>0,(G67/INDEX($C67:$G67,1,aux!$AL$1))^(1/($G$3-INDEX($C$3:$G$3,1,aux!$AL$1)))-1,"n.d.") -> -0.2353761661 | Y67: =IF(INDEX($C67:$G67,1,aux!$AL$1)>0,(G67-INDEX($C67:$G67,1,aux!$AL$1))/INDEX($C67:$G67,1,aux!$AL$1),"n.d.") -> -0.6581848366 | AA67: =O67-INDEX($K67:$O67,1,aux!$AL$1) -> -624.189 | AB67: -0.002203036409 | AC67: -0.001173955389 | AD67: =+IF(INDEX($K67:$O67,1,aux!$AL$1)>0,(O67/INDEX($K67:$O67,1,aux!$AL$1))^(1/($O$3-INDEX($K$3:$O$3,1,aux!$AL$1)))-1,"n.d.") -> -0.2806752141 | AE67: =IF(INDEX($K67:$O67,1,aux!$AL$1)>0,(O67-INDEX($K67:$O67,1,aux!$AL$1))/INDEX($K67:$O67,1,aux!$AL$1),"n.d.") -> -0.732268112 | AX67: 08
A68: 0807 | B68: Melões, melancias e papaia, frescos | C68: 73.064 | D68: 237.74 | E68: 110.809 | F68: 374.069 | G68: 33.79 | H68: 165.8944 | I68: 0.0002065709763 | J68: 0.00016822517 | K68: 522.762 | L68: 312.899 | M68: 734.239 | N68: 521.565 | O68: 272.534 | P68: 472.7998 | Q68: 0.0006996079986 | R68: 0.0003479317391 | S68: 306.9054 | U68: =G68-INDEX($C68:$G68,1,aux!$AL$1) -> -39.274 | V68: =IF($U$237<>0,U68/$U$237, "n.d.") -> -0.0001289097399 | W68: =IF($U$322<>0,U68/$U$322, "n.d.") -> -0.0001178265784 | X68: =+IF(INDEX($C68:$G68,1,aux!$AL$1)>0,(G68/INDEX($C68:$G68,1,aux!$AL$1))^(1/($G$3-INDEX($C$3:$G$3,1,aux!$AL$1)))-1,"n.d.") -> -0.1753471072 | Y68: =IF(INDEX($C68:$G68,1,aux!$AL$1)>0,(G68-INDEX($C68:$G68,1,aux!$AL$1))/INDEX($C68:$G68,1,aux!$AL$1),"n.d.") -> -0.5375287419 | AA68: =O68-INDEX($K68:$O68,1,aux!$AL$1) -> -250.228 | AB68: =IF($AA$237<>0,AA68/$AA$237, "n.d.") -> -0.0008831642251 | AC68: =IF($AA$322<>0,AA68/$AA$322, "n.d.") -> -0.0004706210926 | AD68: =+IF(INDEX($K68:$O68,1,aux!$AL$1)>0,(O68/INDEX($K68:$O68,1,aux!$AL$1))^(1/($O$3-INDEX($K$3:$O$3,1,aux!$AL$1)))-1,"n.d.") -> -0.1502734857 | AE68: =IF(INDEX($K68:$O68,1,aux!$AL$1)>0,(O68-INDEX($K68:$O68,1,aux!$AL$1))/INDEX($K68:$O68,1,aux!$AL$1),"n.d.") -> -0.4786652435 | AX68: 08
A69: 0808 | B69: Maçãs, peras e marmelos, frescos | C69: 12239.059 | D69: 7668.311 | E69: 9916.584 | F69: 8820.424 | G69: 9048.13 | H69: 9538.5016 | I69: 0.01187730019 | J69: 0.009672514886 | K69: 12079.099 | L69: 11245.788 | M69: 15318.162 | N69: 20161.285 | O69: 23618.013 | P69: 16484.4694 | Q69: 0.02439228326 | R69: 0.01213086407 | S69: 6945.9678 | U69: =G69-INDEX($C69:$G69,1,aux!$AL$1) -> -3190.929 | V69: -0.0104736423 | W69: -0.009573158984 | X69: =+IF(INDEX($C69:$G69,1,aux!$AL$1)>0,(G69/INDEX($C69:$G69,1,aux!$AL$1))^(1/($G$3-INDEX($C$3:$G$3,1,aux!$AL$1)))-1,"n.d.") -> -0.07273749087 | Y69: =IF(INDEX($C69:$G69,1,aux!$AL$1)>0,(G69-INDEX($C69:$G69,1,aux!$AL$1))/INDEX($C69:$G69,1,aux!$AL$1),"n.d.") -> -0.2607168574 | AA69: =O69-INDEX($K69:$O69,1,aux!$AL$1) -> 11538.914 | AB69: 0.04072588216 | AC69: 0.021702033 | AD69: =+IF(INDEX($K69:$O69,1,aux!$AL$1)>0,(O69/INDEX($K69:$O69,1,aux!$AL$1))^(1/($O$3-INDEX($K$3:$O$3,1,aux!$AL$1)))-1,"n.d.") -> 0.1825028718 | AE69: =IF(INDEX($K69:$O69,1,aux!$AL$1)>0,(O69-INDEX($K69:$O69,1,aux!$AL$1))/INDEX($K69:$O69,1,aux!$AL$1),"n.d.") -> 0.9552793631 | AX69: 08
A70: 0809 | B70: Damascos, cerejas, pêssegos, etc., frescos | C70: 12.118 | D70: 1.626 | E70: 13.185 | F70: 3.765 | G70: 182.373 | H70: 42.6134 | I70: 5.306201802e-05 | J70: 4.321210638e-05 | K70: 177.855 | L70: 1364.888 | M70: 1347.107 | N70: 2156.034 | O70: 2142.693 | P70: 1437.7154 | Q70: 0.002127406132 | R70: 0.001058009795 | S70: 1395.102 | U70: =G70-INDEX($C70:$G70,1,aux!$AL$1) -> 170.255 | V70: 0.0005588309766 | W70: 0.0005107848476 | X70: =+IF(INDEX($C70:$G70,1,aux!$AL$1)>0,(G70/INDEX($C70:$G70,1,aux!$AL$1))^(1/($G$3-INDEX($C$3:$G$3,1,aux!$AL$1)))-1,"n.d.") -> 0.9696197867 | Y70: =IF(INDEX($C70:$G70,1,aux!$AL$1)>0,(G70-INDEX($C70:$G70,1,aux!$AL$1))/INDEX($C70:$G70,1,aux!$AL$1),"n.d.") -> 14.04976069 | AA70: =O70-INDEX($K70:$O70,1,aux!$AL$1) -> 1964.838 | AB70: 0.006934774005 | AC70: 0.003695406614 | AD70: =+IF(INDEX($K70:$O70,1,aux!$AL$1)>0,(O70/INDEX($K70:$O70,1,aux!$AL$1))^(1/($O$3-INDEX($K$3:$O$3,1,aux!$AL$1)))-1,"n.d.") -> 0.8630455276 | AE70: =IF(INDEX($K70:$O70,1,aux!$AL$1)>0,(O70-INDEX($K70:$O70,1,aux!$AL$1))/INDEX($K70:$O70,1,aux!$AL$1),"n.d.") -> 11.04741503 | AX70: 08
A71: 0810 | B71: Outras frutas frescas | C71: 2311.059 | D71: 1418.485 | E71: 1349.538 | F71: 2315.225 | G71: 866.148 | H71: 1652.091 | I71: 0.002057176438 | J71: 0.001675302418 | K71: 19492.793 | L71: 32623.533 | M71: 30824.539 | N71: 46890.044 | O71: 54848.83 | P71: 36935.9478 | Q71: 0.0546546012 | R71: 0.02718103636 | S71: 35283.8568 | U71: =G71-INDEX($C71:$G71,1,aux!$AL$1) -> -1444.911 | V71: -0.004742656752 | W71: -0.004334901441 | X71: =+IF(INDEX($C71:$G71,1,aux!$AL$1)>0,(G71/INDEX($C71:$G71,1,aux!$AL$1))^(1/($G$3-INDEX($C$3:$G$3,1,aux!$AL$1)))-1,"n.d.") -> -0.217570406 | Y71: =IF(INDEX($C71:$G71,1,aux!$AL$1)>0,(G71-INDEX($C71:$G71,1,aux!$AL$1))/INDEX($C71:$G71,1,aux!$AL$1),"n.d.") -> -0.6252159724 | AA71: =O71-INDEX($K71:$O71,1,aux!$AL$1) -> 35356.037 | AB71: 0.1247869424 | AC71: 0.0664965422 | AD71: =+IF(INDEX($K71:$O71,1,aux!$AL$1)>0,(O71/INDEX($K71:$O71,1,aux!$AL$1))^(1/($O$3-INDEX($K$3:$O$3,1,aux!$AL$1)))-1,"n.d.") -> 0.2951597052 | AE71: =IF(INDEX($K71:$O71,1,aux!$AL$1)>0,(O71-INDEX($K71:$O71,1,aux!$AL$1))/INDEX($K71:$O71,1,aux!$AL$1),"n.d.") -> 1.813800465 | AX71: 08
A72: 0811 | B72: Frutas não cozidas ou cozidas em água ou vapor, congeladas | C72: 1268.201 | D72: 845.349 | E72: 829.077 | F72: 505.596 | G72: 742.941 | H72: 838.2328 | I72: 0.001043763791 | J72: 0.0008500097369 | K72: 10592.444 | L72: 25227.751 | M72: 24807.404 | N72: 25522.87 | O72: 19463.814 | P72: 21122.8566 | Q72: 0.03125576498 | R72: 0.01554423718 | S72: 20284.6238 | U72: =G72-INDEX($C72:$G72,1,aux!$AL$1) -> -525.26 | V72: -0.001724070123 | W72: -0.001575841232 | X72: =+IF(INDEX($C72:$G72,1,aux!$AL$1)>0,(G72/INDEX($C72:$G72,1,aux!$AL$1))^(1/($G$3-INDEX($C$3:$G$3,1,aux!$AL$1)))-1,"n.d.") -> -0.12513396 | Y72: =IF(INDEX($C72:$G72,1,aux!$AL$1)>0,(G72-INDEX($C72:$G72,1,aux!$AL$1))/INDEX($C72:$G72,1,aux!$AL$1),"n.d.") -> -0.4141772479 | AA72: =O72-INDEX($K72:$O72,1,aux!$AL$1) -> 8871.37 | AB72: 0.03131095086 | AC72: 0.01668499865 | AD72: =+IF(INDEX($K72:$O72,1,aux!$AL$1)>0,(O72/INDEX($K72:$O72,1,aux!$AL$1))^(1/($O$3-INDEX($K$3:$O$3,1,aux!$AL$1)))-1,"n.d.") -> 0.164281354 | AE72: =IF(INDEX($K72:$O72,1,aux!$AL$1)>0,(O72-INDEX($K72:$O72,1,aux!$AL$1))/INDEX($K72:$O72,1,aux!$AL$1),"n.d.") -> 0.8375187067 | AX72: 08
A73: 0812 | B73: Frutas conservadas transitoriamente | C73: 82.376 | D73: 0 | E73: 0.341 | F73: 0.849 | G73: 0.502 | H73: 16.8136 | I73: 2.093622068e-05 | J73: 1.704982639e-05 | K73: 2.137 | L73: 1.005 | M73: 3.955 | N73: 11.456 | O73: 0 | P73: 3.7106 | Q73: 5.490622965e-06 | R73: 2.730617719e-06 | S73: -13.103 | U73: =G73-INDEX($C73:$G73,1,aux!$AL$1) -> -81.874 | V73: -0.0002687364681 | W73: -0.0002456315445 | X73: =+IF(INDEX($C73:$G73,1,aux!$AL$1)>0,(G73/INDEX($C73:$G73,1,aux!$AL$1))^(1/($G$3-INDEX($C$3:$G$3,1,aux!$AL$1)))-1,"n.d.") -> -0.7206004165 | Y73: =IF(INDEX($C73:$G73,1,aux!$AL$1)>0,(G73-INDEX($C73:$G73,1,aux!$AL$1))/INDEX($C73:$G73,1,aux!$AL$1),"n.d.") -> -0.993905992 | AA73: =O73-INDEX($K73:$O73,1,aux!$AL$1) -> -2.137 | AB73: -7.542409119e-06 | AC73: -4.019203585e-06 | AD73: =+IF(INDEX($K73:$O73,1,aux!$AL$1)>0,(O73/INDEX($K73:$O73,1,aux!$AL$1))^(1/($O$3-INDEX($K$3:$O$3,1,aux!$AL$1)))-1,"n.d.") -> -1 | AE73: =IF(INDEX($K73:$O73,1,aux!$AL$1)>0,(O73-INDEX($K73:$O73,1,aux!$AL$1))/INDEX($K73:$O73,1,aux!$AL$1),"n.d.") -> -1 | AX73: 08
A74: 0813 | B74: Outras frutas secas | C74: 516.084 | D74: 433.145 | E74: 339.103 | F74: 443.351 | G74: 724.983 | H74: 491.3332 | I74: 0.0006118059369 | J74: 0.0004982362944 | K74: 15.091 | L74: 24.785 | M74: 178.15 | N74: 316.821 | O74: 169.965 | P74: 140.9624 | Q74: 0.0002085838923 | R74: 0.0001037337431 | S74: -350.3708 | U74: =G74-INDEX($C74:$G74,1,aux!$AL$1) -> 208.899 | V74: 0.0006856728565 | W74: 0.0006267213525 | X74: =+IF(INDEX($C74:$G74,1,aux!$AL$1)>0,(G74/INDEX($C74:$G74,1,aux!$AL$1))^(1/($G$3-INDEX($C$3:$G$3,1,aux!$AL$1)))-1,"n.d.") -> 0.08868404189 | Y74: =IF(INDEX($C74:$G74,1,aux!$AL$1)>0,(G74-INDEX($C74:$G74,1,aux!$AL$1))/INDEX($C74:$G74,1,aux!$AL$1),"n.d.") -> 0.4047771293 | AA74: =O74-INDEX($K74:$O74,1,aux!$AL$1) -> 154.874 | AB74: 0.000546618189 | AC74: 0.000291282235 | AD74: =+IF(INDEX($K74:$O74,1,aux!$AL$1)>0,(O74/INDEX($K74:$O74,1,aux!$AL$1))^(1/($O$3-INDEX($K$3:$O$3,1,aux!$AL$1)))-1,"n.d.") -> 0.8319363065 | AE74: =IF(INDEX($K74:$O74,1,aux!$AL$1)>0,(O74-INDEX($K74:$O74,1,aux!$AL$1))/INDEX($K74:$O74,1,aux!$AL$1),"n.d.") -> 10.26267312 | AX74: 08
A75: 0814 | B75: Cascas de citrinos, melões ou melancias | C75: 10.125 | D75: 0.406 | E75: 20.004 | F75: 26.392 | G75: 15.101 | H75: 14.4056 | I75: 1.793778968e-05 | J75: 1.460799466e-05 | K75: 0 | L75: 7.554 | M75: 0 | N75: 2.243 | O75: 0 | P75: 1.9594 | Q75: 2.899349603e-06 | R75: 1.44191569e-06 | S75: -12.4462 | U75: =G75-INDEX($C75:$G75,1,aux!$AL$1) -> 4.976 | V75: 1.633281219e-05 | W75: 1.492858008e-05 | X75: =+IF(INDEX($C75:$G75,1,aux!$AL$1)>0,(G75/INDEX($C75:$G75,1,aux!$AL$1))^(1/($G$3-INDEX($C$3:$G$3,1,aux!$AL$1)))-1,"n.d.") -> 0.1051027736 | Y75: =IF(INDEX($C75:$G75,1,aux!$AL$1)>0,(G75-INDEX($C75:$G75,1,aux!$AL$1))/INDEX($C75:$G75,1,aux!$AL$1),"n.d.") -> 0.4914567901 | AA75: =O75-INDEX($K75:$O75,1,aux!$AL$1) -> 0 | AB75: 0 | AC75: 0 | AD75: =+IF(INDEX($K75:$O75,1,aux!$AL$1)>0,(O75/INDEX($K75:$O75,1,aux!$AL$1))^(1/($O$3-INDEX($K$3:$O$3,1,aux!$AL$1)))-1,"n.d.") -> n.d. | AE75: =IF(INDEX($K75:$O75,1,aux!$AL$1)>0,(O75-INDEX($K75:$O75,1,aux!$AL$1))/INDEX($K75:$O75,1,aux!$AL$1),"n.d.") -> n.d. | AX75: =+LEFT(A75,2) -> 08
A76: 08SS | B76: Frutas; cascas de citrinos e de melões | C76: 0 | D76: 0 | E76: 0 | F76: 0 | G76: 0 | H76: 0 | I76: 0 | J76: 0 | K76: 0 | L76: 0 | M76: 0 | N76: 0 | O76: 0 | P76: 0 | Q76: 0 | R76: 0 | S76: 0 | U76: =G76-INDEX($C76:$G76,1,aux!$AL$1) -> 0 | V76: 0 | W76: 0 | X76: =+IF(INDEX($C76:$G76,1,aux!$AL$1)>0,(G76/INDEX($C76:$G76,1,aux!$AL$1))^(1/($G$3-INDEX($C$3:$G$3,1,aux!$AL$1)))-1,"n.d.") -> n.d. | Y76: =IF(INDEX($C76:$G76,1,aux!$AL$1)>0,(G76-INDEX($C76:$G76,1,aux!$AL$1))/INDEX($C76:$G76,1,aux!$AL$1),"n.d.") -> n.d. | AA76: =O76-INDEX($K76:$O76,1,aux!$AL$1) -> 0 | AB76: 0 | AC76: 0 | AD76: =+IF(INDEX($K76:$O76,1,aux!$AL$1)>0,(O76/INDEX($K76:$O76,1,aux!$AL$1))^(1/($O$3-INDEX($K$3:$O$3,1,aux!$AL$1)))-1,"n.d.") -> n.d. | AE76: =IF(INDEX($K76:$O76,1,aux!$AL$1)>0,(O76-INDEX($K76:$O76,1,aux!$AL$1))/INDEX($K76:$O76,1,aux!$AL$1),"n.d.") -> n.d. | AX76: 08
A77: 0901 | B77: Café | C77: 44127.637 | D77: 50434.652 | E77: 58313.269 | F77: 76391.956 | G77: 70525.295 | H77: 59958.5618 | I77: 0.0746601371 | J77: 0.06080096286 | K77: 5774.42 | L77: 7622.908 | M77: 10159.517 | N77: 12626.996 | O77: 12314.787 | P77: 9699.7256 | Q77: 0.01435280982 | R77: 0.007137994553 | S77: -50258.8362 | U77: =G77-INDEX($C77:$G77,1,aux!$AL$1) -> 26397.658 | V77: 0.08664549646 | W77: 0.07919605132 | X77: =+IF(INDEX($C77:$G77,1,aux!$AL$1)>0,(G77/INDEX($C77:$G77,1,aux!$AL$1))^(1/($G$3-INDEX($C$3:$G$3,1,aux!$AL$1)))-1,"n.d.") -> 0.1243682148 | Y77: =IF(INDEX($C77:$G77,1,aux!$AL$1)>0,(G77-INDEX($C77:$G77,1,aux!$AL$1))/INDEX($C77:$G77,1,aux!$AL$1),"n.d.") -> 0.5982114565 | AA77: =O77-INDEX($K77:$O77,1,aux!$AL$1) -> 6540.367 | AB77: 0.02308382017 | AC77: 0.01230092021 | AD77: =+IF(INDEX($K77:$O77,1,aux!$AL$1)>0,(O77/INDEX($K77:$O77,1,aux!$AL$1))^(1/($O$3-INDEX($K$3:$O$3,1,aux!$AL$1)))-1,"n.d.") -> 0.2084526375 | AE77: =IF(INDEX($K77:$O77,1,aux!$AL$1)>0,(O77-INDEX($K77:$O77,1,aux!$AL$1))/INDEX($K77:$O77,1,aux!$AL$1),"n.d.") -> 1.132644837 | AX77: 09
A78: 0902 | B78: Chá | C78: 30.456 | D78: 71.279 | E78: 27.951 | F78: 29.427 | G78: 49.969 | H78: 41.8164 | I78: 5.206959713e-05 | J78: 4.240390875e-05 | K78: 125.996 | L78: 65.294 | M78: 152.654 | N78: 119.498 | O78: 102.616 | P78: 113.2116 | Q78: 0.0001675206734 | R78: 8.331202525e-05 | S78: 71.3952 | U78: =G78-INDEX($C78:$G78,1,aux!$AL$1) -> 19.513 | V78: 6.40478626e-05 | W78: 5.854127474e-05 | X78: =+IF(INDEX($C78:$G78,1,aux!$AL$1)>0,(G78/INDEX($C78:$G78,1,aux!$AL$1))^(1/($G$3-INDEX($C$3:$G$3,1,aux!$AL$1)))-1,"n.d.") -> 0.1317667966 | Y78: =IF(INDEX($C78:$G78,1,aux!$AL$1)>0,(G78-INDEX($C78:$G78,1,aux!$AL$1))/INDEX($C78:$G78,1,aux!$AL$1),"n.d.") -> 0.6406947728 | AA78: =O78-INDEX($K78:$O78,1,aux!$AL$1) -> -23.38 | AB78: -8.251826167e-05 | AC78: -4.397238176e-05 | AD78: =+IF(INDEX($K78:$O78,1,aux!$AL$1)>0,(O78/INDEX($K78:$O78,1,aux!$AL$1))^(1/($O$3-INDEX($K$3:$O$3,1,aux!$AL$1)))-1,"n.d.") -> -0.05001974005 | AE78: =IF(INDEX($K78:$O78,1,aux!$AL$1)>0,(O78-INDEX($K78:$O78,1,aux!$AL$1))/INDEX($K78:$O78,1,aux!$AL$1),"n.d.") -> -0.1855614464 | AX78: 09
A79: 0903 | B79: Mate | C79: 1.201 | D79: 0.36 | E79: 0 | F79: 0 | G79: 0 | H79: 0.3122 | I79: 3.887500651e-07 | J79: 3.165863229e-07 | K79: 0.45 | L79: 0.236 | M79: 2.158 | N79: 5.792 | O79: 6.144 | P79: 2.956 | Q79: 4.374031554e-06 | R79: 2.175310186e-06 | S79: 2.6438 | U79: =G79-INDEX($C79:$G79,1,aux!$AL$1) -> -1.201 | V79: -3.942063393e-06 | W79: -3.603140007e-06 | X79: =+IF(INDEX($C79:$G79,1,aux!$AL$1)>0,(G79/INDEX($C79:$G79,1,aux!$AL$1))^(1/($G$3-INDEX($C$3:$G$3,1,aux!$AL$1)))-1,"n.d.") -> -1 | Y79: =IF(INDEX($C79:$G79,1,aux!$AL$1)>0,(G79-INDEX($C79:$G79,1,aux!$AL$1))/INDEX($C79:$G79,1,aux!$AL$1),"n.d.") -> -1 | AA79: =O79-INDEX($K79:$O79,1,aux!$AL$1) -> 5.694 | AB79: 2.009662027e-05 | AC79: 1.070909931e-05 | AD79: =+IF(INDEX($K79:$O79,1,aux!$AL$1)>0,(O79/INDEX($K79:$O79,1,aux!$AL$1))^(1/($O$3-INDEX($K$3:$O$3,1,aux!$AL$1)))-1,"n.d.") -> 0.9222491313 | AE79: =IF(INDEX($K79:$O79,1,aux!$AL$1)>0,(O79-INDEX($K79:$O79,1,aux!$AL$1))/INDEX($K79:$O79,1,aux!$AL$1),"n.d.") -> 12.65333333 | AX79: 09
A80: 0904 | B80: Pimenta | C80: 2693.754 | D80: 3529.431 | E80: 3683.939 | F80: 4098.851 | G80: 3065.931 | H80: 3414.3812 | I80: 0.004251572434 | J80: 0.003462352303 | K80: 109.464 | L80: 92.133 | M80: 132.415 | N80: 89.604 | O80: 56.303 | P80: 95.9838 | Q80: 0.0001420284743 | R80: 7.063414676e-05 | S80: -3318.3974 | U80: =G80-INDEX($C80:$G80,1,aux!$AL$1) -> 372.177 | V80: 0.001221603103 | W80: 0.001116574387 | X80: =+IF(INDEX($C80:$G80,1,aux!$AL$1)>0,(G80/INDEX($C80:$G80,1,aux!$AL$1))^(1/($G$3-INDEX($C$3:$G$3,1,aux!$AL$1)))-1,"n.d.") -> 0.0328829561 | Y80: =IF(INDEX($C80:$G80,1,aux!$AL$1)>0,(G80-INDEX($C80:$G80,1,aux!$AL$1))/INDEX($C80:$G80,1,aux!$AL$1),"n.d.") -> 0.1381629503 | AA80: =O80-INDEX($K80:$O80,1,aux!$AL$1) -> -53.161 | AB80: -0.0001876284563 | AC80: -9.998356659e-05 | AD80: =+IF(INDEX($K80:$O80,1,aux!$AL$1)>0,(O80/INDEX($K80:$O80,1,aux!$AL$1))^(1/($O$3-INDEX($K$3:$O$3,1,aux!$AL$1)))-1,"n.d.") -> -0.1531333012 | AE80: =IF(INDEX($K80:$O80,1,aux!$AL$1)>0,(O80-INDEX($K80:$O80,1,aux!$AL$1))/INDEX($K80:$O80,1,aux!$AL$1),"n.d.") -> -0.4856482497 | AX80: 09
A81: 0905 | B81: Baunilha | C81: 208.156 | D81: 187.482 | E81: 119.382 | F81: 148.192 | G81: 185.084 | H81: 169.6592 | I81: 0.0002112588887 | J81: 0.0001720428644 | K81: 0.285 | L81: 44.654 | M81: 0.412 | N81: 14.941 | O81: 47.237 | P81: 21.5058 | Q81: 3.18224113e-05 | R81: 1.582604391e-05 | S81: -148.1534 | U81: =G81-INDEX($C81:$G81,1,aux!$AL$1) -> -23.072 | V81: -7.57296308e-05 | W81: -6.921868963e-05 | X81: =+IF(INDEX($C81:$G81,1,aux!$AL$1)>0,(G81/INDEX($C81:$G81,1,aux!$AL$1))^(1/($G$3-INDEX($C$3:$G$3,1,aux!$AL$1)))-1,"n.d.") -> -0.02894241308 | Y81: =IF(INDEX($C81:$G81,1,aux!$AL$1)>0,(G81-INDEX($C81:$G81,1,aux!$AL$1))/INDEX($C81:$G81,1,aux!$AL$1),"n.d.") -> -0.110839947 | AA81: =O81-INDEX($K81:$O81,1,aux!$AL$1) -> 46.952 | AB81: 0.0001657141755 | AC81: 8.83058712e-05 | AD81: =+IF(INDEX($K81:$O81,1,aux!$AL$1)>0,(O81/INDEX($K81:$O81,1,aux!$AL$1))^(1/($O$3-INDEX($K$3:$O$3,1,aux!$AL$1)))-1,"n.d.") -> 2.588057234 | AE81: =IF(INDEX($K81:$O81,1,aux!$AL$1)>0,(O81-INDEX($K81:$O81,1,aux!$AL$1))/INDEX($K81:$O81,1,aux!$AL$1),"n.d.") -> 164.7438596 | AX81: 09
A82: 0906 | B82: Canela | C82: 921.741 | D82: 1121.251 | E82: 1448.755 | F82: 1272.311 | G82: 1013.434 | H82: 1155.4984 | I82: 0.001438821519 | J82: 0.00117173283 | K82: 24.023 | L82: 25.755 | M82: 31.89 | N82: 29.14 | O82: 30.534 | P82: 28.2684 | Q82: 4.182911826e-05 | R82: 2.080261788e-05 | S82: -1127.23 | U82: =G82-INDEX($C82:$G82,1,aux!$AL$1) -> 91.693 | V82: 0.0003009655443 | W82: 0.0002750896892 | X82: =+IF(INDEX($C82:$G82,1,aux!$AL$1)>0,(G82/INDEX($C82:$G82,1,aux!$AL$1))^(1/($G$3-INDEX($C$3:$G$3,1,aux!$AL$1)))-1,"n.d.") -> 0.02399218266 | Y82: =IF(INDEX($C82:$G82,1,aux!$AL$1)>0,(G82-INDEX($C82:$G82,1,aux!$AL$1))/INDEX($C82:$G82,1,aux!$AL$1),"n.d.") -> 0.09947805295 | AA82: =O82-INDEX($K82:$O82,1,aux!$AL$1) -> 6.511 | AB82: 2.298017116e-05 | AC82: 1.224568767e-05 | AD82: =+IF(INDEX($K82:$O82,1,aux!$AL$1)>0,(O82/INDEX($K82:$O82,1,aux!$AL$1))^(1/($O$3-INDEX($K$3:$O$3,1,aux!$AL$1)))-1,"n.d.") -> 0.06179118375 | AE82: =IF(INDEX($K82:$O82,1,aux!$AL$1)>0,(O82-INDEX($K82:$O82,1,aux!$AL$1))/INDEX($K82:$O82,1,aux!$AL$1),"n.d.") -> 0.2710319277 | AX82: 09
A83: 0907 | B83: Cravo-da-índia | C83: 90.84 | D83: 114.306 | E83: 123.29 | F83: 116.209 | G83: 71.14 | H83: 103.157 | I83: 0.0001284506421 | J83: 0.0001046063271 | K83: 1.702 | L83: 0.691 | M83: 1.029 | N83: 1.415 | O83: 0.769 | P83: 1.1212 | Q83: 1.659054188e-06 | R83: 8.250872058e-07 | S83: -102.0358 | U83: =G83-INDEX($C83:$G83,1,aux!$AL$1) -> -19.7 | V83: -6.466165598e-05 | W83: -5.910229654e-05 | X83: =+IF(INDEX($C83:$G83,1,aux!$AL$1)>0,(G83/INDEX($C83:$G83,1,aux!$AL$1))^(1/($G$3-INDEX($C$3:$G$3,1,aux!$AL$1)))-1,"n.d.") -> -0.05928258529 | Y83: =IF(INDEX($C83:$G83,1,aux!$AL$1)>0,(G83-INDEX($C83:$G83,1,aux!$AL$1))/INDEX($C83:$G83,1,aux!$AL$1),"n.d.") -> -0.2168648173 | AA83: =O83-INDEX($K83:$O83,1,aux!$AL$1) -> -0.933 | AB83: -3.292965703e-06 | AC83: -1.754757578e-06 | AD83: =+IF(INDEX($K83:$O83,1,aux!$AL$1)>0,(O83/INDEX($K83:$O83,1,aux!$AL$1))^(1/($O$3-INDEX($K$3:$O$3,1,aux!$AL$1)))-1,"n.d.") -> -0.1801362286 | AE83: =IF(INDEX($K83:$O83,1,aux!$AL$1)>0,(O83-INDEX($K83:$O83,1,aux!$AL$1))/INDEX($K83:$O83,1,aux!$AL$1),"n.d.") -> -0.5481786134 | AX83: 09
A84: 0908 | B84: Noz-moscada, etc. | C84: 349.612 | D84: 462.259 | E84: 503.759 | F84: 480.432 | G84: 369.741 | H84: 433.1606 | I84: 0.0005393696715 | J84: 0.0004392463856 | K84: 2.427 | L84: 1.854 | M84: 4.404 | N84: 3.642 | O84: 4.969 | P84: 3.4592 | Q84: 5.118623123e-06 | R84: 2.545613327e-06 | S84: -429.7014 | U84: =G84-INDEX($C84:$G84,1,aux!$AL$1) -> 20.129 | V84: 6.606977022e-05 | W84: 6.038934655e-05 | X84: =+IF(INDEX($C84:$G84,1,aux!$AL$1)>0,(G84/INDEX($C84:$G84,1,aux!$AL$1))^(1/($G$3-INDEX($C$3:$G$3,1,aux!$AL$1)))-1,"n.d.") -> 0.0140930823 | Y84: =IF(INDEX($C84:$G84,1,aux!$AL$1)>0,(G84-INDEX($C84:$G84,1,aux!$AL$1))/INDEX($C84:$G84,1,aux!$AL$1),"n.d.") -> 0.05757525485 | AA84: =O84-INDEX($K84:$O84,1,aux!$AL$1) -> 2.542 | AB84: 8.97183153e-06 | AC84: 4.780915075e-06 | AD84: =+IF(INDEX($K84:$O84,1,aux!$AL$1)>0,(O84/INDEX($K84:$O84,1,aux!$AL$1))^(1/($O$3-INDEX($K$3:$O$3,1,aux!$AL$1)))-1,"n.d.") -> 0.196189002 | AE84: =IF(INDEX($K84:$O84,1,aux!$AL$1)>0,(O84-INDEX($K84:$O84,1,aux!$AL$1))/INDEX($K84:$O84,1,aux!$AL$1),"n.d.") -> 1.047383601 | AX84: 09
A85: 0909 | B85: Sementes de anis, funcho, etc. | C85: 234.189 | D85: 474.481 | E85: 624.952 | F85: 693.183 | G85: 419.265 | H85: 489.214 | I85: 0.0006091671184 | J85: 0.0004960873202 | K85: 3.933 | L85: 2.696 | M85: 5.691 | N85: 6.255 | O85: 4.135 | P85: 4.542 | Q85: 6.720856332e-06 | R85: 3.342442106e-06 | S85: -484.672 | U85: =G85-INDEX($C85:$G85,1,aux!$AL$1) -> 185.076 | V85: 0.0006074782052 | W85: 0.0005552495753 | X85: =+IF(INDEX($C85:$G85,1,aux!$AL$1)>0,(G85/INDEX($C85:$G85,1,aux!$AL$1))^(1/($G$3-INDEX($C$3:$G$3,1,aux!$AL$1)))-1,"n.d.") -> 0.1567260848 | Y85: =IF(INDEX($C85:$G85,1,aux!$AL$1)>0,(G85-INDEX($C85:$G85,1,aux!$AL$1))/INDEX($C85:$G85,1,aux!$AL$1),"n.d.") -> 0.79028477 | AA85: =O85-INDEX($K85:$O85,1,aux!$AL$1) -> 0.202 | AB85: 7.129464867e-07 | AC85: 3.7991536e-07 | AD85: =+IF(INDEX($K85:$O85,1,aux!$AL$1)>0,(O85/INDEX($K85:$O85,1,aux!$AL$1))^(1/($O$3-INDEX($K$3:$O$3,1,aux!$AL$1)))-1,"n.d.") -> 0.0125999273 | AE85: =IF(INDEX($K85:$O85,1,aux!$AL$1)>0,(O85-INDEX($K85:$O85,1,aux!$AL$1))/INDEX($K85:$O85,1,aux!$AL$1),"n.d.") -> 0.05136028477 | AX85: 09
A86: 0910 | B86: Gengibre, açafrão, tomilho, louro, etc. | C86: 1318.619 | D86: 1863.462 | E86: 2245.015 | F86: 2299.224 | G86: 2043.29 | H86: 1953.922 | I86: 0.00243301507 | J86: 0.001981374059 | K86: 62.19 | L86: 72.526 | M86: 152.972 | N86: 541.098 | O86: 212.735 | P86: 208.3042 | Q86: 0.0003082304275 | R86: 0.000153290341 | S86: -1745.6178 | U86: =G86-INDEX($C86:$G86,1,aux!$AL$1) -> 724.671 | V86: 0.00237860035 | W86: 0.002174097479 | X86: =+IF(INDEX($C86:$G86,1,aux!$AL$1)>0,(G86/INDEX($C86:$G86,1,aux!$AL$1))^(1/($G$3-INDEX($C$3:$G$3,1,aux!$AL$1)))-1,"n.d.") -> 0.1157134539 | Y86: =IF(INDEX($C86:$G86,1,aux!$AL$1)>0,(G86-INDEX($C86:$G86,1,aux!$AL$1))/INDEX($C86:$G86,1,aux!$AL$1),"n.d.") -> 0.5495681467 | AA86: =O86-INDEX($K86:$O86,1,aux!$AL$1) -> 150.545 | AB86: 0.0005313392517 | AC86: 0.0002831403855 | AD86: =+IF(INDEX($K86:$O86,1,aux!$AL$1)>0,(O86/INDEX($K86:$O86,1,aux!$AL$1))^(1/($O$3-INDEX($K$3:$O$3,1,aux!$AL$1)))-1,"n.d.") -> 0.3599708438 | AE86: =IF(INDEX($K86:$O86,1,aux!$AL$1)>0,(O86-INDEX($K86:$O86,1,aux!$AL$1))/INDEX($K86:$O86,1,aux!$AL$1),"n.d.") -> 2.420726805 | AX86: 09
A87: 09SS | B87: Café, chá, mate e especiarias | C87: 0 | D87: 0 | E87: 0 | F87: 0 | G87: 0 | H87: 0 | I87: 0 | J87: 0 | K87: 0 | L87: 0 | M87: 0 | N87: 0 | O87: 0 | P87: 0 | Q87: 0 | R87: 0 | S87: 0 | U87: =G87-INDEX($C87:$G87,1,aux!$AL$1) -> 0 | V87: 0 | W87: 0 | X87: =+IF(INDEX($C87:$G87,1,aux!$AL$1)>0,(G87/INDEX($C87:$G87,1,aux!$AL$1))^(1/($G$3-INDEX($C$3:$G$3,1,aux!$AL$1)))-1,"n.d.") -> n.d. | Y87: =IF(INDEX($C87:$G87,1,aux!$AL$1)>0,(G87-INDEX($C87:$G87,1,aux!$AL$1))/INDEX($C87:$G87,1,aux!$AL$1),"n.d.") -> n.d. | AA87: =O87-INDEX($K87:$O87,1,aux!$AL$1) -> 0 | AB87: 0 | AC87: 0 | AD87: =+IF(INDEX($K87:$O87,1,aux!$AL$1)>0,(O87/INDEX($K87:$O87,1,aux!$AL$1))^(1/($O$3-INDEX($K$3:$O$3,1,aux!$AL$1)))-1,"n.d.") -> n.d. | AE87: =IF(INDEX($K87:$O87,1,aux!$AL$1)>0,(O87-INDEX($K87:$O87,1,aux!$AL$1))/INDEX($K87:$O87,1,aux!$AL$1),"n.d.") -> n.d. | AX87: 09
A88: 1001 | B88: Trigo e mistura trigo/centeio | C88: 147792.246 | D88: 124504.602 | E88: 135586.575 | F88: 137447.582 | G88: 215121.092 | H88: 152090.4194 | I88: 0.1893823205 | J88: 0.1542272474 | K88: 0.053 | L88: 0.038 | M88: 0.118 | N88: 0.685 | O88: 0.216 | P88: 0.222 | Q88: 3.284962805e-07 | R88: 1.633690329e-07 | S88: -152090.1974 | U88: =G88-INDEX($C88:$G88,1,aux!$AL$1) -> 67328.846 | V88: 0.2209946537 | W88: 0.2019943869 | X88: =+IF(INDEX($C88:$G88,1,aux!$AL$1)>0,(G88/INDEX($C88:$G88,1,aux!$AL$1))^(1/($G$3-INDEX($C$3:$G$3,1,aux!$AL$1)))-1,"n.d.") -> 0.09839320146 | Y88: =IF(INDEX($C88:$G88,1,aux!$AL$1)>0,(G88-INDEX($C88:$G88,1,aux!$AL$1))/INDEX($C88:$G88,1,aux!$AL$1),"n.d.") -> 0.4555641302 | AA88: =O88-INDEX($K88:$O88,1,aux!$AL$1) -> 0.163 | AB88: 5.752984026e-07 | AC88: 3.065653647e-07 | AD88: =+IF(INDEX($K88:$O88,1,aux!$AL$1)>0,(O88/INDEX($K88:$O88,1,aux!$AL$1))^(1/($O$3-INDEX($K$3:$O$3,1,aux!$AL$1)))-1,"n.d.") -> 0.4208376947 | AE88: =IF(INDEX($K88:$O88,1,aux!$AL$1)>0,(O88-INDEX($K88:$O88,1,aux!$AL$1))/INDEX($K88:$O88,1,aux!$AL$1),"n.d.") -> 3.075471698 | AX88: 10
A89: 1002 | B89: Centeio | C89: 27.366 | D89: 0.01 | E89: 0.032 | F89: 2006.441 | G89: 0 | H89: 406.7698 | I89: 0.0005065079636 | J89: 0.0004124848022 | K89: 0 | L89: 0 | M89: 0 | N89: 0 | O89: 0 | P89: 0 | Q89: 0 | R89: 0 | S89: -406.7698 | U89: =G89-INDEX($C89:$G89,1,aux!$AL$1) -> -27.366 | V89: -8.982390242e-05 | W89: -8.210119021e-05 | X89: =+IF(INDEX($C89:$G89,1,aux!$AL$1)>0,(G89/INDEX($C89:$G89,1,aux!$AL$1))^(1/($G$3-INDEX($C$3:$G$3,1,aux!$AL$1)))-1,"n.d.") -> -1 | Y89: =IF(INDEX($C89:$G89,1,aux!$AL$1)>0,(G89-INDEX($C89:$G89,1,aux!$AL$1))/INDEX($C89:$G89,1,aux!$AL$1),"n.d.") -> -1 | AA89: =O89-INDEX($K89:$O89,1,aux!$AL$1) -> 0 | AB89: 0 | AC89: 0 | AD89: =+IF(INDEX($K89:$O89,1,aux!$AL$1)>0,(O89/INDEX($K89:$O89,1,aux!$AL$1))^(1/($O$3-INDEX($K$3:$O$3,1,aux!$AL$1)))-1,"n.d.") -> n.d. | AE89: =IF(INDEX($K89:$O89,1,aux!$AL$1)>0,(O89-INDEX($K89:$O89,1,aux!$AL$1))/INDEX($K89:$O89,1,aux!$AL$1),"n.d.") -> n.d. | AX89: 10
A90: 1003 | B90: Cevada | C90: 15097.538 | D90: 7878.727 | E90: 7799.893 | F90: 13524.563 | G90: 21963.035 | H90: 13252.7512 | I90: 0.01650226743 | J90: 0.01343894866 | K90: 3.085 | L90: 4.213 | M90: 2.263 | N90: 3.714 | O90: 3.122 | P90: 3.2794 | Q90: 4.85257073e-06 | R90: 2.413299128e-06 | S90: -13249.4718 | U90: =G90-INDEX($C90:$G90,1,aux!$AL$1) -> 6865.497 | V90: 0.02253474138 | W90: 0.02059729135 | X90: =+IF(INDEX($C90:$G90,1,aux!$AL$1)>0,(G90/INDEX($C90:$G90,1,aux!$AL$1))^(1/($G$3-INDEX($C$3:$G$3,1,aux!$AL$1)))-1,"n.d.") -> 0.09823822497 | Y90: =IF(INDEX($C90:$G90,1,aux!$AL$1)>0,(G90-INDEX($C90:$G90,1,aux!$AL$1))/INDEX($C90:$G90,1,aux!$AL$1),"n.d.") -> 0.4547428197 | AA90: =O90-INDEX($K90:$O90,1,aux!$AL$1) -> 0.037 | AB90: 1.30589208e-07 | AC90: 6.958845702e-08 | AD90: =+IF(INDEX($K90:$O90,1,aux!$AL$1)>0,(O90/INDEX($K90:$O90,1,aux!$AL$1))^(1/($O$3-INDEX($K$3:$O$3,1,aux!$AL$1)))-1,"n.d.") -> 0.002984987413 | AE90: =IF(INDEX($K90:$O90,1,aux!$AL$1)>0,(O90-INDEX($K90:$O90,1,aux!$AL$1))/INDEX($K90:$O90,1,aux!$AL$1),"n.d.") -> 0.01199351702 | AX90: 10
A91: 1004 | B91: Aveia | C91: 34.821 | D91: 42.214 | E91: 6.029 | F91: 5.738 | G91: 229.81 | H91: 63.7224 | I91: 7.934685186e-05 | J91: 6.461768194e-05 | K91: 0 | L91: 0 | M91: 0 | N91: 0.02 | O91: 0.062 | P91: 0.0164 | Q91: 2.426729279e-08 | R91: 1.206870333e-08 | S91: -63.706 | U91: =G91-INDEX($C91:$G91,1,aux!$AL$1) -> 194.989 | V91: 0.0006400158192 | W91: 0.0005849897309 | X91: =+IF(INDEX($C91:$G91,1,aux!$AL$1)>0,(G91/INDEX($C91:$G91,1,aux!$AL$1))^(1/($G$3-INDEX($C$3:$G$3,1,aux!$AL$1)))-1,"n.d.") -> 0.6028095481 | Y91: =IF(INDEX($C91:$G91,1,aux!$AL$1)>0,(G91-INDEX($C91:$G91,1,aux!$AL$1))/INDEX($C91:$G91,1,aux!$AL$1),"n.d.") -> 5.599753023 | AA91: =O91-INDEX($K91:$O91,1,aux!$AL$1) -> 0.062 | AB91: 2.188251593e-07 | AC91: 1.166076847e-07 | AD91: =+IF(INDEX($K91:$O91,1,aux!$AL$1)>0,(O91/INDEX($K91:$O91,1,aux!$AL$1))^(1/($O$3-INDEX($K$3:$O$3,1,aux!$AL$1)))-1,"n.d.") -> n.d. | AE91: =IF(INDEX($K91:$O91,1,aux!$AL$1)>0,(O91-INDEX($K91:$O91,1,aux!$AL$1))/INDEX($K91:$O91,1,aux!$AL$1),"n.d.") -> n.d. | AX91: 10
A92: 1005 | B92: Milho | C92: 22439.81 | D92: 14047.021 | E92: 21804.406 | F92: 28843.648 | G92: 18469.362 | H92: 21120.8494 | I92: 0.02629958866 | J92: 0.02141759144 | K92: 1568.404 | L92: 1959.03 | M92: 1328.301 | N92: 2353.26 | O92: 2981.823 | P92: 2038.1636 | Q92: 0.003015897124 | R92: 0.001499877551 | S92: -19082.6858 | U92: =G92-INDEX($C92:$G92,1,aux!$AL$1) -> -3970.448 | V92: -0.0130322712 | W92: -0.01191180686 | X92: =+IF(INDEX($C92:$G92,1,aux!$AL$1)>0,(G92/INDEX($C92:$G92,1,aux!$AL$1))^(1/($G$3-INDEX($C$3:$G$3,1,aux!$AL$1)))-1,"n.d.") -> -0.04751492426 | Y92: =IF(INDEX($C92:$G92,1,aux!$AL$1)>0,(G92-INDEX($C92:$G92,1,aux!$AL$1))/INDEX($C92:$G92,1,aux!$AL$1),"n.d.") -> -0.1769376835 | AA92: =O92-INDEX($K92:$O92,1,aux!$AL$1) -> 1413.419 | AB92: 0.004988574803 | AC92: 0.002658314793 | AD92: =+IF(INDEX($K92:$O92,1,aux!$AL$1)>0,(O92/INDEX($K92:$O92,1,aux!$AL$1))^(1/($O$3-INDEX($K$3:$O$3,1,aux!$AL$1)))-1,"n.d.") -> 0.174237592 | AE92: =IF(INDEX($K92:$O92,1,aux!$AL$1)>0,(O92-INDEX($K92:$O92,1,aux!$AL$1))/INDEX($K92:$O92,1,aux!$AL$1),"n.d.") -> 0.901182986 | AX92: 10
A93: 1006 | B93: Arroz | C93: 1542.366 | D93: 526.371 | E93: 692.763 | F93: 1094.778 | G93: 2913.894 | H93: 1354.0344 | I93: 0.001686037672 | J93: 0.001373058205 | K93: 3720.401 | L93: 4370.392 | M93: 4224.159 | N93: 4340.659 | O93: 3912.293 | P93: 4113.5808 | Q93: 0.006086918884 | R93: 0.003027169897 | S93: 2759.5464 | U93: =G93-INDEX($C93:$G93,1,aux!$AL$1) -> 1371.528 | V93: 0.004501790442 | W93: 0.004114743887 | X93: =+IF(INDEX($C93:$G93,1,aux!$AL$1)>0,(G93/INDEX($C93:$G93,1,aux!$AL$1))^(1/($G$3-INDEX($C$3:$G$3,1,aux!$AL$1)))-1,"n.d.") -> 0.1723885722 | Y93: =IF(INDEX($C93:$G93,1,aux!$AL$1)>0,(G93-INDEX($C93:$G93,1,aux!$AL$1))/INDEX($C93:$G93,1,aux!$AL$1),"n.d.") -> 0.8892364069 | AA93: =O93-INDEX($K93:$O93,1,aux!$AL$1) -> 191.892 | AB93: 0.0006772709268 | AC93: 0.0003609045458 | AD93: =+IF(INDEX($K93:$O93,1,aux!$AL$1)>0,(O93/INDEX($K93:$O93,1,aux!$AL$1))^(1/($O$3-INDEX($K$3:$O$3,1,aux!$AL$1)))-1,"n.d.") -> 0.0126524203 | AE93: =IF(INDEX($K93:$O93,1,aux!$AL$1)>0,(O93-INDEX($K93:$O93,1,aux!$AL$1))/INDEX($K93:$O93,1,aux!$AL$1),"n.d.") -> 0.05157831105 | AX93: 10
A94: 1007 | B94: Sorgo de grão | C94: 393.496 | D94: 346.139 | E94: 769.613 | F94: 732.923 | G94: 1063.398 | H94: 661.1138 | I94: 0.0008232159923 | J94: 0.0006704022644 | K94: 23.482 | L94: 36.797 | M94: 92.717 | N94: 45.631 | O94: 3.026 | P94: 40.3306 | Q94: 5.967771211e-05 | R94: 2.967914918e-05 | S94: -620.7832 | U94: =G94-INDEX($C94:$G94,1,aux!$AL$1) -> 669.902 | V94: 0.0021988311 | W94: 0.002009784094 | X94: =+IF(INDEX($C94:$G94,1,aux!$AL$1)>0,(G94/INDEX($C94:$G94,1,aux!$AL$1))^(1/($G$3-INDEX($C$3:$G$3,1,aux!$AL$1)))-1,"n.d.") -> 0.2821501258 | Y94: =IF(INDEX($C94:$G94,1,aux!$AL$1)>0,(G94-INDEX($C94:$G94,1,aux!$AL$1))/INDEX($C94:$G94,1,aux!$AL$1),"n.d.") -> 1.702436619 | AA94: =O94-INDEX($K94:$O94,1,aux!$AL$1) -> -20.456 | AB94: -7.219818481e-05 | AC94: -3.847301289e-05 | AD94: =+IF(INDEX($K94:$O94,1,aux!$AL$1)>0,(O94/INDEX($K94:$O94,1,aux!$AL$1))^(1/($O$3-INDEX($K$3:$O$3,1,aux!$AL$1)))-1,"n.d.") -> -0.4008529022 | AE94: =IF(INDEX($K94:$O94,1,aux!$AL$1)>0,(O94-INDEX($K94:$O94,1,aux!$AL$1))/INDEX($K94:$O94,1,aux!$AL$1),"n.d.") -> -0.8711353377 | AX94: 10
A95: 1008 | B95: Trigo mourisco, painço e outros cereais | C95: 1010.508 | D95: 715.114 | E95: 568.386 | F95: 1099.527 | G95: 1573.358 | H95: 993.3786 | I95: 0.001236950658 | J95: 0.001007335292 | K95: 0.424 | L95: 1.166 | M95: 10.21 | N95: 1.744 | O95: 1.725 | P95: 3.0538 | Q95: 4.518747483e-06 | R95: 2.247280868e-06 | S95: -990.3248 | U95: =G95-INDEX($C95:$G95,1,aux!$AL$1) -> 562.85 | V95: 0.00184745244 | W95: 0.001688615615 | X95: =+IF(INDEX($C95:$G95,1,aux!$AL$1)>0,(G95/INDEX($C95:$G95,1,aux!$AL$1))^(1/($G$3-INDEX($C$3:$G$3,1,aux!$AL$1)))-1,"n.d.") -> 0.1170482928 | Y95: =IF(INDEX($C95:$G95,1,aux!$AL$1)>0,(G95-INDEX($C95:$G95,1,aux!$AL$1))/INDEX($C95:$G95,1,aux!$AL$1),"n.d.") -> 0.5569970747 | AA95: =O95-INDEX($K95:$O95,1,aux!$AL$1) -> 1.301 | AB95: 4.591798907e-06 | AC95: 2.446880611e-06 | AD95: =+IF(INDEX($K95:$O95,1,aux!$AL$1)>0,(O95/INDEX($K95:$O95,1,aux!$AL$1))^(1/($O$3-INDEX($K$3:$O$3,1,aux!$AL$1)))-1,"n.d.") -> 0.4202206098 | AE95: =IF(INDEX($K95:$O95,1,aux!$AL$1)>0,(O95-INDEX($K95:$O95,1,aux!$AL$1))/INDEX($K95:$O95,1,aux!$AL$1),"n.d.") -> 3.068396226 | AX95: 10
A96: 10SS | B96: Cereais | C96: 0 | D96: 0 | E96: 0 | F96: 0 | G96: 0 | H96: 0 | I96: 0 | J96: 0 | K96: 0 | L96: 0 | M96: 0 | N96: 0 | O96: 0 | P96: 0 | Q96: 0 | R96: 0 | S96: 0 | U96: =G96-INDEX($C96:$G96,1,aux!$AL$1) -> 0 | V96: 0 | W96: 0 | X96: =+IF(INDEX($C96:$G96,1,aux!$AL$1)>0,(G96/INDEX($C96:$G96,1,aux!$AL$1))^(1/($G$3-INDEX($C$3:$G$3,1,aux!$AL$1)))-1,"n.d.") -> n.d. | Y96: =IF(INDEX($C96:$G96,1,aux!$AL$1)>0,(G96-INDEX($C96:$G96,1,aux!$AL$1))/INDEX($C96:$G96,1,aux!$AL$1),"n.d.") -> n.d. | AA96: =O96-INDEX($K96:$O96,1,aux!$AL$1) -> 0 | AB96: 0 | AC96: 0 | AD96: =+IF(INDEX($K96:$O96,1,aux!$AL$1)>0,(O96/INDEX($K96:$O96,1,aux!$AL$1))^(1/($O$3-INDEX($K$3:$O$3,1,aux!$AL$1)))-1,"n.d.") -> n.d. | AE96: =IF(INDEX($K96:$O96,1,aux!$AL$1)>0,(O96-INDEX($K96:$O96,1,aux!$AL$1))/INDEX($K96:$O96,1,aux!$AL$1),"n.d.") -> n.d. | AX96: 10
